Workbook

Sheet Message
A2: PLEASE NOTE:
A3: If you do not enable macros, this spreadsheet will not function properly!
B4: 2007 Excel Users - The Security Warning in the ribbon above the active window says that "Macros have been disabled." Click the "Options..." button. A MicroSoft Security Alert window will open. Select "Enable this content" and your spreadsheet will function with macros enabled.
B6: 2010 Excel Users – Click Enable Macros
A19: READ THESE INSTRUCTIONS BEFORE ENTERING DATA INTO THIS SPREADSHEET!!!
B21: It is strongly recommended that you print these instructions for future reference.

Sheet Salary Detail
A1: UNM HEALTH SCIENCES CENTER | V1: TABLE 1 | Y1: >.25 FTE Student Health Insurance Benefits | AE1: The following are used in the calculation below for <365; ED>CFYE
A2: SALARY CALCULATION WORKSHEET | W2: 7/1/22-6/30/23 | X2: 7/1/23-6/30/24 | Y2: 7/1/24-6/30/25 | Z2: 7/1/25-6/30/26 | AA2: 7/1/26-6/30/27 | AE2: =ENDDATE-CURRENTFYE -> -45107 | AF2: CFYE_ED = ENDDATE-CURRENTYFYE
A3: Revised 6/15/2022 | W3: FY 2022 | X3: FY 2023 | Y3: FY 2024 | Z3: FY 2025 | AA3: FY 2026 | AE3: =IF(AND(CFYE_ED>365,CFYE_ED<=730),(1+INCREASE)^2,IF(AND(CFYE_ED>730,CFYE_ED<=1095),(1+INCREASE)^3,IF(AND(CFYE_ED>1095,CFYE_ED<=1460),(1+INCREASE)^4,IF(AND(CFYE_ED>1460,CFYE_ED<=1825),(1+INCREASE)^5,IF(AND(CFYE_ED>1825,CFYE_ED<=2190),(1+INCREASE)^6,IF(AND(CFYE_ED>2190,CFYE_ED<=2555),(1+INCREASE)^7,IF(AND(CFYE_ED>2555,CFYE_ED<=2920),(1+INCREASE)^8,1.041))))))) -> 1.041 | AF3: CFYE_EDPCNT = Increase factor for partial year ending within
O4: Fringe Benefit Codes | V4: Full Year | W4: =+W6+W5 -> 3519 | X4: =+X6+X5 -> 4047 | Y4: =+Y6+Y5 -> 4654 | Z4: =+Z6+Z5 -> 5352 | AA4: =+AA6+AA5 -> 6154 | AF4: a year that is more than 1 year beyond the CFYE.
D5: Principal Investigator: | V5: Fall Only | W5: 1466 | X5: 1686 | Y5: 1939 | Z5: 2230 | AA5: 2564 | AE5: 365 | AF5: PERIOD 1 = ED-STARTDATE+1 to add back last day.
D6: Department: | O6: F = Faculty | V6: Spring / Summer | W6: 2053 | X6: 2361 | Y6: 2715 | Z6: 3122 | AA6: 3590 | AF6: Note: I'm using 365 days here because the leap year effect
D7: Project Title: | O7: A = Sec/Clerical Staff | AF7: appears to be immaterial for this particular calculation.
D8: Funding Agency: | O8: G = RA, TA, GA, PA | V8: Summer Only | W8: 880 | X8: 1012 | Y8: 1163 | Z8: 1338 | AA8: 1539
O9: L = Technician
D10: Current FYE: | E10: 2023-06-30 | H10: Duration of Project (in months): | O10: O= Other Professional
D11: First Year of Initial Period Start Date: | H11: Number of budget periods: | L11: =IF(AND(STARTDATE="",ENDDATE=""),0,ROUNDUP(totalyrs,0)) -> 0 | O11: P = Postdoctoral
D12: First Year of Initial Period End Date: | H12: Days Overlapping FY End in Year 1: | L12: =ABS(CURRENTFYE-ENDDATE) -> 45107 | O12: S = Student
A13: ATTENTION! | B13: Specify LOCATION and TYPE of Activity | O13: T=Temporary
B14: Place an "X" in the appropriate box: | O14: W=Workstudy | AE14: INITIAL BUDGET PERIOD
A15: Activity will take place | C15: ON Campus | E15: OFF Campus | G15: Number of months in first year or initial period: | L15: =ROUND((ENDDATE-STARTDATE)/(365.25/12),0) -> 0 | O15: Enter fringe benefit letter code | AE15: < 365 days | AF15: < 365 days | AG15: >= 365 days | AH15: >= 365 days
A16: Type of Activity | G16: Est. salary increase for subsequent years: | L16: 0.0167 | O16: in the column below. | AE16: ED<=CYFE | AF16: ED>CYFE | AG16: ED<=CYFE | AH16: ED>CYFE
A17: Research Activity | C17: Check | G17: Factor for estimated salary increase: | L17: =SUM(AE17:AH17) -> 1 | Q17: Enter "R" for Retirees | R17: Enter amount of insurance from table | AE17: =IF(PERIOD1<365,IF(ENDDATE<=CURRENTFYE,PERIOD1/365,0),0) -> 0 | AF17: =IF(PERIOD1<365,IF(ENDDATE>CURRENTFYE,CFYE_EDPCNT*(PERIOD1/365),0),0) -> 0 | AG17: =IF(PERIOD1>=365,IF(ENDDATE<=CURRENTFYE,1,0),0) -> 1 | AH17: =IF(PERIOD1>=365,IF(ENDDATE>CURRENTFYE,1+(INCREASE*ENDDAYS/365),0),0) -> 0
A18: Non-Research Activity | C18: Only | E18: Place "X" Here | G18: If DHHS (Salary Cap Applies) . . . . . . . . . | L18: 203700
A19: DOD Contract | C19: One | E19: Place "X" Here | G19: If Project is Federally Funded | L19: 999999 | AN19: Institutional Base Salary
A20: Non-Competing Cont. or Other Rate | C20: =IF(B20>0,B20,(IF(AND(B15="X",B18="X"),0.5,(IF(AND(B15="X",B19="X"),0.54,(IF(AND(D15="X",B18="X"),0.26,(IF(AND(D15="X",B19="X"),0.29,IF(AND(D15="X",B17="X"),0.26,0)))))))))) -> 0 | G20: (including Federal flow-through on incoming awards) | T20: Year 1 | V20: F & A COSTS | AE20: ED = ENDDATE; CYFE = CURRENT FYE | AH20: Yr 1% | AK20: ED = ENDDATE; CYFE = CURRENT FYE | AO20: Yr 1%
A21: PERSONNEL | E21: Current FY | G21: Maximum | H21: Level | I21: % | J21: Adjusted | L21: Fringe | M21: Fringe | N21: Total | P21: Fringe | R21: Graduate | T21: Labor Costs | V21: The Following should be used to calculate F&A costs unless the sponsor has specified a different F&A cost rate in writing. | AE21: Sal = Adjusted Salary; Max = Maximum allowable salary | AI21: Days in Yr 1 | AL21: Sal = Adjusted Salary; Max = Maximum allowable salary | AP21: Days in Yr 1
A22: UNM Employee | C22: UNM | D22: Appt. | E22: Salary | F22: Person | G22: Salary | H22: of | I22: FTE | J22: UNM | K22: Salary | L22: Benefit | M22: Benefits | N22: Salary | P22: Benefit | Q22: UNM | R22: Student | T22: above NIH | AE22: ED<=CYFE | AF22: =AE22 -> ED<=CYFE | AG22: ED>CYFE | AH22: =AG22 -> ED>CYFE | AI22: Divided by | AL22: ED<=CYFE | AM22: =AL22 -> ED<=CYFE | AN22: ED>CYFE | AO22: =AN22 -> ED>CYFE | AP22: Divided by
A23: Last Name | B23: First Name | C23: FTE | D23: Mos. | E23: Annualized | F23: Mos. | G23: Base | H23: Effort | I23: Year 1 | J23: Salary | K23: Requested | L23: Rate | M23: Amount | N23: & Benefits | P23: Type | Q23: Retiree | R23: Insurance | T23: Salary Cap | X23: On Campus | Y23: Off Campus | AE23: Sal<Max | AF23: Sal>=Max | AG23: =AE23 -> Sal<Max | AH23: =AF23 -> Sal>=Max | AI23: =IF(MOD(YEAR(ENDDATE),4)=0,365,365) -> 365 | AL23: Sal<Max | AM23: Sal>=Max | AN23: =AL23 -> Sal<Max | AO23: =AM23 -> Sal>=Max | AP23: =IF(MOD(YEAR(ENDDATE),4)=0,365,365) -> 365
F24: =IF(SUM(H24*D24)*C24 = 0,"",SUM(H24*D24)*C24) ->  | G24: =IF(IF($F$18="X",(IF((E24*FACTOR*yr1percent)>$L$18,$L$18,J24)),J24)=0,"",IF($F$18="X",(IF((E24*FACTOR*yr1percent)>$L$18,$L$18,J24)),J24)) ->  | I24: =IF($L$15/12*H24*D24/12*C24=0,"",$L$15/12*H24*D24/12*C24) ->  | J24: =IF((SUM(AK24:AN24))=0,"",(SUM(AK24:AN24))) ->  | K24: =IFERROR(ROUND(G24*I24,0),"") ->  | L24: =IFERROR(IF(IF(H24=0,0,IF(OR(P24="G",P24="T",P24="S",P24="W",Q24="R"),IF(Q24=0,VLOOKUP(P24,fringes,2,FALSE),$B$360),IF(OR(P24="F",P24="A",P24="O",P24="L",P24="P"),IF(C24<0.25,0.11,IF(C24<0.5,0.21,(Year1Weight*VLOOKUP(P24,FringeTable,2,FALSE)+Year2Weight*VLOOKUP(P24,FringeTable,3,FALSE)+Year3Weight*VLOOKUP(P24,FringeTable,4,FALSE)))))))=0,"",IF(H24=0,0,IF(OR(P24="G",P24="T",P24="S",P24="W",Q24="R"),IF(Q24=0,VLOOKUP(P24,fringes,2,FALSE),$B$360),IF(OR(P24="F",P24="A",P24="O",P24="L",P24="P"),IF(C24<0.25,0.11,IF(C24<0.5,0.21,(Year1Weight*VLOOKUP(P24,FringeTable,2,FALSE)+Year2Weight*VLOOKUP(P24,FringeTable,3,FALSE)+Year3Weight*VLOOKUP(P24,FringeTable,4,FALSE)))))))),"") ->  | M24: =IFERROR(IF(IF(H24>0,(R24+(ROUND(K24*L24,0))),0)=0,"",IF(H24>0,(R24+(ROUND(K24*L24,0))),0)),"") ->  | N24: =IFERROR(K24+M24,"") ->  | T24: =IFERROR(IF(J24>$L$18,((J24-$L$18)*I24)*(L24+1),0),"") ->  | W24: As of: | X24: 7/1/16 7/1/22 | Y24: 7/1/16 7/1/22 | AE24: =ROUND(IF(AND(ENDDATE<=CURRENTFYE,E24*FACTOR*yr1percent<MAXSAL),E24*FACTOR*yr1percent,0),0) -> 0 | AF24: =ROUND(IF(AND(ENDDATE<=CURRENTFYE,E24*FACTOR>=MAXSAL),MAXSAL*yr1percent,0),0) -> 0 | AG24: =ROUND(IF(AND(ENDDATE>CURRENTFYE,E24*FACTOR<MAXSAL),E24*FACTOR*yr1percent,0),0) -> 0 | AH24: =ROUND(IF(AND(ENDDATE>CURRENTFYE,E24*FACTOR>=MAXSAL),MAXSAL*yr1percent,0),0) -> 0 | AI24: =365/AI23 -> 1 | AL24: =ROUND(IF(AND(ENDDATE<=CURRENTFYE,E24*FACTOR*yr1percent<$L$19),E24*FACTOR*yr1percent,0),0) -> 0 | AM24: =ROUND(IF(AND(ENDDATE<=CURRENTFYE,E24*FACTOR>=$L$19),$L$19*yr1percent,0),0) -> 0 | AN24: =ROUND(IF(AND(ENDDATE>CURRENTFYE,E24*FACTOR<$L$19),E24*FACTOR*yr1percent,0),0) -> 0 | AO24: =ROUND(IF(AND(ENDDATE>CURRENTFYE,E24*FACTOR>=$L$19),$L$19*yr1percent,0),0) -> 0 | AP24: =365/AP23 -> 1
G25: =IF(IF($F$18="X",(IF((E25*FACTOR*yr1percent)>$L$18,$L$18,J25)),J25)=0,"",IF($F$18="X",(IF((E25*FACTOR*yr1percent)>$L$18,$L$18,J25)),J25)) ->  | J25: =IF((SUM(AK25:AN25))=0,"",(SUM(AK25:AN25))) ->  | L25: =IFERROR(IF(IF(H25=0,0,IF(OR(P25="G",P25="T",P25="S",P25="W",Q25="R"),IF(Q25=0,VLOOKUP(P25,fringes,2,FALSE),$B$360),IF(OR(P25="F",P25="A",P25="O",P25="L",P25="P"),IF(C25<0.25,0.11,IF(C25<0.5,0.21,(Year1Weight*VLOOKUP(P25,FringeTable,2,FALSE)+Year2Weight*VLOOKUP(P25,FringeTable,3,FALSE)+Year3Weight*VLOOKUP(P25,FringeTable,4,FALSE)))))))=0,"",IF(H25=0,0,IF(OR(P25="G",P25="T",P25="S",P25="W",Q25="R"),IF(Q25=0,VLOOKUP(P25,fringes,2,FALSE),$B$360),IF(OR(P25="F",P25="A",P25="O",P25="L",P25="P"),IF(C25<0.25,0.11,IF(C25<0.5,0.21,(Year1Weight*VLOOKUP(P25,FringeTable,2,FALSE)+Year2Weight*VLOOKUP(P25,FringeTable,3,FALSE)+Year3Weight*VLOOKUP(P25,FringeTable,4,FALSE)))))))),"") ->  | M25: =IFERROR(IF(IF(H25>0,(R25+(ROUND(K25*L25,0))),0)=0,"",IF(H25>0,(R25+(ROUND(K25*L25,0))),0)),"") ->  | V25: Research | X25: 51.5% 52.5% | Y25: 26% 26% | AE25: =ROUND(IF(AND(ENDDATE<=CURRENTFYE,E25*FACTOR*yr1percent<MAXSAL),E25*FACTOR*yr1percent,0),0) -> 0 | AF25: =ROUND(IF(AND(ENDDATE<=CURRENTFYE,E25*FACTOR>=MAXSAL),MAXSAL*yr1percent,0),0) -> 0 | AG25: =ROUND(IF(AND(ENDDATE>CURRENTFYE,E25*FACTOR<MAXSAL),E25*FACTOR*yr1percent,0),0) -> 0 | AH25: =ROUND(IF(AND(ENDDATE>CURRENTFYE,E25*FACTOR>=MAXSAL),MAXSAL*yr1percent,0),0) -> 0 | AL25: =ROUND(IF(AND(ENDDATE<=CURRENTFYE,E25*FACTOR*yr1percent<$L$19),E25*FACTOR*yr1percent,0),0) -> 0 | AM25: =ROUND(IF(AND(ENDDATE<=CURRENTFYE,E25*FACTOR>=$L$19),$L$19*yr1percent,0),0) -> 0 | AN25: =ROUND(IF(AND(ENDDATE>CURRENTFYE,E25*FACTOR<$L$19),E25*FACTOR*yr1percent,0),0) -> 0 | AO25: =ROUND(IF(AND(ENDDATE>CURRENTFYE,E25*FACTOR>=$L$19),$L$19*yr1percent,0),0) -> 0
V26: Instruction | X26: 53% 53% | Y26: 26% 26% | AE26: =ROUND(IF(AND(ENDDATE<=CURRENTFYE,E26*FACTOR*yr1percent<MAXSAL),E26*FACTOR*yr1percent,0),0) -> 0 | AF26: 0 | AG26: 0 | AH26: 0 | AL26: 0 | AM26: 0 | AN26: 0 | AO26: 0
V27: Other Sponsored Programs | X27: 45.0% 45.0% | Y27: 26% 26% | AE27: 0 | AF27: 0 | AG27: 0 | AH27: 0 | AL27: 0 | AM27: 0 | AN27: 0 | AO27: 0
V28: DoD Contracts | X28: 54% 54% | Y28: 29% 29% | AE28: 0 | AF28: 0 | AG28: 0 | AH28: 0 | AL28: 0 | AM28: 0 | AN28: 0 | AO28: 0
V29: Clinical Trials (Non-Federal) | X29: 28% 28% | Y29: 28% 28% | AE29: 0 | AF29: 0 | AG29: 0 | AH29: 0 | AL29: 0 | AM29: 0 | AN29: 0 | AO29: 0
V30: IPA's | Y30: 0.0975 | AE30: 0 | AF30: 0 | AG30: 0 | AH30: 0 | AL30: 0 | AM30: 0 | AN30: 0 | AO30: 0
AE31: 0 | AF31: 0 | AG31: 0 | AH31: 0 | AL31: 0 | AM31: 0 | AN31: 0 | AO31: 0
AE32: 0 | AF32: 0 | AG32: 0 | AH32: 0 | AL32: 0 | AM32: 0 | AN32: 0 | AO32: 0
AE33: 0 | AF33: 0 | AG33: 0 | AH33: 0 | AL33: 0 | AM33: 0 | AN33: 0 | AO33: 0
AE34: 0 | AF34: 0 | AG34: 0 | AH34: 0 | AL34: 0 | AM34: 0 | AN34: 0 | AO34: 0
AE35: 0 | AF35: 0 | AG35: 0 | AH35: 0 | AL35: 0 | AM35: 0 | AN35: 0 | AO35: 0
AE36: 0 | AF36: 0 | AG36: 0 | AH36: 0 | AL36: 0 | AM36: 0 | AN36: 0 | AO36: 0
AE37: 0 | AF37: 0 | AG37: 0 | AH37: 0 | AL37: 0 | AM37: 0 | AN37: 0 | AO37: 0
AE38: 0 | AF38: 0 | AG38: 0 | AH38: 0 | AL38: 0 | AM38: 0 | AN38: 0 | AO38: 0
AE39: 0 | AF39: 0 | AG39: 0 | AH39: 0 | AL39: 0 | AM39: 0 | AN39: 0 | AO39: 0
AE40: 0 | AF40: 0 | AG40: 0 | AH40: 0 | AL40: 0 | AM40: 0 | AN40: 0 | AO40: 0
AE41: 0 | AF41: 0 | AG41: 0 | AH41: 0 | AL41: 0 | AM41: 0 | AN41: 0 | AO41: 0
AE42: 0 | AF42: 0 | AG42: 0 | AH42: 0 | AL42: 0 | AM42: 0 | AN42: 0 | AO42: 0
AE43: 0 | AF43: 0 | AG43: 0 | AH43: 0 | AL43: 0 | AM43: 0 | AN43: 0 | AO43: 0
AE44: 0 | AF44: 0 | AG44: 0 | AH44: 0 | AL44: 0 | AM44: 0 | AN44: 0 | AO44: 0
AE45: 0 | AF45: 0 | AG45: 0 | AH45: 0 | AL45: 0 | AM45: 0 | AN45: 0 | AO45: 0
AE46: 0 | AF46: 0 | AG46: 0 | AH46: 0 | AL46: 0 | AM46: 0 | AN46: 0 | AO46: 0
AE47: 0 | AF47: 0 | AG47: 0 | AH47: 0 | AL47: 0 | AM47: 0 | AN47: 0 | AO47: 0
AE48: 0 | AF48: 0 | AG48: 0 | AH48: 0 | AL48: 0 | AM48: 0 | AN48: 0 | AO48: 0
AE49: 0 | AF49: 0 | AG49: 0 | AH49: 0 | AL49: 0 | AM49: 0 | AN49: 0 | AO49: 0
AE50: 0 | AF50: 0 | AG50: 0 | AH50: 0 | AL50: 0 | AM50: 0 | AN50: 0 | AO50: 0
AE51: 0 | AF51: 0 | AG51: 0 | AH51: 0 | AL51: 0 | AM51: 0 | AN51: 0 | AO51: 0
AE52: 0 | AF52: 0 | AG52: 0 | AH52: 0 | AL52: 0 | AM52: 0 | AN52: 0 | AO52: 0
AE53: 0 | AF53: 0 | AG53: 0 | AH53: 0 | AL53: 0 | AM53: 0 | AN53: 0 | AO53: 0
AE54: 0 | AF54: 0 | AG54: 0 | AH54: 0 | AL54: 0 | AM54: 0 | AN54: 0 | AO54: 0
AE55: 0 | AF55: 0 | AG55: 0 | AH55: 0 | AL55: 0 | AM55: 0 | AN55: 0 | AO55: 0
AE56: 0 | AF56: 0 | AG56: 0 | AH56: 0 | AL56: 0 | AM56: 0 | AN56: 0 | AO56: 0
AE57: 0 | AF57: 0 | AG57: 0 | AH57: 0 | AL57: 0 | AM57: 0 | AN57: 0 | AO57: 0
AE58: 0 | AF58: 0 | AG58: 0 | AH58: 0 | AL58: 0 | AM58: 0 | AN58: 0 | AO58: 0
AE59: 0 | AF59: 0 | AG59: 0 | AH59: 0 | AL59: 0 | AM59: 0 | AN59: 0 | AO59: 0
AE60: 0 | AF60: 0 | AG60: 0 | AH60: 0 | AL60: 0 | AM60: 0 | AN60: 0 | AO60: 0
AE61: 0 | AF61: 0 | AG61: 0 | AH61: 0 | AL61: 0 | AM61: 0 | AN61: 0 | AO61: 0
AE62: 0 | AF62: 0 | AG62: 0 | AH62: 0 | AL62: 0 | AM62: 0 | AN62: 0 | AO62: 0
AE63: 0 | AF63: 0 | AG63: 0 | AH63: 0 | AL63: 0 | AM63: 0 | AN63: 0 | AO63: 0
A64: YEAR 1 TOTALS | K64: =SUM(K24:K63) -> 0 | M64: =SUM(M24:M63) -> 0 | O64: =SUM(N24:O63) -> 0 | R64: =SUM(R24:R63) -> 0 | T64: =SUM(T24:T63) -> 0
A68: UNM HEALTH SCIENCES CENTER | R68: % of Yr 2 & 3
A69: SALARY CALCULATION WORKSHEET (Page 2) | R69: Year or
R70: Portion of
C71: Principal Investigator: | G71: =IF(totalyrs>1,IF(E5=0,"",E5),"") ->  | R71: a Year
C72: Department: | G72: =IF(totalyrs>1,IF(E6=0,"",E6),"") ->  | R72: =IF(AND(totalyrs>1,totalyrs<2),totalyrs-1,1) -> 1 | S72: = Year 2
C73: Project Title: | G73: =IF(totalyrs>1,IF(E7=0,"",E7),"") ->  | R73: =IF(AND(totalyrs>2,totalyrs<3),totalyrs-2,1) -> 1 | S73: = Year 3
C74: Funding Agency: | G74: =IF(totalyrs>1,IF(E8=0,"",E8),"") -> 
S75: Year 2 | T75: Year 3
B76: Adjusted | C76: Year 2 | H76: Level | I76: % | K76: Adjusted | L76: Year 3 | P76: Level | Q76: % | S76: Labor Costs | T76: Labor Costs
A77: Employee's | B77: UNM | C77: Salary | F77: Person | H77: of | I77: FTE | J77: Employee's | K77: UNM | L77: =C77 -> Salary | N77: Person | P77: of | Q77: FTE | S77: above NIH | T77: above NIH
A78: Last Name | B78: Base Salary | C78: Requested | E78: Benefits | F78: Mos. | G78: Total | H78: Effort | I78: Year 2 | J78: Last Name | K78: Base Salary | L78: =C78 -> Requested | M78: =E78 -> Benefits | N78: Mos. | O78: Total | P78: Effort | Q78: Year 3 | S78: Salary Cap | T78: Salary Cap
A79: =IF(A24=0,"",A24) ->  | B79: =IFERROR(IF(ROUND(IF(totalyrs>1,((J24*(1+INCREASE))),0),0)=0,"",ROUND(IF(totalyrs>1,((J24*(1+INCREASE))),0),0)),"") ->  | C79: =IFERROR(IF(ROUND(IF(totalyrs>1,IF(SALCAPAPPLIES="X",(IF($G24*(1+INCREASE)>MAXSAL,(IF(AND(totalyrs<2,MOD(NUMMONTHS,12)>0),((MAXSAL*I79)/12)*MOD(NUMMONTHS,12),MAXSAL*I79)),($G24*I79*yr2percent*(1+INCREASE)))),($G24*I79*yr2percent*(1+INCREASE))),0),0)=0,"",ROUND(IF(totalyrs>1,IF(SALCAPAPPLIES="X",(IF($G24*(1+INCREASE)>MAXSAL,(IF(AND(totalyrs<2,MOD(NUMMONTHS,12)>0),((MAXSAL*I79)/12)*MOD(NUMMONTHS,12),MAXSAL*I79)),($G24*I79*yr2percent*(1+INCREASE)))),($G24*I79*yr2percent*(1+INCREASE))),0),0)),"") ->  | E79: =IFERROR(IF(IF(H79=0,0,ROUND(IF(P24="G",(C79*L24)+(R24*1.05),IF(Q24>0,C79*L24,C79*($J$345*VLOOKUP(P24,FringeTable,2,FALSE)+$J$346*VLOOKUP(P24,FringeTable,3,FALSE)+$J$347*VLOOKUP(P24,FringeTable,4,FALSE)+$J$348*VLOOKUP(P24,FringeTable,5,FALSE)))),0))=0,"",IF(H79=0,0,ROUND(IF(P24="G",(C79*L24)+(R24*1.05),IF(Q24>0,C79*L24,C79*($J$345*VLOOKUP(P24,FringeTable,2,FALSE)+$J$346*VLOOKUP(P24,FringeTable,3,FALSE)+$J$347*VLOOKUP(P24,FringeTable,4,FALSE)+$J$348*VLOOKUP(P24,FringeTable,5,FALSE)))),0))),"") ->  | F79: =IFERROR(IF(SUM(H79*D24)*C24=0,"",SUM(H79*D24)*C24),"") ->  | G79: =IFERROR(C79+E79,"") ->  | H79: =IF(IF(totalyrs>1,(H24),0)=0,"",IF(totalyrs>1,(H24),0)) ->  | I79: =IFERROR(H79*D24/12*C24,"") ->  | J79: =IF(totalyrs>2,IF(A24=0,"",A24),"") ->  | K79: =IFERROR(IF(ROUND(IF(totalyrs>2,((J24*(1+INCREASE)^2)),0),0)=0,"",ROUND(IF(totalyrs>2,((J24*(1+INCREASE)^2)),0),0)),"") ->  | L79: =IFERROR(IF(ROUND(IF(totalyrs>2,IF(SALCAPAPPLIES="X",(IF($G24*(1+INCREASE)^2>MAXSAL,(IF(AND(totalyrs<3,MOD(NUMMONTHS,12)>0),((MAXSAL*Q79)/12)*MOD(NUMMONTHS,12),MAXSAL*Q79)),($G24*Q79*yr3percent*(1+INCREASE)^2))),($G24*Q79*yr3percent*(1+INCREASE)^2)),0),0)=0,"",ROUND(IF(totalyrs>2,IF(SALCAPAPPLIES="X",(IF($G24*(1+INCREASE)^2>MAXSAL,(IF(AND(totalyrs<3,MOD(NUMMONTHS,12)>0),((MAXSAL*Q79)/12)*MOD(NUMMONTHS,12),MAXSAL*Q79)),($G24*Q79*yr3percent*(1+INCREASE)^2))),($G24*Q79*yr3percent*(1+INCREASE)^2)),0),0)),"") ->  | M79: =IFERROR(IF(IF(P79=0,0,ROUND(IF(P24="G",(L79*L24)+(R24*1.1),IF(Q24>0,L79*L24,L79*($J$345*VLOOKUP(P24,FringeTable,3,FALSE)+$J$346*VLOOKUP(P24,FringeTable,4,FALSE)+$J$347*VLOOKUP(P24,FringeTable,5,FALSE)+$J$348*VLOOKUP(P24,FringeTable,6,FALSE)))),0))=0,"",IF(P79=0,0,ROUND(IF(P24="G",(L79*L24)+(R24*1.1),IF(Q24>0,L79*L24,L79*($J$345*VLOOKUP(P24,FringeTable,3,FALSE)+$J$346*VLOOKUP(P24,FringeTable,4,FALSE)+$J$347*VLOOKUP(P24,FringeTable,5,FALSE)+$J$348*VLOOKUP(P24,FringeTable,6,FALSE)))),0))),"") ->  | N79: =IFERROR(IF(SUM(P79*D24)*C24=0,"",SUM(P79*D24)*C24),"") ->  | O79: =IFERROR(L79+M79,"") ->  | P79: =IF(IF(totalyrs>2, (H79),0)=0,"",IF(totalyrs>2, (H79),0)) ->  | Q79: =IFERROR(P79*D24/12*C24,"") ->  | S79: =IFERROR(IF(B79>$L$18,((B79-$L$18)*I79)*(L24+1),0),"") ->  | T79: =IFERROR(IF(K79>$L$18,((K79-$L$18)*Q79)*(L24+1),0),"") -> 
A119: Totals | C119: =SUM(C79:C118) -> 0 | E119: =SUM(E79:E118) -> 0 | G119: =C119+E119 -> 0 | J119: Totals | L119: =SUM(L79:L118) -> 0 | M119: =SUM(M79:M118) -> 0 | O119: =L119+M119 -> 0 | S119: =SUM(S79:S118) -> 0 | T119: =SUM(T79:T118) -> 0
A122: UNM HEALTH SCIENCES CENTER | R122: % of Yr 4 & 5
A123: SALARY CALCULATION WORKSHEET (Page 3) | R123: =$R$69 -> Year or
R124: =$R$70 -> Portion of
C125: Principal Investigator: | G125: =IF(totalyrs>3,IF(E5=0,"",E5),"") ->  | R125: =$R$71 -> a Year
C126: Department: | G126: =IF(totalyrs>3,IF(E6=0,"",E6),"") ->  | R126: =IF(AND(totalyrs>3,totalyrs<4),totalyrs-3,1) -> 1 | S126: = Year 4
C127: Project Title: | G127: =IF(totalyrs>3,IF(E7=0,"",E7),"") ->  | R127: =IF(AND(totalyrs>4,totalyrs<5),totalyrs-4,1) -> 1 | S127: = Year 5
C128: Funding Agency: | G128: =IF(totalyrs>3,IF(E8=0,"",E8),"") -> 
S129: Year 4 | T129: Year 5
B130: Adjusted | C130: Year 4 | H130: Level | I130: % | K130: Adjusted | L130: Year 5 | P130: Level | Q130: % | S130: Labor Costs | T130: Labor Costs
A131: Employee's | B131: UNM | C131: Salary | F131: Person | H131: of | I131: FTE | J131: Employee's | K131: UNM | L131: =C131 -> Salary | N131: Person | P131: of | Q131: FTE | S131: above NIH | T131: above NIH
A132: Last Name | B132: Base Salary | C132: Requested | E132: Benefits | F132: Mos. | G132: Total | H132: Effort | I132: Year 4 | J132: Last Name | K132: Base Salary | L132: =C132 -> Requested | M132: =E132 -> Benefits | N132: Mos | O132: Total | P132: Effort | Q132: Year 5 | S132: Salary Cap | T132: Salary Cap
A133: =IF(totalyrs>3,IF(A24=0,"",A24),"") ->  | B133: =IFERROR(IF(ROUND(IF(totalyrs>3,((J24*(1+INCREASE)^3)),0),0)=0,"",ROUND(IF(totalyrs>3,((J24*(1+INCREASE)^3)),0),0)),"") ->  | C133: =IFERROR(IF(ROUND(IF(totalyrs>3,IF($F$18="X",(IF(G24*(1+INCREASE)^3>$L$18,(IF(AND(totalyrs<4,MOD(NUMMONTHS,12)>0),((MAXSAL*I133)/12)*MOD(NUMMONTHS,12),MAXSAL*I133)),(G24*I133*yr4percent*(1+INCREASE)^3))),(G24*I133*yr4percent*(1+INCREASE)^3)),0),0)=0,"",ROUND(IF(totalyrs>3,IF($F$18="X",(IF(G24*(1+INCREASE)^3>$L$18,(IF(AND(totalyrs<4,MOD(NUMMONTHS,12)>0),((MAXSAL*I133)/12)*MOD(NUMMONTHS,12),MAXSAL*I133)),(G24*I133*yr4percent*(1+INCREASE)^3))),(G24*I133*yr4percent*(1+INCREASE)^3)),0),0)),"") ->  | E133: =IFERROR(IF(IF(H133=0,0,ROUND(IF(P24="G",(C133*L24)+(R24*1.15),IF(Q24>0,C133*L24,C133*($J$345*VLOOKUP(P24,FringeTable,4,FALSE)+$J$346*VLOOKUP(P24,FringeTable,5,FALSE)+$J$347*VLOOKUP(P24,FringeTable,6,FALSE)+$J$348*VLOOKUP(P24,FringeTable,7,FALSE)))),0))=0,"",IF(H133=0,0,ROUND(IF(P24="G",(C133*L24)+(R24*1.15),IF(Q24>0,C133*L24,C133*($J$345*VLOOKUP(P24,FringeTable,4,FALSE)+$J$346*VLOOKUP(P24,FringeTable,5,FALSE)+$J$347*VLOOKUP(P24,FringeTable,6,FALSE)+$J$348*VLOOKUP(P24,FringeTable,7,FALSE)))),0))),"") ->  | F133: =IFERROR(IF(SUM(H133*D24)*C24=0,"",SUM(H133*D24)*C24),"") ->  | G133: =IFERROR(C133+E133,"") ->  | H133: =IF(IF(totalyrs>3,(P79),0)=0,"",IF(totalyrs>3,(P79),0)) ->  | I133: =IFERROR(H133*D24/12*C24,"") ->  | J133: =IF(totalyrs>4,IF(A24=0,"",A24),"") ->  | K133: =IFERROR(IF(ROUND(IF(totalyrs>4,((J24*yr5percent*(1+INCREASE)^4)),0),0)=0,"",ROUND(IF(totalyrs>4,((J24*yr5percent*(1+INCREASE)^4)),0),0)),"") ->  | L133: =IFERROR(IF(ROUND(IF(totalyrs>4,IF($F$18="X",(IF(G24*(1+INCREASE)^4>$L$18,(IF(AND(totalyrs<5,MOD(NUMMONTHS,12)>0),((MAXSAL*Q133)/12)*MOD(NUMMONTHS,12),MAXSAL*Q133)),(G24*Q133*yr5percent*(1+INCREASE)^4))),(G24*Q133*yr5percent*(1+INCREASE)^4)),0),0)=0,"",ROUND(IF(totalyrs>4,IF($F$18="X",(IF(G24*(1+INCREASE)^4>$L$18,(IF(AND(totalyrs<5,MOD(NUMMONTHS,12)>0),((MAXSAL*Q133)/12)*MOD(NUMMONTHS,12),MAXSAL*Q133)),(G24*Q133*yr5percent*(1+INCREASE)^4))),(G24*Q133*yr5percent*(1+INCREASE)^4)),0),0)),"") ->  | M133: =IFERROR(IF(IF(P133=0,0,ROUND(IF(P24="G",(L133*L24)+(R24*1.2),IF(Q24>0,L133*L24,L133*($J$345*VLOOKUP(P24,FringeTable,5,FALSE)+$J$346*VLOOKUP(P24,FringeTable,6,FALSE)+$J$347*VLOOKUP(P24,FringeTable,7,FALSE)+$J$348*VLOOKUP(P24,FringeTable,8,FALSE)))),0))=0,"",IF(P133=0,0,ROUND(IF(P24="G",(L133*L24)+(R24*1.2),IF(Q24>0,L133*L24,L133*($J$345*VLOOKUP(P24,FringeTable,5,FALSE)+$J$346*VLOOKUP(P24,FringeTable,6,FALSE)+$J$347*VLOOKUP(P24,FringeTable,7,FALSE)+$J$348*VLOOKUP(P24,FringeTable,8,FALSE)))),0))),"") ->  | N133: =IFERROR(IF(SUM(P133*D24)*C24=0,"",SUM(P133*D24)*C24),"") ->  | O133: =IFERROR(L133+M133,"") ->  | P133: =IF(IF(totalyrs>4,(H133),0)=0,"",IF(totalyrs>4,(H133),0)) ->  | Q133: =IFERROR(P133*D24/12*C24,"") ->  | S133: =IFERROR(IF(B133>$L$18,((B133-$L$18)*I133)*(L24+1),0),"") ->  | T133: =IFERROR(IF(K133>$L$18,((K133-$L$18)*Q133)*(L24+1),0),"") -> 
A173: Totals | C173: =SUM(C133:C172) -> 0 | E173: =SUM(E133:E172) -> 0 | G173: =C173+E173 -> 0 | J173: Totals | L173: =SUM(L133:L172) -> 0 | M173: =SUM(M133:M172) -> 0 | O173: =L173+M173 -> 0 | S173: =SUM(S133:S172) -> 0 | T173: =SUM(T133:T172) -> 0
A178: UNM HEALTH SCIENCES CENTER | R178: % of Yr 6 & 7
A179: SALARY CALCULATION WORKSHEET (Page 4) | R179: =$R$69 -> Year or
R180: =$R$70 -> Portion of
C181: Principal Investigator: | G181: =IF(totalyrs>5,IF(E5=0,"",E5),"") ->  | R181: =$R$71 -> a Year
C182: Department: | G182: =IF(totalyrs>5,IF(E6=0,"",E6),"") ->  | R182: =IF(AND(totalyrs>5,totalyrs<6),totalyrs-5,1) -> 1 | S182: = Year 6
C183: Project Title: | G183: =IF(totalyrs>5,IF(E7=0,"",E7),"") ->  | R183: =IF(AND(totalyrs>6,totalyrs<7),totalyrs-6,1) -> 1 | S183: = Year 7
C184: Funding Agency: | G184: =IF(totalyrs>5,IF(E8=0,"",E8),"") -> 
S185: Year 6 | T185: Year 7
B186: Adjusted | C186: Year 6 | H186: Level | I186: % | K186: Adjusted | L186: Year 7 | P186: Level | Q186: % | S186: Labor Costs | T186: Labor Costs
A187: Employee's | B187: UNM | C187: Salary | F187: Person | H187: of | I187: FTE | J187: Employee's | K187: UNM | L187: =C187 -> Salary | N187: Person | P187: of | Q187: FTE | S187: above NIH | T187: above NIH
A188: Last Name | B188: Base Salary | C188: Requested | E188: Benefits | F188: Mos. | G188: Total | H188: Effort | I188: Year 6 | J188: Last Name | K188: Base Salary | L188: =C188 -> Requested | M188: =E188 -> Benefits | N188: Mos. | O188: Total | P188: Effort | Q188: Year 7 | S188: Salary Cap | T188: Salary Cap
A189: =IF(totalyrs>5,IF(A24=0,"",A24),"") ->  | B189: =IFERROR(IF(ROUND(IF(totalyrs>5,((J24*(1+INCREASE)^5)),0),0)=0,"",ROUND(IF(totalyrs>5,((J24*(1+INCREASE)^5)),0),0)),"") ->  | C189: =IFERROR(IF(ROUND(IF(totalyrs>5,IF($F$18="X",(IF(G24*(1+INCREASE)^5>$L$18,(IF(AND(totalyrs<6,MOD(NUMMONTHS,12)>0),((MAXSAL*I189)/12)*MOD(NUMMONTHS,12),MAXSAL*I189)),(G24*I189*yr6percent*(1+INCREASE)^5))),(G24*I189*yr6percent*(1+INCREASE)^5)),0),0)=0,"",ROUND(IF(totalyrs>5,IF($F$18="X",(IF(G24*(1+INCREASE)^5>$L$18,(IF(AND(totalyrs<6,MOD(NUMMONTHS,12)>0),((MAXSAL*I189)/12)*MOD(NUMMONTHS,12),MAXSAL*I189)),(G24*I189*yr6percent*(1+INCREASE)^5))),(G24*I189*yr6percent*(1+INCREASE)^5)),0),0)),"") ->  | E189: =IFERROR(IF(IF(H189=0,0,ROUND(IF(P24="G",(C189*L24)+(R24*1.25),IF(Q24>0,C189*L24,C189*($J$345*VLOOKUP(P24,FringeTable,6,FALSE)+$J$346*VLOOKUP(P24,FringeTable,7,FALSE)+$J$347*VLOOKUP(P24,FringeTable,8,FALSE)+$J$348*VLOOKUP(P24,FringeTable,9,FALSE)))),0))=0,"",IF(H189=0,0,ROUND(IF(P24="G",(C189*L24)+(R24*1.25),IF(Q24>0,C189*L24,C189*($J$345*VLOOKUP(P24,FringeTable,6,FALSE)+$J$346*VLOOKUP(P24,FringeTable,7,FALSE)+$J$347*VLOOKUP(P24,FringeTable,8,FALSE)+$J$348*VLOOKUP(P24,FringeTable,9,FALSE)))),0))),"") ->  | F189: =IFERROR(IF(SUM(H189*D24)*C24=0,"",SUM(H189*D24)*C24),"") ->  | G189: =IFERROR(C189+E189,"") ->  | H189: =IF(IF(totalyrs>5,(P133),0)=0,"",IF(totalyrs>5,(P133),0)) ->  | I189: =IFERROR(H189*D24/12*C24,"") ->  | J189: =IF(totalyrs>6,IF(A24=0,"",A24),"") ->  | K189: =IFERROR(IF(ROUND(IF(totalyrs>6,((J24*(1+INCREASE)^6)),0),0)=0,"",ROUND(IF(totalyrs>6,((J24*(1+INCREASE)^6)),0),0)),"") ->  | L189: =IFERROR(IF(ROUND(IF(totalyrs>6,IF($F$18="X",(IF(G24*(1+INCREASE)^6>$L$18,(IF(AND(totalyrs<7,MOD(NUMMONTHS,12)>0),((MAXSAL*Q189)/12)*MOD(NUMMONTHS,12),MAXSAL*Q189)),(G24*Q189*yr7percent*(1+INCREASE)^6))),(G24*Q189*yr7percent*(1+INCREASE)^6)),0),0)=0,"",ROUND(IF(totalyrs>6,IF($F$18="X",(IF(G24*(1+INCREASE)^6>$L$18,(IF(AND(totalyrs<7,MOD(NUMMONTHS,12)>0),((MAXSAL*Q189)/12)*MOD(NUMMONTHS,12),MAXSAL*Q189)),(G24*Q189*yr7percent*(1+INCREASE)^6))),(G24*Q189*yr7percent*(1+INCREASE)^6)),0),0)),"") ->  | M189: =IFERROR(IF(IF(P189=0,0,ROUND(IF(P24="G",(L189*L24)+(R24*1.3),IF(Q24>0,L189*L24,L189*($J$345*VLOOKUP(P24,FringeTable,7,FALSE)+$J$346*VLOOKUP(P24,FringeTable,8,FALSE)+$J$347*VLOOKUP(P24,FringeTable,9,FALSE)+$J$348*VLOOKUP(P24,FringeTable,10,FALSE)))),0))=0,"",IF(P189=0,0,ROUND(IF(P24="G",(L189*L24)+(R24*1.3),IF(Q24>0,L189*L24,L189*($J$345*VLOOKUP(P24,FringeTable,7,FALSE)+$J$346*VLOOKUP(P24,FringeTable,8,FALSE)+$J$347*VLOOKUP(P24,FringeTable,9,FALSE)+$J$348*VLOOKUP(P24,FringeTable,10,FALSE)))),0))),"") ->  | N189: =IFERROR(IF(SUM(P189*D24)*C24=0,"",SUM(P189*D24)*C24),"") ->  | O189: =IFERROR(L189+M189,"") ->  | P189: =IF(IF(totalyrs>6,(H189),0)=0,"",IF(totalyrs>6,(H189),0)) ->  | Q189: =IFERROR(P189*D24/12*C24,"") ->  | S189: =IFERROR(IF(B189>$L$18,((B189-$L$18)*I189)*(L24+1),0),"") ->  | T189: =IFERROR(IF(K189>$L$18,((K189-$L$18)*Q189)*(L24+1),0),"") -> 
A229: Totals | C229: =SUM(C189:C228) -> 0 | E229: =SUM(E189:E228) -> 0 | G229: =C229+E229 -> 0 | J229: Totals | L229: =SUM(L189:L228) -> 0 | M229: =SUM(M189:M228) -> 0 | O229: =L229+M229 -> 0 | S229: =SUM(S189:S228) -> 0 | T229: =SUM(T189:T228) -> 0
A232: UNM HEALTH SCIENCES CENTER | R232: % of Yr 8 & 9
A233: SALARY CALCULATION WORKSHEET (Page 5) | R233: =$R$69 -> Year or
R234: =$R$70 -> Portion of
C235: Principal Investigator: | G235: =IF(totalyrs>7,IF(E5=0,"",E5),"") ->  | R235: =$R$71 -> a Year
C236: Department: | G236: =IF(totalyrs>7,IF(E6=0,"",E6),"") ->  | R236: =IF(AND(totalyrs>7,totalyrs<8),totalyrs-7,1) -> 1 | S236: = Year 8
C237: Project Title: | G237: =IF(totalyrs>7,IF(E7=0,"",E7),"") ->  | R237: =IF(AND(totalyrs>8,totalyrs<9),totalyrs-8,1) -> 1 | S237: = Year 9
C238: Funding Agency: | G238: =IF(totalyrs>7,IF(E8=0,"",E8),"") -> 
S239: Year 8 | T239: Year 9
B240: Adjusted | C240: Year 8 | H240: Level | I240: % | K240: Adjusted | L240: Year 9 | P240: Level | Q240: % | S240: Labor Costs | T240: Labor Costs
A241: Employee's | B241: UNM | C241: Salary | F241: Person | H241: of | I241: FTE | J241: Employee's | K241: UNM | L241: =C241 -> Salary | N241: Person | P241: of | Q241: FTE | S241: above NIH | T241: above NIH
A242: Last Name | B242: Base Salary | C242: Requested | E242: Benefits | F242: Mos. | G242: Total | H242: Effort | I242: Year 8 | J242: Last Name | K242: Base Salary | L242: =C242 -> Requested | M242: =E242 -> Benefits | N242: Mos. | O242: Total | P242: Effort | Q242: Year 9 | S242: Salary Cap | T242: Salary Cap
A243: =IF(totalyrs>7,IF(A24=0,"",A24),"") ->  | B243: =IFERROR(IF(ROUND(IF(totalyrs>7,((J24*(1+INCREASE)^7)),0),0)=0,"",ROUND(IF(totalyrs>7,((J24*(1+INCREASE)^7)),0),0)),"") ->  | C243: =IFERROR(IF(ROUND(IF(totalyrs>7,IF($F$18="X",(IF(G24*(1+INCREASE)^7>$L$18,(IF(AND(totalyrs<8,MOD(NUMMONTHS,12)>0),((MAXSAL*I243)/12)*MOD(NUMMONTHS,12),MAXSAL*I243)),(G24*I243*yr8percent*(1+INCREASE)^7))),(G24*I243*yr8percent*(1+INCREASE)^7)),0),0)=0,"",ROUND(IF(totalyrs>7,IF($F$18="X",(IF(G24*(1+INCREASE)^7>$L$18,(IF(AND(totalyrs<8,MOD(NUMMONTHS,12)>0),((MAXSAL*I243)/12)*MOD(NUMMONTHS,12),MAXSAL*I243)),(G24*I243*yr8percent*(1+INCREASE)^7))),(G24*I243*yr8percent*(1+INCREASE)^7)),0),0)),"") ->  | E243: =IFERROR(IF(IF(H243=0,0,ROUND(IF(P24="G",(C243*L24)+(R24*1.35),IF(Q24>0,C243*L24,C243*($J$345*VLOOKUP(P24,FringeTable,8,FALSE)+$J$346*VLOOKUP(P24,FringeTable,8,FALSE)+$J$347*VLOOKUP(P24,FringeTable,10,FALSE)+$J$348*VLOOKUP(P24,FringeTable,11,FALSE)))),0))=0,"",IF(H243=0,0,ROUND(IF(P24="G",(C243*L24)+(R24*1.35),IF(Q24>0,C243*L24,C243*($J$345*VLOOKUP(P24,FringeTable,8,FALSE)+$J$346*VLOOKUP(P24,FringeTable,8,FALSE)+$J$347*VLOOKUP(P24,FringeTable,10,FALSE)+$J$348*VLOOKUP(P24,FringeTable,11,FALSE)))),0))),"") ->  | F243: =IFERROR(IF(SUM(H243*D24)*C24=0,"",SUM(H243*D24)*C24),"") ->  | G243: =IFERROR(C243+E243,"") ->  | H243: =IF(IF(totalyrs>7,(P189),0)=0,"",IF(totalyrs>7,(P189),0)) ->  | I243: =IFERROR(H243*D24/12*C24,"") ->  | J243: =IF(totalyrs>8,IF(A24=0,"",A24),"") ->  | K243: =IFERROR(IF(ROUND(IF(totalyrs>8,((J24*(1+INCREASE)^8)),0),0)=0,"",ROUND(IF(totalyrs>8,((J24*(1+INCREASE)^8)),0),0)),"") ->  | L243: =IFERROR(IF(ROUND(IF(totalyrs>8,IF($F$18="X",(IF(G24*(1+INCREASE)^8>$L$18,(IF(AND(totalyrs<9,MOD(NUMMONTHS,12)>0),((MAXSAL*Q243)/12)*MOD(NUMMONTHS,12),MAXSAL*Q243)),(G24*Q243*yr9percent*(1+INCREASE)^8))),(G24*Q243*yr9percent*(1+INCREASE)^8)),0),0)=0,"",ROUND(IF(totalyrs>8,IF($F$18="X",(IF(G24*(1+INCREASE)^8>$L$18,(IF(AND(totalyrs<9,MOD(NUMMONTHS,12)>0),((MAXSAL*Q243)/12)*MOD(NUMMONTHS,12),MAXSAL*Q243)),(G24*Q243*yr9percent*(1+INCREASE)^8))),(G24*Q243*yr9percent*(1+INCREASE)^8)),0),0)),"") ->  | M243: =IFERROR(IF(IF(P243=0,0,ROUND(IF(P24="G",(L243*L24)+(R24*1.4),IF(Q24>0,L243*L24,L243*($J$345*VLOOKUP(P24,FringeTable,9,FALSE)+$J$346*VLOOKUP(P24,FringeTable,10,FALSE)+$J$347*VLOOKUP(P24,FringeTable,11,FALSE)+$J$348*VLOOKUP(P24,FringeTable,12,FALSE)))),0))=0,"",IF(P243=0,0,ROUND(IF(P24="G",(L243*L24)+(R24*1.4),IF(Q24>0,L243*L24,L243*($J$345*VLOOKUP(P24,FringeTable,9,FALSE)+$J$346*VLOOKUP(P24,FringeTable,10,FALSE)+$J$347*VLOOKUP(P24,FringeTable,11,FALSE)+$J$348*VLOOKUP(P24,FringeTable,12,FALSE)))),0))),"") ->  | N243: =IFERROR(IF(SUM(P243*D24)*C24=0,"",SUM(P243*D24)*C24),"") ->  | O243: =IFERROR(L243+M243,"") ->  | P243: =IF(IF(totalyrs>8,(H243),0)=0,"",IF(totalyrs>8,(H243),0)) ->  | Q243: =IFERROR(P243*D24/12*C24,"") ->  | S243: =IFERROR(IF(B243>$L$18,((B243-$L$18)*I243)*(L24+1),0),"") ->  | T243: =IFERROR(IF(K243>$L$18,((K243-$L$18)*Q243)*(L24+1),0),"") -> 
A283: Totals | C283: =SUM(C243:C282) -> 0 | E283: =SUM(E243:E282) -> 0 | G283: =C283+E283 -> 0 | J283: Totals | L283: =SUM(L243:L282) -> 0 | M283: =SUM(M243:M282) -> 0 | O283: =L283+M283 -> 0 | S283: =SUM(S243:S282) -> 0 | T283: =SUM(T243:T282) -> 0
A286: UNM HEALTH SCIENCES CENTER | R286: % of Yr 10
A287: SALARY CALCULATION WORKSHEET (Page 6) | R287: =$R$69 -> Year or
R288: =$R$70 -> Portion of
C289: Principal Investigator: | G289: =IF(totalyrs>9,IF(E5=0,"",E5),"") ->  | R289: =$R$71 -> a Year
C290: Department: | G290: =IF(totalyrs>9,IF(E6=0,"",E6),"") ->  | R290: =IF(AND(totalyrs>9,totalyrs<10),totalyrs-9,1) -> 1 | S290: = Year 10
C291: Project Title: | G291: =IF(totalyrs>9,IF(E7=0,"",E7),"") -> 
C292: Funding Agency: | G292: =IF(totalyrs>9,IF(E8=0,"",E8),"") -> 
S293: Year 10
B294: Adjusted | C294: Year 10 | H294: Level | I294: % | S294: Labor Costs
A295: Employee's | B295: UNM | C295: Salary | F295: Person | H295: of | I295: FTE | S295: above NIH
A296: Last Name | B296: Base Salary | C296: Requested | E296: Benefits | F296: Mos. | G296: Total | H296: Effort | I296: Year 10 | S296: Salary Cap
A297: =IF(totalyrs>9,IF(A24=0,"",A24),"") ->  | B297: =IFERROR(IF(ROUND(IF(totalyrs>9,((J24*(1+INCREASE)^9)),0),0)=0,"",ROUND(IF(totalyrs>9,((J24*(1+INCREASE)^9)),0),0)),"") ->  | C297: =IFERROR(IF(ROUND(IF(totalyrs>9,IF($F$18="X",(IF(G24*(1+INCREASE)^9>$L$18,(IF(AND(totalyrs<10,MOD(NUMMONTHS,12)>0),((MAXSAL*I297)/12)*MOD(NUMMONTHS,12),MAXSAL*I297)),(G24*I297*yr10percent*(1+INCREASE)^9))),(G24*I297*yr10percent*(1+INCREASE)^9)),0),0)=0,"",ROUND(IF(totalyrs>9,IF($F$18="X",(IF(G24*(1+INCREASE)^9>$L$18,(IF(AND(totalyrs<10,MOD(NUMMONTHS,12)>0),((MAXSAL*I297)/12)*MOD(NUMMONTHS,12),MAXSAL*I297)),(G24*I297*yr10percent*(1+INCREASE)^9))),(G24*I297*yr10percent*(1+INCREASE)^9)),0),0)),"") ->  | E297: =IFERROR(IF(IF(H297=0,0,ROUND(IF(P24="G",(C297*L24)+(R24*1.45),IF(Q24>0,C297*L24,C297*($J$345*VLOOKUP(P24,FringeTable,10,FALSE)+$J$346*VLOOKUP(P24,FringeTable,11,FALSE)+$J$347*VLOOKUP(P24,FringeTable,12,FALSE)+$J$348*VLOOKUP(P24,FringeTable,13,FALSE)))),0))=0,"",IF(H297=0,0,ROUND(IF(P24="G",(C297*L24)+(R24*1.45),IF(Q24>0,C297*L24,C297*($J$345*VLOOKUP(P24,FringeTable,10,FALSE)+$J$346*VLOOKUP(P24,FringeTable,11,FALSE)+$J$347*VLOOKUP(P24,FringeTable,12,FALSE)+$J$348*VLOOKUP(P24,FringeTable,13,FALSE)))),0))),"") ->  | F297: =IFERROR(IF(SUM(H297*D24)*C24=0,"",SUM(H297*D24)*C24),"") ->  | G297: =IFERROR(C297+E297,"") ->  | H297: =IF(IF(totalyrs>9,(P243),0)=0,"",IF(totalyrs>9,(P243),0)) ->  | I297: =IFERROR(H297*D24/12*C24,"") ->  | S297: =IFERROR(IF(B297>$L$18,((B297-$L$18)*I297)*(L24+1),0),"") -> 
A337: Totals | C337: =SUM(C297:C336) -> 0 | E337: =SUM(E297:E336) -> 0 | G337: =C337+E337 -> 0 | S337: =SUM(S297:S336) -> 0
A338: PROJECT PERIOD
A339: TOTALS _____________ | C339: =J64+C119+L119+C173+L173+C229+L229+C283+L283+C337 -> 0 | E339: =M64+E119+M119+E173+M173+E229+M229+E283+M283+E337 -> 0 | G339: =O64+G119+O119+G173+O173+G229+O229+G283+O283+G337 -> 0
P343: Future Years
J344: 2 | L344: 3 | M344: 4 | O344: 5 | P344: 6 | R344: 7 | S344: 8 | T344: 9 | V344: 10
A345: Project Type | C345: =IF(ENDDATE<=CURRENTFYE,"A",IF(ENDDATE>CURRENTFYE+365,"D","B")) -> A | G345: Initial Year | I345: Wt0 | J345: =IF(ProjectType = "A",IF(ENDDATE+365*yr2percent<CURRENTFYE,365*yr2percent,CURRENTFYE-ENDDATE),0)/365/yr2percent -> 1 | L345: =IF(ProjectType = "A",IF(ENDDATE+365*yr3percent<CURRENTFYE,365*yr3percent,CURRENTFYE-ENDDATE),0)/365/yr3percent -> 1 | M345: =IF(ProjectType = "A",IF(ENDDATE+365*yr4percent<CURRENTFYE,365*yr4percent,CURRENTFYE-ENDDATE),0)/365/yr4percent -> 1 | O345: =IF(ProjectType = "A",IF(ENDDATE+365*yr5percent<CURRENTFYE,365*yr5percent,CURRENTFYE-ENDDATE),0)/365/yr5percent -> 1 | P345: =IF(ProjectType = "A",IF(ENDDATE+365*yr6percent<CURRENTFYE,365*yr6percent,CURRENTFYE-ENDDATE),0)/365/yr6percent -> 1 | R345: =IF(ProjectType = "A",IF(ENDDATE+365*yr7percent<CURRENTFYE,365*yr7percent,CURRENTFYE-ENDDATE),0)/365/yr7percent -> 1 | S345: =IF(ProjectType = "A",IF(ENDDATE+365*yr8percent<CURRENTFYE,365*yr8percent,CURRENTFYE-ENDDATE),0)/365/yr8percent -> 1 | T345: =IF(ProjectType = "A",IF(ENDDATE+365*yr9percent<CURRENTFYE,365*yr9percent,CURRENTFYE-ENDDATE),0)/365/yr9percent -> 1 | V345: =IF(ProjectType = "A",IF(ENDDATE+365*yr10percent<CURRENTFYE,365*yr10percent,CURRENTFYE-ENDDATE),0)/365/yr10percent -> 1
A346: Weight for first year in FringeRate table | G346: =IF(ENDDATE<=CURRENTFYE,1,IF(STARTDATE<CURRENTFYE,(CURRENTFYE-STARTDATE)/(ENDDATE-STARTDATE),0)) -> 1 | I346: Wt1 | J346: =IF(ProjectType = "A",IF(ENDDATE+365*yr2percent>CURRENTFYE,ENDDATE+365*yr2percent-CURRENTFYE,0),IF(ProjectType = "B",IF(ENDDATE+365*yr2percent>CURRENTFYE+365,CURRENTFYE+365-ENDDATE,365*yr2percent),0))/365/yr2percent -> 0 | L346: =IF(ProjectType = "A",IF(ENDDATE+365*yr3percent>CURRENTFYE,ENDDATE+365*yr3percent-CURRENTFYE,0),IF(ProjectType = "B",IF(ENDDATE+365*yr3percent>CURRENTFYE+365,CURRENTFYE+365-ENDDATE,365*yr3percent),0))/365/yr3percent -> 0 | M346: =IF(ProjectType = "A",IF(ENDDATE+365*yr4percent>CURRENTFYE,ENDDATE+365*yr4percent-CURRENTFYE,0),IF(ProjectType = "B",IF(ENDDATE+365*yr4percent>CURRENTFYE+365,CURRENTFYE+365-ENDDATE,365*yr4percent),0))/365/yr4percent -> 0 | O346: =IF(ProjectType = "A",IF(ENDDATE+365*yr5percent>CURRENTFYE,ENDDATE+365*yr5percent-CURRENTFYE,0),IF(ProjectType = "B",IF(ENDDATE+365*yr5percent>CURRENTFYE+365,CURRENTFYE+365-ENDDATE,365*yr5percent),0))/365/yr5percent -> 0 | P346: =IF(ProjectType = "A",IF(ENDDATE+365*yr6percent>CURRENTFYE,ENDDATE+365*yr6percent-CURRENTFYE,0),IF(ProjectType = "B",IF(ENDDATE+365*yr6percent>CURRENTFYE+365,CURRENTFYE+365-ENDDATE,365*yr6percent),0))/365/yr6percent -> 0 | R346: =IF(ProjectType = "A",IF(ENDDATE+365*yr7percent>CURRENTFYE,ENDDATE+365*yr7percent-CURRENTFYE,0),IF(ProjectType = "B",IF(ENDDATE+365*yr7percent>CURRENTFYE+365,CURRENTFYE+365-ENDDATE,365*yr7percent),0))/365/yr7percent -> 0 | S346: =IF(ProjectType = "A",IF(ENDDATE+365*yr8percent>CURRENTFYE,ENDDATE+365*yr8percent-CURRENTFYE,0),IF(ProjectType = "B",IF(ENDDATE+365*yr8percent>CURRENTFYE+365,CURRENTFYE+365-ENDDATE,365*yr8percent),0))/365/yr8percent -> 0 | T346: =IF(ProjectType = "A",IF(ENDDATE+365*yr9percent>CURRENTFYE,ENDDATE+365*yr9percent-CURRENTFYE,0),IF(ProjectType = "B",IF(ENDDATE+365*yr9percent>CURRENTFYE+365,CURRENTFYE+365-ENDDATE,365*yr9percent),0))/365/yr9percent -> 0 | V346: =IF(ProjectType = "A",IF(ENDDATE+365*yr10percent>CURRENTFYE,ENDDATE+365*yr10percent-CURRENTFYE,0),IF(ProjectType = "B",IF(ENDDATE+365*yr10percent>CURRENTFYE+365,CURRENTFYE+365-ENDDATE,365*yr10percent),0))/365/yr10percent -> 0
A347: Weight for second year in FringeRate table | G347: =1-Year1Weight-Year3Weight -> 0 | I347: Wt2 | J347: =1-J345-J346-J348 -> 0 | L347: =1-L345-L346-L348 -> 0 | M347: =1-M345-M346-M348 -> 0 | O347: =1-O345-O346-O348 -> 0 | P347: =1-P345-P346-P348 -> 0 | R347: =1-R345-R346-R348 -> 0 | S347: =1-S345-S346-S348 -> 0 | T347: =1-T345-T346-T348 -> 0 | V347: =1-V345-V346-V348 -> 0
A348: Weight for third year in FringeRate table | G348: =IF(ENDDATE<CURRENTFYE+365,0,(ENDDATE-(CURRENTFYE+365))/(ENDDATE-STARTDATE)) -> 0 | I348: Wt3 | J348: =IF(ProjectType = "D",IF(ENDDATE+365*yr2percent>CURRENTFYE+2*365,ENDDATE+365*yr2percent-(CURRENTFYE+2*365),0))/365/yr2percent -> 0 | L348: =IF(ProjectType = "D",IF(ENDDATE+365*yr3percent>CURRENTFYE+2*365,ENDDATE+365*yr3percent-(CURRENTFYE+2*365),0))/365/yr3percent -> 0 | M348: =IF(ProjectType = "D",IF(ENDDATE+365*yr4percent>CURRENTFYE+2*365,ENDDATE+365*yr4percent-(CURRENTFYE+2*365),0))/365/yr4percent -> 0 | O348: =IF(ProjectType = "D",IF(ENDDATE+365*yr5percent>CURRENTFYE+2*365,ENDDATE+365*yr5percent-(CURRENTFYE+2*365),0))/365/yr5percent -> 0 | P348: =IF(ProjectType = "D",IF(ENDDATE+365*yr6percent>CURRENTFYE+2*365,ENDDATE+365*yr6percent-(CURRENTFYE+2*365),0))/365/yr6percent -> 0 | R348: =IF(ProjectType = "D",IF(ENDDATE+365*yr7percent>CURRENTFYE+2*365,ENDDATE+365*yr7percent-(CURRENTFYE+2*365),0))/365/yr7percent -> 0 | S348: =IF(ProjectType = "D",IF(ENDDATE+365*yr8percent>CURRENTFYE+2*365,ENDDATE+365*yr8percent-(CURRENTFYE+2*365),0))/365/yr8percent -> 0 | T348: =IF(ProjectType = "D",IF(ENDDATE+365*yr9percent>CURRENTFYE+2*365,ENDDATE+365*yr9percent-(CURRENTFYE+2*365),0))/365/yr9percent -> 0 | V348: =IF(ProjectType = "D",IF(ENDDATE+365*yr10percent>CURRENTFYE+2*365,ENDDATE+365*yr10percent-(CURRENTFYE+2*365),0))/365/yr10percent -> 0
G350: BASE | H350: BASE | O350: YEAR
B351: CFY | G351: SALARY | H351: FRINGE
A352: FRINGES | B352: RATE | H352: 1 | I352: 2 | J352: 3 | K352: 4 | L352: 5 | M352: 6 | N352: 7 | O352: 8 | P352: 9 | Q352: 10 | R352: 11 | S352: 12 | T352: 13
A353: 0 | B353: 0 | G353: 0 | H353: 0 | I353: 0 | J353: 0 | K353: 0 | L353: 0 | M353: 0 | N353: 0 | O353: 0 | P353: 0 | Q353: 0 | R353: 0 | S353: 0 | T353: 0
A354: A | B354: 0.38 | G354: A | H354: 0.38 | I354: 0.394 | J354: 0.398 | K354: 0.402 | L354: 0.406 | M354: =L354 -> 0.406 | N354: =L354 -> 0.406 | O354: =L354 -> 0.406 | P354: =L354 -> 0.406 | Q354: =L354 -> 0.406 | R354: =L354 -> 0.406 | S354: =L354 -> 0.406 | T354: =L354 -> 0.406
A355: L | B355: 0.38 | G355: L | H355: 0.38 | I355: 0.394 | J355: 0.398 | K355: 0.402 | L355: 0.406 | M355: 0.406 | N355: 0.406 | O355: 0.406 | P355: =L355 -> 0.406 | Q355: =L355 -> 0.406 | R355: 0.406 | S355: =L355 -> 0.406 | T355: =L355 -> 0.406
A356: O | B356: 0.38 | G356: O | H356: 0.38 | I356: 0.394 | J356: 0.398 | K356: 0.402 | L356: 0.406 | M356: 0.406 | N356: 0.406 | O356: 0.406 | P356: =L356 -> 0.406 | Q356: =L356 -> 0.406 | R356: 0.406 | S356: =L356 -> 0.406 | T356: =L356 -> 0.406
A357: F | B357: 0.3 | G357: F | H357: 0.3 | I357: 0.312 | J357: 0.314 | K357: 0.316 | L357: 0.318 | M357: 0.318 | N357: 0.318 | O357: 0.318 | P357: =L357 -> 0.318 | Q357: =L357 -> 0.318 | R357: 0.318 | S357: =L357 -> 0.318 | T357: =L357 -> 0.318
A358: G | B358: 0.01 | G358: G | H358: 0.01 | I358: 0.01 | J358: 0.01 | K358: 0.01 | L358: 0.01 | M358: 0.01 | N358: 0.01 | O358: 0.01 | P358: 0.01 | Q358: 0.01 | R358: 0.01 | S358: 0.01 | T358: 0.01
A359: P | B359: 0.26 | G359: P | H359: 0.26 | I359: 0.26 | J359: 0.26 | K359: 0.26 | L359: 0.26 | M359: 0.26 | N359: 0.26 | O359: 0.26 | P359: 0.26 | Q359: 0.26 | R359: 0.26 | S359: =L359 -> 0.26 | T359: =L359 -> 0.26
A360: R | B360: 0.081 | G360: R | H360: 0.081 | I360: 0.081 | J360: 0.081 | K360: 0.081 | L360: 0.081 | M360: 0.081 | N360: 0.081 | O360: 0.081 | P360: 0.081 | Q360: 0.081 | R360: 0.081 | S360: =L360 -> 0.081 | T360: =L360 -> 0.081
A361: S | B361: 0.01 | G361: S | H361: 0.01 | I361: =ROUND(($H361*(1+FringeIncrease)^H$352),2) -> 0.01 | J361: =ROUND(($H361*(1+FringeIncrease)^I$352),2) -> 0.01 | K361: =ROUND(($H361*(1+FringeIncrease)^J$352),2) -> 0.01 | L361: =ROUND(($H361*(1+FringeIncrease)^K$352),2) -> 0.01 | M361: 0.01 | N361: 0.01 | O361: 0.01 | P361: 0.01 | Q361: 0.01 | R361: 0.01 | S361: =L361 -> 0.01 | T361: =L361 -> 0.01
A362: T | B362: 0.24 | G362: T | H362: 0.24 | I362: 0.24 | J362: 0.24 | K362: 0.24 | L362: 0.24 | M362: 0.24 | N362: 0.24 | O362: 0.24 | P362: 0.24 | Q362: 0.24 | R362: 0.24 | S362: =L362 -> 0.24 | T362: =L362 -> 0.24
A363: W | B363: 0.01 | G363: W | H363: 0.01 | I363: =ROUND(($H363*(1+FringeIncrease)^H$352),2) -> 0.01 | J363: =ROUND(($H363*(1+FringeIncrease)^I$352),2) -> 0.01 | K363: =ROUND(($H363*(1+FringeIncrease)^J$352),2) -> 0.01 | L363: =ROUND(($H363*(1.001+FringeIncrease)^K$352),2) -> 0.01 | M363: 0.01 | N363: 0.01 | O363: 0.01 | P363: 0.01 | Q363: 0.01 | R363: 0.01 | S363: =L363 -> 0.01 | T363: =L363 -> 0.01
A367: Estimated rate of increase in fringe benefits | G367: 0.05 | J367: Number of Years in Project Period: | O367: =1-L15/12+L10/12 -> 1
A369: {SET "PRINT-RANGE";detail1}
A370: {PRINT ;1;9999;1;1}
A371: {SET "PRINT-RANGE";detail2}
A372: {PRINT ;1;9999;1;1}
A373: {SET "PRINT-RANGE";types}
A374: {PRINT ;1;9999;1;1}

Sheet UH Employees
A1: UNIVERSITY HOSPITAL EMPLOYEES | P1: The following are used in the calculation below for <365; ED>CFYE
A2: SALARY CALCULATION WORKSHEET | P2: =ENDDATE-CURRENTFYE -> -45107 | Q2: CFYE_ED = ENDDATE-CURRENTYFYE
A3: =+'Salary Detail'!A3 -> Revised 6/15/2022 | P3: =IF(AND(CFYE_ED>365,CFYE_ED<=730),(1+K15)^2,IF(AND(CFYE_ED>730,CFYE_ED<=1095),(1+K15)^3,IF(AND(CFYE_ED>1095,CFYE_ED<=1460),(1+K15)^4,IF(AND(CFYE_ED>1460,CFYE_ED<=1825),(1+K15)^5,IF(AND(CFYE_ED>1825,CFYE_ED<=2190),(1+K15)^6,IF(AND(CFYE_ED>2190,CFYE_ED<=2555),(1+K15)^7,IF(AND(CFYE_ED>2555,CFYE_ED<=2920),(1+K15)^8,1.04))))))) -> 1.04 | Q3: CFYE_EDPCNT = Increase factor for partial year ending within
N4: Fringe | Q4: a year that is more than 1 year beyond the CFYE.
C5: Principal Investigator: | D5: =IF('Salary Detail'!E5=0,"",'Salary Detail'!E5) ->  | N5: Benefit Codes | P5: 365 | Q5: PERIOD 1 = ED-STARTDATE+1 to add back last day.
C6: Department: | D6: =IF('Salary Detail'!E6=0,"",'Salary Detail'!E6) ->  | N6: F = Faculty | Q6: Note: I'm using 365 days here because the leap year effect
C7: Project Title: | D7: =IF('Salary Detail'!E7=0,"",'Salary Detail'!E7) ->  | N7: A = Admin.
C8: Funding Agency: | D8: =IF('Salary Detail'!E8=0,"",'Salary Detail'!E8) ->  | N8: P = Postdoctoral | Q8: appears to be immaterial for this particular calculation.
N9: T = Temporary
C10: Current FYE: | D10: =CURRENTFYE -> 2023-06-30 | G10: Duration of Project (in months): | K10: =IF(NUMMONTHS="","",NUMMONTHS) ->  | N10: R = Retired
C11: First Year or Initial Period Starts: | D11: =IF(STARTDATE = "", " ", STARTDATE) ->  | G11: Number of budget periods: | K11: =ROUNDUP(totalyrs,0) -> 1 | N11: S = Student
C12: First Year or Initial Period Ends: | D12: =IF(ENDDATE="","",ENDDATE) ->  | G12: Days Overlapping FY End in Year 1: | K12: =ABS(CURRENTFYE-ENDDATE) -> 45107 | N12: W = Workstudy
N13: Enter employee's fringe benefit letter code in the column below. | P13: INITIAL BUDGET PERIOD
F14: Number of months in first year or initial period: | K14: =ROUND((ENDDATE-STARTDATE)/(365.25/12),0) -> 0 | P14: < 365 days | Q14: < 365 days | R14: >= 365 days | S14: >= 365 days
F15: Est. salary increase for subsequent years: | K15: 0.04 | P15: ED<=CYFE | Q15: ED>CYFE | R15: ED<=CYFE | S15: ED>CYFE
G16: Factor for estimated salary increase: | K16: =SUM(P16:S16) -> 1 | P16: =IF(PERIOD1<365,IF(ENDDATE<=CURRENTFYE,PERIOD1/365,0),0) -> 0 | Q16: =IF(PERIOD1<365,IF(ENDDATE>CURRENTFYE,CFYE_EDPCNT*(PERIOD1/365),0),0) -> 0 | R16: =IF(PERIOD1>=365,IF(ENDDATE<=CURRENTFYE,1,0),0) -> 1 | S16: =IF(PERIOD1>=365,IF(ENDDATE>CURRENTFYE,1+($K$15*ENDDAYS/365),0),0) -> 0
G17: Maximum salary allowable by DHHS: | K17: =MAXSAL -> 203700
P19: ED = ENDDATE; CYFE = CURRENT FYE | T19: Yr 1%
A20: INITIAL BUDGET PERIOD | D20: Current FY | F20: Adjusted | G20: % | K20: Fringe | L20: Fringe | N20: Total | O20: Fringe | Q20: Sal = Adjusted Salary; Max = Maximum allowable salary | U20: Days in Yr 1
A21: Employee's | C21: UH | D21: Annualized | E21: Person | F21: UH Base | G21: FTE | I21: Salary | K21: Benefits | L21: Benefits | N21: Salaries | O21: Benefits | Q21: ED<=CYFE | R21: =Q21 -> ED<=CYFE | S21: ED>CYFE | T21: =S21 -> ED>CYFE | U21: Divided by
A22: Last Name | B22: First Name | C22: FTE | D22: Salary | E22: Mos. | F22: Salary | G22: Year 1 | I22: Requested | K22: Rate | L22: Amount | N22: & Benefits | O22: Type | Q22: Sal<Max | R22: Sal>=Max | S22: =Q22 -> Sal<Max | T22: =R22 -> Sal>=Max | U22: =IF(MOD(YEAR(ENDDATE),4)=0,365,365) -> 365
E23: =IF(SUM(G23*12)=0,"",SUM(G23*12)) ->  | F23: =IF(IF('Salary Detail'!$F$18="X",IF((D23*$K$16)>'Salary Detail'!$L$18,(SUM(Q23:T23)),(D23*$K$16)),(D23*$K$16))=0,"",IF('Salary Detail'!$F$18="X",IF((D23*$K$16)>'Salary Detail'!$L$18,(SUM(Q23:T23)),(D23*$K$16)),(D23*$K$16))) ->  | I23: =IFERROR(IF(ROUND(F23*G23,0)=0,"",ROUND(F23*G23,0)),"") ->  | K23: =IF(A23="","",35%) ->  | L23: =IFERROR(I23*K23,"") ->  | N23: =IFERROR(I23+L23,"") ->  | Q23: =ROUND(IF(AND(ENDDATE<=CURRENTFYE,D23*FACTOR*yr1percent<MAXSAL),D23*FACTOR*yr1percent,0),0) -> 0 | R23: =ROUND(IF(AND(ENDDATE<=CURRENTFYE,D23*FACTOR>=MAXSAL),MAXSAL*yr1percent,0),0) -> 0 | S23: =ROUND(IF(AND(ENDDATE>CURRENTFYE,D23*FACTOR<MAXSAL),D23*$K$16,0),0) -> 0 | T23: =ROUND(IF(AND(ENDDATE>CURRENTFYE,D23*FACTOR>=MAXSAL),MAXSAL*yr1percent,0),0) -> 0 | U23: =365/U22 -> 1
F24: =IF(IF('Salary Detail'!$F$18="X",IF((D24*$K$16)>'Salary Detail'!$L$18,(SUM(Q24:T24)),(D24*$K$16)),(D24*$K$16))=0,"",IF('Salary Detail'!$F$18="X",IF((D24*$K$16)>'Salary Detail'!$L$18,(SUM(Q24:T24)),(D24*$K$16)),(D24*$K$16))) ->  | K24: =IF(A24="","",35%) ->  | Q24: =ROUND(IF(AND(ENDDATE<=CURRENTFYE,D24*FACTOR*yr1percent<MAXSAL),D24*FACTOR*yr1percent,0),0) -> 0 | R24: =ROUND(IF(AND(ENDDATE<=CURRENTFYE,D24*FACTOR>=MAXSAL),MAXSAL*yr1percent,0),0) -> 0 | S24: 0 | T24: =ROUND(IF(AND(ENDDATE>CURRENTFYE,D24*FACTOR>=MAXSAL),MAXSAL*yr1percent,0),0) -> 0
F25: =IF(IF('Salary Detail'!$F$18="X",IF((D25*$K$16)>'Salary Detail'!$L$18,(SUM(Q25:T25)),(D25*$K$16)),(D25*$K$16))=0,"",IF('Salary Detail'!$F$18="X",IF((D25*$K$16)>'Salary Detail'!$L$18,(SUM(Q25:T25)),(D25*$K$16)),(D25*$K$16))) ->  | K25: =IF(A25="","",35%) ->  | Q25: 0 | R25: 0 | S25: 0 | T25: 0
F26: =IF(IF('Salary Detail'!$F$18="X",IF((D26*$K$16)>'Salary Detail'!$L$18,(SUM(Q26:T26)),(D26*$K$16)),(D26*$K$16))=0,"",IF('Salary Detail'!$F$18="X",IF((D26*$K$16)>'Salary Detail'!$L$18,(SUM(Q26:T26)),(D26*$K$16)),(D26*$K$16))) ->  | K26: =IF(A26="","",35%) ->  | Q26: 0 | R26: 0 | S26: 0 | T26: 0
F27: =IF(IF('Salary Detail'!$F$18="X",IF((D27*$K$16)>'Salary Detail'!$L$18,(SUM(Q27:T27)),(D27*$K$16)),(D27*$K$16))=0,"",IF('Salary Detail'!$F$18="X",IF((D27*$K$16)>'Salary Detail'!$L$18,(SUM(Q27:T27)),(D27*$K$16)),(D27*$K$16))) ->  | K27: =IF(A27="","",35%) ->  | Q27: 0 | R27: 0 | S27: 0 | T27: 0
F28: =IF(IF('Salary Detail'!$F$18="X",IF((D28*$K$16)>'Salary Detail'!$L$18,(SUM(Q28:T28)),(D28*$K$16)),(D28*$K$16))=0,"",IF('Salary Detail'!$F$18="X",IF((D28*$K$16)>'Salary Detail'!$L$18,(SUM(Q28:T28)),(D28*$K$16)),(D28*$K$16))) ->  | K28: =IF(A28="","",35%) ->  | Q28: 0 | R28: 0 | S28: 0 | T28: 0
F29: =IF(IF('Salary Detail'!$F$18="X",IF((D29*$K$16)>'Salary Detail'!$L$18,(SUM(Q29:T29)),(D29*$K$16)),(D29*$K$16))=0,"",IF('Salary Detail'!$F$18="X",IF((D29*$K$16)>'Salary Detail'!$L$18,(SUM(Q29:T29)),(D29*$K$16)),(D29*$K$16))) ->  | Q29: 0 | R29: 0 | S29: 0 | T29: 0
F30: =IF(IF('Salary Detail'!$F$18="X",IF((D30*$K$16)>'Salary Detail'!$L$18,(SUM(Q30:T30)),(D30*$K$16)),(D30*$K$16))=0,"",IF('Salary Detail'!$F$18="X",IF((D30*$K$16)>'Salary Detail'!$L$18,(SUM(Q30:T30)),(D30*$K$16)),(D30*$K$16))) ->  | Q30: 0 | R30: 0 | S30: 0 | T30: 0
F31: =IF(IF('Salary Detail'!$F$18="X",IF((D31*$K$16)>'Salary Detail'!$L$18,(SUM(Q31:T31)),(D31*$K$16)),(D31*$K$16))=0,"",IF('Salary Detail'!$F$18="X",IF((D31*$K$16)>'Salary Detail'!$L$18,(SUM(Q31:T31)),(D31*$K$16)),(D31*$K$16))) ->  | Q31: 0 | R31: 0 | S31: 0 | T31: 0
F32: =IF(IF('Salary Detail'!$F$18="X",IF((D32*$K$16)>'Salary Detail'!$L$18,(SUM(Q32:T32)),(D32*$K$16)),(D32*$K$16))=0,"",IF('Salary Detail'!$F$18="X",IF((D32*$K$16)>'Salary Detail'!$L$18,(SUM(Q32:T32)),(D32*$K$16)),(D32*$K$16))) ->  | Q32: 0 | R32: 0 | S32: 0 | T32: 0
F33: =IF(IF('Salary Detail'!$F$18="X",IF((D33*$K$16)>'Salary Detail'!$L$18,(SUM(Q33:T33)),(D33*$K$16)),(D33*$K$16))=0,"",IF('Salary Detail'!$F$18="X",IF((D33*$K$16)>'Salary Detail'!$L$18,(SUM(Q33:T33)),(D33*$K$16)),(D33*$K$16))) ->  | Q33: 0 | R33: 0 | S33: 0 | T33: 0
F34: =IF(IF('Salary Detail'!$F$18="X",IF((D34*$K$16)>'Salary Detail'!$L$18,(SUM(Q34:T34)),(D34*$K$16)),(D34*$K$16))=0,"",IF('Salary Detail'!$F$18="X",IF((D34*$K$16)>'Salary Detail'!$L$18,(SUM(Q34:T34)),(D34*$K$16)),(D34*$K$16))) ->  | Q34: 0 | R34: 0 | S34: 0 | T34: 0
F35: =IF(IF('Salary Detail'!$F$18="X",IF((D35*$K$16)>'Salary Detail'!$L$18,(SUM(Q35:T35)),(D35*$K$16)),(D35*$K$16))=0,"",IF('Salary Detail'!$F$18="X",IF((D35*$K$16)>'Salary Detail'!$L$18,(SUM(Q35:T35)),(D35*$K$16)),(D35*$K$16))) ->  | Q35: 0 | R35: 0 | S35: 0 | T35: 0
F36: =IF(IF('Salary Detail'!$F$18="X",IF((D36*$K$16)>'Salary Detail'!$L$18,(SUM(Q36:T36)),(D36*$K$16)),(D36*$K$16))=0,"",IF('Salary Detail'!$F$18="X",IF((D36*$K$16)>'Salary Detail'!$L$18,(SUM(Q36:T36)),(D36*$K$16)),(D36*$K$16))) ->  | Q36: 0 | R36: 0 | S36: 0 | T36: 0
F37: =IF(IF('Salary Detail'!$F$18="X",IF((D37*$K$16)>'Salary Detail'!$L$18,(SUM(Q37:T37)),(D37*$K$16)),(D37*$K$16))=0,"",IF('Salary Detail'!$F$18="X",IF((D37*$K$16)>'Salary Detail'!$L$18,(SUM(Q37:T37)),(D37*$K$16)),(D37*$K$16))) ->  | Q37: 0 | R37: 0 | S37: 0 | T37: 0
F38: =IF(IF('Salary Detail'!$F$18="X",IF((D38*$K$16)>'Salary Detail'!$L$18,(SUM(Q38:T38)),(D38*$K$16)),(D38*$K$16))=0,"",IF('Salary Detail'!$F$18="X",IF((D38*$K$16)>'Salary Detail'!$L$18,(SUM(Q38:T38)),(D38*$K$16)),(D38*$K$16))) ->  | Q38: 0 | R38: 0 | S38: 0 | T38: 0
F39: =IF(IF('Salary Detail'!$F$18="X",IF((D39*$K$16)>'Salary Detail'!$L$18,(SUM(Q39:T39)),(D39*$K$16)),(D39*$K$16))=0,"",IF('Salary Detail'!$F$18="X",IF((D39*$K$16)>'Salary Detail'!$L$18,(SUM(Q39:T39)),(D39*$K$16)),(D39*$K$16))) ->  | Q39: 0 | R39: 0 | S39: 0 | T39: 0
F40: =IF(IF('Salary Detail'!$F$18="X",IF((D40*$K$16)>'Salary Detail'!$L$18,(SUM(Q40:T40)),(D40*$K$16)),(D40*$K$16))=0,"",IF('Salary Detail'!$F$18="X",IF((D40*$K$16)>'Salary Detail'!$L$18,(SUM(Q40:T40)),(D40*$K$16)),(D40*$K$16))) ->  | Q40: 0 | R40: 0 | S40: 0 | T40: 0
F41: =IF(IF('Salary Detail'!$F$18="X",IF((D41*$K$16)>'Salary Detail'!$L$18,(SUM(Q41:T41)),(D41*$K$16)),(D41*$K$16))=0,"",IF('Salary Detail'!$F$18="X",IF((D41*$K$16)>'Salary Detail'!$L$18,(SUM(Q41:T41)),(D41*$K$16)),(D41*$K$16))) ->  | Q41: 0 | R41: 0 | S41: 0 | T41: 0
F42: =IF(IF('Salary Detail'!$F$18="X",IF((D42*$K$16)>'Salary Detail'!$L$18,(SUM(Q42:T42)),(D42*$K$16)),(D42*$K$16))=0,"",IF('Salary Detail'!$F$18="X",IF((D42*$K$16)>'Salary Detail'!$L$18,(SUM(Q42:T42)),(D42*$K$16)),(D42*$K$16))) ->  | Q42: 0 | R42: 0 | S42: 0 | T42: 0
F43: =IF(IF('Salary Detail'!$F$18="X",IF((D43*$K$16)>'Salary Detail'!$L$18,(SUM(Q43:T43)),(D43*$K$16)),(D43*$K$16))=0,"",IF('Salary Detail'!$F$18="X",IF((D43*$K$16)>'Salary Detail'!$L$18,(SUM(Q43:T43)),(D43*$K$16)),(D43*$K$16))) ->  | Q43: 0 | R43: 0 | S43: 0 | T43: 0
F44: =IF(IF('Salary Detail'!$F$18="X",IF((D44*$K$16)>'Salary Detail'!$L$18,(SUM(Q44:T44)),(D44*$K$16)),(D44*$K$16))=0,"",IF('Salary Detail'!$F$18="X",IF((D44*$K$16)>'Salary Detail'!$L$18,(SUM(Q44:T44)),(D44*$K$16)),(D44*$K$16))) ->  | Q44: 0 | R44: 0 | S44: 0 | T44: 0
F45: =IF(IF('Salary Detail'!$F$18="X",IF((D45*$K$16)>'Salary Detail'!$L$18,(SUM(Q45:T45)),(D45*$K$16)),(D45*$K$16))=0,"",IF('Salary Detail'!$F$18="X",IF((D45*$K$16)>'Salary Detail'!$L$18,(SUM(Q45:T45)),(D45*$K$16)),(D45*$K$16))) ->  | Q45: 0 | R45: 0 | S45: 0 | T45: 0
F46: =IF(IF('Salary Detail'!$F$18="X",IF((D46*$K$16)>'Salary Detail'!$L$18,(SUM(Q46:T46)),(D46*$K$16)),(D46*$K$16))=0,"",IF('Salary Detail'!$F$18="X",IF((D46*$K$16)>'Salary Detail'!$L$18,(SUM(Q46:T46)),(D46*$K$16)),(D46*$K$16))) ->  | Q46: 0 | R46: 0 | S46: 0 | T46: 0
F47: =IF(IF('Salary Detail'!$F$18="X",IF((D47*$K$16)>'Salary Detail'!$L$18,(SUM(Q47:T47)),(D47*$K$16)),(D47*$K$16))=0,"",IF('Salary Detail'!$F$18="X",IF((D47*$K$16)>'Salary Detail'!$L$18,(SUM(Q47:T47)),(D47*$K$16)),(D47*$K$16))) ->  | Q47: 0 | R47: 0 | S47: 0 | T47: 0
F48: =IF(IF('Salary Detail'!$F$18="X",IF((D48*$K$16)>'Salary Detail'!$L$18,(SUM(Q48:T48)),(D48*$K$16)),(D48*$K$16))=0,"",IF('Salary Detail'!$F$18="X",IF((D48*$K$16)>'Salary Detail'!$L$18,(SUM(Q48:T48)),(D48*$K$16)),(D48*$K$16))) ->  | Q48: 0 | R48: 0 | S48: 0 | T48: 0
F49: =IF(IF('Salary Detail'!$F$18="X",IF((D49*$K$16)>'Salary Detail'!$L$18,(SUM(Q49:T49)),(D49*$K$16)),(D49*$K$16))=0,"",IF('Salary Detail'!$F$18="X",IF((D49*$K$16)>'Salary Detail'!$L$18,(SUM(Q49:T49)),(D49*$K$16)),(D49*$K$16))) ->  | Q49: 0 | R49: 0 | S49: 0 | T49: 0
F50: =IF(IF('Salary Detail'!$F$18="X",IF((D50*$K$16)>'Salary Detail'!$L$18,(SUM(Q50:T50)),(D50*$K$16)),(D50*$K$16))=0,"",IF('Salary Detail'!$F$18="X",IF((D50*$K$16)>'Salary Detail'!$L$18,(SUM(Q50:T50)),(D50*$K$16)),(D50*$K$16))) ->  | Q50: 0 | R50: 0 | S50: 0 | T50: 0
F51: =IF(IF('Salary Detail'!$F$18="X",IF((D51*$K$16)>'Salary Detail'!$L$18,(SUM(Q51:T51)),(D51*$K$16)),(D51*$K$16))=0,"",IF('Salary Detail'!$F$18="X",IF((D51*$K$16)>'Salary Detail'!$L$18,(SUM(Q51:T51)),(D51*$K$16)),(D51*$K$16))) ->  | Q51: 0 | R51: 0 | S51: 0 | T51: 0
F52: =IF(IF('Salary Detail'!$F$18="X",IF((D52*$K$16)>'Salary Detail'!$L$18,(SUM(Q52:T52)),(D52*$K$16)),(D52*$K$16))=0,"",IF('Salary Detail'!$F$18="X",IF((D52*$K$16)>'Salary Detail'!$L$18,(SUM(Q52:T52)),(D52*$K$16)),(D52*$K$16))) ->  | Q52: 0 | R52: 0 | S52: 0 | T52: 0
F53: =IF(IF('Salary Detail'!$F$18="X",IF((D53*$K$16)>'Salary Detail'!$L$18,(SUM(Q53:T53)),(D53*$K$16)),(D53*$K$16))=0,"",IF('Salary Detail'!$F$18="X",IF((D53*$K$16)>'Salary Detail'!$L$18,(SUM(Q53:T53)),(D53*$K$16)),(D53*$K$16))) ->  | Q53: 0 | R53: 0 | S53: 0 | T53: 0
F54: =IF(IF('Salary Detail'!$F$18="X",IF((D54*$K$16)>'Salary Detail'!$L$18,(SUM(Q54:T54)),(D54*$K$16)),(D54*$K$16))=0,"",IF('Salary Detail'!$F$18="X",IF((D54*$K$16)>'Salary Detail'!$L$18,(SUM(Q54:T54)),(D54*$K$16)),(D54*$K$16))) ->  | Q54: 0 | R54: 0 | S54: 0 | T54: 0
F55: =IF(IF('Salary Detail'!$F$18="X",IF((D55*$K$16)>'Salary Detail'!$L$18,(SUM(Q55:T55)),(D55*$K$16)),(D55*$K$16))=0,"",IF('Salary Detail'!$F$18="X",IF((D55*$K$16)>'Salary Detail'!$L$18,(SUM(Q55:T55)),(D55*$K$16)),(D55*$K$16))) ->  | Q55: 0 | R55: 0 | S55: 0 | T55: 0
F56: =IF(IF('Salary Detail'!$F$18="X",IF((D56*$K$16)>'Salary Detail'!$L$18,(SUM(Q56:T56)),(D56*$K$16)),(D56*$K$16))=0,"",IF('Salary Detail'!$F$18="X",IF((D56*$K$16)>'Salary Detail'!$L$18,(SUM(Q56:T56)),(D56*$K$16)),(D56*$K$16))) ->  | Q56: 0 | R56: 0 | S56: 0 | T56: 0
F57: =IF(IF('Salary Detail'!$F$18="X",IF((D57*$K$16)>'Salary Detail'!$L$18,(SUM(Q57:T57)),(D57*$K$16)),(D57*$K$16))=0,"",IF('Salary Detail'!$F$18="X",IF((D57*$K$16)>'Salary Detail'!$L$18,(SUM(Q57:T57)),(D57*$K$16)),(D57*$K$16))) ->  | Q57: 0 | R57: 0 | S57: 0 | T57: 0
F58: =IF(IF('Salary Detail'!$F$18="X",IF((D58*$K$16)>'Salary Detail'!$L$18,(SUM(Q58:T58)),(D58*$K$16)),(D58*$K$16))=0,"",IF('Salary Detail'!$F$18="X",IF((D58*$K$16)>'Salary Detail'!$L$18,(SUM(Q58:T58)),(D58*$K$16)),(D58*$K$16))) ->  | Q58: 0 | R58: 0 | S58: 0 | T58: 0
F59: =IF(IF('Salary Detail'!$F$18="X",IF((D59*$K$16)>'Salary Detail'!$L$18,(SUM(Q59:T59)),(D59*$K$16)),(D59*$K$16))=0,"",IF('Salary Detail'!$F$18="X",IF((D59*$K$16)>'Salary Detail'!$L$18,(SUM(Q59:T59)),(D59*$K$16)),(D59*$K$16))) ->  | Q59: 0 | R59: 0 | S59: 0 | T59: 0
F60: =IF(IF('Salary Detail'!$F$18="X",IF((D60*$K$16)>'Salary Detail'!$L$18,(SUM(Q60:T60)),(D60*$K$16)),(D60*$K$16))=0,"",IF('Salary Detail'!$F$18="X",IF((D60*$K$16)>'Salary Detail'!$L$18,(SUM(Q60:T60)),(D60*$K$16)),(D60*$K$16))) ->  | Q60: 0 | R60: 0 | S60: 0 | T60: 0
F61: =IF(IF('Salary Detail'!$F$18="X",IF((D61*$K$16)>'Salary Detail'!$L$18,(SUM(Q61:T61)),(D61*$K$16)),(D61*$K$16))=0,"",IF('Salary Detail'!$F$18="X",IF((D61*$K$16)>'Salary Detail'!$L$18,(SUM(Q61:T61)),(D61*$K$16)),(D61*$K$16))) ->  | Q61: 0 | R61: 0 | S61: 0 | T61: 0
F62: =IF(IF('Salary Detail'!$F$18="X",IF((D62*$K$16)>'Salary Detail'!$L$18,(SUM(Q62:T62)),(D62*$K$16)),(D62*$K$16))=0,"",IF('Salary Detail'!$F$18="X",IF((D62*$K$16)>'Salary Detail'!$L$18,(SUM(Q62:T62)),(D62*$K$16)),(D62*$K$16))) ->  | Q62: 0 | R62: 0 | S62: 0 | T62: 0
A63: YEAR 1 TOTALS | I63: =SUM(I23:I62) -> 0 | L63: =SUM(L23:L62) -> 0 | N63: =SUM(N23:N62) -> 0
A72: UNIVERSITY HOSPITAL EMPLOYEES
A73: SALARY CALCULATION WORKSHEET (Page 2)
C75: Principal Investigator: | F75: =D5 -> 
C76: Department: | F76: =D6 -> 
C77: Project Title: | F77: =D7 -> 
C78: Funding Agency: | F78: =D8 -> 
P79: % of Yr 2 & 3
B80: Adjusted | C80: Year 2 | G80: Level | J80: Adjusted | K80: Year 3 | O80: Level | P80: Year or
B81: UH | C81: Salaries | E81: Person | G81: of | J81: UH | K81: =C81 -> Salaries | M81: Person | O81: of | P81: Portion of
A82: Name | B82: Base Salary | C82: Requested | D82: Benefits | E82: Mos. | F82: Totals | G82: Effort | H82: Name | J82: Salary | K82: =C82 -> Requested | L82: =D82 -> Benefits | M82: Mos. | N82: =F82 -> Totals | O82: Effort | P82: a Year
A83: =IF(A23=0,"",A23) ->  | B83: =IFERROR(IF(ROUND(IF(totalyrs>1,((F23*(1+$K$15))),0),0)=0,"",ROUND(IF(totalyrs>1,((F23*(1+$K$15))),0),0)),"") ->  | C83: =IFERROR(IF(ROUND(IF(totalyrs>1,IF('Salary Detail'!$F$18="X",(IF(F23*(1+$K$15)> MAXSAL,(MAXSAL*G83),(F23*G83*yr2percent*(1+$K$15)))),(F23*G83*yr2percent*(1+$K$15))),0),0)=0,"",ROUND(IF(totalyrs>1,IF('Salary Detail'!$F$18="X",(IF(F23*(1+$K$15)> MAXSAL,(MAXSAL*G83),(F23*G83*yr2percent*(1+$K$15)))),(F23*G83*yr2percent*(1+$K$15))),0),0)),"") ->  | D83: =IFERROR(IF(C83*0.35=0,"",C83*0.35),"") ->  | E83: =IFERROR(IF(SUM(G83*12)=0,"",SUM(G83*12)),"") ->  | F83: =IFERROR(IF(C83+D83=0,"",C83+D83),"") ->  | G83: =IF(IF(totalyrs>1,(G23),0)=0,"",IF(totalyrs>1,(G23),0)) ->  | H83: =IF(A23=0,"",A23) ->  | J83: =IFERROR(IF(ROUND(IF(totalyrs>2,((F23*(1+$K$15)^2)),0),0)=0,"",ROUND(IF(totalyrs>2,((F23*(1+$K$15)^2)),0),0)),"") ->  | K83: =IFERROR(IF(ROUND(IF(totalyrs>2,IF('Salary Detail'!$F$18="X",(IF(F23*(1+$K$15)^2> MAXSAL,(MAXSAL*O83),(F23*O83*yr3percent*(1+$K$15)^2))),(F23*O83*yr3percent*(1+$K$15)^2)),0),0)=0,"",ROUND(IF(totalyrs>2,IF('Salary Detail'!$F$18="X",(IF(F23*(1+$K$15)^2> MAXSAL,(MAXSAL*O83),(F23*O83*yr3percent*(1+$K$15)^2))),(F23*O83*yr3percent*(1+$K$15)^2)),0),0)),"") ->  | L83: =IFERROR(IF(K83*0.35=0,"",K83*0.35),"") ->  | M83: =IFERROR(IF(SUM(O83*12)=0,"",SUM(O83*12)),"") ->  | N83: =IFERROR(IF(K83+L83=0,"",K83+L83),"") ->  | O83: =IF(IF(totalyrs>2,(G83),0)=0,"",IF(totalyrs>2,(G83),0)) ->  | P83: =IF(AND(totalyrs>1,totalyrs<2),totalyrs-1,1) -> 1 | Q83: = Year 2
C84: =IFERROR(IF(ROUND(IF(totalyrs>1,IF('Salary Detail'!$F$18="X",(IF(F24*(1+$K$15)> MAXSAL,(MAXSAL*G84),(F24*G84*yr2percent*(1+$K$15)))),(F24*G84*yr2percent*(1+$K$15))),0),0)=0,"",ROUND(IF(totalyrs>1,IF('Salary Detail'!$F$18="X",(IF(F24*(1+$K$15)> MAXSAL,(MAXSAL*G84),(F24*G84*yr2percent*(1+$K$15)))),(F24*G84*yr2percent*(1+$K$15))),0),0)),"") ->  | D84: =IFERROR(IF(C84*0.35=0,"",C84*0.35),"") ->  | K84: =IFERROR(IF(ROUND(IF(totalyrs>2,IF('Salary Detail'!$F$18="X",(IF(F24*(1+$K$15)^2> MAXSAL,(MAXSAL*O84),(F24*O84*yr3percent*(1+$K$15)^2))),(F24*O84*yr3percent*(1+$K$15)^2)),0),0)=0,"",ROUND(IF(totalyrs>2,IF('Salary Detail'!$F$18="X",(IF(F24*(1+$K$15)^2> MAXSAL,(MAXSAL*O84),(F24*O84*yr3percent*(1+$K$15)^2))),(F24*O84*yr3percent*(1+$K$15)^2)),0),0)),"") ->  | L84: =IFERROR(IF(K84*0.35=0,"",K84*0.35),"") ->  | P84: =IF(AND(totalyrs>2,totalyrs<3),totalyrs-2,1) -> 1 | Q84: = Year 3
C85: =IFERROR(IF(ROUND(IF(totalyrs>1,IF('Salary Detail'!$F$18="X",(IF(F25*(1+$K$15)> MAXSAL,(MAXSAL*G85),(F25*G85*yr2percent*(1+$K$15)))),(F25*G85*yr2percent*(1+$K$15))),0),0)=0,"",ROUND(IF(totalyrs>1,IF('Salary Detail'!$F$18="X",(IF(F25*(1+$K$15)> MAXSAL,(MAXSAL*G85),(F25*G85*yr2percent*(1+$K$15)))),(F25*G85*yr2percent*(1+$K$15))),0),0)),"") ->  | D85: =IFERROR(IF(C85*0.35=0,"",C85*0.35),"") ->  | K85: =IFERROR(IF(ROUND(IF(totalyrs>2,IF('Salary Detail'!$F$18="X",(IF(F25*(1+$K$15)^2> MAXSAL,(MAXSAL*O85),(F25*O85*yr3percent*(1+$K$15)^2))),(F25*O85*yr3percent*(1+$K$15)^2)),0),0)=0,"",ROUND(IF(totalyrs>2,IF('Salary Detail'!$F$18="X",(IF(F25*(1+$K$15)^2> MAXSAL,(MAXSAL*O85),(F25*O85*yr3percent*(1+$K$15)^2))),(F25*O85*yr3percent*(1+$K$15)^2)),0),0)),"") -> 
C86: =IFERROR(IF(ROUND(IF(totalyrs>1,IF('Salary Detail'!$F$18="X",(IF(F26*(1+$K$15)> MAXSAL,(MAXSAL*G86),(F26*G86*yr2percent*(1+$K$15)))),(F26*G86*yr2percent*(1+$K$15))),0),0)=0,"",ROUND(IF(totalyrs>1,IF('Salary Detail'!$F$18="X",(IF(F26*(1+$K$15)> MAXSAL,(MAXSAL*G86),(F26*G86*yr2percent*(1+$K$15)))),(F26*G86*yr2percent*(1+$K$15))),0),0)),"") ->  | K86: =IFERROR(IF(ROUND(IF(totalyrs>2,IF('Salary Detail'!$F$18="X",(IF(F26*(1+$K$15)^2> MAXSAL,(MAXSAL*O86),(F26*O86*yr3percent*(1+$K$15)^2))),(F26*O86*yr3percent*(1+$K$15)^2)),0),0)=0,"",ROUND(IF(totalyrs>2,IF('Salary Detail'!$F$18="X",(IF(F26*(1+$K$15)^2> MAXSAL,(MAXSAL*O86),(F26*O86*yr3percent*(1+$K$15)^2))),(F26*O86*yr3percent*(1+$K$15)^2)),0),0)),"") -> 
C87: =IFERROR(IF(ROUND(IF(totalyrs>1,IF('Salary Detail'!$F$18="X",(IF(F27*(1+$K$15)> MAXSAL,(MAXSAL*G87),(F27*G87*yr2percent*(1+$K$15)))),(F27*G87*yr2percent*(1+$K$15))),0),0)=0,"",ROUND(IF(totalyrs>1,IF('Salary Detail'!$F$18="X",(IF(F27*(1+$K$15)> MAXSAL,(MAXSAL*G87),(F27*G87*yr2percent*(1+$K$15)))),(F27*G87*yr2percent*(1+$K$15))),0),0)),"") ->  | K87: =IFERROR(IF(ROUND(IF(totalyrs>2,IF('Salary Detail'!$F$18="X",(IF(F27*(1+$K$15)^2> MAXSAL,(MAXSAL*O87),(F27*O87*yr3percent*(1+$K$15)^2))),(F27*O87*yr3percent*(1+$K$15)^2)),0),0)=0,"",ROUND(IF(totalyrs>2,IF('Salary Detail'!$F$18="X",(IF(F27*(1+$K$15)^2> MAXSAL,(MAXSAL*O87),(F27*O87*yr3percent*(1+$K$15)^2))),(F27*O87*yr3percent*(1+$K$15)^2)),0),0)),"") -> 
C88: =IFERROR(IF(ROUND(IF(totalyrs>1,IF('Salary Detail'!$F$18="X",(IF(F28*(1+$K$15)> MAXSAL,(MAXSAL*G88),(F28*G88*yr2percent*(1+$K$15)))),(F28*G88*yr2percent*(1+$K$15))),0),0)=0,"",ROUND(IF(totalyrs>1,IF('Salary Detail'!$F$18="X",(IF(F28*(1+$K$15)> MAXSAL,(MAXSAL*G88),(F28*G88*yr2percent*(1+$K$15)))),(F28*G88*yr2percent*(1+$K$15))),0),0)),"") ->  | K88: =IFERROR(IF(ROUND(IF(totalyrs>2,IF('Salary Detail'!$F$18="X",(IF(F28*(1+$K$15)^2> MAXSAL,(MAXSAL*O88),(F28*O88*yr3percent*(1+$K$15)^2))),(F28*O88*yr3percent*(1+$K$15)^2)),0),0)=0,"",ROUND(IF(totalyrs>2,IF('Salary Detail'!$F$18="X",(IF(F28*(1+$K$15)^2> MAXSAL,(MAXSAL*O88),(F28*O88*yr3percent*(1+$K$15)^2))),(F28*O88*yr3percent*(1+$K$15)^2)),0),0)),"") -> 
C89: =IFERROR(IF(ROUND(IF(totalyrs>1,IF('Salary Detail'!$F$18="X",(IF(F29*(1+$K$15)> MAXSAL,(MAXSAL*G89),(F29*G89*yr2percent*(1+$K$15)))),(F29*G89*yr2percent*(1+$K$15))),0),0)=0,"",ROUND(IF(totalyrs>1,IF('Salary Detail'!$F$18="X",(IF(F29*(1+$K$15)> MAXSAL,(MAXSAL*G89),(F29*G89*yr2percent*(1+$K$15)))),(F29*G89*yr2percent*(1+$K$15))),0),0)),"") ->  | K89: =IFERROR(IF(ROUND(IF(totalyrs>2,IF('Salary Detail'!$F$18="X",(IF(F29*(1+$K$15)^2> MAXSAL,(MAXSAL*O89),(F29*O89*yr3percent*(1+$K$15)^2))),(F29*O89*yr3percent*(1+$K$15)^2)),0),0)=0,"",ROUND(IF(totalyrs>2,IF('Salary Detail'!$F$18="X",(IF(F29*(1+$K$15)^2> MAXSAL,(MAXSAL*O89),(F29*O89*yr3percent*(1+$K$15)^2))),(F29*O89*yr3percent*(1+$K$15)^2)),0),0)),"") -> 
C90: =IFERROR(IF(ROUND(IF(totalyrs>1,IF('Salary Detail'!$F$18="X",(IF(F30*(1+$K$15)> MAXSAL,(MAXSAL*G90),(F30*G90*yr2percent*(1+$K$15)))),(F30*G90*yr2percent*(1+$K$15))),0),0)=0,"",ROUND(IF(totalyrs>1,IF('Salary Detail'!$F$18="X",(IF(F30*(1+$K$15)> MAXSAL,(MAXSAL*G90),(F30*G90*yr2percent*(1+$K$15)))),(F30*G90*yr2percent*(1+$K$15))),0),0)),"") ->  | K90: =IFERROR(IF(ROUND(IF(totalyrs>2,IF('Salary Detail'!$F$18="X",(IF(F30*(1+$K$15)^2> MAXSAL,(MAXSAL*O90),(F30*O90*yr3percent*(1+$K$15)^2))),(F30*O90*yr3percent*(1+$K$15)^2)),0),0)=0,"",ROUND(IF(totalyrs>2,IF('Salary Detail'!$F$18="X",(IF(F30*(1+$K$15)^2> MAXSAL,(MAXSAL*O90),(F30*O90*yr3percent*(1+$K$15)^2))),(F30*O90*yr3percent*(1+$K$15)^2)),0),0)),"") -> 
C91: =IFERROR(IF(ROUND(IF(totalyrs>1,IF('Salary Detail'!$F$18="X",(IF(F31*(1+$K$15)> MAXSAL,(MAXSAL*G91),(F31*G91*yr2percent*(1+$K$15)))),(F31*G91*yr2percent*(1+$K$15))),0),0)=0,"",ROUND(IF(totalyrs>1,IF('Salary Detail'!$F$18="X",(IF(F31*(1+$K$15)> MAXSAL,(MAXSAL*G91),(F31*G91*yr2percent*(1+$K$15)))),(F31*G91*yr2percent*(1+$K$15))),0),0)),"") ->  | K91: =IFERROR(IF(ROUND(IF(totalyrs>2,IF('Salary Detail'!$F$18="X",(IF(F31*(1+$K$15)^2> MAXSAL,(MAXSAL*O91),(F31*O91*yr3percent*(1+$K$15)^2))),(F31*O91*yr3percent*(1+$K$15)^2)),0),0)=0,"",ROUND(IF(totalyrs>2,IF('Salary Detail'!$F$18="X",(IF(F31*(1+$K$15)^2> MAXSAL,(MAXSAL*O91),(F31*O91*yr3percent*(1+$K$15)^2))),(F31*O91*yr3percent*(1+$K$15)^2)),0),0)),"") -> 
C92: =IFERROR(IF(ROUND(IF(totalyrs>1,IF('Salary Detail'!$F$18="X",(IF(F32*(1+$K$15)> MAXSAL,(MAXSAL*G92),(F32*G92*yr2percent*(1+$K$15)))),(F32*G92*yr2percent*(1+$K$15))),0),0)=0,"",ROUND(IF(totalyrs>1,IF('Salary Detail'!$F$18="X",(IF(F32*(1+$K$15)> MAXSAL,(MAXSAL*G92),(F32*G92*yr2percent*(1+$K$15)))),(F32*G92*yr2percent*(1+$K$15))),0),0)),"") ->  | K92: =IFERROR(IF(ROUND(IF(totalyrs>2,IF('Salary Detail'!$F$18="X",(IF(F32*(1+$K$15)^2> MAXSAL,(MAXSAL*O92),(F32*O92*yr3percent*(1+$K$15)^2))),(F32*O92*yr3percent*(1+$K$15)^2)),0),0)=0,"",ROUND(IF(totalyrs>2,IF('Salary Detail'!$F$18="X",(IF(F32*(1+$K$15)^2> MAXSAL,(MAXSAL*O92),(F32*O92*yr3percent*(1+$K$15)^2))),(F32*O92*yr3percent*(1+$K$15)^2)),0),0)),"") -> 
C93: =IFERROR(IF(ROUND(IF(totalyrs>1,IF('Salary Detail'!$F$18="X",(IF(F33*(1+$K$15)> MAXSAL,(MAXSAL*G93),(F33*G93*yr2percent*(1+$K$15)))),(F33*G93*yr2percent*(1+$K$15))),0),0)=0,"",ROUND(IF(totalyrs>1,IF('Salary Detail'!$F$18="X",(IF(F33*(1+$K$15)> MAXSAL,(MAXSAL*G93),(F33*G93*yr2percent*(1+$K$15)))),(F33*G93*yr2percent*(1+$K$15))),0),0)),"") ->  | K93: =IFERROR(IF(ROUND(IF(totalyrs>2,IF('Salary Detail'!$F$18="X",(IF(F33*(1+$K$15)^2> MAXSAL,(MAXSAL*O93),(F33*O93*yr3percent*(1+$K$15)^2))),(F33*O93*yr3percent*(1+$K$15)^2)),0),0)=0,"",ROUND(IF(totalyrs>2,IF('Salary Detail'!$F$18="X",(IF(F33*(1+$K$15)^2> MAXSAL,(MAXSAL*O93),(F33*O93*yr3percent*(1+$K$15)^2))),(F33*O93*yr3percent*(1+$K$15)^2)),0),0)),"") -> 
C94: =IFERROR(IF(ROUND(IF(totalyrs>1,IF('Salary Detail'!$F$18="X",(IF(F34*(1+$K$15)> MAXSAL,(MAXSAL*G94),(F34*G94*yr2percent*(1+$K$15)))),(F34*G94*yr2percent*(1+$K$15))),0),0)=0,"",ROUND(IF(totalyrs>1,IF('Salary Detail'!$F$18="X",(IF(F34*(1+$K$15)> MAXSAL,(MAXSAL*G94),(F34*G94*yr2percent*(1+$K$15)))),(F34*G94*yr2percent*(1+$K$15))),0),0)),"") ->  | K94: =IFERROR(IF(ROUND(IF(totalyrs>2,IF('Salary Detail'!$F$18="X",(IF(F34*(1+$K$15)^2> MAXSAL,(MAXSAL*O94),(F34*O94*yr3percent*(1+$K$15)^2))),(F34*O94*yr3percent*(1+$K$15)^2)),0),0)=0,"",ROUND(IF(totalyrs>2,IF('Salary Detail'!$F$18="X",(IF(F34*(1+$K$15)^2> MAXSAL,(MAXSAL*O94),(F34*O94*yr3percent*(1+$K$15)^2))),(F34*O94*yr3percent*(1+$K$15)^2)),0),0)),"") -> 
C95: =IFERROR(IF(ROUND(IF(totalyrs>1,IF('Salary Detail'!$F$18="X",(IF(F35*(1+$K$15)> MAXSAL,(MAXSAL*G95),(F35*G95*yr2percent*(1+$K$15)))),(F35*G95*yr2percent*(1+$K$15))),0),0)=0,"",ROUND(IF(totalyrs>1,IF('Salary Detail'!$F$18="X",(IF(F35*(1+$K$15)> MAXSAL,(MAXSAL*G95),(F35*G95*yr2percent*(1+$K$15)))),(F35*G95*yr2percent*(1+$K$15))),0),0)),"") ->  | K95: =IFERROR(IF(ROUND(IF(totalyrs>2,IF('Salary Detail'!$F$18="X",(IF(F35*(1+$K$15)^2> MAXSAL,(MAXSAL*O95),(F35*O95*yr3percent*(1+$K$15)^2))),(F35*O95*yr3percent*(1+$K$15)^2)),0),0)=0,"",ROUND(IF(totalyrs>2,IF('Salary Detail'!$F$18="X",(IF(F35*(1+$K$15)^2> MAXSAL,(MAXSAL*O95),(F35*O95*yr3percent*(1+$K$15)^2))),(F35*O95*yr3percent*(1+$K$15)^2)),0),0)),"") -> 
C96: =IFERROR(IF(ROUND(IF(totalyrs>1,IF('Salary Detail'!$F$18="X",(IF(F36*(1+$K$15)> MAXSAL,(MAXSAL*G96),(F36*G96*yr2percent*(1+$K$15)))),(F36*G96*yr2percent*(1+$K$15))),0),0)=0,"",ROUND(IF(totalyrs>1,IF('Salary Detail'!$F$18="X",(IF(F36*(1+$K$15)> MAXSAL,(MAXSAL*G96),(F36*G96*yr2percent*(1+$K$15)))),(F36*G96*yr2percent*(1+$K$15))),0),0)),"") ->  | K96: =IFERROR(IF(ROUND(IF(totalyrs>2,IF('Salary Detail'!$F$18="X",(IF(F36*(1+$K$15)^2> MAXSAL,(MAXSAL*O96),(F36*O96*yr3percent*(1+$K$15)^2))),(F36*O96*yr3percent*(1+$K$15)^2)),0),0)=0,"",ROUND(IF(totalyrs>2,IF('Salary Detail'!$F$18="X",(IF(F36*(1+$K$15)^2> MAXSAL,(MAXSAL*O96),(F36*O96*yr3percent*(1+$K$15)^2))),(F36*O96*yr3percent*(1+$K$15)^2)),0),0)),"") -> 
C97: =IFERROR(IF(ROUND(IF(totalyrs>1,IF('Salary Detail'!$F$18="X",(IF(F37*(1+$K$15)> MAXSAL,(MAXSAL*G97),(F37*G97*yr2percent*(1+$K$15)))),(F37*G97*yr2percent*(1+$K$15))),0),0)=0,"",ROUND(IF(totalyrs>1,IF('Salary Detail'!$F$18="X",(IF(F37*(1+$K$15)> MAXSAL,(MAXSAL*G97),(F37*G97*yr2percent*(1+$K$15)))),(F37*G97*yr2percent*(1+$K$15))),0),0)),"") ->  | K97: =IFERROR(IF(ROUND(IF(totalyrs>2,IF('Salary Detail'!$F$18="X",(IF(F37*(1+$K$15)^2> MAXSAL,(MAXSAL*O97),(F37*O97*yr3percent*(1+$K$15)^2))),(F37*O97*yr3percent*(1+$K$15)^2)),0),0)=0,"",ROUND(IF(totalyrs>2,IF('Salary Detail'!$F$18="X",(IF(F37*(1+$K$15)^2> MAXSAL,(MAXSAL*O97),(F37*O97*yr3percent*(1+$K$15)^2))),(F37*O97*yr3percent*(1+$K$15)^2)),0),0)),"") -> 
C98: =IFERROR(IF(ROUND(IF(totalyrs>1,IF('Salary Detail'!$F$18="X",(IF(F38*(1+$K$15)> MAXSAL,(MAXSAL*G98),(F38*G98*yr2percent*(1+$K$15)))),(F38*G98*yr2percent*(1+$K$15))),0),0)=0,"",ROUND(IF(totalyrs>1,IF('Salary Detail'!$F$18="X",(IF(F38*(1+$K$15)> MAXSAL,(MAXSAL*G98),(F38*G98*yr2percent*(1+$K$15)))),(F38*G98*yr2percent*(1+$K$15))),0),0)),"") ->  | K98: =IFERROR(IF(ROUND(IF(totalyrs>2,IF('Salary Detail'!$F$18="X",(IF(F38*(1+$K$15)^2> MAXSAL,(MAXSAL*O98),(F38*O98*yr3percent*(1+$K$15)^2))),(F38*O98*yr3percent*(1+$K$15)^2)),0),0)=0,"",ROUND(IF(totalyrs>2,IF('Salary Detail'!$F$18="X",(IF(F38*(1+$K$15)^2> MAXSAL,(MAXSAL*O98),(F38*O98*yr3percent*(1+$K$15)^2))),(F38*O98*yr3percent*(1+$K$15)^2)),0),0)),"") -> 
C99: =IFERROR(IF(ROUND(IF(totalyrs>1,IF('Salary Detail'!$F$18="X",(IF(F39*(1+$K$15)> MAXSAL,(MAXSAL*G99),(F39*G99*yr2percent*(1+$K$15)))),(F39*G99*yr2percent*(1+$K$15))),0),0)=0,"",ROUND(IF(totalyrs>1,IF('Salary Detail'!$F$18="X",(IF(F39*(1+$K$15)> MAXSAL,(MAXSAL*G99),(F39*G99*yr2percent*(1+$K$15)))),(F39*G99*yr2percent*(1+$K$15))),0),0)),"") ->  | K99: =IFERROR(IF(ROUND(IF(totalyrs>2,IF('Salary Detail'!$F$18="X",(IF(F39*(1+$K$15)^2> MAXSAL,(MAXSAL*O99),(F39*O99*yr3percent*(1+$K$15)^2))),(F39*O99*yr3percent*(1+$K$15)^2)),0),0)=0,"",ROUND(IF(totalyrs>2,IF('Salary Detail'!$F$18="X",(IF(F39*(1+$K$15)^2> MAXSAL,(MAXSAL*O99),(F39*O99*yr3percent*(1+$K$15)^2))),(F39*O99*yr3percent*(1+$K$15)^2)),0),0)),"") -> 
C100: =IFERROR(IF(ROUND(IF(totalyrs>1,IF('Salary Detail'!$F$18="X",(IF(F40*(1+$K$15)> MAXSAL,(MAXSAL*G100),(F40*G100*yr2percent*(1+$K$15)))),(F40*G100*yr2percent*(1+$K$15))),0),0)=0,"",ROUND(IF(totalyrs>1,IF('Salary Detail'!$F$18="X",(IF(F40*(1+$K$15)> MAXSAL,(MAXSAL*G100),(F40*G100*yr2percent*(1+$K$15)))),(F40*G100*yr2percent*(1+$K$15))),0),0)),"") ->  | K100: =IFERROR(IF(ROUND(IF(totalyrs>2,IF('Salary Detail'!$F$18="X",(IF(F40*(1+$K$15)^2> MAXSAL,(MAXSAL*O100),(F40*O100*yr3percent*(1+$K$15)^2))),(F40*O100*yr3percent*(1+$K$15)^2)),0),0)=0,"",ROUND(IF(totalyrs>2,IF('Salary Detail'!$F$18="X",(IF(F40*(1+$K$15)^2> MAXSAL,(MAXSAL*O100),(F40*O100*yr3percent*(1+$K$15)^2))),(F40*O100*yr3percent*(1+$K$15)^2)),0),0)),"") -> 
C101: =IFERROR(IF(ROUND(IF(totalyrs>1,IF('Salary Detail'!$F$18="X",(IF(F41*(1+$K$15)> MAXSAL,(MAXSAL*G101),(F41*G101*yr2percent*(1+$K$15)))),(F41*G101*yr2percent*(1+$K$15))),0),0)=0,"",ROUND(IF(totalyrs>1,IF('Salary Detail'!$F$18="X",(IF(F41*(1+$K$15)> MAXSAL,(MAXSAL*G101),(F41*G101*yr2percent*(1+$K$15)))),(F41*G101*yr2percent*(1+$K$15))),0),0)),"") ->  | K101: =IFERROR(IF(ROUND(IF(totalyrs>2,IF('Salary Detail'!$F$18="X",(IF(F41*(1+$K$15)^2> MAXSAL,(MAXSAL*O101),(F41*O101*yr3percent*(1+$K$15)^2))),(F41*O101*yr3percent*(1+$K$15)^2)),0),0)=0,"",ROUND(IF(totalyrs>2,IF('Salary Detail'!$F$18="X",(IF(F41*(1+$K$15)^2> MAXSAL,(MAXSAL*O101),(F41*O101*yr3percent*(1+$K$15)^2))),(F41*O101*yr3percent*(1+$K$15)^2)),0),0)),"") -> 
C102: =IFERROR(IF(ROUND(IF(totalyrs>1,IF('Salary Detail'!$F$18="X",(IF(F42*(1+$K$15)> MAXSAL,(MAXSAL*G102),(F42*G102*yr2percent*(1+$K$15)))),(F42*G102*yr2percent*(1+$K$15))),0),0)=0,"",ROUND(IF(totalyrs>1,IF('Salary Detail'!$F$18="X",(IF(F42*(1+$K$15)> MAXSAL,(MAXSAL*G102),(F42*G102*yr2percent*(1+$K$15)))),(F42*G102*yr2percent*(1+$K$15))),0),0)),"") ->  | K102: =IFERROR(IF(ROUND(IF(totalyrs>2,IF('Salary Detail'!$F$18="X",(IF(F42*(1+$K$15)^2> MAXSAL,(MAXSAL*O102),(F42*O102*yr3percent*(1+$K$15)^2))),(F42*O102*yr3percent*(1+$K$15)^2)),0),0)=0,"",ROUND(IF(totalyrs>2,IF('Salary Detail'!$F$18="X",(IF(F42*(1+$K$15)^2> MAXSAL,(MAXSAL*O102),(F42*O102*yr3percent*(1+$K$15)^2))),(F42*O102*yr3percent*(1+$K$15)^2)),0),0)),"") -> 
C103: =IFERROR(IF(ROUND(IF(totalyrs>1,IF('Salary Detail'!$F$18="X",(IF(F43*(1+$K$15)> MAXSAL,(MAXSAL*G103),(F43*G103*yr2percent*(1+$K$15)))),(F43*G103*yr2percent*(1+$K$15))),0),0)=0,"",ROUND(IF(totalyrs>1,IF('Salary Detail'!$F$18="X",(IF(F43*(1+$K$15)> MAXSAL,(MAXSAL*G103),(F43*G103*yr2percent*(1+$K$15)))),(F43*G103*yr2percent*(1+$K$15))),0),0)),"") ->  | K103: =IFERROR(IF(ROUND(IF(totalyrs>2,IF('Salary Detail'!$F$18="X",(IF(F43*(1+$K$15)^2> MAXSAL,(MAXSAL*O103),(F43*O103*yr3percent*(1+$K$15)^2))),(F43*O103*yr3percent*(1+$K$15)^2)),0),0)=0,"",ROUND(IF(totalyrs>2,IF('Salary Detail'!$F$18="X",(IF(F43*(1+$K$15)^2> MAXSAL,(MAXSAL*O103),(F43*O103*yr3percent*(1+$K$15)^2))),(F43*O103*yr3percent*(1+$K$15)^2)),0),0)),"") -> 
C104: =IFERROR(IF(ROUND(IF(totalyrs>1,IF('Salary Detail'!$F$18="X",(IF(F44*(1+$K$15)> MAXSAL,(MAXSAL*G104),(F44*G104*yr2percent*(1+$K$15)))),(F44*G104*yr2percent*(1+$K$15))),0),0)=0,"",ROUND(IF(totalyrs>1,IF('Salary Detail'!$F$18="X",(IF(F44*(1+$K$15)> MAXSAL,(MAXSAL*G104),(F44*G104*yr2percent*(1+$K$15)))),(F44*G104*yr2percent*(1+$K$15))),0),0)),"") ->  | K104: =IFERROR(IF(ROUND(IF(totalyrs>2,IF('Salary Detail'!$F$18="X",(IF(F44*(1+$K$15)^2> MAXSAL,(MAXSAL*O104),(F44*O104*yr3percent*(1+$K$15)^2))),(F44*O104*yr3percent*(1+$K$15)^2)),0),0)=0,"",ROUND(IF(totalyrs>2,IF('Salary Detail'!$F$18="X",(IF(F44*(1+$K$15)^2> MAXSAL,(MAXSAL*O104),(F44*O104*yr3percent*(1+$K$15)^2))),(F44*O104*yr3percent*(1+$K$15)^2)),0),0)),"") -> 
C105: =IFERROR(IF(ROUND(IF(totalyrs>1,IF('Salary Detail'!$F$18="X",(IF(F45*(1+$K$15)> MAXSAL,(MAXSAL*G105),(F45*G105*yr2percent*(1+$K$15)))),(F45*G105*yr2percent*(1+$K$15))),0),0)=0,"",ROUND(IF(totalyrs>1,IF('Salary Detail'!$F$18="X",(IF(F45*(1+$K$15)> MAXSAL,(MAXSAL*G105),(F45*G105*yr2percent*(1+$K$15)))),(F45*G105*yr2percent*(1+$K$15))),0),0)),"") ->  | K105: =IFERROR(IF(ROUND(IF(totalyrs>2,IF('Salary Detail'!$F$18="X",(IF(F45*(1+$K$15)^2> MAXSAL,(MAXSAL*O105),(F45*O105*yr3percent*(1+$K$15)^2))),(F45*O105*yr3percent*(1+$K$15)^2)),0),0)=0,"",ROUND(IF(totalyrs>2,IF('Salary Detail'!$F$18="X",(IF(F45*(1+$K$15)^2> MAXSAL,(MAXSAL*O105),(F45*O105*yr3percent*(1+$K$15)^2))),(F45*O105*yr3percent*(1+$K$15)^2)),0),0)),"") -> 
C106: =IFERROR(IF(ROUND(IF(totalyrs>1,IF('Salary Detail'!$F$18="X",(IF(F46*(1+$K$15)> MAXSAL,(MAXSAL*G106),(F46*G106*yr2percent*(1+$K$15)))),(F46*G106*yr2percent*(1+$K$15))),0),0)=0,"",ROUND(IF(totalyrs>1,IF('Salary Detail'!$F$18="X",(IF(F46*(1+$K$15)> MAXSAL,(MAXSAL*G106),(F46*G106*yr2percent*(1+$K$15)))),(F46*G106*yr2percent*(1+$K$15))),0),0)),"") ->  | K106: =IFERROR(IF(ROUND(IF(totalyrs>2,IF('Salary Detail'!$F$18="X",(IF(F46*(1+$K$15)^2> MAXSAL,(MAXSAL*O106),(F46*O106*yr3percent*(1+$K$15)^2))),(F46*O106*yr3percent*(1+$K$15)^2)),0),0)=0,"",ROUND(IF(totalyrs>2,IF('Salary Detail'!$F$18="X",(IF(F46*(1+$K$15)^2> MAXSAL,(MAXSAL*O106),(F46*O106*yr3percent*(1+$K$15)^2))),(F46*O106*yr3percent*(1+$K$15)^2)),0),0)),"") -> 
C107: =IFERROR(IF(ROUND(IF(totalyrs>1,IF('Salary Detail'!$F$18="X",(IF(F47*(1+$K$15)> MAXSAL,(MAXSAL*G107),(F47*G107*yr2percent*(1+$K$15)))),(F47*G107*yr2percent*(1+$K$15))),0),0)=0,"",ROUND(IF(totalyrs>1,IF('Salary Detail'!$F$18="X",(IF(F47*(1+$K$15)> MAXSAL,(MAXSAL*G107),(F47*G107*yr2percent*(1+$K$15)))),(F47*G107*yr2percent*(1+$K$15))),0),0)),"") ->  | K107: =IFERROR(IF(ROUND(IF(totalyrs>2,IF('Salary Detail'!$F$18="X",(IF(F47*(1+$K$15)^2> MAXSAL,(MAXSAL*O107),(F47*O107*yr3percent*(1+$K$15)^2))),(F47*O107*yr3percent*(1+$K$15)^2)),0),0)=0,"",ROUND(IF(totalyrs>2,IF('Salary Detail'!$F$18="X",(IF(F47*(1+$K$15)^2> MAXSAL,(MAXSAL*O107),(F47*O107*yr3percent*(1+$K$15)^2))),(F47*O107*yr3percent*(1+$K$15)^2)),0),0)),"") -> 
C108: =IFERROR(IF(ROUND(IF(totalyrs>1,IF('Salary Detail'!$F$18="X",(IF(F48*(1+$K$15)> MAXSAL,(MAXSAL*G108),(F48*G108*yr2percent*(1+$K$15)))),(F48*G108*yr2percent*(1+$K$15))),0),0)=0,"",ROUND(IF(totalyrs>1,IF('Salary Detail'!$F$18="X",(IF(F48*(1+$K$15)> MAXSAL,(MAXSAL*G108),(F48*G108*yr2percent*(1+$K$15)))),(F48*G108*yr2percent*(1+$K$15))),0),0)),"") ->  | K108: =IFERROR(IF(ROUND(IF(totalyrs>2,IF('Salary Detail'!$F$18="X",(IF(F48*(1+$K$15)^2> MAXSAL,(MAXSAL*O108),(F48*O108*yr3percent*(1+$K$15)^2))),(F48*O108*yr3percent*(1+$K$15)^2)),0),0)=0,"",ROUND(IF(totalyrs>2,IF('Salary Detail'!$F$18="X",(IF(F48*(1+$K$15)^2> MAXSAL,(MAXSAL*O108),(F48*O108*yr3percent*(1+$K$15)^2))),(F48*O108*yr3percent*(1+$K$15)^2)),0),0)),"") -> 
C109: =IFERROR(IF(ROUND(IF(totalyrs>1,IF('Salary Detail'!$F$18="X",(IF(F49*(1+$K$15)> MAXSAL,(MAXSAL*G109),(F49*G109*yr2percent*(1+$K$15)))),(F49*G109*yr2percent*(1+$K$15))),0),0)=0,"",ROUND(IF(totalyrs>1,IF('Salary Detail'!$F$18="X",(IF(F49*(1+$K$15)> MAXSAL,(MAXSAL*G109),(F49*G109*yr2percent*(1+$K$15)))),(F49*G109*yr2percent*(1+$K$15))),0),0)),"") ->  | K109: =IFERROR(IF(ROUND(IF(totalyrs>2,IF('Salary Detail'!$F$18="X",(IF(F49*(1+$K$15)^2> MAXSAL,(MAXSAL*O109),(F49*O109*yr3percent*(1+$K$15)^2))),(F49*O109*yr3percent*(1+$K$15)^2)),0),0)=0,"",ROUND(IF(totalyrs>2,IF('Salary Detail'!$F$18="X",(IF(F49*(1+$K$15)^2> MAXSAL,(MAXSAL*O109),(F49*O109*yr3percent*(1+$K$15)^2))),(F49*O109*yr3percent*(1+$K$15)^2)),0),0)),"") -> 
C110: =IFERROR(IF(ROUND(IF(totalyrs>1,IF('Salary Detail'!$F$18="X",(IF(F50*(1+$K$15)> MAXSAL,(MAXSAL*G110),(F50*G110*yr2percent*(1+$K$15)))),(F50*G110*yr2percent*(1+$K$15))),0),0)=0,"",ROUND(IF(totalyrs>1,IF('Salary Detail'!$F$18="X",(IF(F50*(1+$K$15)> MAXSAL,(MAXSAL*G110),(F50*G110*yr2percent*(1+$K$15)))),(F50*G110*yr2percent*(1+$K$15))),0),0)),"") ->  | K110: =IFERROR(IF(ROUND(IF(totalyrs>2,IF('Salary Detail'!$F$18="X",(IF(F50*(1+$K$15)^2> MAXSAL,(MAXSAL*O110),(F50*O110*yr3percent*(1+$K$15)^2))),(F50*O110*yr3percent*(1+$K$15)^2)),0),0)=0,"",ROUND(IF(totalyrs>2,IF('Salary Detail'!$F$18="X",(IF(F50*(1+$K$15)^2> MAXSAL,(MAXSAL*O110),(F50*O110*yr3percent*(1+$K$15)^2))),(F50*O110*yr3percent*(1+$K$15)^2)),0),0)),"") -> 
C111: =IFERROR(IF(ROUND(IF(totalyrs>1,IF('Salary Detail'!$F$18="X",(IF(F51*(1+$K$15)> MAXSAL,(MAXSAL*G111),(F51*G111*yr2percent*(1+$K$15)))),(F51*G111*yr2percent*(1+$K$15))),0),0)=0,"",ROUND(IF(totalyrs>1,IF('Salary Detail'!$F$18="X",(IF(F51*(1+$K$15)> MAXSAL,(MAXSAL*G111),(F51*G111*yr2percent*(1+$K$15)))),(F51*G111*yr2percent*(1+$K$15))),0),0)),"") ->  | K111: =IFERROR(IF(ROUND(IF(totalyrs>2,IF('Salary Detail'!$F$18="X",(IF(F51*(1+$K$15)^2> MAXSAL,(MAXSAL*O111),(F51*O111*yr3percent*(1+$K$15)^2))),(F51*O111*yr3percent*(1+$K$15)^2)),0),0)=0,"",ROUND(IF(totalyrs>2,IF('Salary Detail'!$F$18="X",(IF(F51*(1+$K$15)^2> MAXSAL,(MAXSAL*O111),(F51*O111*yr3percent*(1+$K$15)^2))),(F51*O111*yr3percent*(1+$K$15)^2)),0),0)),"") -> 
C112: =IFERROR(IF(ROUND(IF(totalyrs>1,IF('Salary Detail'!$F$18="X",(IF(F52*(1+$K$15)> MAXSAL,(MAXSAL*G112),(F52*G112*yr2percent*(1+$K$15)))),(F52*G112*yr2percent*(1+$K$15))),0),0)=0,"",ROUND(IF(totalyrs>1,IF('Salary Detail'!$F$18="X",(IF(F52*(1+$K$15)> MAXSAL,(MAXSAL*G112),(F52*G112*yr2percent*(1+$K$15)))),(F52*G112*yr2percent*(1+$K$15))),0),0)),"") ->  | K112: =IFERROR(IF(ROUND(IF(totalyrs>2,IF('Salary Detail'!$F$18="X",(IF(F52*(1+$K$15)^2> MAXSAL,(MAXSAL*O112),(F52*O112*yr3percent*(1+$K$15)^2))),(F52*O112*yr3percent*(1+$K$15)^2)),0),0)=0,"",ROUND(IF(totalyrs>2,IF('Salary Detail'!$F$18="X",(IF(F52*(1+$K$15)^2> MAXSAL,(MAXSAL*O112),(F52*O112*yr3percent*(1+$K$15)^2))),(F52*O112*yr3percent*(1+$K$15)^2)),0),0)),"") -> 
C113: =IFERROR(IF(ROUND(IF(totalyrs>1,IF('Salary Detail'!$F$18="X",(IF(F53*(1+$K$15)> MAXSAL,(MAXSAL*G113),(F53*G113*yr2percent*(1+$K$15)))),(F53*G113*yr2percent*(1+$K$15))),0),0)=0,"",ROUND(IF(totalyrs>1,IF('Salary Detail'!$F$18="X",(IF(F53*(1+$K$15)> MAXSAL,(MAXSAL*G113),(F53*G113*yr2percent*(1+$K$15)))),(F53*G113*yr2percent*(1+$K$15))),0),0)),"") ->  | K113: =IFERROR(IF(ROUND(IF(totalyrs>2,IF('Salary Detail'!$F$18="X",(IF(F53*(1+$K$15)^2> MAXSAL,(MAXSAL*O113),(F53*O113*yr3percent*(1+$K$15)^2))),(F53*O113*yr3percent*(1+$K$15)^2)),0),0)=0,"",ROUND(IF(totalyrs>2,IF('Salary Detail'!$F$18="X",(IF(F53*(1+$K$15)^2> MAXSAL,(MAXSAL*O113),(F53*O113*yr3percent*(1+$K$15)^2))),(F53*O113*yr3percent*(1+$K$15)^2)),0),0)),"") -> 
C114: =IFERROR(IF(ROUND(IF(totalyrs>1,IF('Salary Detail'!$F$18="X",(IF(F54*(1+$K$15)> MAXSAL,(MAXSAL*G114),(F54*G114*yr2percent*(1+$K$15)))),(F54*G114*yr2percent*(1+$K$15))),0),0)=0,"",ROUND(IF(totalyrs>1,IF('Salary Detail'!$F$18="X",(IF(F54*(1+$K$15)> MAXSAL,(MAXSAL*G114),(F54*G114*yr2percent*(1+$K$15)))),(F54*G114*yr2percent*(1+$K$15))),0),0)),"") ->  | K114: =IFERROR(IF(ROUND(IF(totalyrs>2,IF('Salary Detail'!$F$18="X",(IF(F54*(1+$K$15)^2> MAXSAL,(MAXSAL*O114),(F54*O114*yr3percent*(1+$K$15)^2))),(F54*O114*yr3percent*(1+$K$15)^2)),0),0)=0,"",ROUND(IF(totalyrs>2,IF('Salary Detail'!$F$18="X",(IF(F54*(1+$K$15)^2> MAXSAL,(MAXSAL*O114),(F54*O114*yr3percent*(1+$K$15)^2))),(F54*O114*yr3percent*(1+$K$15)^2)),0),0)),"") -> 
C115: =IFERROR(IF(ROUND(IF(totalyrs>1,IF('Salary Detail'!$F$18="X",(IF(F55*(1+$K$15)> MAXSAL,(MAXSAL*G115),(F55*G115*yr2percent*(1+$K$15)))),(F55*G115*yr2percent*(1+$K$15))),0),0)=0,"",ROUND(IF(totalyrs>1,IF('Salary Detail'!$F$18="X",(IF(F55*(1+$K$15)> MAXSAL,(MAXSAL*G115),(F55*G115*yr2percent*(1+$K$15)))),(F55*G115*yr2percent*(1+$K$15))),0),0)),"") ->  | K115: =IFERROR(IF(ROUND(IF(totalyrs>2,IF('Salary Detail'!$F$18="X",(IF(F55*(1+$K$15)^2> MAXSAL,(MAXSAL*O115),(F55*O115*yr3percent*(1+$K$15)^2))),(F55*O115*yr3percent*(1+$K$15)^2)),0),0)=0,"",ROUND(IF(totalyrs>2,IF('Salary Detail'!$F$18="X",(IF(F55*(1+$K$15)^2> MAXSAL,(MAXSAL*O115),(F55*O115*yr3percent*(1+$K$15)^2))),(F55*O115*yr3percent*(1+$K$15)^2)),0),0)),"") -> 
C116: =IFERROR(IF(ROUND(IF(totalyrs>1,IF('Salary Detail'!$F$18="X",(IF(F56*(1+$K$15)> MAXSAL,(MAXSAL*G116),(F56*G116*yr2percent*(1+$K$15)))),(F56*G116*yr2percent*(1+$K$15))),0),0)=0,"",ROUND(IF(totalyrs>1,IF('Salary Detail'!$F$18="X",(IF(F56*(1+$K$15)> MAXSAL,(MAXSAL*G116),(F56*G116*yr2percent*(1+$K$15)))),(F56*G116*yr2percent*(1+$K$15))),0),0)),"") ->  | K116: =IFERROR(IF(ROUND(IF(totalyrs>2,IF('Salary Detail'!$F$18="X",(IF(F56*(1+$K$15)^2> MAXSAL,(MAXSAL*O116),(F56*O116*yr3percent*(1+$K$15)^2))),(F56*O116*yr3percent*(1+$K$15)^2)),0),0)=0,"",ROUND(IF(totalyrs>2,IF('Salary Detail'!$F$18="X",(IF(F56*(1+$K$15)^2> MAXSAL,(MAXSAL*O116),(F56*O116*yr3percent*(1+$K$15)^2))),(F56*O116*yr3percent*(1+$K$15)^2)),0),0)),"") -> 
C117: =IFERROR(IF(ROUND(IF(totalyrs>1,IF('Salary Detail'!$F$18="X",(IF(F57*(1+$K$15)> MAXSAL,(MAXSAL*G117),(F57*G117*yr2percent*(1+$K$15)))),(F57*G117*yr2percent*(1+$K$15))),0),0)=0,"",ROUND(IF(totalyrs>1,IF('Salary Detail'!$F$18="X",(IF(F57*(1+$K$15)> MAXSAL,(MAXSAL*G117),(F57*G117*yr2percent*(1+$K$15)))),(F57*G117*yr2percent*(1+$K$15))),0),0)),"") ->  | K117: =IFERROR(IF(ROUND(IF(totalyrs>2,IF('Salary Detail'!$F$18="X",(IF(F57*(1+$K$15)^2> MAXSAL,(MAXSAL*O117),(F57*O117*yr3percent*(1+$K$15)^2))),(F57*O117*yr3percent*(1+$K$15)^2)),0),0)=0,"",ROUND(IF(totalyrs>2,IF('Salary Detail'!$F$18="X",(IF(F57*(1+$K$15)^2> MAXSAL,(MAXSAL*O117),(F57*O117*yr3percent*(1+$K$15)^2))),(F57*O117*yr3percent*(1+$K$15)^2)),0),0)),"") -> 
C118: =IFERROR(IF(ROUND(IF(totalyrs>1,IF('Salary Detail'!$F$18="X",(IF(F58*(1+$K$15)> MAXSAL,(MAXSAL*G118),(F58*G118*yr2percent*(1+$K$15)))),(F58*G118*yr2percent*(1+$K$15))),0),0)=0,"",ROUND(IF(totalyrs>1,IF('Salary Detail'!$F$18="X",(IF(F58*(1+$K$15)> MAXSAL,(MAXSAL*G118),(F58*G118*yr2percent*(1+$K$15)))),(F58*G118*yr2percent*(1+$K$15))),0),0)),"") ->  | K118: =IFERROR(IF(ROUND(IF(totalyrs>2,IF('Salary Detail'!$F$18="X",(IF(F58*(1+$K$15)^2> MAXSAL,(MAXSAL*O118),(F58*O118*yr3percent*(1+$K$15)^2))),(F58*O118*yr3percent*(1+$K$15)^2)),0),0)=0,"",ROUND(IF(totalyrs>2,IF('Salary Detail'!$F$18="X",(IF(F58*(1+$K$15)^2> MAXSAL,(MAXSAL*O118),(F58*O118*yr3percent*(1+$K$15)^2))),(F58*O118*yr3percent*(1+$K$15)^2)),0),0)),"") -> 
C119: =IFERROR(IF(ROUND(IF(totalyrs>1,IF('Salary Detail'!$F$18="X",(IF(F59*(1+$K$15)> MAXSAL,(MAXSAL*G119),(F59*G119*yr2percent*(1+$K$15)))),(F59*G119*yr2percent*(1+$K$15))),0),0)=0,"",ROUND(IF(totalyrs>1,IF('Salary Detail'!$F$18="X",(IF(F59*(1+$K$15)> MAXSAL,(MAXSAL*G119),(F59*G119*yr2percent*(1+$K$15)))),(F59*G119*yr2percent*(1+$K$15))),0),0)),"") ->  | K119: =IFERROR(IF(ROUND(IF(totalyrs>2,IF('Salary Detail'!$F$18="X",(IF(F59*(1+$K$15)^2> MAXSAL,(MAXSAL*O119),(F59*O119*yr3percent*(1+$K$15)^2))),(F59*O119*yr3percent*(1+$K$15)^2)),0),0)=0,"",ROUND(IF(totalyrs>2,IF('Salary Detail'!$F$18="X",(IF(F59*(1+$K$15)^2> MAXSAL,(MAXSAL*O119),(F59*O119*yr3percent*(1+$K$15)^2))),(F59*O119*yr3percent*(1+$K$15)^2)),0),0)),"") -> 
C120: =IFERROR(IF(ROUND(IF(totalyrs>1,IF('Salary Detail'!$F$18="X",(IF(F60*(1+$K$15)> MAXSAL,(MAXSAL*G120),(F60*G120*yr2percent*(1+$K$15)))),(F60*G120*yr2percent*(1+$K$15))),0),0)=0,"",ROUND(IF(totalyrs>1,IF('Salary Detail'!$F$18="X",(IF(F60*(1+$K$15)> MAXSAL,(MAXSAL*G120),(F60*G120*yr2percent*(1+$K$15)))),(F60*G120*yr2percent*(1+$K$15))),0),0)),"") ->  | K120: =IFERROR(IF(ROUND(IF(totalyrs>2,IF('Salary Detail'!$F$18="X",(IF(F60*(1+$K$15)^2> MAXSAL,(MAXSAL*O120),(F60*O120*yr3percent*(1+$K$15)^2))),(F60*O120*yr3percent*(1+$K$15)^2)),0),0)=0,"",ROUND(IF(totalyrs>2,IF('Salary Detail'!$F$18="X",(IF(F60*(1+$K$15)^2> MAXSAL,(MAXSAL*O120),(F60*O120*yr3percent*(1+$K$15)^2))),(F60*O120*yr3percent*(1+$K$15)^2)),0),0)),"") -> 
C121: =IFERROR(IF(ROUND(IF(totalyrs>1,IF('Salary Detail'!$F$18="X",(IF(F61*(1+$K$15)> MAXSAL,(MAXSAL*G121),(F61*G121*yr2percent*(1+$K$15)))),(F61*G121*yr2percent*(1+$K$15))),0),0)=0,"",ROUND(IF(totalyrs>1,IF('Salary Detail'!$F$18="X",(IF(F61*(1+$K$15)> MAXSAL,(MAXSAL*G121),(F61*G121*yr2percent*(1+$K$15)))),(F61*G121*yr2percent*(1+$K$15))),0),0)),"") ->  | K121: =IFERROR(IF(ROUND(IF(totalyrs>2,IF('Salary Detail'!$F$18="X",(IF(F61*(1+$K$15)^2> MAXSAL,(MAXSAL*O121),(F61*O121*yr3percent*(1+$K$15)^2))),(F61*O121*yr3percent*(1+$K$15)^2)),0),0)=0,"",ROUND(IF(totalyrs>2,IF('Salary Detail'!$F$18="X",(IF(F61*(1+$K$15)^2> MAXSAL,(MAXSAL*O121),(F61*O121*yr3percent*(1+$K$15)^2))),(F61*O121*yr3percent*(1+$K$15)^2)),0),0)),"") -> 
C122: =IFERROR(IF(ROUND(IF(totalyrs>1,IF('Salary Detail'!$F$18="X",(IF(F62*(1+$K$15)> MAXSAL,(MAXSAL*G122),(F62*G122*yr2percent*(1+$K$15)))),(F62*G122*yr2percent*(1+$K$15))),0),0)=0,"",ROUND(IF(totalyrs>1,IF('Salary Detail'!$F$18="X",(IF(F62*(1+$K$15)> MAXSAL,(MAXSAL*G122),(F62*G122*yr2percent*(1+$K$15)))),(F62*G122*yr2percent*(1+$K$15))),0),0)),"") ->  | K122: =IFERROR(IF(ROUND(IF(totalyrs>2,IF('Salary Detail'!$F$18="X",(IF(F62*(1+$K$15)^2> MAXSAL,(MAXSAL*O122),(F62*O122*yr3percent*(1+$K$15)^2))),(F62*O122*yr3percent*(1+$K$15)^2)),0),0)=0,"",ROUND(IF(totalyrs>2,IF('Salary Detail'!$F$18="X",(IF(F62*(1+$K$15)^2> MAXSAL,(MAXSAL*O122),(F62*O122*yr3percent*(1+$K$15)^2))),(F62*O122*yr3percent*(1+$K$15)^2)),0),0)),"") -> 
A123: Totals | C123: =SUM(C83:C122) -> 0 | D123: =SUM(D83:D122) -> 0 | F123: =C123+D123 -> 0 | H123: Totals | K123: =SUM(K83:K122) -> 0 | L123: =SUM(L83:L122) -> 0 | N123: =K123+L123 -> 0
A144: UNIVERSITY HOSPITAL EMPLOYEES
A145: SALARY CALCULATION WORKSHEET (Page 3)
C147: Principal Investigator: | F147: =D5 -> 
C148: Department: | F148: =D6 -> 
C149: Project Title: | F149: =D7 -> 
C150: Funding Agency: | F150: =D8 -> 
B152: Adjusted | C152: Year 4 | G152: Level | J152: Adjusted | K152: Year 5 | O152: Level | P152: % of Yr 4 & 5
B153: UH | C153: Salaries | E153: Person | G153: of | J153: UH | K153: =C153 -> Salaries | M153: Person | O153: of | P153: =$P$80 -> Year or
A154: Name | B154: Base Salary | C154: Requested | D154: Benefits | E154: Mos. | F154: Totals | G154: Effort | H154: Name | J154: Base Salary | K154: =C154 -> Requested | L154: =D154 -> Benefits | M154: Mos. | N154: =F154 -> Totals | O154: Effort | P154: =$P$81 -> Portion of
A155: =IF(A23=0,"",A23) ->  | B155: =IFERROR(IF(ROUND(IF(totalyrs>3,((F23*(1+$K$15)^3)),0),0)=0,"",ROUND(IF(totalyrs>3,((F23*(1+$K$15)^3)),0),0)),"") ->  | C155: =IFERROR(IF(ROUND(IF(totalyrs>3,IF('Salary Detail'!$F$18="X",(IF(F23*(1+$K$15)^3> MAXSAL,(MAXSAL*G155),(F23*G155*yr4percent*(1+$K$15)^3))),(F23*G155*yr4percent*(1+$K$15)^3)),0),0)=0,"",ROUND(IF(totalyrs>3,IF('Salary Detail'!$F$18="X",(IF(F23*(1+$K$15)^3> MAXSAL,(MAXSAL*G155),(F23*G155*yr4percent*(1+$K$15)^3))),(F23*G155*yr4percent*(1+$K$15)^3)),0),0)),"") ->  | D155: =IFERROR(IF(C155*0.35=0,"",C155*0.35),"") ->  | E155: =IFERROR(IF(SUM(G155*12)=0,"",SUM(G155*12)),"") ->  | F155: =IFERROR(IF(C155+D155=0,"",C155+D155),"") ->  | G155: =IF(IF(totalyrs>3,(O83),0)=0,"",IF(totalyrs>3,(O83),0)) ->  | H155: =IF(A23=0,"",A23) ->  | J155: =IFERROR(IF(ROUND(IF(totalyrs>4,((F23*(1+$K$15)^4)),0),0)=0,"",ROUND(IF(totalyrs>4,((F23*(1+$K$15)^4)),0),0)),"") ->  | K155: =IFERROR(IF(ROUND(IF(totalyrs>4,IF('Salary Detail'!$F$18="X",(IF(F23*(1+$K$15)^4> MAXSAL,(MAXSAL*O155),(F23*O155*yr5percent*(1+$K$15)^4))),(F23*O155*yr5percent*(1+$K$15)^4)),0),0)=0,"",ROUND(IF(totalyrs>4,IF('Salary Detail'!$F$18="X",(IF(F23*(1+$K$15)^4> MAXSAL,(MAXSAL*O155),(F23*O155*yr5percent*(1+$K$15)^4))),(F23*O155*yr5percent*(1+$K$15)^4)),0),0)),"") ->  | L155: =IFERROR(IF(K155*0.35=0,"",K155*0.35),"") ->  | M155: =IFERROR(IF(SUM(O155*12)=0,"",SUM(O155*12)),"") ->  | N155: =IFERROR(IF(K155+L155=0,"",K155+L155),"") ->  | O155: =IF(IF(totalyrs>4,(G155),0)=0,"",IF(totalyrs>4,(G155),0)) ->  | P155: =$P$82 -> a Year
C156: =IFERROR(IF(ROUND(IF(totalyrs>3,IF('Salary Detail'!$F$18="X",(IF(F24*(1+$K$15)^3> MAXSAL,(MAXSAL*G156),(F24*G156*yr4percent*(1+$K$15)^3))),(F24*G156*yr4percent*(1+$K$15)^3)),0),0)=0,"",ROUND(IF(totalyrs>3,IF('Salary Detail'!$F$18="X",(IF(F24*(1+$K$15)^3> MAXSAL,(MAXSAL*G156),(F24*G156*yr4percent*(1+$K$15)^3))),(F24*G156*yr4percent*(1+$K$15)^3)),0),0)),"") ->  | D156: =IFERROR(IF(C156*0.35=0,"",C156*0.35),"") ->  | K156: =IFERROR(IF(ROUND(IF(totalyrs>4,IF('Salary Detail'!$F$18="X",(IF(F24*(1+$K$15)^4> MAXSAL,(MAXSAL*O156),(F24*O156*yr5percent*(1+$K$15)^4))),(F24*O156*yr5percent*(1+$K$15)^4)),0),0)=0,"",ROUND(IF(totalyrs>4,IF('Salary Detail'!$F$18="X",(IF(F24*(1+$K$15)^4> MAXSAL,(MAXSAL*O156),(F24*O156*yr5percent*(1+$K$15)^4))),(F24*O156*yr5percent*(1+$K$15)^4)),0),0)),"") ->  | L156: =IFERROR(IF(K156*0.35=0,"",K156*0.35),"") ->  | P156: =IF(AND(totalyrs>3,totalyrs<4),totalyrs-3,1) -> 1 | Q156: = Year 4
C157: =IFERROR(IF(ROUND(IF(totalyrs>3,IF('Salary Detail'!$F$18="X",(IF(F25*(1+$K$15)^3> MAXSAL,(MAXSAL*G157),(F25*G157*yr4percent*(1+$K$15)^3))),(F25*G157*yr4percent*(1+$K$15)^3)),0),0)=0,"",ROUND(IF(totalyrs>3,IF('Salary Detail'!$F$18="X",(IF(F25*(1+$K$15)^3> MAXSAL,(MAXSAL*G157),(F25*G157*yr4percent*(1+$K$15)^3))),(F25*G157*yr4percent*(1+$K$15)^3)),0),0)),"") ->  | K157: =IFERROR(IF(ROUND(IF(totalyrs>4,IF('Salary Detail'!$F$18="X",(IF(F25*(1+$K$15)^4> MAXSAL,(MAXSAL*O157),(F25*O157*yr5percent*(1+$K$15)^4))),(F25*O157*yr5percent*(1+$K$15)^4)),0),0)=0,"",ROUND(IF(totalyrs>4,IF('Salary Detail'!$F$18="X",(IF(F25*(1+$K$15)^4> MAXSAL,(MAXSAL*O157),(F25*O157*yr5percent*(1+$K$15)^4))),(F25*O157*yr5percent*(1+$K$15)^4)),0),0)),"") ->  | P157: =IF(AND(totalyrs>4,totalyrs<5),totalyrs-4,1) -> 1 | Q157: = Year 5
C158: =IFERROR(IF(ROUND(IF(totalyrs>3,IF('Salary Detail'!$F$18="X",(IF(F26*(1+$K$15)^3> MAXSAL,(MAXSAL*G158),(F26*G158*yr4percent*(1+$K$15)^3))),(F26*G158*yr4percent*(1+$K$15)^3)),0),0)=0,"",ROUND(IF(totalyrs>3,IF('Salary Detail'!$F$18="X",(IF(F26*(1+$K$15)^3> MAXSAL,(MAXSAL*G158),(F26*G158*yr4percent*(1+$K$15)^3))),(F26*G158*yr4percent*(1+$K$15)^3)),0),0)),"") ->  | K158: =IFERROR(IF(ROUND(IF(totalyrs>4,IF('Salary Detail'!$F$18="X",(IF(F26*(1+$K$15)^4> MAXSAL,(MAXSAL*O158),(F26*O158*yr5percent*(1+$K$15)^4))),(F26*O158*yr5percent*(1+$K$15)^4)),0),0)=0,"",ROUND(IF(totalyrs>4,IF('Salary Detail'!$F$18="X",(IF(F26*(1+$K$15)^4> MAXSAL,(MAXSAL*O158),(F26*O158*yr5percent*(1+$K$15)^4))),(F26*O158*yr5percent*(1+$K$15)^4)),0),0)),"") -> 
C159: =IFERROR(IF(ROUND(IF(totalyrs>3,IF('Salary Detail'!$F$18="X",(IF(F27*(1+$K$15)^3> MAXSAL,(MAXSAL*G159),(F27*G159*yr4percent*(1+$K$15)^3))),(F27*G159*yr4percent*(1+$K$15)^3)),0),0)=0,"",ROUND(IF(totalyrs>3,IF('Salary Detail'!$F$18="X",(IF(F27*(1+$K$15)^3> MAXSAL,(MAXSAL*G159),(F27*G159*yr4percent*(1+$K$15)^3))),(F27*G159*yr4percent*(1+$K$15)^3)),0),0)),"") ->  | K159: =IFERROR(IF(ROUND(IF(totalyrs>4,IF('Salary Detail'!$F$18="X",(IF(F27*(1+$K$15)^4> MAXSAL,(MAXSAL*O159),(F27*O159*yr5percent*(1+$K$15)^4))),(F27*O159*yr5percent*(1+$K$15)^4)),0),0)=0,"",ROUND(IF(totalyrs>4,IF('Salary Detail'!$F$18="X",(IF(F27*(1+$K$15)^4> MAXSAL,(MAXSAL*O159),(F27*O159*yr5percent*(1+$K$15)^4))),(F27*O159*yr5percent*(1+$K$15)^4)),0),0)),"") -> 
C160: =IFERROR(IF(ROUND(IF(totalyrs>3,IF('Salary Detail'!$F$18="X",(IF(F28*(1+$K$15)^3> MAXSAL,(MAXSAL*G160),(F28*G160*yr4percent*(1+$K$15)^3))),(F28*G160*yr4percent*(1+$K$15)^3)),0),0)=0,"",ROUND(IF(totalyrs>3,IF('Salary Detail'!$F$18="X",(IF(F28*(1+$K$15)^3> MAXSAL,(MAXSAL*G160),(F28*G160*yr4percent*(1+$K$15)^3))),(F28*G160*yr4percent*(1+$K$15)^3)),0),0)),"") ->  | K160: =IFERROR(IF(ROUND(IF(totalyrs>4,IF('Salary Detail'!$F$18="X",(IF(F28*(1+$K$15)^4> MAXSAL,(MAXSAL*O160),(F28*O160*yr5percent*(1+$K$15)^4))),(F28*O160*yr5percent*(1+$K$15)^4)),0),0)=0,"",ROUND(IF(totalyrs>4,IF('Salary Detail'!$F$18="X",(IF(F28*(1+$K$15)^4> MAXSAL,(MAXSAL*O160),(F28*O160*yr5percent*(1+$K$15)^4))),(F28*O160*yr5percent*(1+$K$15)^4)),0),0)),"") -> 
C161: =IFERROR(IF(ROUND(IF(totalyrs>3,IF('Salary Detail'!$F$18="X",(IF(F29*(1+$K$15)^3> MAXSAL,(MAXSAL*G161),(F29*G161*yr4percent*(1+$K$15)^3))),(F29*G161*yr4percent*(1+$K$15)^3)),0),0)=0,"",ROUND(IF(totalyrs>3,IF('Salary Detail'!$F$18="X",(IF(F29*(1+$K$15)^3> MAXSAL,(MAXSAL*G161),(F29*G161*yr4percent*(1+$K$15)^3))),(F29*G161*yr4percent*(1+$K$15)^3)),0),0)),"") ->  | K161: =IFERROR(IF(ROUND(IF(totalyrs>4,IF('Salary Detail'!$F$18="X",(IF(F29*(1+$K$15)^4> MAXSAL,(MAXSAL*O161),(F29*O161*yr5percent*(1+$K$15)^4))),(F29*O161*yr5percent*(1+$K$15)^4)),0),0)=0,"",ROUND(IF(totalyrs>4,IF('Salary Detail'!$F$18="X",(IF(F29*(1+$K$15)^4> MAXSAL,(MAXSAL*O161),(F29*O161*yr5percent*(1+$K$15)^4))),(F29*O161*yr5percent*(1+$K$15)^4)),0),0)),"") -> 
C162: =IFERROR(IF(ROUND(IF(totalyrs>3,IF('Salary Detail'!$F$18="X",(IF(F30*(1+$K$15)^3> MAXSAL,(MAXSAL*G162),(F30*G162*yr4percent*(1+$K$15)^3))),(F30*G162*yr4percent*(1+$K$15)^3)),0),0)=0,"",ROUND(IF(totalyrs>3,IF('Salary Detail'!$F$18="X",(IF(F30*(1+$K$15)^3> MAXSAL,(MAXSAL*G162),(F30*G162*yr4percent*(1+$K$15)^3))),(F30*G162*yr4percent*(1+$K$15)^3)),0),0)),"") ->  | K162: =IFERROR(IF(ROUND(IF(totalyrs>4,IF('Salary Detail'!$F$18="X",(IF(F30*(1+$K$15)^4> MAXSAL,(MAXSAL*O162),(F30*O162*yr5percent*(1+$K$15)^4))),(F30*O162*yr5percent*(1+$K$15)^4)),0),0)=0,"",ROUND(IF(totalyrs>4,IF('Salary Detail'!$F$18="X",(IF(F30*(1+$K$15)^4> MAXSAL,(MAXSAL*O162),(F30*O162*yr5percent*(1+$K$15)^4))),(F30*O162*yr5percent*(1+$K$15)^4)),0),0)),"") -> 
C163: =IFERROR(IF(ROUND(IF(totalyrs>3,IF('Salary Detail'!$F$18="X",(IF(F31*(1+$K$15)^3> MAXSAL,(MAXSAL*G163),(F31*G163*yr4percent*(1+$K$15)^3))),(F31*G163*yr4percent*(1+$K$15)^3)),0),0)=0,"",ROUND(IF(totalyrs>3,IF('Salary Detail'!$F$18="X",(IF(F31*(1+$K$15)^3> MAXSAL,(MAXSAL*G163),(F31*G163*yr4percent*(1+$K$15)^3))),(F31*G163*yr4percent*(1+$K$15)^3)),0),0)),"") ->  | K163: =IFERROR(IF(ROUND(IF(totalyrs>4,IF('Salary Detail'!$F$18="X",(IF(F31*(1+$K$15)^4> MAXSAL,(MAXSAL*O163),(F31*O163*yr5percent*(1+$K$15)^4))),(F31*O163*yr5percent*(1+$K$15)^4)),0),0)=0,"",ROUND(IF(totalyrs>4,IF('Salary Detail'!$F$18="X",(IF(F31*(1+$K$15)^4> MAXSAL,(MAXSAL*O163),(F31*O163*yr5percent*(1+$K$15)^4))),(F31*O163*yr5percent*(1+$K$15)^4)),0),0)),"") -> 
C164: =IFERROR(IF(ROUND(IF(totalyrs>3,IF('Salary Detail'!$F$18="X",(IF(F32*(1+$K$15)^3> MAXSAL,(MAXSAL*G164),(F32*G164*yr4percent*(1+$K$15)^3))),(F32*G164*yr4percent*(1+$K$15)^3)),0),0)=0,"",ROUND(IF(totalyrs>3,IF('Salary Detail'!$F$18="X",(IF(F32*(1+$K$15)^3> MAXSAL,(MAXSAL*G164),(F32*G164*yr4percent*(1+$K$15)^3))),(F32*G164*yr4percent*(1+$K$15)^3)),0),0)),"") ->  | K164: =IFERROR(IF(ROUND(IF(totalyrs>4,IF('Salary Detail'!$F$18="X",(IF(F32*(1+$K$15)^4> MAXSAL,(MAXSAL*O164),(F32*O164*yr5percent*(1+$K$15)^4))),(F32*O164*yr5percent*(1+$K$15)^4)),0),0)=0,"",ROUND(IF(totalyrs>4,IF('Salary Detail'!$F$18="X",(IF(F32*(1+$K$15)^4> MAXSAL,(MAXSAL*O164),(F32*O164*yr5percent*(1+$K$15)^4))),(F32*O164*yr5percent*(1+$K$15)^4)),0),0)),"") -> 
C165: =IFERROR(IF(ROUND(IF(totalyrs>3,IF('Salary Detail'!$F$18="X",(IF(F33*(1+$K$15)^3> MAXSAL,(MAXSAL*G165),(F33*G165*yr4percent*(1+$K$15)^3))),(F33*G165*yr4percent*(1+$K$15)^3)),0),0)=0,"",ROUND(IF(totalyrs>3,IF('Salary Detail'!$F$18="X",(IF(F33*(1+$K$15)^3> MAXSAL,(MAXSAL*G165),(F33*G165*yr4percent*(1+$K$15)^3))),(F33*G165*yr4percent*(1+$K$15)^3)),0),0)),"") ->  | K165: =IFERROR(IF(ROUND(IF(totalyrs>4,IF('Salary Detail'!$F$18="X",(IF(F33*(1+$K$15)^4> MAXSAL,(MAXSAL*O165),(F33*O165*yr5percent*(1+$K$15)^4))),(F33*O165*yr5percent*(1+$K$15)^4)),0),0)=0,"",ROUND(IF(totalyrs>4,IF('Salary Detail'!$F$18="X",(IF(F33*(1+$K$15)^4> MAXSAL,(MAXSAL*O165),(F33*O165*yr5percent*(1+$K$15)^4))),(F33*O165*yr5percent*(1+$K$15)^4)),0),0)),"") -> 
C166: =IFERROR(IF(ROUND(IF(totalyrs>3,IF('Salary Detail'!$F$18="X",(IF(F34*(1+$K$15)^3> MAXSAL,(MAXSAL*G166),(F34*G166*yr4percent*(1+$K$15)^3))),(F34*G166*yr4percent*(1+$K$15)^3)),0),0)=0,"",ROUND(IF(totalyrs>3,IF('Salary Detail'!$F$18="X",(IF(F34*(1+$K$15)^3> MAXSAL,(MAXSAL*G166),(F34*G166*yr4percent*(1+$K$15)^3))),(F34*G166*yr4percent*(1+$K$15)^3)),0),0)),"") ->  | K166: =IFERROR(IF(ROUND(IF(totalyrs>4,IF('Salary Detail'!$F$18="X",(IF(F34*(1+$K$15)^4> MAXSAL,(MAXSAL*O166),(F34*O166*yr5percent*(1+$K$15)^4))),(F34*O166*yr5percent*(1+$K$15)^4)),0),0)=0,"",ROUND(IF(totalyrs>4,IF('Salary Detail'!$F$18="X",(IF(F34*(1+$K$15)^4> MAXSAL,(MAXSAL*O166),(F34*O166*yr5percent*(1+$K$15)^4))),(F34*O166*yr5percent*(1+$K$15)^4)),0),0)),"") -> 
C167: =IFERROR(IF(ROUND(IF(totalyrs>3,IF('Salary Detail'!$F$18="X",(IF(F35*(1+$K$15)^3> MAXSAL,(MAXSAL*G167),(F35*G167*yr4percent*(1+$K$15)^3))),(F35*G167*yr4percent*(1+$K$15)^3)),0),0)=0,"",ROUND(IF(totalyrs>3,IF('Salary Detail'!$F$18="X",(IF(F35*(1+$K$15)^3> MAXSAL,(MAXSAL*G167),(F35*G167*yr4percent*(1+$K$15)^3))),(F35*G167*yr4percent*(1+$K$15)^3)),0),0)),"") ->  | K167: =IFERROR(IF(ROUND(IF(totalyrs>4,IF('Salary Detail'!$F$18="X",(IF(F35*(1+$K$15)^4> MAXSAL,(MAXSAL*O167),(F35*O167*yr5percent*(1+$K$15)^4))),(F35*O167*yr5percent*(1+$K$15)^4)),0),0)=0,"",ROUND(IF(totalyrs>4,IF('Salary Detail'!$F$18="X",(IF(F35*(1+$K$15)^4> MAXSAL,(MAXSAL*O167),(F35*O167*yr5percent*(1+$K$15)^4))),(F35*O167*yr5percent*(1+$K$15)^4)),0),0)),"") -> 
C168: =IFERROR(IF(ROUND(IF(totalyrs>3,IF('Salary Detail'!$F$18="X",(IF(F36*(1+$K$15)^3> MAXSAL,(MAXSAL*G168),(F36*G168*yr4percent*(1+$K$15)^3))),(F36*G168*yr4percent*(1+$K$15)^3)),0),0)=0,"",ROUND(IF(totalyrs>3,IF('Salary Detail'!$F$18="X",(IF(F36*(1+$K$15)^3> MAXSAL,(MAXSAL*G168),(F36*G168*yr4percent*(1+$K$15)^3))),(F36*G168*yr4percent*(1+$K$15)^3)),0),0)),"") ->  | K168: =IFERROR(IF(ROUND(IF(totalyrs>4,IF('Salary Detail'!$F$18="X",(IF(F36*(1+$K$15)^4> MAXSAL,(MAXSAL*O168),(F36*O168*yr5percent*(1+$K$15)^4))),(F36*O168*yr5percent*(1+$K$15)^4)),0),0)=0,"",ROUND(IF(totalyrs>4,IF('Salary Detail'!$F$18="X",(IF(F36*(1+$K$15)^4> MAXSAL,(MAXSAL*O168),(F36*O168*yr5percent*(1+$K$15)^4))),(F36*O168*yr5percent*(1+$K$15)^4)),0),0)),"") -> 
C169: =IFERROR(IF(ROUND(IF(totalyrs>3,IF('Salary Detail'!$F$18="X",(IF(F37*(1+$K$15)^3> MAXSAL,(MAXSAL*G169),(F37*G169*yr4percent*(1+$K$15)^3))),(F37*G169*yr4percent*(1+$K$15)^3)),0),0)=0,"",ROUND(IF(totalyrs>3,IF('Salary Detail'!$F$18="X",(IF(F37*(1+$K$15)^3> MAXSAL,(MAXSAL*G169),(F37*G169*yr4percent*(1+$K$15)^3))),(F37*G169*yr4percent*(1+$K$15)^3)),0),0)),"") ->  | K169: =IFERROR(IF(ROUND(IF(totalyrs>4,IF('Salary Detail'!$F$18="X",(IF(F37*(1+$K$15)^4> MAXSAL,(MAXSAL*O169),(F37*O169*yr5percent*(1+$K$15)^4))),(F37*O169*yr5percent*(1+$K$15)^4)),0),0)=0,"",ROUND(IF(totalyrs>4,IF('Salary Detail'!$F$18="X",(IF(F37*(1+$K$15)^4> MAXSAL,(MAXSAL*O169),(F37*O169*yr5percent*(1+$K$15)^4))),(F37*O169*yr5percent*(1+$K$15)^4)),0),0)),"") -> 
C170: =IFERROR(IF(ROUND(IF(totalyrs>3,IF('Salary Detail'!$F$18="X",(IF(F38*(1+$K$15)^3> MAXSAL,(MAXSAL*G170),(F38*G170*yr4percent*(1+$K$15)^3))),(F38*G170*yr4percent*(1+$K$15)^3)),0),0)=0,"",ROUND(IF(totalyrs>3,IF('Salary Detail'!$F$18="X",(IF(F38*(1+$K$15)^3> MAXSAL,(MAXSAL*G170),(F38*G170*yr4percent*(1+$K$15)^3))),(F38*G170*yr4percent*(1+$K$15)^3)),0),0)),"") ->  | K170: =IFERROR(IF(ROUND(IF(totalyrs>4,IF('Salary Detail'!$F$18="X",(IF(F38*(1+$K$15)^4> MAXSAL,(MAXSAL*O170),(F38*O170*yr5percent*(1+$K$15)^4))),(F38*O170*yr5percent*(1+$K$15)^4)),0),0)=0,"",ROUND(IF(totalyrs>4,IF('Salary Detail'!$F$18="X",(IF(F38*(1+$K$15)^4> MAXSAL,(MAXSAL*O170),(F38*O170*yr5percent*(1+$K$15)^4))),(F38*O170*yr5percent*(1+$K$15)^4)),0),0)),"") -> 
C171: =IFERROR(IF(ROUND(IF(totalyrs>3,IF('Salary Detail'!$F$18="X",(IF(F39*(1+$K$15)^3> MAXSAL,(MAXSAL*G171),(F39*G171*yr4percent*(1+$K$15)^3))),(F39*G171*yr4percent*(1+$K$15)^3)),0),0)=0,"",ROUND(IF(totalyrs>3,IF('Salary Detail'!$F$18="X",(IF(F39*(1+$K$15)^3> MAXSAL,(MAXSAL*G171),(F39*G171*yr4percent*(1+$K$15)^3))),(F39*G171*yr4percent*(1+$K$15)^3)),0),0)),"") ->  | K171: =IFERROR(IF(ROUND(IF(totalyrs>4,IF('Salary Detail'!$F$18="X",(IF(F39*(1+$K$15)^4> MAXSAL,(MAXSAL*O171),(F39*O171*yr5percent*(1+$K$15)^4))),(F39*O171*yr5percent*(1+$K$15)^4)),0),0)=0,"",ROUND(IF(totalyrs>4,IF('Salary Detail'!$F$18="X",(IF(F39*(1+$K$15)^4> MAXSAL,(MAXSAL*O171),(F39*O171*yr5percent*(1+$K$15)^4))),(F39*O171*yr5percent*(1+$K$15)^4)),0),0)),"") -> 
C172: =IFERROR(IF(ROUND(IF(totalyrs>3,IF('Salary Detail'!$F$18="X",(IF(F40*(1+$K$15)^3> MAXSAL,(MAXSAL*G172),(F40*G172*yr4percent*(1+$K$15)^3))),(F40*G172*yr4percent*(1+$K$15)^3)),0),0)=0,"",ROUND(IF(totalyrs>3,IF('Salary Detail'!$F$18="X",(IF(F40*(1+$K$15)^3> MAXSAL,(MAXSAL*G172),(F40*G172*yr4percent*(1+$K$15)^3))),(F40*G172*yr4percent*(1+$K$15)^3)),0),0)),"") ->  | K172: =IFERROR(IF(ROUND(IF(totalyrs>4,IF('Salary Detail'!$F$18="X",(IF(F40*(1+$K$15)^4> MAXSAL,(MAXSAL*O172),(F40*O172*yr5percent*(1+$K$15)^4))),(F40*O172*yr5percent*(1+$K$15)^4)),0),0)=0,"",ROUND(IF(totalyrs>4,IF('Salary Detail'!$F$18="X",(IF(F40*(1+$K$15)^4> MAXSAL,(MAXSAL*O172),(F40*O172*yr5percent*(1+$K$15)^4))),(F40*O172*yr5percent*(1+$K$15)^4)),0),0)),"") -> 
C173: =IFERROR(IF(ROUND(IF(totalyrs>3,IF('Salary Detail'!$F$18="X",(IF(F41*(1+$K$15)^3> MAXSAL,(MAXSAL*G173),(F41*G173*yr4percent*(1+$K$15)^3))),(F41*G173*yr4percent*(1+$K$15)^3)),0),0)=0,"",ROUND(IF(totalyrs>3,IF('Salary Detail'!$F$18="X",(IF(F41*(1+$K$15)^3> MAXSAL,(MAXSAL*G173),(F41*G173*yr4percent*(1+$K$15)^3))),(F41*G173*yr4percent*(1+$K$15)^3)),0),0)),"") ->  | K173: =IFERROR(IF(ROUND(IF(totalyrs>4,IF('Salary Detail'!$F$18="X",(IF(F41*(1+$K$15)^4> MAXSAL,(MAXSAL*O173),(F41*O173*yr5percent*(1+$K$15)^4))),(F41*O173*yr5percent*(1+$K$15)^4)),0),0)=0,"",ROUND(IF(totalyrs>4,IF('Salary Detail'!$F$18="X",(IF(F41*(1+$K$15)^4> MAXSAL,(MAXSAL*O173),(F41*O173*yr5percent*(1+$K$15)^4))),(F41*O173*yr5percent*(1+$K$15)^4)),0),0)),"") -> 
C174: =IFERROR(IF(ROUND(IF(totalyrs>3,IF('Salary Detail'!$F$18="X",(IF(F42*(1+$K$15)^3> MAXSAL,(MAXSAL*G174),(F42*G174*yr4percent*(1+$K$15)^3))),(F42*G174*yr4percent*(1+$K$15)^3)),0),0)=0,"",ROUND(IF(totalyrs>3,IF('Salary Detail'!$F$18="X",(IF(F42*(1+$K$15)^3> MAXSAL,(MAXSAL*G174),(F42*G174*yr4percent*(1+$K$15)^3))),(F42*G174*yr4percent*(1+$K$15)^3)),0),0)),"") ->  | K174: =IFERROR(IF(ROUND(IF(totalyrs>4,IF('Salary Detail'!$F$18="X",(IF(F42*(1+$K$15)^4> MAXSAL,(MAXSAL*O174),(F42*O174*yr5percent*(1+$K$15)^4))),(F42*O174*yr5percent*(1+$K$15)^4)),0),0)=0,"",ROUND(IF(totalyrs>4,IF('Salary Detail'!$F$18="X",(IF(F42*(1+$K$15)^4> MAXSAL,(MAXSAL*O174),(F42*O174*yr5percent*(1+$K$15)^4))),(F42*O174*yr5percent*(1+$K$15)^4)),0),0)),"") -> 
C175: =IFERROR(IF(ROUND(IF(totalyrs>3,IF('Salary Detail'!$F$18="X",(IF(F43*(1+$K$15)^3> MAXSAL,(MAXSAL*G175),(F43*G175*yr4percent*(1+$K$15)^3))),(F43*G175*yr4percent*(1+$K$15)^3)),0),0)=0,"",ROUND(IF(totalyrs>3,IF('Salary Detail'!$F$18="X",(IF(F43*(1+$K$15)^3> MAXSAL,(MAXSAL*G175),(F43*G175*yr4percent*(1+$K$15)^3))),(F43*G175*yr4percent*(1+$K$15)^3)),0),0)),"") ->  | K175: =IFERROR(IF(ROUND(IF(totalyrs>4,IF('Salary Detail'!$F$18="X",(IF(F43*(1+$K$15)^4> MAXSAL,(MAXSAL*O175),(F43*O175*yr5percent*(1+$K$15)^4))),(F43*O175*yr5percent*(1+$K$15)^4)),0),0)=0,"",ROUND(IF(totalyrs>4,IF('Salary Detail'!$F$18="X",(IF(F43*(1+$K$15)^4> MAXSAL,(MAXSAL*O175),(F43*O175*yr5percent*(1+$K$15)^4))),(F43*O175*yr5percent*(1+$K$15)^4)),0),0)),"") -> 
C176: =IFERROR(IF(ROUND(IF(totalyrs>3,IF('Salary Detail'!$F$18="X",(IF(F44*(1+$K$15)^3> MAXSAL,(MAXSAL*G176),(F44*G176*yr4percent*(1+$K$15)^3))),(F44*G176*yr4percent*(1+$K$15)^3)),0),0)=0,"",ROUND(IF(totalyrs>3,IF('Salary Detail'!$F$18="X",(IF(F44*(1+$K$15)^3> MAXSAL,(MAXSAL*G176),(F44*G176*yr4percent*(1+$K$15)^3))),(F44*G176*yr4percent*(1+$K$15)^3)),0),0)),"") ->  | K176: =IFERROR(IF(ROUND(IF(totalyrs>4,IF('Salary Detail'!$F$18="X",(IF(F44*(1+$K$15)^4> MAXSAL,(MAXSAL*O176),(F44*O176*yr5percent*(1+$K$15)^4))),(F44*O176*yr5percent*(1+$K$15)^4)),0),0)=0,"",ROUND(IF(totalyrs>4,IF('Salary Detail'!$F$18="X",(IF(F44*(1+$K$15)^4> MAXSAL,(MAXSAL*O176),(F44*O176*yr5percent*(1+$K$15)^4))),(F44*O176*yr5percent*(1+$K$15)^4)),0),0)),"") -> 
C177: =IFERROR(IF(ROUND(IF(totalyrs>3,IF('Salary Detail'!$F$18="X",(IF(F45*(1+$K$15)^3> MAXSAL,(MAXSAL*G177),(F45*G177*yr4percent*(1+$K$15)^3))),(F45*G177*yr4percent*(1+$K$15)^3)),0),0)=0,"",ROUND(IF(totalyrs>3,IF('Salary Detail'!$F$18="X",(IF(F45*(1+$K$15)^3> MAXSAL,(MAXSAL*G177),(F45*G177*yr4percent*(1+$K$15)^3))),(F45*G177*yr4percent*(1+$K$15)^3)),0),0)),"") ->  | K177: =IFERROR(IF(ROUND(IF(totalyrs>4,IF('Salary Detail'!$F$18="X",(IF(F45*(1+$K$15)^4> MAXSAL,(MAXSAL*O177),(F45*O177*yr5percent*(1+$K$15)^4))),(F45*O177*yr5percent*(1+$K$15)^4)),0),0)=0,"",ROUND(IF(totalyrs>4,IF('Salary Detail'!$F$18="X",(IF(F45*(1+$K$15)^4> MAXSAL,(MAXSAL*O177),(F45*O177*yr5percent*(1+$K$15)^4))),(F45*O177*yr5percent*(1+$K$15)^4)),0),0)),"") -> 
C178: =IFERROR(IF(ROUND(IF(totalyrs>3,IF('Salary Detail'!$F$18="X",(IF(F46*(1+$K$15)^3> MAXSAL,(MAXSAL*G178),(F46*G178*yr4percent*(1+$K$15)^3))),(F46*G178*yr4percent*(1+$K$15)^3)),0),0)=0,"",ROUND(IF(totalyrs>3,IF('Salary Detail'!$F$18="X",(IF(F46*(1+$K$15)^3> MAXSAL,(MAXSAL*G178),(F46*G178*yr4percent*(1+$K$15)^3))),(F46*G178*yr4percent*(1+$K$15)^3)),0),0)),"") ->  | K178: =IFERROR(IF(ROUND(IF(totalyrs>4,IF('Salary Detail'!$F$18="X",(IF(F46*(1+$K$15)^4> MAXSAL,(MAXSAL*O178),(F46*O178*yr5percent*(1+$K$15)^4))),(F46*O178*yr5percent*(1+$K$15)^4)),0),0)=0,"",ROUND(IF(totalyrs>4,IF('Salary Detail'!$F$18="X",(IF(F46*(1+$K$15)^4> MAXSAL,(MAXSAL*O178),(F46*O178*yr5percent*(1+$K$15)^4))),(F46*O178*yr5percent*(1+$K$15)^4)),0),0)),"") -> 
C179: =IFERROR(IF(ROUND(IF(totalyrs>3,IF('Salary Detail'!$F$18="X",(IF(F47*(1+$K$15)^3> MAXSAL,(MAXSAL*G179),(F47*G179*yr4percent*(1+$K$15)^3))),(F47*G179*yr4percent*(1+$K$15)^3)),0),0)=0,"",ROUND(IF(totalyrs>3,IF('Salary Detail'!$F$18="X",(IF(F47*(1+$K$15)^3> MAXSAL,(MAXSAL*G179),(F47*G179*yr4percent*(1+$K$15)^3))),(F47*G179*yr4percent*(1+$K$15)^3)),0),0)),"") ->  | K179: =IFERROR(IF(ROUND(IF(totalyrs>4,IF('Salary Detail'!$F$18="X",(IF(F47*(1+$K$15)^4> MAXSAL,(MAXSAL*O179),(F47*O179*yr5percent*(1+$K$15)^4))),(F47*O179*yr5percent*(1+$K$15)^4)),0),0)=0,"",ROUND(IF(totalyrs>4,IF('Salary Detail'!$F$18="X",(IF(F47*(1+$K$15)^4> MAXSAL,(MAXSAL*O179),(F47*O179*yr5percent*(1+$K$15)^4))),(F47*O179*yr5percent*(1+$K$15)^4)),0),0)),"") -> 
C180: =IFERROR(IF(ROUND(IF(totalyrs>3,IF('Salary Detail'!$F$18="X",(IF(F48*(1+$K$15)^3> MAXSAL,(MAXSAL*G180),(F48*G180*yr4percent*(1+$K$15)^3))),(F48*G180*yr4percent*(1+$K$15)^3)),0),0)=0,"",ROUND(IF(totalyrs>3,IF('Salary Detail'!$F$18="X",(IF(F48*(1+$K$15)^3> MAXSAL,(MAXSAL*G180),(F48*G180*yr4percent*(1+$K$15)^3))),(F48*G180*yr4percent*(1+$K$15)^3)),0),0)),"") ->  | K180: =IFERROR(IF(ROUND(IF(totalyrs>4,IF('Salary Detail'!$F$18="X",(IF(F48*(1+$K$15)^4> MAXSAL,(MAXSAL*O180),(F48*O180*yr5percent*(1+$K$15)^4))),(F48*O180*yr5percent*(1+$K$15)^4)),0),0)=0,"",ROUND(IF(totalyrs>4,IF('Salary Detail'!$F$18="X",(IF(F48*(1+$K$15)^4> MAXSAL,(MAXSAL*O180),(F48*O180*yr5percent*(1+$K$15)^4))),(F48*O180*yr5percent*(1+$K$15)^4)),0),0)),"") -> 
C181: =IFERROR(IF(ROUND(IF(totalyrs>3,IF('Salary Detail'!$F$18="X",(IF(F49*(1+$K$15)^3> MAXSAL,(MAXSAL*G181),(F49*G181*yr4percent*(1+$K$15)^3))),(F49*G181*yr4percent*(1+$K$15)^3)),0),0)=0,"",ROUND(IF(totalyrs>3,IF('Salary Detail'!$F$18="X",(IF(F49*(1+$K$15)^3> MAXSAL,(MAXSAL*G181),(F49*G181*yr4percent*(1+$K$15)^3))),(F49*G181*yr4percent*(1+$K$15)^3)),0),0)),"") ->  | K181: =IFERROR(IF(ROUND(IF(totalyrs>4,IF('Salary Detail'!$F$18="X",(IF(F49*(1+$K$15)^4> MAXSAL,(MAXSAL*O181),(F49*O181*yr5percent*(1+$K$15)^4))),(F49*O181*yr5percent*(1+$K$15)^4)),0),0)=0,"",ROUND(IF(totalyrs>4,IF('Salary Detail'!$F$18="X",(IF(F49*(1+$K$15)^4> MAXSAL,(MAXSAL*O181),(F49*O181*yr5percent*(1+$K$15)^4))),(F49*O181*yr5percent*(1+$K$15)^4)),0),0)),"") -> 
C182: =IFERROR(IF(ROUND(IF(totalyrs>3,IF('Salary Detail'!$F$18="X",(IF(F50*(1+$K$15)^3> MAXSAL,(MAXSAL*G182),(F50*G182*yr4percent*(1+$K$15)^3))),(F50*G182*yr4percent*(1+$K$15)^3)),0),0)=0,"",ROUND(IF(totalyrs>3,IF('Salary Detail'!$F$18="X",(IF(F50*(1+$K$15)^3> MAXSAL,(MAXSAL*G182),(F50*G182*yr4percent*(1+$K$15)^3))),(F50*G182*yr4percent*(1+$K$15)^3)),0),0)),"") ->  | K182: =IFERROR(IF(ROUND(IF(totalyrs>4,IF('Salary Detail'!$F$18="X",(IF(F50*(1+$K$15)^4> MAXSAL,(MAXSAL*O182),(F50*O182*yr5percent*(1+$K$15)^4))),(F50*O182*yr5percent*(1+$K$15)^4)),0),0)=0,"",ROUND(IF(totalyrs>4,IF('Salary Detail'!$F$18="X",(IF(F50*(1+$K$15)^4> MAXSAL,(MAXSAL*O182),(F50*O182*yr5percent*(1+$K$15)^4))),(F50*O182*yr5percent*(1+$K$15)^4)),0),0)),"") -> 
C183: =IFERROR(IF(ROUND(IF(totalyrs>3,IF('Salary Detail'!$F$18="X",(IF(F51*(1+$K$15)^3> MAXSAL,(MAXSAL*G183),(F51*G183*yr4percent*(1+$K$15)^3))),(F51*G183*yr4percent*(1+$K$15)^3)),0),0)=0,"",ROUND(IF(totalyrs>3,IF('Salary Detail'!$F$18="X",(IF(F51*(1+$K$15)^3> MAXSAL,(MAXSAL*G183),(F51*G183*yr4percent*(1+$K$15)^3))),(F51*G183*yr4percent*(1+$K$15)^3)),0),0)),"") ->  | K183: =IFERROR(IF(ROUND(IF(totalyrs>4,IF('Salary Detail'!$F$18="X",(IF(F51*(1+$K$15)^4> MAXSAL,(MAXSAL*O183),(F51*O183*yr5percent*(1+$K$15)^4))),(F51*O183*yr5percent*(1+$K$15)^4)),0),0)=0,"",ROUND(IF(totalyrs>4,IF('Salary Detail'!$F$18="X",(IF(F51*(1+$K$15)^4> MAXSAL,(MAXSAL*O183),(F51*O183*yr5percent*(1+$K$15)^4))),(F51*O183*yr5percent*(1+$K$15)^4)),0),0)),"") -> 
C184: =IFERROR(IF(ROUND(IF(totalyrs>3,IF('Salary Detail'!$F$18="X",(IF(F52*(1+$K$15)^3> MAXSAL,(MAXSAL*G184),(F52*G184*yr4percent*(1+$K$15)^3))),(F52*G184*yr4percent*(1+$K$15)^3)),0),0)=0,"",ROUND(IF(totalyrs>3,IF('Salary Detail'!$F$18="X",(IF(F52*(1+$K$15)^3> MAXSAL,(MAXSAL*G184),(F52*G184*yr4percent*(1+$K$15)^3))),(F52*G184*yr4percent*(1+$K$15)^3)),0),0)),"") ->  | K184: =IFERROR(IF(ROUND(IF(totalyrs>4,IF('Salary Detail'!$F$18="X",(IF(F52*(1+$K$15)^4> MAXSAL,(MAXSAL*O184),(F52*O184*yr5percent*(1+$K$15)^4))),(F52*O184*yr5percent*(1+$K$15)^4)),0),0)=0,"",ROUND(IF(totalyrs>4,IF('Salary Detail'!$F$18="X",(IF(F52*(1+$K$15)^4> MAXSAL,(MAXSAL*O184),(F52*O184*yr5percent*(1+$K$15)^4))),(F52*O184*yr5percent*(1+$K$15)^4)),0),0)),"") -> 
C185: =IFERROR(IF(ROUND(IF(totalyrs>3,IF('Salary Detail'!$F$18="X",(IF(F53*(1+$K$15)^3> MAXSAL,(MAXSAL*G185),(F53*G185*yr4percent*(1+$K$15)^3))),(F53*G185*yr4percent*(1+$K$15)^3)),0),0)=0,"",ROUND(IF(totalyrs>3,IF('Salary Detail'!$F$18="X",(IF(F53*(1+$K$15)^3> MAXSAL,(MAXSAL*G185),(F53*G185*yr4percent*(1+$K$15)^3))),(F53*G185*yr4percent*(1+$K$15)^3)),0),0)),"") ->  | K185: =IFERROR(IF(ROUND(IF(totalyrs>4,IF('Salary Detail'!$F$18="X",(IF(F53*(1+$K$15)^4> MAXSAL,(MAXSAL*O185),(F53*O185*yr5percent*(1+$K$15)^4))),(F53*O185*yr5percent*(1+$K$15)^4)),0),0)=0,"",ROUND(IF(totalyrs>4,IF('Salary Detail'!$F$18="X",(IF(F53*(1+$K$15)^4> MAXSAL,(MAXSAL*O185),(F53*O185*yr5percent*(1+$K$15)^4))),(F53*O185*yr5percent*(1+$K$15)^4)),0),0)),"") -> 
C186: =IFERROR(IF(ROUND(IF(totalyrs>3,IF('Salary Detail'!$F$18="X",(IF(F54*(1+$K$15)^3> MAXSAL,(MAXSAL*G186),(F54*G186*yr4percent*(1+$K$15)^3))),(F54*G186*yr4percent*(1+$K$15)^3)),0),0)=0,"",ROUND(IF(totalyrs>3,IF('Salary Detail'!$F$18="X",(IF(F54*(1+$K$15)^3> MAXSAL,(MAXSAL*G186),(F54*G186*yr4percent*(1+$K$15)^3))),(F54*G186*yr4percent*(1+$K$15)^3)),0),0)),"") ->  | K186: =IFERROR(IF(ROUND(IF(totalyrs>4,IF('Salary Detail'!$F$18="X",(IF(F54*(1+$K$15)^4> MAXSAL,(MAXSAL*O186),(F54*O186*yr5percent*(1+$K$15)^4))),(F54*O186*yr5percent*(1+$K$15)^4)),0),0)=0,"",ROUND(IF(totalyrs>4,IF('Salary Detail'!$F$18="X",(IF(F54*(1+$K$15)^4> MAXSAL,(MAXSAL*O186),(F54*O186*yr5percent*(1+$K$15)^4))),(F54*O186*yr5percent*(1+$K$15)^4)),0),0)),"") -> 
C187: =IFERROR(IF(ROUND(IF(totalyrs>3,IF('Salary Detail'!$F$18="X",(IF(F55*(1+$K$15)^3> MAXSAL,(MAXSAL*G187),(F55*G187*yr4percent*(1+$K$15)^3))),(F55*G187*yr4percent*(1+$K$15)^3)),0),0)=0,"",ROUND(IF(totalyrs>3,IF('Salary Detail'!$F$18="X",(IF(F55*(1+$K$15)^3> MAXSAL,(MAXSAL*G187),(F55*G187*yr4percent*(1+$K$15)^3))),(F55*G187*yr4percent*(1+$K$15)^3)),0),0)),"") ->  | K187: =IFERROR(IF(ROUND(IF(totalyrs>4,IF('Salary Detail'!$F$18="X",(IF(F55*(1+$K$15)^4> MAXSAL,(MAXSAL*O187),(F55*O187*yr5percent*(1+$K$15)^4))),(F55*O187*yr5percent*(1+$K$15)^4)),0),0)=0,"",ROUND(IF(totalyrs>4,IF('Salary Detail'!$F$18="X",(IF(F55*(1+$K$15)^4> MAXSAL,(MAXSAL*O187),(F55*O187*yr5percent*(1+$K$15)^4))),(F55*O187*yr5percent*(1+$K$15)^4)),0),0)),"") -> 
C188: =IFERROR(IF(ROUND(IF(totalyrs>3,IF('Salary Detail'!$F$18="X",(IF(F56*(1+$K$15)^3> MAXSAL,(MAXSAL*G188),(F56*G188*yr4percent*(1+$K$15)^3))),(F56*G188*yr4percent*(1+$K$15)^3)),0),0)=0,"",ROUND(IF(totalyrs>3,IF('Salary Detail'!$F$18="X",(IF(F56*(1+$K$15)^3> MAXSAL,(MAXSAL*G188),(F56*G188*yr4percent*(1+$K$15)^3))),(F56*G188*yr4percent*(1+$K$15)^3)),0),0)),"") ->  | K188: =IFERROR(IF(ROUND(IF(totalyrs>4,IF('Salary Detail'!$F$18="X",(IF(F56*(1+$K$15)^4> MAXSAL,(MAXSAL*O188),(F56*O188*yr5percent*(1+$K$15)^4))),(F56*O188*yr5percent*(1+$K$15)^4)),0),0)=0,"",ROUND(IF(totalyrs>4,IF('Salary Detail'!$F$18="X",(IF(F56*(1+$K$15)^4> MAXSAL,(MAXSAL*O188),(F56*O188*yr5percent*(1+$K$15)^4))),(F56*O188*yr5percent*(1+$K$15)^4)),0),0)),"") -> 
C189: =IFERROR(IF(ROUND(IF(totalyrs>3,IF('Salary Detail'!$F$18="X",(IF(F57*(1+$K$15)^3> MAXSAL,(MAXSAL*G189),(F57*G189*yr4percent*(1+$K$15)^3))),(F57*G189*yr4percent*(1+$K$15)^3)),0),0)=0,"",ROUND(IF(totalyrs>3,IF('Salary Detail'!$F$18="X",(IF(F57*(1+$K$15)^3> MAXSAL,(MAXSAL*G189),(F57*G189*yr4percent*(1+$K$15)^3))),(F57*G189*yr4percent*(1+$K$15)^3)),0),0)),"") ->  | K189: =IFERROR(IF(ROUND(IF(totalyrs>4,IF('Salary Detail'!$F$18="X",(IF(F57*(1+$K$15)^4> MAXSAL,(MAXSAL*O189),(F57*O189*yr5percent*(1+$K$15)^4))),(F57*O189*yr5percent*(1+$K$15)^4)),0),0)=0,"",ROUND(IF(totalyrs>4,IF('Salary Detail'!$F$18="X",(IF(F57*(1+$K$15)^4> MAXSAL,(MAXSAL*O189),(F57*O189*yr5percent*(1+$K$15)^4))),(F57*O189*yr5percent*(1+$K$15)^4)),0),0)),"") -> 
C190: =IFERROR(IF(ROUND(IF(totalyrs>3,IF('Salary Detail'!$F$18="X",(IF(F58*(1+$K$15)^3> MAXSAL,(MAXSAL*G190),(F58*G190*yr4percent*(1+$K$15)^3))),(F58*G190*yr4percent*(1+$K$15)^3)),0),0)=0,"",ROUND(IF(totalyrs>3,IF('Salary Detail'!$F$18="X",(IF(F58*(1+$K$15)^3> MAXSAL,(MAXSAL*G190),(F58*G190*yr4percent*(1+$K$15)^3))),(F58*G190*yr4percent*(1+$K$15)^3)),0),0)),"") ->  | K190: =IFERROR(IF(ROUND(IF(totalyrs>4,IF('Salary Detail'!$F$18="X",(IF(F58*(1+$K$15)^4> MAXSAL,(MAXSAL*O190),(F58*O190*yr5percent*(1+$K$15)^4))),(F58*O190*yr5percent*(1+$K$15)^4)),0),0)=0,"",ROUND(IF(totalyrs>4,IF('Salary Detail'!$F$18="X",(IF(F58*(1+$K$15)^4> MAXSAL,(MAXSAL*O190),(F58*O190*yr5percent*(1+$K$15)^4))),(F58*O190*yr5percent*(1+$K$15)^4)),0),0)),"") -> 
C191: =IFERROR(IF(ROUND(IF(totalyrs>3,IF('Salary Detail'!$F$18="X",(IF(F59*(1+$K$15)^3> MAXSAL,(MAXSAL*G191),(F59*G191*yr4percent*(1+$K$15)^3))),(F59*G191*yr4percent*(1+$K$15)^3)),0),0)=0,"",ROUND(IF(totalyrs>3,IF('Salary Detail'!$F$18="X",(IF(F59*(1+$K$15)^3> MAXSAL,(MAXSAL*G191),(F59*G191*yr4percent*(1+$K$15)^3))),(F59*G191*yr4percent*(1+$K$15)^3)),0),0)),"") ->  | K191: =IFERROR(IF(ROUND(IF(totalyrs>4,IF('Salary Detail'!$F$18="X",(IF(F59*(1+$K$15)^4> MAXSAL,(MAXSAL*O191),(F59*O191*yr5percent*(1+$K$15)^4))),(F59*O191*yr5percent*(1+$K$15)^4)),0),0)=0,"",ROUND(IF(totalyrs>4,IF('Salary Detail'!$F$18="X",(IF(F59*(1+$K$15)^4> MAXSAL,(MAXSAL*O191),(F59*O191*yr5percent*(1+$K$15)^4))),(F59*O191*yr5percent*(1+$K$15)^4)),0),0)),"") -> 
C192: =IFERROR(IF(ROUND(IF(totalyrs>3,IF('Salary Detail'!$F$18="X",(IF(F60*(1+$K$15)^3> MAXSAL,(MAXSAL*G192),(F60*G192*yr4percent*(1+$K$15)^3))),(F60*G192*yr4percent*(1+$K$15)^3)),0),0)=0,"",ROUND(IF(totalyrs>3,IF('Salary Detail'!$F$18="X",(IF(F60*(1+$K$15)^3> MAXSAL,(MAXSAL*G192),(F60*G192*yr4percent*(1+$K$15)^3))),(F60*G192*yr4percent*(1+$K$15)^3)),0),0)),"") ->  | K192: =IFERROR(IF(ROUND(IF(totalyrs>4,IF('Salary Detail'!$F$18="X",(IF(F60*(1+$K$15)^4> MAXSAL,(MAXSAL*O192),(F60*O192*yr5percent*(1+$K$15)^4))),(F60*O192*yr5percent*(1+$K$15)^4)),0),0)=0,"",ROUND(IF(totalyrs>4,IF('Salary Detail'!$F$18="X",(IF(F60*(1+$K$15)^4> MAXSAL,(MAXSAL*O192),(F60*O192*yr5percent*(1+$K$15)^4))),(F60*O192*yr5percent*(1+$K$15)^4)),0),0)),"") -> 
C193: =IFERROR(IF(ROUND(IF(totalyrs>3,IF('Salary Detail'!$F$18="X",(IF(F61*(1+$K$15)^3> MAXSAL,(MAXSAL*G193),(F61*G193*yr4percent*(1+$K$15)^3))),(F61*G193*yr4percent*(1+$K$15)^3)),0),0)=0,"",ROUND(IF(totalyrs>3,IF('Salary Detail'!$F$18="X",(IF(F61*(1+$K$15)^3> MAXSAL,(MAXSAL*G193),(F61*G193*yr4percent*(1+$K$15)^3))),(F61*G193*yr4percent*(1+$K$15)^3)),0),0)),"") ->  | K193: =IFERROR(IF(ROUND(IF(totalyrs>4,IF('Salary Detail'!$F$18="X",(IF(F61*(1+$K$15)^4> MAXSAL,(MAXSAL*O193),(F61*O193*yr5percent*(1+$K$15)^4))),(F61*O193*yr5percent*(1+$K$15)^4)),0),0)=0,"",ROUND(IF(totalyrs>4,IF('Salary Detail'!$F$18="X",(IF(F61*(1+$K$15)^4> MAXSAL,(MAXSAL*O193),(F61*O193*yr5percent*(1+$K$15)^4))),(F61*O193*yr5percent*(1+$K$15)^4)),0),0)),"") -> 
C194: =IFERROR(IF(ROUND(IF(totalyrs>3,IF('Salary Detail'!$F$18="X",(IF(F62*(1+$K$15)^3> MAXSAL,(MAXSAL*G194),(F62*G194*yr4percent*(1+$K$15)^3))),(F62*G194*yr4percent*(1+$K$15)^3)),0),0)=0,"",ROUND(IF(totalyrs>3,IF('Salary Detail'!$F$18="X",(IF(F62*(1+$K$15)^3> MAXSAL,(MAXSAL*G194),(F62*G194*yr4percent*(1+$K$15)^3))),(F62*G194*yr4percent*(1+$K$15)^3)),0),0)),"") ->  | K194: =IFERROR(IF(ROUND(IF(totalyrs>4,IF('Salary Detail'!$F$18="X",(IF(F62*(1+$K$15)^4> MAXSAL,(MAXSAL*O194),(F62*O194*yr5percent*(1+$K$15)^4))),(F62*O194*yr5percent*(1+$K$15)^4)),0),0)=0,"",ROUND(IF(totalyrs>4,IF('Salary Detail'!$F$18="X",(IF(F62*(1+$K$15)^4> MAXSAL,(MAXSAL*O194),(F62*O194*yr5percent*(1+$K$15)^4))),(F62*O194*yr5percent*(1+$K$15)^4)),0),0)),"") -> 
A195: Totals | C195: =SUM(C155:C194) -> 0 | D195: =SUM(D155:D194) -> 0 | F195: =C195+D195 -> 0 | H195: Totals | K195: =SUM(K155:K194) -> 0 | L195: =SUM(L155:L194) -> 0 | N195: =K195+L195 -> 0
A216: UNIVERSITY HOSPITAL EMPLOYEES
A217: SALARY CALCULATION WORKSHEET (Page 4)
C219: Principal Investigator: | F219: =D5 -> 
C220: Department: | F220: =D6 -> 
C221: Project Title: | F221: =D7 -> 
C222: Funding Agency: | F222: =D8 -> 
A224: Employee's | B224: Adjusted | C224: Year 6 | G224: Level | J224: Adjusted | K224: Year 7 | O224: Level | P224: % of Yr 6 & 7
A225: Last | B225: UH | C225: Salaries | E225: Person | G225: of | J225: UH | K225: =C225 -> Salaries | M225: Person | O225: of | P225: =$P$80 -> Year or
A226: Name | B226: Base Salary | C226: Requested | D226: Benefits | E226: Mos. | F226: Totals | G226: Effort | H226: Name | J226: Base Salary | K226: =C226 -> Requested | L226: =D226 -> Benefits | M226: Mos. | N226: =F226 -> Totals | O226: Effort | P226: =$P$81 -> Portion of
A227: =IF(A23=0,"",A23) ->  | B227: =IFERROR(IF(ROUND(IF(totalyrs>5,((F23*(1+$K$15)^5)),0),0)=0,"",ROUND(IF(totalyrs>5,((F23*(1+$K$15)^5)),0),0)),"") ->  | C227: =IFERROR(IF(ROUND(IF(totalyrs>5,IF('Salary Detail'!$F$18="X",(IF(F23*(1+$K$15)^5> MAXSAL,(MAXSAL*G227),(F23*G227*yr6percent*(1+$K$15)^5))),(F23*G227*yr6percent*(1+$K$15)^5)),0),0)=0,"",ROUND(IF(totalyrs>5,IF('Salary Detail'!$F$18="X",(IF(F23*(1+$K$15)^5> MAXSAL,(MAXSAL*G227),(F23*G227*yr6percent*(1+$K$15)^5))),(F23*G227*yr6percent*(1+$K$15)^5)),0),0)),"") ->  | D227: =IFERROR(IF(C227*0.35=0,"",C227*0.35),"") ->  | E227: =IFERROR(IF(SUM(G227*12)=0,"",SUM(G227*12)),"") ->  | F227: =IFERROR(IF(C227+D227=0,"",C227+D227),"") ->  | G227: =IF(IF(totalyrs>5,(O155),0)=0,"",IF(totalyrs>5,(O155),0)) ->  | H227: =IF(A23=0,"",A23) ->  | J227: =IFERROR(IF(ROUND(IF(totalyrs>6,((F23*(1+$K$15)^6)),0),0)=0,"",ROUND(IF(totalyrs>6,((F23*(1+$K$15)^6)),0),0)),"") ->  | K227: =IFERROR(IF(ROUND(IF(totalyrs>6,IF('Salary Detail'!$F$18="X",(IF(F23*(1+$K$15)^6> MAXSAL,(MAXSAL*O227),(F23*O227*yr7percent*(1+$K$15)^6))),(F23*O227*yr7percent*(1+$K$15)^6)),0),0)=0,"",ROUND(IF(totalyrs>6,IF('Salary Detail'!$F$18="X",(IF(F23*(1+$K$15)^6> MAXSAL,(MAXSAL*O227),(F23*O227*yr7percent*(1+$K$15)^6))),(F23*O227*yr7percent*(1+$K$15)^6)),0),0)),"") ->  | L227: =IFERROR(IF(K227*0.35=0,"",K227*0.35),"") ->  | M227: =IFERROR(IF(SUM(O227*12)=0,"",SUM(O227*12)),"") ->  | N227: =IFERROR(IF(K227+L227=0,"",K227+L227),"") ->  | O227: =IF(IF(totalyrs>6,(G227),0)=0,"",IF(totalyrs>6,(G227),0)) ->  | P227: =$P$82 -> a Year
C228: =IFERROR(IF(ROUND(IF(totalyrs>5,IF('Salary Detail'!$F$18="X",(IF(F24*(1+$K$15)^5> MAXSAL,(MAXSAL*G228),(F24*G228*yr6percent*(1+$K$15)^5))),(F24*G228*yr6percent*(1+$K$15)^5)),0),0)=0,"",ROUND(IF(totalyrs>5,IF('Salary Detail'!$F$18="X",(IF(F24*(1+$K$15)^5> MAXSAL,(MAXSAL*G228),(F24*G228*yr6percent*(1+$K$15)^5))),(F24*G228*yr6percent*(1+$K$15)^5)),0),0)),"") ->  | D228: =IFERROR(IF(C228*0.35=0,"",C228*0.35),"") ->  | K228: =IFERROR(IF(ROUND(IF(totalyrs>6,IF('Salary Detail'!$F$18="X",(IF(F24*(1+$K$15)^6> MAXSAL,(MAXSAL*O228),(F24*O228*yr7percent*(1+$K$15)^6))),(F24*O228*yr7percent*(1+$K$15)^6)),0),0)=0,"",ROUND(IF(totalyrs>6,IF('Salary Detail'!$F$18="X",(IF(F24*(1+$K$15)^6> MAXSAL,(MAXSAL*O228),(F24*O228*yr7percent*(1+$K$15)^6))),(F24*O228*yr7percent*(1+$K$15)^6)),0),0)),"") ->  | L228: =IFERROR(IF(K228*0.35=0,"",K228*0.35),"") ->  | P228: =IF(AND(totalyrs>5,totalyrs<6),totalyrs-5,1) -> 1 | Q228: = Year 6
C229: =IFERROR(IF(ROUND(IF(totalyrs>5,IF('Salary Detail'!$F$18="X",(IF(F25*(1+$K$15)^5> MAXSAL,(MAXSAL*G229),(F25*G229*yr6percent*(1+$K$15)^5))),(F25*G229*yr6percent*(1+$K$15)^5)),0),0)=0,"",ROUND(IF(totalyrs>5,IF('Salary Detail'!$F$18="X",(IF(F25*(1+$K$15)^5> MAXSAL,(MAXSAL*G229),(F25*G229*yr6percent*(1+$K$15)^5))),(F25*G229*yr6percent*(1+$K$15)^5)),0),0)),"") ->  | K229: =IFERROR(IF(ROUND(IF(totalyrs>6,IF('Salary Detail'!$F$18="X",(IF(F25*(1+$K$15)^6> MAXSAL,(MAXSAL*O229),(F25*O229*yr7percent*(1+$K$15)^6))),(F25*O229*yr7percent*(1+$K$15)^6)),0),0)=0,"",ROUND(IF(totalyrs>6,IF('Salary Detail'!$F$18="X",(IF(F25*(1+$K$15)^6> MAXSAL,(MAXSAL*O229),(F25*O229*yr7percent*(1+$K$15)^6))),(F25*O229*yr7percent*(1+$K$15)^6)),0),0)),"") ->  | P229: =IF(AND(totalyrs>6,totalyrs<7),totalyrs-6,1) -> 1 | Q229: = Year 7
C230: =IFERROR(IF(ROUND(IF(totalyrs>5,IF('Salary Detail'!$F$18="X",(IF(F26*(1+$K$15)^5> MAXSAL,(MAXSAL*G230),(F26*G230*yr6percent*(1+$K$15)^5))),(F26*G230*yr6percent*(1+$K$15)^5)),0),0)=0,"",ROUND(IF(totalyrs>5,IF('Salary Detail'!$F$18="X",(IF(F26*(1+$K$15)^5> MAXSAL,(MAXSAL*G230),(F26*G230*yr6percent*(1+$K$15)^5))),(F26*G230*yr6percent*(1+$K$15)^5)),0),0)),"") ->  | K230: =IFERROR(IF(ROUND(IF(totalyrs>6,IF('Salary Detail'!$F$18="X",(IF(F26*(1+$K$15)^6> MAXSAL,(MAXSAL*O230),(F26*O230*yr7percent*(1+$K$15)^6))),(F26*O230*yr7percent*(1+$K$15)^6)),0),0)=0,"",ROUND(IF(totalyrs>6,IF('Salary Detail'!$F$18="X",(IF(F26*(1+$K$15)^6> MAXSAL,(MAXSAL*O230),(F26*O230*yr7percent*(1+$K$15)^6))),(F26*O230*yr7percent*(1+$K$15)^6)),0),0)),"") -> 
C231: =IFERROR(IF(ROUND(IF(totalyrs>5,IF('Salary Detail'!$F$18="X",(IF(F27*(1+$K$15)^5> MAXSAL,(MAXSAL*G231),(F27*G231*yr6percent*(1+$K$15)^5))),(F27*G231*yr6percent*(1+$K$15)^5)),0),0)=0,"",ROUND(IF(totalyrs>5,IF('Salary Detail'!$F$18="X",(IF(F27*(1+$K$15)^5> MAXSAL,(MAXSAL*G231),(F27*G231*yr6percent*(1+$K$15)^5))),(F27*G231*yr6percent*(1+$K$15)^5)),0),0)),"") ->  | K231: =IFERROR(IF(ROUND(IF(totalyrs>6,IF('Salary Detail'!$F$18="X",(IF(F27*(1+$K$15)^6> MAXSAL,(MAXSAL*O231),(F27*O231*yr7percent*(1+$K$15)^6))),(F27*O231*yr7percent*(1+$K$15)^6)),0),0)=0,"",ROUND(IF(totalyrs>6,IF('Salary Detail'!$F$18="X",(IF(F27*(1+$K$15)^6> MAXSAL,(MAXSAL*O231),(F27*O231*yr7percent*(1+$K$15)^6))),(F27*O231*yr7percent*(1+$K$15)^6)),0),0)),"") -> 
C232: =IFERROR(IF(ROUND(IF(totalyrs>5,IF('Salary Detail'!$F$18="X",(IF(F28*(1+$K$15)^5> MAXSAL,(MAXSAL*G232),(F28*G232*yr6percent*(1+$K$15)^5))),(F28*G232*yr6percent*(1+$K$15)^5)),0),0)=0,"",ROUND(IF(totalyrs>5,IF('Salary Detail'!$F$18="X",(IF(F28*(1+$K$15)^5> MAXSAL,(MAXSAL*G232),(F28*G232*yr6percent*(1+$K$15)^5))),(F28*G232*yr6percent*(1+$K$15)^5)),0),0)),"") ->  | K232: =IFERROR(IF(ROUND(IF(totalyrs>6,IF('Salary Detail'!$F$18="X",(IF(F28*(1+$K$15)^6> MAXSAL,(MAXSAL*O232),(F28*O232*yr7percent*(1+$K$15)^6))),(F28*O232*yr7percent*(1+$K$15)^6)),0),0)=0,"",ROUND(IF(totalyrs>6,IF('Salary Detail'!$F$18="X",(IF(F28*(1+$K$15)^6> MAXSAL,(MAXSAL*O232),(F28*O232*yr7percent*(1+$K$15)^6))),(F28*O232*yr7percent*(1+$K$15)^6)),0),0)),"") -> 
C233: =IFERROR(IF(ROUND(IF(totalyrs>5,IF('Salary Detail'!$F$18="X",(IF(F29*(1+$K$15)^5> MAXSAL,(MAXSAL*G233),(F29*G233*yr6percent*(1+$K$15)^5))),(F29*G233*yr6percent*(1+$K$15)^5)),0),0)=0,"",ROUND(IF(totalyrs>5,IF('Salary Detail'!$F$18="X",(IF(F29*(1+$K$15)^5> MAXSAL,(MAXSAL*G233),(F29*G233*yr6percent*(1+$K$15)^5))),(F29*G233*yr6percent*(1+$K$15)^5)),0),0)),"") ->  | K233: =IFERROR(IF(ROUND(IF(totalyrs>6,IF('Salary Detail'!$F$18="X",(IF(F29*(1+$K$15)^6> MAXSAL,(MAXSAL*O233),(F29*O233*yr7percent*(1+$K$15)^6))),(F29*O233*yr7percent*(1+$K$15)^6)),0),0)=0,"",ROUND(IF(totalyrs>6,IF('Salary Detail'!$F$18="X",(IF(F29*(1+$K$15)^6> MAXSAL,(MAXSAL*O233),(F29*O233*yr7percent*(1+$K$15)^6))),(F29*O233*yr7percent*(1+$K$15)^6)),0),0)),"") -> 
C234: =IFERROR(IF(ROUND(IF(totalyrs>5,IF('Salary Detail'!$F$18="X",(IF(F30*(1+$K$15)^5> MAXSAL,(MAXSAL*G234),(F30*G234*yr6percent*(1+$K$15)^5))),(F30*G234*yr6percent*(1+$K$15)^5)),0),0)=0,"",ROUND(IF(totalyrs>5,IF('Salary Detail'!$F$18="X",(IF(F30*(1+$K$15)^5> MAXSAL,(MAXSAL*G234),(F30*G234*yr6percent*(1+$K$15)^5))),(F30*G234*yr6percent*(1+$K$15)^5)),0),0)),"") ->  | K234: =IFERROR(IF(ROUND(IF(totalyrs>6,IF('Salary Detail'!$F$18="X",(IF(F30*(1+$K$15)^6> MAXSAL,(MAXSAL*O234),(F30*O234*yr7percent*(1+$K$15)^6))),(F30*O234*yr7percent*(1+$K$15)^6)),0),0)=0,"",ROUND(IF(totalyrs>6,IF('Salary Detail'!$F$18="X",(IF(F30*(1+$K$15)^6> MAXSAL,(MAXSAL*O234),(F30*O234*yr7percent*(1+$K$15)^6))),(F30*O234*yr7percent*(1+$K$15)^6)),0),0)),"") -> 
C235: =IFERROR(IF(ROUND(IF(totalyrs>5,IF('Salary Detail'!$F$18="X",(IF(F31*(1+$K$15)^5> MAXSAL,(MAXSAL*G235),(F31*G235*yr6percent*(1+$K$15)^5))),(F31*G235*yr6percent*(1+$K$15)^5)),0),0)=0,"",ROUND(IF(totalyrs>5,IF('Salary Detail'!$F$18="X",(IF(F31*(1+$K$15)^5> MAXSAL,(MAXSAL*G235),(F31*G235*yr6percent*(1+$K$15)^5))),(F31*G235*yr6percent*(1+$K$15)^5)),0),0)),"") ->  | K235: =IFERROR(IF(ROUND(IF(totalyrs>6,IF('Salary Detail'!$F$18="X",(IF(F31*(1+$K$15)^6> MAXSAL,(MAXSAL*O235),(F31*O235*yr7percent*(1+$K$15)^6))),(F31*O235*yr7percent*(1+$K$15)^6)),0),0)=0,"",ROUND(IF(totalyrs>6,IF('Salary Detail'!$F$18="X",(IF(F31*(1+$K$15)^6> MAXSAL,(MAXSAL*O235),(F31*O235*yr7percent*(1+$K$15)^6))),(F31*O235*yr7percent*(1+$K$15)^6)),0),0)),"") -> 
C236: =IFERROR(IF(ROUND(IF(totalyrs>5,IF('Salary Detail'!$F$18="X",(IF(F32*(1+$K$15)^5> MAXSAL,(MAXSAL*G236),(F32*G236*yr6percent*(1+$K$15)^5))),(F32*G236*yr6percent*(1+$K$15)^5)),0),0)=0,"",ROUND(IF(totalyrs>5,IF('Salary Detail'!$F$18="X",(IF(F32*(1+$K$15)^5> MAXSAL,(MAXSAL*G236),(F32*G236*yr6percent*(1+$K$15)^5))),(F32*G236*yr6percent*(1+$K$15)^5)),0),0)),"") ->  | K236: =IFERROR(IF(ROUND(IF(totalyrs>6,IF('Salary Detail'!$F$18="X",(IF(F32*(1+$K$15)^6> MAXSAL,(MAXSAL*O236),(F32*O236*yr7percent*(1+$K$15)^6))),(F32*O236*yr7percent*(1+$K$15)^6)),0),0)=0,"",ROUND(IF(totalyrs>6,IF('Salary Detail'!$F$18="X",(IF(F32*(1+$K$15)^6> MAXSAL,(MAXSAL*O236),(F32*O236*yr7percent*(1+$K$15)^6))),(F32*O236*yr7percent*(1+$K$15)^6)),0),0)),"") -> 
C237: =IFERROR(IF(ROUND(IF(totalyrs>5,IF('Salary Detail'!$F$18="X",(IF(F33*(1+$K$15)^5> MAXSAL,(MAXSAL*G237),(F33*G237*yr6percent*(1+$K$15)^5))),(F33*G237*yr6percent*(1+$K$15)^5)),0),0)=0,"",ROUND(IF(totalyrs>5,IF('Salary Detail'!$F$18="X",(IF(F33*(1+$K$15)^5> MAXSAL,(MAXSAL*G237),(F33*G237*yr6percent*(1+$K$15)^5))),(F33*G237*yr6percent*(1+$K$15)^5)),0),0)),"") ->  | K237: =IFERROR(IF(ROUND(IF(totalyrs>6,IF('Salary Detail'!$F$18="X",(IF(F33*(1+$K$15)^6> MAXSAL,(MAXSAL*O237),(F33*O237*yr7percent*(1+$K$15)^6))),(F33*O237*yr7percent*(1+$K$15)^6)),0),0)=0,"",ROUND(IF(totalyrs>6,IF('Salary Detail'!$F$18="X",(IF(F33*(1+$K$15)^6> MAXSAL,(MAXSAL*O237),(F33*O237*yr7percent*(1+$K$15)^6))),(F33*O237*yr7percent*(1+$K$15)^6)),0),0)),"") -> 
C238: =IFERROR(IF(ROUND(IF(totalyrs>5,IF('Salary Detail'!$F$18="X",(IF(F34*(1+$K$15)^5> MAXSAL,(MAXSAL*G238),(F34*G238*yr6percent*(1+$K$15)^5))),(F34*G238*yr6percent*(1+$K$15)^5)),0),0)=0,"",ROUND(IF(totalyrs>5,IF('Salary Detail'!$F$18="X",(IF(F34*(1+$K$15)^5> MAXSAL,(MAXSAL*G238),(F34*G238*yr6percent*(1+$K$15)^5))),(F34*G238*yr6percent*(1+$K$15)^5)),0),0)),"") ->  | K238: =IFERROR(IF(ROUND(IF(totalyrs>6,IF('Salary Detail'!$F$18="X",(IF(F34*(1+$K$15)^6> MAXSAL,(MAXSAL*O238),(F34*O238*yr7percent*(1+$K$15)^6))),(F34*O238*yr7percent*(1+$K$15)^6)),0),0)=0,"",ROUND(IF(totalyrs>6,IF('Salary Detail'!$F$18="X",(IF(F34*(1+$K$15)^6> MAXSAL,(MAXSAL*O238),(F34*O238*yr7percent*(1+$K$15)^6))),(F34*O238*yr7percent*(1+$K$15)^6)),0),0)),"") -> 
C239: =IFERROR(IF(ROUND(IF(totalyrs>5,IF('Salary Detail'!$F$18="X",(IF(F35*(1+$K$15)^5> MAXSAL,(MAXSAL*G239),(F35*G239*yr6percent*(1+$K$15)^5))),(F35*G239*yr6percent*(1+$K$15)^5)),0),0)=0,"",ROUND(IF(totalyrs>5,IF('Salary Detail'!$F$18="X",(IF(F35*(1+$K$15)^5> MAXSAL,(MAXSAL*G239),(F35*G239*yr6percent*(1+$K$15)^5))),(F35*G239*yr6percent*(1+$K$15)^5)),0),0)),"") ->  | K239: =IFERROR(IF(ROUND(IF(totalyrs>6,IF('Salary Detail'!$F$18="X",(IF(F35*(1+$K$15)^6> MAXSAL,(MAXSAL*O239),(F35*O239*yr7percent*(1+$K$15)^6))),(F35*O239*yr7percent*(1+$K$15)^6)),0),0)=0,"",ROUND(IF(totalyrs>6,IF('Salary Detail'!$F$18="X",(IF(F35*(1+$K$15)^6> MAXSAL,(MAXSAL*O239),(F35*O239*yr7percent*(1+$K$15)^6))),(F35*O239*yr7percent*(1+$K$15)^6)),0),0)),"") -> 
C240: =IFERROR(IF(ROUND(IF(totalyrs>5,IF('Salary Detail'!$F$18="X",(IF(F36*(1+$K$15)^5> MAXSAL,(MAXSAL*G240),(F36*G240*yr6percent*(1+$K$15)^5))),(F36*G240*yr6percent*(1+$K$15)^5)),0),0)=0,"",ROUND(IF(totalyrs>5,IF('Salary Detail'!$F$18="X",(IF(F36*(1+$K$15)^5> MAXSAL,(MAXSAL*G240),(F36*G240*yr6percent*(1+$K$15)^5))),(F36*G240*yr6percent*(1+$K$15)^5)),0),0)),"") ->  | K240: =IFERROR(IF(ROUND(IF(totalyrs>6,IF('Salary Detail'!$F$18="X",(IF(F36*(1+$K$15)^6> MAXSAL,(MAXSAL*O240),(F36*O240*yr7percent*(1+$K$15)^6))),(F36*O240*yr7percent*(1+$K$15)^6)),0),0)=0,"",ROUND(IF(totalyrs>6,IF('Salary Detail'!$F$18="X",(IF(F36*(1+$K$15)^6> MAXSAL,(MAXSAL*O240),(F36*O240*yr7percent*(1+$K$15)^6))),(F36*O240*yr7percent*(1+$K$15)^6)),0),0)),"") -> 
C241: =IFERROR(IF(ROUND(IF(totalyrs>5,IF('Salary Detail'!$F$18="X",(IF(F37*(1+$K$15)^5> MAXSAL,(MAXSAL*G241),(F37*G241*yr6percent*(1+$K$15)^5))),(F37*G241*yr6percent*(1+$K$15)^5)),0),0)=0,"",ROUND(IF(totalyrs>5,IF('Salary Detail'!$F$18="X",(IF(F37*(1+$K$15)^5> MAXSAL,(MAXSAL*G241),(F37*G241*yr6percent*(1+$K$15)^5))),(F37*G241*yr6percent*(1+$K$15)^5)),0),0)),"") ->  | K241: =IFERROR(IF(ROUND(IF(totalyrs>6,IF('Salary Detail'!$F$18="X",(IF(F37*(1+$K$15)^6> MAXSAL,(MAXSAL*O241),(F37*O241*yr7percent*(1+$K$15)^6))),(F37*O241*yr7percent*(1+$K$15)^6)),0),0)=0,"",ROUND(IF(totalyrs>6,IF('Salary Detail'!$F$18="X",(IF(F37*(1+$K$15)^6> MAXSAL,(MAXSAL*O241),(F37*O241*yr7percent*(1+$K$15)^6))),(F37*O241*yr7percent*(1+$K$15)^6)),0),0)),"") -> 
C242: =IFERROR(IF(ROUND(IF(totalyrs>5,IF('Salary Detail'!$F$18="X",(IF(F38*(1+$K$15)^5> MAXSAL,(MAXSAL*G242),(F38*G242*yr6percent*(1+$K$15)^5))),(F38*G242*yr6percent*(1+$K$15)^5)),0),0)=0,"",ROUND(IF(totalyrs>5,IF('Salary Detail'!$F$18="X",(IF(F38*(1+$K$15)^5> MAXSAL,(MAXSAL*G242),(F38*G242*yr6percent*(1+$K$15)^5))),(F38*G242*yr6percent*(1+$K$15)^5)),0),0)),"") ->  | K242: =IFERROR(IF(ROUND(IF(totalyrs>6,IF('Salary Detail'!$F$18="X",(IF(F38*(1+$K$15)^6> MAXSAL,(MAXSAL*O242),(F38*O242*yr7percent*(1+$K$15)^6))),(F38*O242*yr7percent*(1+$K$15)^6)),0),0)=0,"",ROUND(IF(totalyrs>6,IF('Salary Detail'!$F$18="X",(IF(F38*(1+$K$15)^6> MAXSAL,(MAXSAL*O242),(F38*O242*yr7percent*(1+$K$15)^6))),(F38*O242*yr7percent*(1+$K$15)^6)),0),0)),"") -> 
C243: =IFERROR(IF(ROUND(IF(totalyrs>5,IF('Salary Detail'!$F$18="X",(IF(F39*(1+$K$15)^5> MAXSAL,(MAXSAL*G243),(F39*G243*yr6percent*(1+$K$15)^5))),(F39*G243*yr6percent*(1+$K$15)^5)),0),0)=0,"",ROUND(IF(totalyrs>5,IF('Salary Detail'!$F$18="X",(IF(F39*(1+$K$15)^5> MAXSAL,(MAXSAL*G243),(F39*G243*yr6percent*(1+$K$15)^5))),(F39*G243*yr6percent*(1+$K$15)^5)),0),0)),"") ->  | K243: =IFERROR(IF(ROUND(IF(totalyrs>6,IF('Salary Detail'!$F$18="X",(IF(F39*(1+$K$15)^6> MAXSAL,(MAXSAL*O243),(F39*O243*yr7percent*(1+$K$15)^6))),(F39*O243*yr7percent*(1+$K$15)^6)),0),0)=0,"",ROUND(IF(totalyrs>6,IF('Salary Detail'!$F$18="X",(IF(F39*(1+$K$15)^6> MAXSAL,(MAXSAL*O243),(F39*O243*yr7percent*(1+$K$15)^6))),(F39*O243*yr7percent*(1+$K$15)^6)),0),0)),"") -> 
C244: =IFERROR(IF(ROUND(IF(totalyrs>5,IF('Salary Detail'!$F$18="X",(IF(F40*(1+$K$15)^5> MAXSAL,(MAXSAL*G244),(F40*G244*yr6percent*(1+$K$15)^5))),(F40*G244*yr6percent*(1+$K$15)^5)),0),0)=0,"",ROUND(IF(totalyrs>5,IF('Salary Detail'!$F$18="X",(IF(F40*(1+$K$15)^5> MAXSAL,(MAXSAL*G244),(F40*G244*yr6percent*(1+$K$15)^5))),(F40*G244*yr6percent*(1+$K$15)^5)),0),0)),"") ->  | K244: =IFERROR(IF(ROUND(IF(totalyrs>6,IF('Salary Detail'!$F$18="X",(IF(F40*(1+$K$15)^6> MAXSAL,(MAXSAL*O244),(F40*O244*yr7percent*(1+$K$15)^6))),(F40*O244*yr7percent*(1+$K$15)^6)),0),0)=0,"",ROUND(IF(totalyrs>6,IF('Salary Detail'!$F$18="X",(IF(F40*(1+$K$15)^6> MAXSAL,(MAXSAL*O244),(F40*O244*yr7percent*(1+$K$15)^6))),(F40*O244*yr7percent*(1+$K$15)^6)),0),0)),"") -> 
C245: =IFERROR(IF(ROUND(IF(totalyrs>5,IF('Salary Detail'!$F$18="X",(IF(F41*(1+$K$15)^5> MAXSAL,(MAXSAL*G245),(F41*G245*yr6percent*(1+$K$15)^5))),(F41*G245*yr6percent*(1+$K$15)^5)),0),0)=0,"",ROUND(IF(totalyrs>5,IF('Salary Detail'!$F$18="X",(IF(F41*(1+$K$15)^5> MAXSAL,(MAXSAL*G245),(F41*G245*yr6percent*(1+$K$15)^5))),(F41*G245*yr6percent*(1+$K$15)^5)),0),0)),"") ->  | K245: =IFERROR(IF(ROUND(IF(totalyrs>6,IF('Salary Detail'!$F$18="X",(IF(F41*(1+$K$15)^6> MAXSAL,(MAXSAL*O245),(F41*O245*yr7percent*(1+$K$15)^6))),(F41*O245*yr7percent*(1+$K$15)^6)),0),0)=0,"",ROUND(IF(totalyrs>6,IF('Salary Detail'!$F$18="X",(IF(F41*(1+$K$15)^6> MAXSAL,(MAXSAL*O245),(F41*O245*yr7percent*(1+$K$15)^6))),(F41*O245*yr7percent*(1+$K$15)^6)),0),0)),"") -> 
C246: =IFERROR(IF(ROUND(IF(totalyrs>5,IF('Salary Detail'!$F$18="X",(IF(F42*(1+$K$15)^5> MAXSAL,(MAXSAL*G246),(F42*G246*yr6percent*(1+$K$15)^5))),(F42*G246*yr6percent*(1+$K$15)^5)),0),0)=0,"",ROUND(IF(totalyrs>5,IF('Salary Detail'!$F$18="X",(IF(F42*(1+$K$15)^5> MAXSAL,(MAXSAL*G246),(F42*G246*yr6percent*(1+$K$15)^5))),(F42*G246*yr6percent*(1+$K$15)^5)),0),0)),"") ->  | K246: =IFERROR(IF(ROUND(IF(totalyrs>6,IF('Salary Detail'!$F$18="X",(IF(F42*(1+$K$15)^6> MAXSAL,(MAXSAL*O246),(F42*O246*yr7percent*(1+$K$15)^6))),(F42*O246*yr7percent*(1+$K$15)^6)),0),0)=0,"",ROUND(IF(totalyrs>6,IF('Salary Detail'!$F$18="X",(IF(F42*(1+$K$15)^6> MAXSAL,(MAXSAL*O246),(F42*O246*yr7percent*(1+$K$15)^6))),(F42*O246*yr7percent*(1+$K$15)^6)),0),0)),"") -> 
C247: =IFERROR(IF(ROUND(IF(totalyrs>5,IF('Salary Detail'!$F$18="X",(IF(F43*(1+$K$15)^5> MAXSAL,(MAXSAL*G247),(F43*G247*yr6percent*(1+$K$15)^5))),(F43*G247*yr6percent*(1+$K$15)^5)),0),0)=0,"",ROUND(IF(totalyrs>5,IF('Salary Detail'!$F$18="X",(IF(F43*(1+$K$15)^5> MAXSAL,(MAXSAL*G247),(F43*G247*yr6percent*(1+$K$15)^5))),(F43*G247*yr6percent*(1+$K$15)^5)),0),0)),"") ->  | K247: =IFERROR(IF(ROUND(IF(totalyrs>6,IF('Salary Detail'!$F$18="X",(IF(F43*(1+$K$15)^6> MAXSAL,(MAXSAL*O247),(F43*O247*yr7percent*(1+$K$15)^6))),(F43*O247*yr7percent*(1+$K$15)^6)),0),0)=0,"",ROUND(IF(totalyrs>6,IF('Salary Detail'!$F$18="X",(IF(F43*(1+$K$15)^6> MAXSAL,(MAXSAL*O247),(F43*O247*yr7percent*(1+$K$15)^6))),(F43*O247*yr7percent*(1+$K$15)^6)),0),0)),"") -> 
C248: =IFERROR(IF(ROUND(IF(totalyrs>5,IF('Salary Detail'!$F$18="X",(IF(F44*(1+$K$15)^5> MAXSAL,(MAXSAL*G248),(F44*G248*yr6percent*(1+$K$15)^5))),(F44*G248*yr6percent*(1+$K$15)^5)),0),0)=0,"",ROUND(IF(totalyrs>5,IF('Salary Detail'!$F$18="X",(IF(F44*(1+$K$15)^5> MAXSAL,(MAXSAL*G248),(F44*G248*yr6percent*(1+$K$15)^5))),(F44*G248*yr6percent*(1+$K$15)^5)),0),0)),"") ->  | K248: =IFERROR(IF(ROUND(IF(totalyrs>6,IF('Salary Detail'!$F$18="X",(IF(F44*(1+$K$15)^6> MAXSAL,(MAXSAL*O248),(F44*O248*yr7percent*(1+$K$15)^6))),(F44*O248*yr7percent*(1+$K$15)^6)),0),0)=0,"",ROUND(IF(totalyrs>6,IF('Salary Detail'!$F$18="X",(IF(F44*(1+$K$15)^6> MAXSAL,(MAXSAL*O248),(F44*O248*yr7percent*(1+$K$15)^6))),(F44*O248*yr7percent*(1+$K$15)^6)),0),0)),"") -> 
C249: =IFERROR(IF(ROUND(IF(totalyrs>5,IF('Salary Detail'!$F$18="X",(IF(F45*(1+$K$15)^5> MAXSAL,(MAXSAL*G249),(F45*G249*yr6percent*(1+$K$15)^5))),(F45*G249*yr6percent*(1+$K$15)^5)),0),0)=0,"",ROUND(IF(totalyrs>5,IF('Salary Detail'!$F$18="X",(IF(F45*(1+$K$15)^5> MAXSAL,(MAXSAL*G249),(F45*G249*yr6percent*(1+$K$15)^5))),(F45*G249*yr6percent*(1+$K$15)^5)),0),0)),"") ->  | K249: =IFERROR(IF(ROUND(IF(totalyrs>6,IF('Salary Detail'!$F$18="X",(IF(F45*(1+$K$15)^6> MAXSAL,(MAXSAL*O249),(F45*O249*yr7percent*(1+$K$15)^6))),(F45*O249*yr7percent*(1+$K$15)^6)),0),0)=0,"",ROUND(IF(totalyrs>6,IF('Salary Detail'!$F$18="X",(IF(F45*(1+$K$15)^6> MAXSAL,(MAXSAL*O249),(F45*O249*yr7percent*(1+$K$15)^6))),(F45*O249*yr7percent*(1+$K$15)^6)),0),0)),"") -> 
C250: =IFERROR(IF(ROUND(IF(totalyrs>5,IF('Salary Detail'!$F$18="X",(IF(F46*(1+$K$15)^5> MAXSAL,(MAXSAL*G250),(F46*G250*yr6percent*(1+$K$15)^5))),(F46*G250*yr6percent*(1+$K$15)^5)),0),0)=0,"",ROUND(IF(totalyrs>5,IF('Salary Detail'!$F$18="X",(IF(F46*(1+$K$15)^5> MAXSAL,(MAXSAL*G250),(F46*G250*yr6percent*(1+$K$15)^5))),(F46*G250*yr6percent*(1+$K$15)^5)),0),0)),"") ->  | K250: =IFERROR(IF(ROUND(IF(totalyrs>6,IF('Salary Detail'!$F$18="X",(IF(F46*(1+$K$15)^6> MAXSAL,(MAXSAL*O250),(F46*O250*yr7percent*(1+$K$15)^6))),(F46*O250*yr7percent*(1+$K$15)^6)),0),0)=0,"",ROUND(IF(totalyrs>6,IF('Salary Detail'!$F$18="X",(IF(F46*(1+$K$15)^6> MAXSAL,(MAXSAL*O250),(F46*O250*yr7percent*(1+$K$15)^6))),(F46*O250*yr7percent*(1+$K$15)^6)),0),0)),"") -> 
C251: =IFERROR(IF(ROUND(IF(totalyrs>5,IF('Salary Detail'!$F$18="X",(IF(F47*(1+$K$15)^5> MAXSAL,(MAXSAL*G251),(F47*G251*yr6percent*(1+$K$15)^5))),(F47*G251*yr6percent*(1+$K$15)^5)),0),0)=0,"",ROUND(IF(totalyrs>5,IF('Salary Detail'!$F$18="X",(IF(F47*(1+$K$15)^5> MAXSAL,(MAXSAL*G251),(F47*G251*yr6percent*(1+$K$15)^5))),(F47*G251*yr6percent*(1+$K$15)^5)),0),0)),"") ->  | K251: =IFERROR(IF(ROUND(IF(totalyrs>6,IF('Salary Detail'!$F$18="X",(IF(F47*(1+$K$15)^6> MAXSAL,(MAXSAL*O251),(F47*O251*yr7percent*(1+$K$15)^6))),(F47*O251*yr7percent*(1+$K$15)^6)),0),0)=0,"",ROUND(IF(totalyrs>6,IF('Salary Detail'!$F$18="X",(IF(F47*(1+$K$15)^6> MAXSAL,(MAXSAL*O251),(F47*O251*yr7percent*(1+$K$15)^6))),(F47*O251*yr7percent*(1+$K$15)^6)),0),0)),"") -> 
C252: =IFERROR(IF(ROUND(IF(totalyrs>5,IF('Salary Detail'!$F$18="X",(IF(F48*(1+$K$15)^5> MAXSAL,(MAXSAL*G252),(F48*G252*yr6percent*(1+$K$15)^5))),(F48*G252*yr6percent*(1+$K$15)^5)),0),0)=0,"",ROUND(IF(totalyrs>5,IF('Salary Detail'!$F$18="X",(IF(F48*(1+$K$15)^5> MAXSAL,(MAXSAL*G252),(F48*G252*yr6percent*(1+$K$15)^5))),(F48*G252*yr6percent*(1+$K$15)^5)),0),0)),"") ->  | K252: =IFERROR(IF(ROUND(IF(totalyrs>6,IF('Salary Detail'!$F$18="X",(IF(F48*(1+$K$15)^6> MAXSAL,(MAXSAL*O252),(F48*O252*yr7percent*(1+$K$15)^6))),(F48*O252*yr7percent*(1+$K$15)^6)),0),0)=0,"",ROUND(IF(totalyrs>6,IF('Salary Detail'!$F$18="X",(IF(F48*(1+$K$15)^6> MAXSAL,(MAXSAL*O252),(F48*O252*yr7percent*(1+$K$15)^6))),(F48*O252*yr7percent*(1+$K$15)^6)),0),0)),"") -> 
C253: =IFERROR(IF(ROUND(IF(totalyrs>5,IF('Salary Detail'!$F$18="X",(IF(F49*(1+$K$15)^5> MAXSAL,(MAXSAL*G253),(F49*G253*yr6percent*(1+$K$15)^5))),(F49*G253*yr6percent*(1+$K$15)^5)),0),0)=0,"",ROUND(IF(totalyrs>5,IF('Salary Detail'!$F$18="X",(IF(F49*(1+$K$15)^5> MAXSAL,(MAXSAL*G253),(F49*G253*yr6percent*(1+$K$15)^5))),(F49*G253*yr6percent*(1+$K$15)^5)),0),0)),"") ->  | K253: =IFERROR(IF(ROUND(IF(totalyrs>6,IF('Salary Detail'!$F$18="X",(IF(F49*(1+$K$15)^6> MAXSAL,(MAXSAL*O253),(F49*O253*yr7percent*(1+$K$15)^6))),(F49*O253*yr7percent*(1+$K$15)^6)),0),0)=0,"",ROUND(IF(totalyrs>6,IF('Salary Detail'!$F$18="X",(IF(F49*(1+$K$15)^6> MAXSAL,(MAXSAL*O253),(F49*O253*yr7percent*(1+$K$15)^6))),(F49*O253*yr7percent*(1+$K$15)^6)),0),0)),"") -> 
C254: =IFERROR(IF(ROUND(IF(totalyrs>5,IF('Salary Detail'!$F$18="X",(IF(F50*(1+$K$15)^5> MAXSAL,(MAXSAL*G254),(F50*G254*yr6percent*(1+$K$15)^5))),(F50*G254*yr6percent*(1+$K$15)^5)),0),0)=0,"",ROUND(IF(totalyrs>5,IF('Salary Detail'!$F$18="X",(IF(F50*(1+$K$15)^5> MAXSAL,(MAXSAL*G254),(F50*G254*yr6percent*(1+$K$15)^5))),(F50*G254*yr6percent*(1+$K$15)^5)),0),0)),"") ->  | K254: =IFERROR(IF(ROUND(IF(totalyrs>6,IF('Salary Detail'!$F$18="X",(IF(F50*(1+$K$15)^6> MAXSAL,(MAXSAL*O254),(F50*O254*yr7percent*(1+$K$15)^6))),(F50*O254*yr7percent*(1+$K$15)^6)),0),0)=0,"",ROUND(IF(totalyrs>6,IF('Salary Detail'!$F$18="X",(IF(F50*(1+$K$15)^6> MAXSAL,(MAXSAL*O254),(F50*O254*yr7percent*(1+$K$15)^6))),(F50*O254*yr7percent*(1+$K$15)^6)),0),0)),"") -> 
... 139 more rows

Sheet Subcontracts
H1: UNM HEALTH SCIENCES CENTER
A2: =+'Salary Detail'!A3 -> Revised 6/15/2022 | H2: SUBAWARDS WORKSHEET
D4: Principal Investigator: | E4: ='Salary Detail'!E5 -> 0
D5: Department: | E5: ='Salary Detail'!E6 -> 0
D6: Project Title: | E6: ='Salary Detail'!E7 -> 0
D7: Funding Agency: | E7: ='Salary Detail'!E8 -> 0
D8: Number of budget periods: | E8: =ROUNDUP(totalyrs,0) -> 1
D9: F&A Modifier: | E9: ='Budget Summary'!M37 -> 25000 | F9: (first of EACH subaward)
P10: The range names for the calculations below follow this logic:
P12: A_TWOSUM = Sum of first two years for subcontract A.
D13: Subaward Budgets by Year
C14: Proposed Subawardee | D14: 1 | E14: 2 | F14: 3 | G14: 4 | H14: 5 | I14: 6 | J14: 7 | K14: 8 | L14: 9 | M14: 10 | N14: Totals | O14: Sum of 1 year | P14: Sum of 2 yrs | Q14: Sum of 3 yrs | R14: Sum of 4 yrs | S14: Sum of 5 yrs | T14: Sum of 6 yrs | U14: Sum of 7 yrs | V14: Sum of 8 yrs | W14: Sum of 9 yrs | X14: Sum of 10 yrs
A15: A | C15: Direct Costs | N15: =SUM(D15:M15) -> 0 | O15: =D15+D16+M71 -> 0 | P15: =O15+(E15+E16) -> 0 | Q15: =(F15+F16)+P15 -> 0 | R15: 0 | S15: 0 | T15: 0 | U15: 0 | V15: 0 | W15: 0 | X15: 0
A16: % | C16: Indirect Costs | N16: =SUM(D16:M16) -> 0
C17: Adjustments to F&A calculation: | D17: =(MIN(0,IF(SUBLIMIT-((D15+D16)+M71)<((D15+D16)-2*(D15+D16)),((D15+D16)-2*(D15+D16)),(SUBLIMIT-((D15+D16)+M71))))) -> 0 | E17: =IF(AND($E$8>1,(E15+E16)>0),IF(A_TWOSUM<SUBLIMIT,0,IF(AND(A_TWOSUM>SUBLIMIT,(D15+D16)>SUBLIMIT),-(E15+E16),SUBLIMIT-A_TWOSUM-D17)),0) -> 0 | F17: =IF(AND($E$8>2,(F15+F16)>0),IF(A_THREESUM<SUBLIMIT,0,IF(AND(A_THREESUM>SUBLIMIT,A_TWOSUM>SUBLIMIT),-(F15+F16),SUBLIMIT-A_THREESUM)),0) -> 0 | G17: =IF(AND($E$8>3,(G15+G16)>0),IF(A_FOURSUM<SUBLIMIT,0,IF(AND(A_FOURSUM>SUBLIMIT,A_THREESUM>SUBLIMIT),-(G15+G16),SUBLIMIT-A_FOURSUM)),0) -> 0 | H17: =IF(AND($E$8>4,(H15+H16)>0),IF(A_FIVESUM<SUBLIMIT,0,IF(AND(A_FIVESUM>SUBLIMIT,A_FOURSUM>SUBLIMIT),-(H15+H16),SUBLIMIT-A_FIVESUM)),0) -> 0 | I17: =IF(AND($E$8>5,(I15+I16)>0),IF(A_SIXSUM<SUBLIMIT,0,IF(AND(A_SIXSUM>SUBLIMIT,A_FIVESUM>SUBLIMIT),-(I15+I16),SUBLIMIT-A_SIXSUM)),0) -> 0 | J17: =IF(AND($E$8>6,(J15+J16)>0),IF(A_SEVENSUM<SUBLIMIT,0,IF(AND(A_SEVENSUM>SUBLIMIT,A_SIXSUM>SUBLIMIT),-(J15+J16),SUBLIMIT-A_SEVENSUM)),0) -> 0 | K17: =IF(AND($E$8>7,(K15+K16)>0),IF(A_EIGHTSUM<SUBLIMIT,0,IF(AND(A_EIGHTSUM>SUBLIMIT,A_SEVENSUM>SUBLIMIT),-(K15+K16),SUBLIMIT-A_EIGHTSUM)),0) -> 0 | L17: =IF(AND($E$8>8,(L15+L16)>0),IF(A_NINESUM<SUBLIMIT,0,IF(AND(A_NINESUM>SUBLIMIT,A_EIGHTSUM>SUBLIMIT),-(L15+L16),SUBLIMIT-A_NINESUM)),0) -> 0 | M17: =IF(AND($E$8>9,(M15+M16)>0),IF(A_TENSUM<SUBLIMIT,0,IF(AND(A_TENSUM>SUBLIMIT,A_NINESUM>SUBLIMIT),-(M15+M16),SUBLIMIT-A_TENSUM)),0) -> 0 | N17: 0
A18: B | C18: Direct Costs | N18: 0 | O18: =(D18+D19)+M72 -> 0 | P18: =O18+(E18+E19) -> 0 | Q18: =(F18+F19)+P18 -> 0 | R18: 0 | S18: 0 | T18: 0 | U18: 0 | V18: 0 | W18: 0 | X18: 0
A19: % | C19: Indirect Costs | N19: =SUM(D19:M19) -> 0
C20: =+C17 -> Adjustments to F&A calculation: | D20: =(MIN(0,IF(SUBLIMIT-((D18+D19)+M72)<((D18+D19)-2*(D18+D19)),((D18+D19)-2*(D18+D19)),(SUBLIMIT-((D18+D19)+M72))))) -> 0 | E20: =IF(AND($E$8>1,(E18+E19)>0),IF(B_TWOSUM<SUBLIMIT,0,IF(AND(B_TWOSUM>SUBLIMIT,(D18+D19)>SUBLIMIT),-(E18+E19),SUBLIMIT-B_TWOSUM-D20)),0) -> 0 | F20: =IF(AND($E$8>2,(F18+F19)>0),IF(B_THREESUM<SUBLIMIT,0,IF(AND(B_THREESUM>SUBLIMIT,B_TWOSUM>SUBLIMIT),-(F18+F19),SUBLIMIT-B_THREESUM)),0) -> 0 | G20: =IF(AND($E$8>3,(G18+G19)>0),IF(B_FOURSUM<SUBLIMIT,0,IF(AND(B_FOURSUM>SUBLIMIT,B_THREESUM>SUBLIMIT),-(G18+G19),SUBLIMIT-B_FOURSUM)),0) -> 0 | H20: =IF(AND($E$8>4,(H18+H19)>0),IF(B_FIVESUM<SUBLIMIT,0,IF(AND(B_FIVESUM>SUBLIMIT,B_FOURSUM>SUBLIMIT),-(H18+H19),SUBLIMIT-B_FIVESUM)),0) -> 0 | I20: =IF(AND($E$8>5,(I18+I19)>0),IF(B_SIXSUM<SUBLIMIT,0,IF(AND(B_SIXSUM>SUBLIMIT,B_FIVESUM>SUBLIMIT),-(I18+I19),SUBLIMIT-B_SIXSUM)),0) -> 0 | J20: =IF(AND($E$8>6,(J18+J19)>0),IF(B_SEVENSUM<SUBLIMIT,0,IF(AND(B_SEVENSUM>SUBLIMIT,B_SIXSUM>SUBLIMIT),-(J18+J19),SUBLIMIT-B_SEVENSUM)),0) -> 0 | K20: =IF(AND($E$8>7,(K18+K19)>0),IF(B_EIGHTSUM<SUBLIMIT,0,IF(AND(B_EIGHTSUM>SUBLIMIT,B_SEVENSUM>SUBLIMIT),-(K18+K19),SUBLIMIT-B_EIGHTSUM)),0) -> 0 | L20: =IF(AND($E$8>8,(L18+L19)>0),IF(B_NINESUM<SUBLIMIT,0,IF(AND(B_NINESUM>SUBLIMIT,B_EIGHTSUM>SUBLIMIT),-(L18+L19),SUBLIMIT-B_NINESUM)),0) -> 0 | M20: =IF(AND($E$8>9,(M18+M19)>0),IF(B_TENSUM<SUBLIMIT,0,IF(AND(B_TENSUM>SUBLIMIT,B_NINESUM>SUBLIMIT),-(M18+M19),SUBLIMIT-B_TENSUM)),0) -> 0 | N20: 0
A21: C | C21: Direct Costs | N21: 0 | O21: =D21+D22+M73 -> 0 | P21: =O21+(E21+E22) -> 0 | Q21: =(F21+F22)+P21 -> 0 | R21: 0 | S21: 0 | T21: 0 | U21: 0 | V21: 0 | W21: 0 | X21: 0
A22: % | C22: Indirect Costs | N22: 0
C23: =+C20 -> Adjustments to F&A calculation: | D23: =(MIN(0,IF(SUBLIMIT-((D21+D22)+M73)<((D21+D22)-2*(D21+D22)),((D21+D22)-2*(D21+D22)),(SUBLIMIT-((D21+D22)+M73))))) -> 0 | E23: =IF(AND($E$8>1,(E21+E22)>0),IF(C_TWOSUM<SUBLIMIT,0,IF(AND(C_TWOSUM>SUBLIMIT,(D21+D22)>SUBLIMIT),-(E21+E22),SUBLIMIT-C_TWOSUM-D23)),0) -> 0 | F23: =IF(AND($E$8>2,(F21+F22)>0),IF(C_THREESUM<SUBLIMIT,0,IF(AND(C_THREESUM>SUBLIMIT,C_TWOSUM>SUBLIMIT),-(F21+F22),SUBLIMIT-C_THREESUM)),0) -> 0 | G23: =IF(AND($E$8>3,(G21+G22)>0),IF(C_FOURSUM<SUBLIMIT,0,IF(AND(C_FOURSUM>SUBLIMIT,C_THREESUM>SUBLIMIT),-(G21+G22),SUBLIMIT-C_FOURSUM)),0) -> 0 | H23: =IF(AND($E$8>4,(H21+H22)>0),IF(C_FIVESUM<SUBLIMIT,0,IF(AND(C_FIVESUM>SUBLIMIT,C_FOURSUM>SUBLIMIT),-(H21+H22),SUBLIMIT-C_FIVESUM)),0) -> 0 | I23: =IF(AND($E$8>5,(I21+I22)>0),IF(C_SIXSUM<SUBLIMIT,0,IF(AND(C_SIXSUM>SUBLIMIT,C_FIVESUM>SUBLIMIT),-(I21+I22),SUBLIMIT-C_SIXSUM)),0) -> 0 | J23: =IF(AND($E$8>6,(J21+J22)>0),IF(C_SEVENSUM<SUBLIMIT,0,IF(AND(C_SEVENSUM>SUBLIMIT,C_SIXSUM>SUBLIMIT),-(J21+J22),SUBLIMIT-C_SEVENSUM)),0) -> 0 | K23: =IF(AND($E$8>7,(K21+K22)>0),IF(C_EIGHTSUM<SUBLIMIT,0,IF(AND(C_EIGHTSUM>SUBLIMIT,C_SEVENSUM>SUBLIMIT),-(K21+K22),SUBLIMIT-C_EIGHTSUM)),0) -> 0 | L23: =IF(AND($E$8>8,(L21+L22)>0),IF(C_NINESUM<SUBLIMIT,0,IF(AND(C_NINESUM>SUBLIMIT,C_EIGHTSUM>SUBLIMIT),-(L21+L22),SUBLIMIT-C_NINESUM)),0) -> 0 | M23: =IF(AND($E$8>9,(M21+M22)>0),IF(C_TENSUM<SUBLIMIT,0,IF(AND(C_TENSUM>SUBLIMIT,C_NINESUM>SUBLIMIT),-(M21+M22),SUBLIMIT-C_TENSUM)),0) -> 0 | N23: 0
A24: D | C24: Direct Costs | N24: 0 | O24: =D24+D25+M74 -> 0 | P24: =O24+(E24+E25) -> 0 | Q24: =(F24+F25)+P24 -> 0 | R24: 0 | S24: 0 | T24: 0 | U24: 0 | V24: 0 | W24: 0 | X24: 0
A25: % | C25: Indirect Costs | N25: 0
C26: =+C23 -> Adjustments to F&A calculation: | D26: =(MIN(0,IF(SUBLIMIT-((D24+D25)+M74)<((D24+D25)-2*(D24+D25)),((D24+D25)-2*(D24+D25)),(SUBLIMIT-((D24+D25)+M74))))) -> 0 | E26: =IF(AND($E$8>1,(E24+E25)>0),IF(D_TWOSUM<SUBLIMIT,0,IF(AND(D_TWOSUM>SUBLIMIT,(D24+D25)>SUBLIMIT),-(E24+E25),SUBLIMIT-D_TWOSUM-D26)),0) -> 0 | F26: =IF(AND($E$8>2,(F24+F25)>0),IF(D_THREESUM<SUBLIMIT,0,IF(AND(D_THREESUM>SUBLIMIT,D_TWOSUM>SUBLIMIT),-(F24+F25),SUBLIMIT-D_THREESUM)),0) -> 0 | G26: =IF(AND($E$8>3,(G24+G25)>0),IF(D_FOURSUM<SUBLIMIT,0,IF(AND(D_FOURSUM>SUBLIMIT,D_THREESUM>SUBLIMIT),-(G24+G25),SUBLIMIT-D_FOURSUM)),0) -> 0 | H26: =IF(AND($E$8>4,(H24+H25)>0),IF(D_FIVESUM<SUBLIMIT,0,IF(AND(D_FIVESUM>SUBLIMIT,D_FOURSUM>SUBLIMIT),-(H24+H25),SUBLIMIT-D_FIVESUM)),0) -> 0 | I26: =IF(AND($E$8>5,(I24+I25)>0),IF(D_SIXSUM<SUBLIMIT,0,IF(AND(D_SIXSUM>SUBLIMIT,D_FIVESUM>SUBLIMIT),-(I24+I25),SUBLIMIT-D_SIXSUM)),0) -> 0 | J26: =IF(AND($E$8>6,(J24+J25)>0),IF(D_SEVENSUM<SUBLIMIT,0,IF(AND(D_SEVENSUM>SUBLIMIT,D_SIXSUM>SUBLIMIT),-(J24+J25),SUBLIMIT-D_SEVENSUM)),0) -> 0 | K26: =IF(AND($E$8>7,(K24+K25)>0),IF(D_EIGHTSUM<SUBLIMIT,0,IF(AND(D_EIGHTSUM>SUBLIMIT,D_SEVENSUM>SUBLIMIT),-(K24+K25),SUBLIMIT-D_EIGHTSUM)),0) -> 0 | L26: =IF(AND($E$8>8,(L24+L25)>0),IF(D_NINESUM<SUBLIMIT,0,IF(AND(D_NINESUM>SUBLIMIT,D_EIGHTSUM>SUBLIMIT),-(L24+L25),SUBLIMIT-D_NINESUM)),0) -> 0 | M26: =IF(AND($E$8>9,(M24+M25)>0),IF(D_TENSUM<SUBLIMIT,0,IF(AND(D_TENSUM>SUBLIMIT,D_NINESUM>SUBLIMIT),-(M24+M25),SUBLIMIT-D_TENSUM)),0) -> 0 | N26: 0
A27: E | C27: Direct Costs | N27: 0 | O27: =D27+D28+M75 -> 0 | P27: =O27+(E27+E28) -> 0 | Q27: =(F27+F28)+P27 -> 0 | R27: 0 | S27: 0 | T27: 0 | U27: 0 | V27: 0 | W27: 0 | X27: 0
A28: % | C28: Indirect Costs | N28: 0
C29: =+C26 -> Adjustments to F&A calculation: | D29: =(MIN(0,IF(SUBLIMIT-((D27+D28)+M75)<((D27+D28)-2*(D27+D28)),((D27+D28)-2*(D27+D28)),(SUBLIMIT-((D27+D28)+M75))))) -> 0 | E29: =IF(AND($E$8>1,(E27+E28)>0),IF(E_TWOSUM<SUBLIMIT,0,IF(AND(E_TWOSUM>SUBLIMIT,(D27+D28)>SUBLIMIT),-(E27+E28),SUBLIMIT-E_TWOSUM-D29)),0) -> 0 | F29: =IF(AND($E$8>2,(F27+F28)>0),IF(E_THREESUM<SUBLIMIT,0,IF(AND(E_THREESUM>SUBLIMIT,E_TWOSUM>SUBLIMIT),-(F27+F28),SUBLIMIT-E_THREESUM)),0) -> 0 | G29: =IF(AND($E$8>3,(G27+G28)>0),IF(E_FOURSUM<SUBLIMIT,0,IF(AND(E_FOURSUM>SUBLIMIT,E_THREESUM>SUBLIMIT),-(G27+G28),SUBLIMIT-E_FOURSUM)),0) -> 0 | H29: =IF(AND($E$8>4,(H27+H28)>0),IF(E_FIVESUM<SUBLIMIT,0,IF(AND(E_FIVESUM>SUBLIMIT,E_FOURSUM>SUBLIMIT),-(H27+H28),SUBLIMIT-E_FIVESUM)),0) -> 0 | I29: =IF(AND($E$8>5,(I27+I28)>0),IF(E_SIXSUM<SUBLIMIT,0,IF(AND(E_SIXSUM>SUBLIMIT,E_FIVESUM>SUBLIMIT),-(I27+I28),SUBLIMIT-E_SIXSUM)),0) -> 0 | J29: =IF(AND($E$8>6,(J27+J28)>0),IF(E_SEVENSUM<SUBLIMIT,0,IF(AND(E_SEVENSUM>SUBLIMIT,E_SIXSUM>SUBLIMIT),-(J27+J28),SUBLIMIT-E_SEVENSUM)),0) -> 0 | K29: =IF(AND($E$8>7,(K27+K28)>0),IF(E_EIGHTSUM<SUBLIMIT,0,IF(AND(E_EIGHTSUM>SUBLIMIT,E_SEVENSUM>SUBLIMIT),-(K27+K28),SUBLIMIT-E_EIGHTSUM)),0) -> 0 | L29: =IF(AND($E$8>8,(L27+L28)>0),IF(E_NINESUM<SUBLIMIT,0,IF(AND(E_NINESUM>SUBLIMIT,E_EIGHTSUM>SUBLIMIT),-(L27+L28),SUBLIMIT-E_NINESUM)),0) -> 0 | M29: =IF(AND($E$8>9,(M27+M28)>0),IF(E_TENSUM<SUBLIMIT,0,IF(AND(E_TENSUM>SUBLIMIT,E_NINESUM>SUBLIMIT),-(M27+M28),SUBLIMIT-E_TENSUM)),0) -> 0 | N29: 0
A30: F | C30: Sub's Direct Costs | N30: 0 | O30: =D30+D31+M76 -> 0 | P30: =O30+(E30+E31) -> 0 | Q30: =(F30+F31)+P30 -> 0 | R30: 0 | S30: 0 | T30: 0 | U30: 0 | V30: 0 | W30: 0 | X30: 0
A31: % | C31: Sub's Indirect Costs | N31: 0
C32: =+C29 -> Adjustments to F&A calculation: | D32: =(MIN(0,IF(SUBLIMIT-((D30+D31)+M76)<((D30+D31)-2*(D30+D31)),((D30+D31)-2*(D30+D31)),(SUBLIMIT-((D30+D31)+M76))))) -> 0 | E32: =IF(AND($E$8>1,(E30+E31)>0),IF(F_TWOSUM<SUBLIMIT,0,IF(AND(F_TWOSUM>SUBLIMIT,(D30+D31)>SUBLIMIT),-(E30+E31),SUBLIMIT-F_TWOSUM-D32)),0) -> 0 | F32: =IF(AND($E$8>2,(F30+F31)>0),IF(F_THREESUM<SUBLIMIT,0,IF(AND(F_THREESUM>SUBLIMIT,F_TWOSUM>SUBLIMIT),-(F30+F31),SUBLIMIT-F_THREESUM)),0) -> 0 | G32: =IF(AND($E$8>3,(G30+G31)>0),IF(F_FOURSUM<SUBLIMIT,0,IF(AND(F_FOURSUM>SUBLIMIT,F_THREESUM>SUBLIMIT),-(G30+G31),SUBLIMIT-F_FOURSUM)),0) -> 0 | H32: =IF(AND($E$8>4,(H30+H31)>0),IF(F_FIVESUM<SUBLIMIT,0,IF(AND(F_FIVESUM>SUBLIMIT,F_FOURSUM>SUBLIMIT),-(H30+H31),SUBLIMIT-F_FIVESUM)),0) -> 0 | I32: =IF(AND($E$8>5,(I30+I31)>0),IF(F_SIXSUM<SUBLIMIT,0,IF(AND(F_SIXSUM>SUBLIMIT,F_FIVESUM>SUBLIMIT),-(I30+I31),SUBLIMIT-F_SIXSUM)),0) -> 0 | J32: =IF(AND($E$8>6,(J30+J31)>0),IF(F_SEVENSUM<SUBLIMIT,0,IF(AND(F_SEVENSUM>SUBLIMIT,F_SIXSUM>SUBLIMIT),-(J30+J31),SUBLIMIT-F_SEVENSUM)),0) -> 0 | K32: =IF(AND($E$8>7,(K30+K31)>0),IF(F_EIGHTSUM<SUBLIMIT,0,IF(AND(F_EIGHTSUM>SUBLIMIT,F_SEVENSUM>SUBLIMIT),-(K30+K31),SUBLIMIT-F_EIGHTSUM)),0) -> 0 | L32: =IF(AND($E$8>8,(L30+L31)>0),IF(F_NINESUM<SUBLIMIT,0,IF(AND(F_NINESUM>SUBLIMIT,F_EIGHTSUM>SUBLIMIT),-(L30+L31),SUBLIMIT-F_NINESUM)),0) -> 0 | M32: =IF(AND($E$8>9,(M30+M31)>0),IF(F_TENSUM<SUBLIMIT,0,IF(AND(F_TENSUM>SUBLIMIT,F_NINESUM>SUBLIMIT),-(M30+M31),SUBLIMIT-F_TENSUM)),0) -> 0 | N32: 0
A33: G | C33: Sub's Direct Costs | N33: 0 | O33: =D33+D34+M77 -> 0 | P33: =O33+(E33+E34) -> 0 | Q33: =(F33+F34)+P33 -> 0 | R33: 0 | S33: 0 | T33: 0 | U33: 0 | V33: 0 | W33: 0 | X33: 0
A34: % | C34: Sub's Indirect Costs | N34: 0
C35: =+C32 -> Adjustments to F&A calculation: | D35: =(MIN(0,IF(SUBLIMIT-((D33+D34)+M77)<((D33+D34)-2*(D33+D34)),((D33+D34)-2*(D33+D34)),(SUBLIMIT-((D33+D34)+M77))))) -> 0 | E35: =IF(AND($E$8>1,(E33+E34)>0),IF(G_TWOSUM<SUBLIMIT,0,IF(AND(G_TWOSUM>SUBLIMIT,(D33+D34)>SUBLIMIT),-(E33+E34),SUBLIMIT-G_TWOSUM-D35)),0) -> 0 | F35: =IF(AND($E$8>2,(F33+F34)>0),IF(G_THREESUM<SUBLIMIT,0,IF(AND(G_THREESUM>SUBLIMIT,G_TWOSUM>SUBLIMIT),-(F33+F34),SUBLIMIT-G_THREESUM)),0) -> 0 | G35: =IF(AND($E$8>3,(G33+G34)>0),IF(G_FOURSUM<SUBLIMIT,0,IF(AND(G_FOURSUM>SUBLIMIT,G_THREESUM>SUBLIMIT),-(G33+G34),SUBLIMIT-G_FOURSUM)),0) -> 0 | H35: =IF(AND($E$8>4,(H33+H34)>0),IF(G_FIVESUM<SUBLIMIT,0,IF(AND(G_FIVESUM>SUBLIMIT,G_FOURSUM>SUBLIMIT),-(H33+H34),SUBLIMIT-G_FIVESUM)),0) -> 0 | I35: =IF(AND($E$8>5,(I33+I34)>0),IF(G_SIXSUM<SUBLIMIT,0,IF(AND(G_SIXSUM>SUBLIMIT,G_FIVESUM>SUBLIMIT),-(I33+I34),SUBLIMIT-G_SIXSUM)),0) -> 0 | J35: =IF(AND($E$8>6,(J33+J34)>0),IF(G_SEVENSUM<SUBLIMIT,0,IF(AND(G_SEVENSUM>SUBLIMIT,G_SIXSUM>SUBLIMIT),-(J33+J34),SUBLIMIT-G_SEVENSUM)),0) -> 0 | K35: =IF(AND($E$8>7,(K33+K34)>0),IF(G_EIGHTSUM<SUBLIMIT,0,IF(AND(G_EIGHTSUM>SUBLIMIT,G_SEVENSUM>SUBLIMIT),-(K33+K34),SUBLIMIT-G_EIGHTSUM)),0) -> 0 | L35: =IF(AND($E$8>8,(L33+L34)>0),IF(G_NINESUM<SUBLIMIT,0,IF(AND(G_NINESUM>SUBLIMIT,G_EIGHTSUM>SUBLIMIT),-(L33+L34),SUBLIMIT-G_NINESUM)),0) -> 0 | M35: =IF(AND($E$8>9,(M33+M34)>0),IF(G_TENSUM<SUBLIMIT,0,IF(AND(G_TENSUM>SUBLIMIT,G_NINESUM>SUBLIMIT),-(M33+M34),SUBLIMIT-G_TENSUM)),0) -> 0 | N35: 0
A36: H | C36: Direct Costs | N36: =SUM(D36:M36) -> 0 | O36: =D36+D37+M78 -> 0 | P36: =O36+(E36+E37) -> 0 | Q36: =(F36+F37)+P36 -> 0 | R36: 0 | S36: 0 | T36: 0 | U36: 0 | V36: 0 | W36: 0 | X36: 0
A37: % | C37: Indirect Costs | N37: =SUM(D37:M37) -> 0
C38: Adjustments to F&A calculation: | D38: =(MIN(0,IF(SUBLIMIT-((D36+D37)+M78)<((D36+D37)-2*(D36+D37)),((D36+D37)-2*(D36+D37)),(SUBLIMIT-((D36+D37)+M92))))) -> 0 | E38: =IF(AND($E$8>1,(E36+E37)>0),IF(H_TWOSUM<SUBLIMIT,0,IF(AND(H_TWOSUM>SUBLIMIT,(D36+D37)>SUBLIMIT),-(E36+E37),SUBLIMIT-H_TWOSUM-D38)),0) -> 0 | F38: =IF(AND($E$8>2,(F36+F37)>0),IF(H_THREESUM<SUBLIMIT,0,IF(AND(H_THREESUM>SUBLIMIT,H_TWOSUM>SUBLIMIT),-(F36+F37),SUBLIMIT-H_THREESUM)),0) -> 0 | G38: =IF(AND($E$8>3,(G36+G37)>0),IF(H_FOURSUM<SUBLIMIT,0,IF(AND(H_FOURSUM>SUBLIMIT,H_THREESUM>SUBLIMIT),-(G36+G37),SUBLIMIT-H_FOURSUM)),0) -> 0 | H38: =IF(AND($E$8>4,(H36+H37)>0),IF(H_FIVESUM<SUBLIMIT,0,IF(AND(H_FIVESUM>SUBLIMIT,H_FOURSUM>SUBLIMIT),-(H36+H37),SUBLIMIT-H_FIVESUM)),0) -> 0 | I38: =IF(AND($E$8>5,(I36+I37)>0),IF(H_SIXSUM<SUBLIMIT,0,IF(AND(H_SIXSUM>SUBLIMIT,H_FIVESUM>SUBLIMIT),-(I36+I37),SUBLIMIT-H_SIXSUM)),0) -> 0 | J38: =IF(AND($E$8>6,(J36+J37)>0),IF(H_SEVENSUM<SUBLIMIT,0,IF(AND(H_SEVENSUM>SUBLIMIT,H_SIXSUM>SUBLIMIT),-(J36+J37),SUBLIMIT-H_SEVENSUM)),0) -> 0 | K38: =IF(AND($E$8>7,(K36+K37)>0),IF(H_EIGHTSUM<SUBLIMIT,0,IF(AND(H_EIGHTSUM>SUBLIMIT,H_SEVENSUM>SUBLIMIT),-(K36+K37),SUBLIMIT-H_EIGHTSUM)),0) -> 0 | L38: =IF(AND($E$8>8,(L36+L37)>0),IF(H_NINESUM<SUBLIMIT,0,IF(AND(H_NINESUM>SUBLIMIT,H_EIGHTSUM>SUBLIMIT),-(L36+L37),SUBLIMIT-H_NINESUM)),0) -> 0 | M38: =IF(AND($E$8>9,(M36+M37)>0),IF(H_TENSUM<SUBLIMIT,0,IF(AND(H_TENSUM>SUBLIMIT,H_NINESUM>SUBLIMIT),-(M36+M37),SUBLIMIT-H_TENSUM)),0) -> 0 | N38: =SUM(D38:M38) -> 0
A39: I | C39: Direct Costs | N39: =SUM(D39:M39) -> 0 | O39: =(D39+D40)+M79 -> 0 | P39: =O39+(E39+E40) -> 0 | Q39: =(F39+F40)+P39 -> 0 | R39: 0 | S39: 0 | T39: 0 | U39: 0 | V39: 0 | W39: 0 | X39: 0
A40: % | C40: Indirect Costs | N40: =SUM(D40:M40) -> 0
C41: =+C38 -> Adjustments to F&A calculation: | D41: =(MIN(0,IF(SUBLIMIT-((D39+D40)+M79)<((D39+D40)-2*(D39+D40)),((D39+D40)-2*(D39+D40)),(SUBLIMIT-((D39+D40)+M93))))) -> 0 | E41: =IF(AND($E$8>1,(E39+E40)>0),IF(I_TWOSUM<SUBLIMIT,0,IF(AND(I_TWOSUM>SUBLIMIT,(D39+D40)>SUBLIMIT),-(E39+E40),SUBLIMIT-I_TWOSUM-D41)),0) -> 0 | F41: =IF(AND($E$8>2,(F39+F40)>0),IF(I_THREESUM<SUBLIMIT,0,IF(AND(I_THREESUM>SUBLIMIT,I_TWOSUM>SUBLIMIT),-(F39+F40),SUBLIMIT-I_THREESUM)),0) -> 0 | G41: =IF(AND($E$8>3,(G39+G40)>0),IF(I_FOURSUM<SUBLIMIT,0,IF(AND(I_FOURSUM>SUBLIMIT,I_THREESUM>SUBLIMIT),-(G39+G40),SUBLIMIT-I_FOURSUM)),0) -> 0 | H41: =IF(AND($E$8>4,(H39+H40)>0),IF(I_FIVESUM<SUBLIMIT,0,IF(AND(I_FIVESUM>SUBLIMIT,I_FOURSUM>SUBLIMIT),-(H39+H40),SUBLIMIT-I_FIVESUM)),0) -> 0 | I41: =IF(AND($E$8>5,(I39+I40)>0),IF(I_SIXSUM<SUBLIMIT,0,IF(AND(I_SIXSUM>SUBLIMIT,I_FIVESUM>SUBLIMIT),-(I39+I40),SUBLIMIT-I_SIXSUM)),0) -> 0 | J41: =IF(AND($E$8>6,(J39+J40)>0),IF(I_SEVENSUM<SUBLIMIT,0,IF(AND(I_SEVENSUM>SUBLIMIT,I_SIXSUM>SUBLIMIT),-(J39+J40),SUBLIMIT-I_SEVENSUM)),0) -> 0 | K41: =IF(AND($E$8>7,(K39+K40)>0),IF(I_EIGHTSUM<SUBLIMIT,0,IF(AND(I_EIGHTSUM>SUBLIMIT,I_SEVENSUM>SUBLIMIT),-(K39+K40),SUBLIMIT-I_EIGHTSUM)),0) -> 0 | L41: =IF(AND($E$8>8,(L39+L40)>0),IF(I_NINESUM<SUBLIMIT,0,IF(AND(I_NINESUM>SUBLIMIT,I_EIGHTSUM>SUBLIMIT),-(L39+L40),SUBLIMIT-I_NINESUM)),0) -> 0 | M41: =IF(AND($E$8>9,(M39+M40)>0),IF(I_TENSUM<SUBLIMIT,0,IF(AND(I_TENSUM>SUBLIMIT,I_NINESUM>SUBLIMIT),-(M39+M40),SUBLIMIT-I_TENSUM)),0) -> 0 | N41: =SUM(D41:M41) -> 0
A42: J | C42: Direct Costs | N42: 0 | O42: =D42+D43+M80 -> 0 | P42: =O42+(E42+E43) -> 0 | Q42: =(F42+F43)+P42 -> 0 | R42: 0 | S42: 0 | T42: 0 | U42: 0 | V42: 0 | W42: 0 | X42: 0
A43: % | C43: Indirect Costs | N43: 0
C44: =+C41 -> Adjustments to F&A calculation: | D44: =(MIN(0,IF(SUBLIMIT-((D42+D43)+M80)<((D42+D43)-2*(D42+D43)),((D42+D43)-2*(D42+D43)),(SUBLIMIT-((D42+D43)+M94))))) -> 0 | E44: =IF(AND($E$8>1,(E42+E43)>0),IF(J_TWOSUM<SUBLIMIT,0,IF(AND(J_TWOSUM>SUBLIMIT,(D42+D43)>SUBLIMIT),-(E42+E43),SUBLIMIT-J_TWOSUM-D44)),0) -> 0 | F44: =IF(AND($E$8>2,(F42+F43)>0),IF(J_THREESUM<SUBLIMIT,0,IF(AND(J_THREESUM>SUBLIMIT,J_TWOSUM>SUBLIMIT),-(F42+F43),SUBLIMIT-J_THREESUM)),0) -> 0 | G44: =IF(AND($E$8>3,(G42+G43)>0),IF(J_FOURSUM<SUBLIMIT,0,IF(AND(J_FOURSUM>SUBLIMIT,J_THREESUM>SUBLIMIT),-(G42+G43),SUBLIMIT-J_FOURSUM)),0) -> 0 | H44: =IF(AND($E$8>4,(H42+H43)>0),IF(J_FIVESUM<SUBLIMIT,0,IF(AND(J_FIVESUM>SUBLIMIT,J_FOURSUM>SUBLIMIT),-(H42+H43),SUBLIMIT-J_FIVESUM)),0) -> 0 | I44: =IF(AND($E$8>5,(I42+I43)>0),IF(J_SIXSUM<SUBLIMIT,0,IF(AND(J_SIXSUM>SUBLIMIT,J_FIVESUM>SUBLIMIT),-(I42+I43),SUBLIMIT-J_SIXSUM)),0) -> 0 | J44: =IF(AND($E$8>6,(J42+J43)>0),IF(J_SEVENSUM<SUBLIMIT,0,IF(AND(J_SEVENSUM>SUBLIMIT,J_SIXSUM>SUBLIMIT),-(J42+J43),SUBLIMIT-J_SEVENSUM)),0) -> 0 | K44: =IF(AND($E$8>7,(K42+K43)>0),IF(J_EIGHTSUM<SUBLIMIT,0,IF(AND(J_EIGHTSUM>SUBLIMIT,J_SEVENSUM>SUBLIMIT),-(K42+K43),SUBLIMIT-J_EIGHTSUM)),0) -> 0 | L44: =IF(AND($E$8>8,(L42+L43)>0),IF(J_NINESUM<SUBLIMIT,0,IF(AND(J_NINESUM>SUBLIMIT,J_EIGHTSUM>SUBLIMIT),-(L42+L43),SUBLIMIT-J_NINESUM)),0) -> 0 | M44: =IF(AND($E$8>9,(M42+M43)>0),IF(J_TENSUM<SUBLIMIT,0,IF(AND(J_TENSUM>SUBLIMIT,J_NINESUM>SUBLIMIT),-(M42+M43),SUBLIMIT-J_TENSUM)),0) -> 0 | N44: 0
A45: K | C45: Direct Costs | N45: 0 | O45: =D45+D46+M81 -> 0 | P45: =O45+(E45+E46) -> 0 | Q45: =(F45+F46)+P45 -> 0 | R45: 0 | S45: 0 | T45: 0 | U45: 0 | V45: 0 | W45: 0 | X45: 0
A46: % | C46: Indirect Costs | N46: 0
C47: =+C44 -> Adjustments to F&A calculation: | D47: =(MIN(0,IF(SUBLIMIT-((D45+D46)+M81)<((D45+D46)-2*(D45+D46)),((D45+D46)-2*(D45+D46)),(SUBLIMIT-((D45+D46)+M95))))) -> 0 | E47: =IF(AND($E$8>1,(E45+E46)>0),IF(K_TWOSUM<SUBLIMIT,0,IF(AND(K_TWOSUM>SUBLIMIT,(D45+D46)>SUBLIMIT),-(E45+E46),SUBLIMIT-K_TWOSUM-D47)),0) -> 0 | F47: =IF(AND($E$8>2,(F45+F46)>0),IF(K_THREESUM<SUBLIMIT,0,IF(AND(K_THREESUM>SUBLIMIT,K_TWOSUM>SUBLIMIT),-(F45+F46),SUBLIMIT-K_THREESUM)),0) -> 0 | G47: =IF(AND($E$8>3,(G45+G46)>0),IF(K_FOURSUM<SUBLIMIT,0,IF(AND(K_FOURSUM>SUBLIMIT,K_THREESUM>SUBLIMIT),-(G45+G46),SUBLIMIT-K_FOURSUM)),0) -> 0 | H47: =IF(AND($E$8>4,(H45+H46)>0),IF(K_FIVESUM<SUBLIMIT,0,IF(AND(K_FIVESUM>SUBLIMIT,K_FOURSUM>SUBLIMIT),-(H45+H46),SUBLIMIT-K_FIVESUM)),0) -> 0 | I47: =IF(AND($E$8>5,(I45+I46)>0),IF(K_SIXSUM<SUBLIMIT,0,IF(AND(K_SIXSUM>SUBLIMIT,K_FIVESUM>SUBLIMIT),-(I45+I46),SUBLIMIT-K_SIXSUM)),0) -> 0 | J47: =IF(AND($E$8>6,(J45+J46)>0),IF(K_SEVENSUM<SUBLIMIT,0,IF(AND(K_SEVENSUM>SUBLIMIT,K_SIXSUM>SUBLIMIT),-(J45+J46),SUBLIMIT-K_SEVENSUM)),0) -> 0 | K47: =IF(AND($E$8>7,(K45+K46)>0),IF(K_EIGHTSUM<SUBLIMIT,0,IF(AND(K_EIGHTSUM>SUBLIMIT,K_SEVENSUM>SUBLIMIT),-(K45+K46),SUBLIMIT-K_EIGHTSUM)),0) -> 0 | L47: =IF(AND($E$8>8,(L45+L46)>0),IF(K_NINESUM<SUBLIMIT,0,IF(AND(K_NINESUM>SUBLIMIT,K_EIGHTSUM>SUBLIMIT),-(L45+L46),SUBLIMIT-K_NINESUM)),0) -> 0 | M47: =IF(AND($E$8>9,(M45+M46)>0),IF(K_TENSUM<SUBLIMIT,0,IF(AND(K_TENSUM>SUBLIMIT,K_NINESUM>SUBLIMIT),-(M45+M46),SUBLIMIT-K_TENSUM)),0) -> 0 | N47: 0
A48: L | C48: Direct Costs | N48: 0 | O48: =D48+D49+M82 -> 0 | P48: =O48+(E48+E49) -> 0 | Q48: =(F48+F49)+P48 -> 0 | R48: 0 | S48: 0 | T48: 0 | U48: 0 | V48: 0 | W48: 0 | X48: 0
A49: % | C49: Indirect Costs | N49: 0
C50: =+C47 -> Adjustments to F&A calculation: | D50: =(MIN(0,IF(SUBLIMIT-((D48+D49)+M82)<((D48+D49)-2*(D48+D49)),((D48+D49)-2*(D48+D49)),(SUBLIMIT-((D48+D49)+M96))))) -> 0 | E50: =IF(AND($E$8>1,(E48+E49)>0),IF(L_TWOSUM<SUBLIMIT,0,IF(AND(L_TWOSUM>SUBLIMIT,(D48+D49)>SUBLIMIT),-(E48+E49),SUBLIMIT-L_TWOSUM-D50)),0) -> 0 | F50: =IF(AND($E$8>2,(F48+F49)>0),IF(L_THREESUM<SUBLIMIT,0,IF(AND(L_THREESUM>SUBLIMIT,L_TWOSUM>SUBLIMIT),-(F48+F49),SUBLIMIT-L_THREESUM)),0) -> 0 | G50: =IF(AND($E$8>3,(G48+G49)>0),IF(L_FOURSUM<SUBLIMIT,0,IF(AND(L_FOURSUM>SUBLIMIT,L_THREESUM>SUBLIMIT),-(G48+G49),SUBLIMIT-L_FOURSUM)),0) -> 0 | H50: =IF(AND($E$8>4,(H48+H49)>0),IF(L_FIVESUM<SUBLIMIT,0,IF(AND(L_FIVESUM>SUBLIMIT,L_FOURSUM>SUBLIMIT),-(H48+H49),SUBLIMIT-L_FIVESUM)),0) -> 0 | I50: =IF(AND($E$8>5,(I48+I49)>0),IF(L_SIXSUM<SUBLIMIT,0,IF(AND(L_SIXSUM>SUBLIMIT,L_FIVESUM>SUBLIMIT),-(I48+I49),SUBLIMIT-L_SIXSUM)),0) -> 0 | J50: =IF(AND($E$8>6,(J48+J49)>0),IF(L_SEVENSUM<SUBLIMIT,0,IF(AND(L_SEVENSUM>SUBLIMIT,L_SIXSUM>SUBLIMIT),-(J48+J49),SUBLIMIT-L_SEVENSUM)),0) -> 0 | K50: =IF(AND($E$8>7,(K48+K49)>0),IF(L_EIGHTSUM<SUBLIMIT,0,IF(AND(L_EIGHTSUM>SUBLIMIT,L_SEVENSUM>SUBLIMIT),-(K48+K49),SUBLIMIT-L_EIGHTSUM)),0) -> 0 | L50: =IF(AND($E$8>8,(L48+L49)>0),IF(L_NINESUM<SUBLIMIT,0,IF(AND(L_NINESUM>SUBLIMIT,L_EIGHTSUM>SUBLIMIT),-(L48+L49),SUBLIMIT-L_NINESUM)),0) -> 0 | M50: =IF(AND($E$8>9,(M48+M49)>0),IF(L_TENSUM<SUBLIMIT,0,IF(AND(L_TENSUM>SUBLIMIT,L_NINESUM>SUBLIMIT),-(M48+M49),SUBLIMIT-L_TENSUM)),0) -> 0 | N50: 0
A51: M | C51: Sub's Direct Costs | N51: 0 | O51: =D51+D52+M83 -> 0 | P51: =O51+(E51+E52) -> 0 | Q51: =(F51+F52)+P51 -> 0 | R51: 0 | S51: 0 | T51: 0 | U51: 0 | V51: 0 | W51: 0 | X51: 0
A52: % | C52: Sub's Indirect Costs | N52: 0
C53: =+C50 -> Adjustments to F&A calculation: | D53: =(MIN(0,IF(SUBLIMIT-((D51+D52)+M83)<((D51+D52)-2*(D51+D52)),((D51+D52)-2*(D51+D52)),(SUBLIMIT-((D51+D52)+M97))))) -> 0 | E53: =IF(AND($E$8>1,(E51+E52)>0),IF(M_TWOSUM<SUBLIMIT,0,IF(AND(M_TWOSUM>SUBLIMIT,(D51+D52)>SUBLIMIT),-(E51+E52),SUBLIMIT-M_TWOSUM-D53)),0) -> 0 | F53: =IF(AND($E$8>2,(F51+F52)>0),IF(M_THREESUM<SUBLIMIT,0,IF(AND(M_THREESUM>SUBLIMIT,M_TWOSUM>SUBLIMIT),-(F51+F52),SUBLIMIT-M_THREESUM)),0) -> 0 | G53: =IF(AND($E$8>3,(G51+G52)>0),IF(M_FOURSUM<SUBLIMIT,0,IF(AND(M_FOURSUM>SUBLIMIT,M_THREESUM>SUBLIMIT),-(G51+G52),SUBLIMIT-M_FOURSUM)),0) -> 0 | H53: =IF(AND($E$8>4,(H51+H52)>0),IF(M_FIVESUM<SUBLIMIT,0,IF(AND(M_FIVESUM>SUBLIMIT,M_FOURSUM>SUBLIMIT),-(H51+H52),SUBLIMIT-M_FIVESUM)),0) -> 0 | I53: =IF(AND($E$8>5,(I51+I52)>0),IF(M_SIXSUM<SUBLIMIT,0,IF(AND(M_SIXSUM>SUBLIMIT,M_FIVESUM>SUBLIMIT),-(I51+I52),SUBLIMIT-M_SIXSUM)),0) -> 0 | J53: =IF(AND($E$8>6,(J51+J52)>0),IF(M_SEVENSUM<SUBLIMIT,0,IF(AND(M_SEVENSUM>SUBLIMIT,M_SIXSUM>SUBLIMIT),-(J51+J52),SUBLIMIT-M_SEVENSUM)),0) -> 0 | K53: =IF(AND($E$8>7,(K51+K52)>0),IF(M_EIGHTSUM<SUBLIMIT,0,IF(AND(M_EIGHTSUM>SUBLIMIT,M_SEVENSUM>SUBLIMIT),-(K51+K52),SUBLIMIT-M_EIGHTSUM)),0) -> 0 | L53: =IF(AND($E$8>8,(L51+L52)>0),IF(M_NINESUM<SUBLIMIT,0,IF(AND(M_NINESUM>SUBLIMIT,M_EIGHTSUM>SUBLIMIT),-(L51+L52),SUBLIMIT-M_NINESUM)),0) -> 0 | M53: =IF(AND($E$8>9,(M51+M52)>0),IF(M_TENSUM<SUBLIMIT,0,IF(AND(M_TENSUM>SUBLIMIT,M_NINESUM>SUBLIMIT),-(M51+M52),SUBLIMIT-M_TENSUM)),0) -> 0 | N53: 0
A54: N | C54: Sub's Direct Costs | N54: 0 | O54: =D54+D55+M84 -> 0 | P54: =O54+(E54+E55) -> 0 | Q54: =(F54+F55)+P54 -> 0 | R54: 0 | S54: 0 | T54: 0 | U54: 0 | V54: 0 | W54: 0 | X54: 0
A55: % | C55: Sub's Indirect Costs | N55: 0
C56: =+C53 -> Adjustments to F&A calculation: | D56: =(MIN(0,IF(SUBLIMIT-((D54+D55)+M84)<((D54+D55)-2*(D54+D55)),((D54+D55)-2*(D54+D55)),(SUBLIMIT-((D54+D55)+M98))))) -> 0 | E56: =IF(AND($E$8>1,(E54+E55)>0),IF(N_TWOSUM<SUBLIMIT,0,IF(AND(N_TWOSUM>SUBLIMIT,(D54+D55)>SUBLIMIT),-(E54+E55),SUBLIMIT-N_TWOSUM-D56)),0) -> 0 | F56: =IF(AND($E$8>2,(F54+F55)>0),IF(N_THREESUM<SUBLIMIT,0,IF(AND(N_THREESUM>SUBLIMIT,N_TWOSUM>SUBLIMIT),-(F54+F55),SUBLIMIT-N_THREESUM)),0) -> 0 | G56: =IF(AND($E$8>3,(G54+G55)>0),IF(N_FOURSUM<SUBLIMIT,0,IF(AND(N_FOURSUM>SUBLIMIT,N_THREESUM>SUBLIMIT),-(G54+G55),SUBLIMIT-N_FOURSUM)),0) -> 0 | H56: =IF(AND($E$8>4,(H54+H55)>0),IF(N_FIVESUM<SUBLIMIT,0,IF(AND(N_FIVESUM>SUBLIMIT,N_FOURSUM>SUBLIMIT),-(H54+H55),SUBLIMIT-N_FIVESUM)),0) -> 0 | I56: =IF(AND($E$8>5,(I54+I55)>0),IF(N_SIXSUM<SUBLIMIT,0,IF(AND(N_SIXSUM>SUBLIMIT,N_FIVESUM>SUBLIMIT),-(I54+I55),SUBLIMIT-N_SIXSUM)),0) -> 0 | J56: =IF(AND($E$8>6,(J54+J55)>0),IF(N_SEVENSUM<SUBLIMIT,0,IF(AND(N_SEVENSUM>SUBLIMIT,N_SIXSUM>SUBLIMIT),-(J54+J55),SUBLIMIT-N_SEVENSUM)),0) -> 0 | K56: =IF(AND($E$8>7,(K54+K55)>0),IF(N_EIGHTSUM<SUBLIMIT,0,IF(AND(N_EIGHTSUM>SUBLIMIT,N_SEVENSUM>SUBLIMIT),-(K54+K55),SUBLIMIT-N_EIGHTSUM)),0) -> 0 | L56: =IF(AND($E$8>8,(L54+L55)>0),IF(N_NINESUM<SUBLIMIT,0,IF(AND(N_NINESUM>SUBLIMIT,N_EIGHTSUM>SUBLIMIT),-(L54+L55),SUBLIMIT-N_NINESUM)),0) -> 0 | M56: =IF(AND($E$8>9,(M54+M55)>0),IF(N_TENSUM<SUBLIMIT,0,IF(AND(N_TENSUM>SUBLIMIT,N_NINESUM>SUBLIMIT),-(M54+M55),SUBLIMIT-N_TENSUM)),0) -> 0 | N56: 0
A57: O | C57: Direct Costs | N57: 0 | O57: =D57+D58+M85 -> 0 | P57: =O57+(E57+E58) -> 0 | Q57: =(F57+F58)+P57 -> 0 | R57: 0 | S57: 0 | T57: 0 | U57: 0 | V57: 0 | W57: 0 | X57: 0
A58: % | C58: Indirect Costs | N58: =SUM(D58:M58) -> 0
C59: Adjustments to F&A calculation: | D59: =(MIN(0,IF(SUBLIMIT-((D57+D58)+M85)<((D57+D58)-2*(D57+D58)),((D57+D58)-2*(D57+D58)),(SUBLIMIT-((D57+D58)+M113))))) -> 0 | E59: =IF(AND($E$8>1,(E57+E58)>0),IF(O_TWOSUM<SUBLIMIT,0,IF(AND(O_TWOSUM>SUBLIMIT,(D57+D58)>SUBLIMIT),-(E57+E58),SUBLIMIT-O_TWOSUM-D59)),0) -> 0 | F59: =IF(AND($E$8>2,(F57+F58)>0),IF(O_THREESUM<SUBLIMIT,0,IF(AND(O_THREESUM>SUBLIMIT,O_TWOSUM>SUBLIMIT),-(F57+F58),SUBLIMIT-O_THREESUM)),0) -> 0 | G59: =IF(AND($E$8>3,(G57+G58)>0),IF(O_FOURSUM<SUBLIMIT,0,IF(AND(O_FOURSUM>SUBLIMIT,O_THREESUM>SUBLIMIT),-(G57+G58),SUBLIMIT-O_FOURSUM)),0) -> 0 | H59: =IF(AND($E$8>4,(H57+H58)>0),IF(O_FIVESUM<SUBLIMIT,0,IF(AND(O_FIVESUM>SUBLIMIT,O_FOURSUM>SUBLIMIT),-(H57+H58),SUBLIMIT-O_FIVESUM)),0) -> 0 | I59: =IF(AND($E$8>5,(I57+I58)>0),IF(O_SIXSUM<SUBLIMIT,0,IF(AND(O_SIXSUM>SUBLIMIT,O_FIVESUM>SUBLIMIT),-(I57+I58),SUBLIMIT-O_SIXSUM)),0) -> 0 | J59: =IF(AND($E$8>6,(J57+J58)>0),IF(O_SEVENSUM<SUBLIMIT,0,IF(AND(O_SEVENSUM>SUBLIMIT,O_SIXSUM>SUBLIMIT),-(J57+J58),SUBLIMIT-O_SEVENSUM)),0) -> 0 | K59: =IF(AND($E$8>7,(K57+K58)>0),IF(O_EIGHTSUM<SUBLIMIT,0,IF(AND(O_EIGHTSUM>SUBLIMIT,O_SEVENSUM>SUBLIMIT),-(K57+K58),SUBLIMIT-O_EIGHTSUM)),0) -> 0 | L59: =IF(AND($E$8>8,(L57+L58)>0),IF(O_NINESUM<SUBLIMIT,0,IF(AND(O_NINESUM>SUBLIMIT,O_EIGHTSUM>SUBLIMIT),-(L57+L58),SUBLIMIT-O_NINESUM)),0) -> 0 | M59: =IF(AND($E$8>9,(M57+M58)>0),IF(O_TENSUM<SUBLIMIT,0,IF(AND(O_TENSUM>SUBLIMIT,O_NINESUM>SUBLIMIT),-(M57+M58),SUBLIMIT-O_TENSUM)),0) -> 0 | N59: =SUM(D59:M59) -> 0
C61: Total Subaward Direct Costs: | D61: =D15+D18+D21+D24+D27+D30+D33+D36+D39+D42+D45+D48+D51+D54+D57 -> 0 | E61: =E15+E18+E21+E24+E27+E30+E33+E36+E39+E42+E45+E48+E51+E54+E57 -> 0 | F61: =F15+F18+F21+F24+F27+F30+F33+F36+F39+F42+F45+F48+F51+F54+F57 -> 0 | G61: 0 | H61: 0 | I61: 0 | J61: 0 | K61: 0 | L61: 0 | M61: 0 | N61: =N15+N18+N21+N24+N27+N30+N33+N36+N39+N42+N45+N48+N51+N54+N57 -> 0
C62: Total Subaward F&A Costs: | D62: =SUM(D16+D19+D22+D25+D28+D31+D34+D37+D40+D43+D46+D49+D52+D55+D58) -> 0 | E62: =SUM(E16+E19+E22+E25+E28+E31+E34+E37+E40+E43+E46+E49+E52+E55+E58) -> 0 | F62: 0 | G62: 0 | H62: 0 | I62: 0 | J62: 0 | K62: 0 | L62: 0 | M62: 0 | N62: =SUM(D62:M62) -> 0
C63: Total Adjustments to F&A calculation: | D63: =D17+D20+D23+D26+D29+D32+D35+D38+D41+D44+D47+D50+D53+D56+D59 -> 0 | E63: =E17+E20+E23+E26+E29+E32+E35+E38+E41+E44+E47+E50+E53+E56+E59 -> 0 | F63: 0 | G63: 0 | H63: 0 | I63: 0 | J63: 0 | K63: 0 | L63: 0 | M63: 0 | N63: =N17+N20+N23+N26+N29+N32+N35+N38+N41+N44+N47+N50+N53+N56+N59 -> 0
C67: INSTRUCTIONS
A68: 1. | C68: In the shaded area next to a letter in column A enter the name of the organization with whom you're proposing to | M68: AMOUNT AWARDED TO SUBAWARDEE
C69: subaward. Repeat this for each subawardee. If this budget is for a non-competing continuation, please enter | M69: IN PREVIOUS YEAR(S)
C70: the amount previously paid to the subaward in the table at right.
A71: 2. | C71: In the columns to the right of the subawardee's name, enter the budget amounts (by year) given you by the | L71: A
C72: organization. Be sure to include the subawardee's F&A costs in the budget. | L72: B
L73: C
L74: D
C75: Once again, you can enter data into the shaded areas only. All unshaded areas are protected fields. | L75: E
C76: The sum totals of both the subcontractors' budgets and adjustments to F&A cost calculation will carry forward to the | L76: F
C77: Budget Summary. For multi-project budgets, please consult the Pre-Awards Office. | L77: G
L78: H
L79: I
L80: J
L81: K
L82: L
L83: M
L84: N
L85: O

Sheet Budget Summary
G1: ='Salary Detail'!A1 -> UNM HEALTH SCIENCES CENTER | N1: F & A COSTS
F2: INTERNAL BUDGET WORKSHEET | N2: The Following should be used to calculate F&A costs unless the sponsor has specified a different F&A cost rate in writing.
A3: =+'Salary Detail'!A3 -> Revised 6/15/2022 | L3: Total Labor Costs above NIH Salary Cap
B4: Principal Investigator: | D4: ='Salary Detail'!E5 -> 0 | P4: On Campus | Q4: Off Campus
B5: Department: | D5: ='Salary Detail'!E6 -> 0 | O5: As of: | P5: 7/1/16 7/1/22 | Q5: 7/1/16 7/1/22
B6: Project Title: | D6: ='Salary Detail'!E7 -> 0 | I6: Put"X" in the box for MODULAR Budgets | L6: ='Salary Detail'!T64+'Salary Detail'!S119+'Salary Detail'!T119+'Salary Detail'!S173+'Salary Detail'!T173+'Salary Detail'!S229+'Salary Detail'!T229+'Salary Detail'!S283+'Salary Detail'!T283+'Salary Detail'!S337 -> 0 | N6: Research | P6: 51.5% 52.5% | Q6: 26% 26%
B7: Funding Agency: | D7: ='Salary Detail'!E8 -> 0 | J7: (NIH Funding Only) | L7: Charge to Unrestricted Account | N7: Instruction | P7: 53% 53% | Q7: 26% 26%
B8: Number of budget periods: | D8: =ROUNDUP(totalyrs,0) -> 1 | N8: Other Sponsored Programs | P8: 45% 45% | Q8: 26% 26%
N9: DoD Contracts | P9: 54% 54% | Q9: 29% 29%
N10: Clinical Trials (Non-Federal) | P10: 28% 28% | Q10: 28% 28%
N11: IPA's | Q11: 0.0975
A12: WARNING! | B12: ANY INFORMATION YOU ENTER INTO A GREEN SHADED AREA WILL PERMANENTLY OVERWRITE EXISTING FORMULAS. | N12: Modifying Notes and Calculations
A13: Expense Categories | B13: Year 1 | C13: Year 2 | D13: Year 3 | E13: Year 4 | F13: Year 5 | G13: Year 6 | H13: Year 7 | I13: Year 8 | J13: Year 9 | K13: Year 10 | L13: Totals | M13: Modifiers | N13: =B13 -> Year 1 | O13: Year 2 | P13: Year 3 | Q13: Year 4 | R13: Year 5 | S13: Year 6 | T13: Year 7 | U13: Year 8 | V13: Year 9 | W13: Year 10
A14: Salaries | B14: ='Salary Detail'!K64 -> 0 | C14: =IF(totalyrs>1,'Salary Detail'!C119,0) -> 0 | D14: =IF(totalyrs>2,'Salary Detail'!L119,0) -> 0 | E14: =IF(totalyrs>3,'Salary Detail'!C173,0) -> 0 | F14: =IF(totalyrs>4,'Salary Detail'!L173,0) -> 0 | G14: =IF(totalyrs>5,'Salary Detail'!C229,0) -> 0 | H14: =IF(totalyrs>6,'Salary Detail'!L229,0) -> 0 | I14: =IF(totalyrs>7,'Salary Detail'!C283,0) -> 0 | J14: =IF(totalyrs>8,'Salary Detail'!L283,0) -> 0 | K14: =IF(totalyrs>9,'Salary Detail'!C337,0) -> 0 | L14: =SUM(B14:K14) -> 0
A15: Fringe Benefits | B15: ='Salary Detail'!M64 -> 0 | C15: =IF(totalyrs>1,'Salary Detail'!E119,0) -> 0 | D15: =IF(totalyrs>2,'Salary Detail'!M119,0) -> 0 | E15: =IF(totalyrs>3,'Salary Detail'!E173,0) -> 0 | F15: =IF(totalyrs>4,'Salary Detail'!M173,0) -> 0 | G15: =IF(totalyrs>5,'Salary Detail'!E229,0) -> 0 | H15: =IF(totalyrs>6,'Salary Detail'!M229,0) -> 0 | I15: =IF(totalyrs>7,'Salary Detail'!E283,0) -> 0 | J15: =IF(totalyrs>8,'Salary Detail'!M283,0) -> 0 | K15: =IF(totalyrs>9,'Salary Detail'!E337,0) -> 0 | L15: 0
A16: Total Personnel | B16: =SUM(B14+B15) -> 0 | C16: 0 | D16: 0 | E16: 0 | F16: 0 | G16: 0 | H16: 0 | I16: 0 | J16: 0 | K16: 0 | L16: 0 | M16: 0.03 | N16: = Inflation factor used to increase all categories in subsequent years, unless the cells are over-ridden with other data
A17: Consultants | B17: 0 | C17: =IF($D$8>1,(B17*(1+inflationpcnt)),0) -> 0 | D17: =IF($D$8>2,(C17*(1+inflationpcnt)),0) -> 0 | E17: =IF($D$8>3,(D17*(1+inflationpcnt)),0) -> 0 | F17: =IF($D$8>4,(E17*(1+inflationpcnt)),0) -> 0 | G17: =IF($D$8>5,(F17*(1+inflationpcnt)),0) -> 0 | H17: =IF($D$8>6,(G17*(1+inflationpcnt)),0) -> 0 | I17: =IF($D$8>7,(H17*(1+inflationpcnt)),0) -> 0 | J17: =IF($D$8>8,(I17*(1+inflationpcnt)),0) -> 0 | K17: =IF($D$8>9,(J17*(1+inflationpcnt)),0) -> 0 | L17: 0 | M17: Inflation Factor
A18: Equipment > $5,000/unit | B18: 0 | C18: =IF($D$8>1,(B18*(1+inflationpcnt)),0) -> 0 | D18: 0 | E18: 0 | F18: 0 | G18: 0 | H18: 0 | I18: 0 | J18: 0 | K18: 0 | L18: =SUM(B18:K18) -> 0 | M18: F&A Modifier | N18: =IF('Salary Detail'!F19="X",-B18,0) -> 0 | O18: =IF('Salary Detail'!F19="X",-C18,0) -> 0 | P18: =IF('Salary Detail'!F19="X",-D18,0) -> 0 | Q18: =IF('Salary Detail'!F19="X",-E18,0) -> 0 | R18: =IF('Salary Detail'!F19="X",-F18,0) -> 0 | S18: =IF('Salary Detail'!F19="X",-G18,0) -> 0 | T18: =IF('Salary Detail'!F19="X",-H18,0) -> 0 | U18: =IF('Salary Detail'!F19="X",-I18,0) -> 0 | V18: =IF('Salary Detail'!F19="X",-J18,0) -> 0 | W18: =IF('Salary Detail'!F19="X",-K18,0) -> 0
A19: Supplies | C19: 0 | D19: 0 | E19: 0 | F19: 0 | G19: 0 | H19: 0 | I19: 0 | J19: 0 | K19: 0 | L19: 0
A20: Travel | C20: 0 | D20: 0 | E20: 0 | F20: 0 | G20: 0 | H20: 0 | I20: 0 | J20: 0 | K20: 0 | L20: 0
A21: Patient Care Costs | B21: 0 | C21: 0 | D21: 0 | E21: 0 | F21: 0 | G21: 0 | H21: 0 | I21: 0 | J21: 0 | K21: 0 | L21: 0 | M21: F&A Modifier | N21: =IF('Salary Detail'!F19="X",-B21,0) -> 0 | O21: =IF('Salary Detail'!F19="X",-C21,0) -> 0 | P21: =IF('Salary Detail'!F19="X",-D21,0) -> 0 | Q21: =IF('Salary Detail'!F19="X",-E21,0) -> 0 | R21: =IF('Salary Detail'!F19="X",-F21,0) -> 0 | S21: =IF('Salary Detail'!F19="X",-G21,0) -> 0 | T21: =IF('Salary Detail'!F19="X",-H21,0) -> 0 | U21: =IF('Salary Detail'!F19="X",-I21,0) -> 0 | V21: =IF('Salary Detail'!F19="X",-J21,0) -> 0 | W21: =IF('Salary Detail'!F19="X",-K21,0) -> 0
A22: Participant Incentives | B22: 0 | C22: 0 | D22: 0 | E22: 0 | F22: 0 | G22: 0 | H22: 0 | I22: 0 | J22: 0 | K22: 0 | L22: 0
A23: Building Renovations | B23: 0 | C23: 0 | D23: 0 | E23: 0 | F23: 0 | G23: 0 | H23: 0 | I23: 0 | J23: 0 | K23: 0 | L23: 0 | M23: F&A Modifier | N23: =IF('Salary Detail'!F19="X",-B23,0) -> 0 | O23: =IF('Salary Detail'!F19="X",-C23,0) -> 0 | P23: =IF('Salary Detail'!F19="X",-D23,0) -> 0 | Q23: =IF('Salary Detail'!F19="X",-E23,0) -> 0 | R23: =IF('Salary Detail'!F19="X",-F23,0) -> 0 | S23: =IF('Salary Detail'!F19="X",-G23,0) -> 0 | T23: =IF('Salary Detail'!F19="X",-H23,0) -> 0 | U23: =IF('Salary Detail'!F19="X",-I23,0) -> 0 | V23: =IF('Salary Detail'!F19="X",-J23,0) -> 0 | W23: =IF('Salary Detail'!F19="X",-K23,0) -> 0
A24: Other Expenses:
A25: Contractual | C25: 0 | D25: 0 | E25: 0 | F25: 0 | G25: =IF($D$8>5,(F25*(1+inflationpcnt)),0) -> 0 | H25: =IF($D$8>6,(G25*(1+inflationpcnt)),0) -> 0 | I25: =IF($D$8>7,(H25*(1+inflationpcnt)),0) -> 0 | J25: =IF($D$8>8,(I25*(1+inflationpcnt)),0) -> 0 | K25: =IF($D$8>9,(J25*(1+inflationpcnt)),0) -> 0 | L25: 0
A26: UH Contractual | B26: ='UH Employees'!N63 -> 0 | C26: ='UH Employees'!F123 -> 0 | D26: ='UH Employees'!N123 -> 0 | E26: ='UH Employees'!F195 -> 0 | F26: ='UH Employees'!N195 -> 0 | G26: ='UH Employees'!F267 -> 0 | H26: ='UH Employees'!N267 -> 0 | I26: ='UH Employees'!F339 -> 0 | J26: ='UH Employees'!N339 -> 0 | K26: ='UH Employees'!F411 -> 0 | L26: 0
A27: Postage/Shipping | B27: 0 | C27: 0 | D27: 0 | E27: 0 | F27: 0 | G27: =IF($D$8>5,(F27*(1+inflationpcnt)),0) -> 0 | H27: =IF($D$8>6,(G27*(1+inflationpcnt)),0) -> 0 | I27: =IF($D$8>7,(H27*(1+inflationpcnt)),0) -> 0 | J27: =IF($D$8>8,(I27*(1+inflationpcnt)),0) -> 0 | K27: =IF($D$8>9,(J27*(1+inflationpcnt)),0) -> 0 | L27: 0 | Y27: TWOSUM | Z27: THREESUM | AA27: FOURSUM | AB27: FIVESUM | AC27: SIXSUM | AD27: SEVENSUM | AE27: EIGHTSUM | AF27: NINESUM | AG27: TENSUM
A28: Animal Maint. Costs | B28: 0 | C28: 0 | D28: 0 | E28: 0 | F28: 0 | G28: 0 | H28: 0 | I28: 0 | J28: 0 | K28: 0 | L28: 0
A29: Equip. < $5,001 | B29: 0 | C29: 0 | D29: =IF($D$8>2,(C29*(1+inflationpcnt)),0) -> 0 | E29: =IF($D$8>3,(D29*(1+inflationpcnt)),0) -> 0 | F29: =IF($D$8>4,(E29*(1+inflationpcnt)),0) -> 0 | G29: 0 | H29: 0 | I29: 0 | J29: 0 | K29: 0 | L29: 0
A30: Printing/Duplication | B30: 0 | C30: =IF($D$8>1,(B30*(1+inflationpcnt)),0) -> 0 | D30: 0 | E30: 0 | F30: 0 | G30: 0 | H30: 0 | I30: 0 | J30: 0 | K30: 0 | L30: 0
A31: Student Tuition | B31: 0 | C31: =IF($D$8>1,(B31*(1+inflationpcnt)),0) -> 0 | D31: 0 | E31: 0 | F31: 0 | G31: 0 | H31: 0 | I31: 0 | J31: 0 | K31: 0 | L31: =SUM(B31:K31) -> 0 | M31: F&A Modifier | N31: =IF('Salary Detail'!F19="X",-B31,0) -> 0 | O31: =IF('Salary Detail'!F19="X",-C31,0) -> 0 | P31: =IF('Salary Detail'!F19="X",-D31,0) -> 0 | Q31: =IF('Salary Detail'!F19="X",-E31,0) -> 0 | R31: =IF('Salary Detail'!F19="X",-F31,0) -> 0 | S31: =IF('Salary Detail'!F19="X",-G31,0) -> 0 | T31: =IF('Salary Detail'!F19="X",-H31,0) -> 0 | U31: =IF('Salary Detail'!F19="X",-I31,0) -> 0 | V31: =IF('Salary Detail'!F19="X",-J31,0) -> 0 | W31: =IF('Salary Detail'!F19="X",-K31,0) -> 0
A32: Student Costs | B32: 0 | C32: =IF($D$8>1,(B32*(1+inflationpcnt)),0) -> 0 | D32: 0 | E32: 0 | F32: 0 | G32: 0 | H32: 0 | I32: 0 | J32: 0 | K32: 0 | L32: =SUM(B32:K32) -> 0 | M32: F&A Modifier | N32: =IF('Salary Detail'!F19="X",-B32,0) -> 0 | O32: =IF('Salary Detail'!F19="X",-C32,0) -> 0 | P32: =IF('Salary Detail'!F19="X",-D32,0) -> 0 | Q32: =IF('Salary Detail'!F19="X",-E32,0) -> 0 | R32: =IF('Salary Detail'!F19="X",-F32,0) -> 0 | S32: =IF('Salary Detail'!F19="X",-G32,0) -> 0 | T32: =IF('Salary Detail'!F19="X",-H32,0) -> 0 | U32: =IF('Salary Detail'!F19="X",-I32,0) -> 0 | V32: =IF('Salary Detail'!F19="X",-J32,0) -> 0 | W32: =IF('Salary Detail'!F19="X",-K32,0) -> 0
A33: Building Space/Rental | B33: 0 | C33: =IF($D$8>1,(B33*(1+inflationpcnt)),0) -> 0 | D33: 0 | E33: 0 | F33: 0 | G33: 0 | H33: 0 | I33: 0 | J33: 0 | K33: 0 | L33: 0 | M33: F&A Modifier | N33: =IF('Salary Detail'!F19="X",-B33,0) -> 0 | O33: =IF('Salary Detail'!F19="X",-C33,0) -> 0 | P33: =IF('Salary Detail'!F19="X",-D33,0) -> 0 | Q33: =IF('Salary Detail'!F19="X",-E33,0) -> 0 | R33: =IF('Salary Detail'!F19="X",-F33,0) -> 0 | S33: =IF('Salary Detail'!F19="X",-G33,0) -> 0 | T33: =IF('Salary Detail'!F19="X",-H33,0) -> 0 | U33: =IF('Salary Detail'!F19="X",-I33,0) -> 0 | V33: =IF('Salary Detail'!F19="X",-J33,0) -> 0 | W33: =IF('Salary Detail'!F19="X",-K33,0) -> 0 | Y33: Sum of 2 yrs | Z33: Sum of 3 yrs | AA33: Sum of 4 yrs | AB33: Sum of 5 yrs | AC33: Sum of 6 yrs | AD33: Sum of 7 yrs | AE33: Sum of 8 yrs | AF33: Sum of 9 yrs | AG33: Sum of 10 yrs
A34: All Other | B34: 0 | C34: =IF($D$8>1,(B34*(1+inflationpcnt)),0) -> 0 | D34: 0 | E34: 0 | F34: 0 | G34: 0 | H34: 0 | I34: 0 | J34: 0 | K34: 0 | L34: 0
A35: Subtotal Other Expenses | B35: =SUM(B25:B34) -> 0 | C35: 0 | D35: 0 | E35: 0 | F35: 0 | G35: 0 | H35: 0 | I35: 0 | J35: 0 | K35: 0 | L35: =SUM(L25:L34) -> 0
A36: Subtotal UNM Direct Expenses | B36: =B16+(SUM(B17:B23))+B35 -> 0 | C36: =+C16+(SUM(C17:C23))+C35 -> 0 | D36: 0 | E36: 0 | F36: 0 | G36: 0 | H36: 0 | I36: 0 | J36: 0 | K36: 0 | L36: 0 | M36: Subtotal
A37: Subawards Direct Costs | B37: =Subcontracts!D61 -> 0 | C37: =Subcontracts!E61 -> 0 | D37: =Subcontracts!F61 -> 0 | E37: =Subcontracts!G61 -> 0 | F37: =Subcontracts!H61 -> 0 | G37: =Subcontracts!I61 -> 0 | H37: =Subcontracts!J61 -> 0 | I37: =Subcontracts!K61 -> 0 | J37: =Subcontracts!L61 -> 0 | K37: =Subcontracts!M61 -> 0 | L37: =SUM(B37:K37) -> 0 | M37: 25000 | N37: =IF('Salary Detail'!F19="X",[2]Subcontracts!D63,0) -> 0 | O37: =IF('Salary Detail'!F19="X",[2]Subcontracts!E63,0) -> 0 | P37: =IF('Salary Detail'!F19="X",[2]Subcontracts!F63,0) -> 0 | Q37: =IF('Salary Detail'!F19="X",[2]Subcontracts!G63,0) -> 0 | R37: =IF('Salary Detail'!F19="X",[2]Subcontracts!H63,0) -> 0 | S37: =IF('Salary Detail'!F19="X",[2]Subcontracts!I63,0) -> 0 | T37: =IF('Salary Detail'!F19="X",[2]Subcontracts!J63,0) -> 0 | U37: =IF('Salary Detail'!F19="X",[2]Subcontracts!K63,0) -> 0 | V37: =IF('Salary Detail'!F19="X",[2]Subcontracts!L63,0) -> 0 | W37: =IF('Salary Detail'!F19="X",[2]Subcontracts!M63,0) -> 0 | Y37: =B37+C37 -> 0 | Z37: =D37+Y37 -> 0 | AA37: 0 | AB37: 0 | AC37: 0 | AD37: 0 | AE37: 0 | AF37: 0 | AG37: 0
A38: Subtotal Direct Costs | B38: =SUM(B16:B23)+SUM(B35+B37) -> 0 | C38: =SUM(C16:C23)+SUM(C35+C37) -> 0 | D38: 0 | E38: 0 | F38: 0 | G38: 0 | H38: 0 | I38: 0 | J38: 0 | K38: 0 | L38: =SUM(L16:L23)+L35+L37 -> 0 | M38: Qualifier | N38: =SUM(N18:N37) -> 0 | O38: 0 | P38: 0 | Q38: 0 | R38: 0 | S38: 0 | T38: 0 | U38: 0 | V38: 0 | W38: 0
A39: Modules (If Modular Budget) | B39: =IF(OR($I$7="x",$I$7="X"),25000*SUM(ROUND(SUM((B$16:B$23),(B$35+B$37))/25000,0)),0) -> 0 | C39: 0 | D39: 0 | E39: 0 | F39: 0 | G39: 0 | H39: 0 | I39: 0 | J39: 0 | K39: 0 | L39: =SUM(B39:K39) -> 0
A40: Subaward F&A Costs | B40: =Subcontracts!D62 -> 0 | C40: =Subcontracts!E62 -> 0 | D40: =Subcontracts!F62 -> 0 | E40: =Subcontracts!G62 -> 0 | F40: =Subcontracts!H62 -> 0 | G40: =Subcontracts!I62 -> 0 | H40: =Subcontracts!J62 -> 0 | I40: =Subcontracts!K62 -> 0 | J40: =Subcontracts!L62 -> 0 | K40: =Subcontracts!M62 -> 0 | L40: =SUM(B40:K40) -> 0
A41: Total Direct Costs | B41: =IF(OR($I$7="x",$I$7="X"),SUM(B$39+B$40),SUM(B$38+B$40)) -> 0 | C41: =IF(OR($I$7="x",$I$7="X"),SUM(C$39+C$40),SUM(C$38+C$40)) -> 0 | D41: 0 | E41: 0 | F41: 0 | G41: 0 | H41: 0 | I41: 0 | J41: 0 | K41: 0 | L41: 0
A42: Research MDC (51.5%) | B42: =IF('Salary Detail'!$B$20=0,(IF(('Salary Detail'!$B$15="X")*AND('Salary Detail'!$B$17="X"),IF(O53*B45>=0,O53*B45,0))),0) -> FALSE | C42: =IF('Salary Detail'!$B$20=0,(IF(('Salary Detail'!$B$15="X")*AND('Salary Detail'!$B$17="X"),IF(ENDDATE<CURRENTFYE,(C45)/365*DATEDIF(ENDDATE,CURRENTFYE,"d"),IF(ABS(1-P53)*C45>0,IF(ABS(1-P53)=1,P53*C45,ABS(1-P53)*C45),0)))),0) -> FALSE | D42: =IF('Salary Detail'!$B$20=0,(IF(('Salary Detail'!$B$15="X")*AND('Salary Detail'!$B$17="X"),IF(Q53*D45>0,Q53*D45,0))),0) -> FALSE | E42: =IF('Salary Detail'!$B$20=0,(IF(('Salary Detail'!$B$15="X")*AND('Salary Detail'!$B$17="X"),IF(R53*E45>0,R53*E45,0))),0) -> FALSE | F42: =IF('Salary Detail'!$B$20=0,(IF(('Salary Detail'!$B$15="X")*AND('Salary Detail'!$B$17="X"),IF(S53*F45>0,S53*F45,0))),0) -> FALSE | G42: =IF('Salary Detail'!$B$20=0,(IF(('Salary Detail'!$B$15="X")*AND('Salary Detail'!$B$17="X"),IF(T53*G45>0,T53*G45,0))),0) -> FALSE | H42: =IF('Salary Detail'!$B$20=0,(IF(('Salary Detail'!$B$15="X")*AND('Salary Detail'!$B$17="X"),IF(U53*H45>0,U53*H45,0))),0) -> FALSE | I42: =IF('Salary Detail'!$B$20=0,(IF(('Salary Detail'!$B$15="X")*AND('Salary Detail'!$B$17="X"),IF(V53*I45>0,V53*I45,0))),0) -> FALSE | J42: =IF('Salary Detail'!$B$20=0,(IF(('Salary Detail'!$B$15="X")*AND('Salary Detail'!$B$17="X"),IF(W53*J45>0,W53*J45,0))),0) -> FALSE | K42: =IF('Salary Detail'!$B$20=0,(IF(('Salary Detail'!$B$15="X")*AND('Salary Detail'!$B$17="X"),IF(X53*K45>0,X53*K45,0))),0) -> FALSE | L42: 0 | M42: On-Campus
M43: On-Campus
A44: Research MDC (52.5%) | B44: =IF('Salary Detail'!$B$20=0,(IF('Salary Detail'!$B$20=0,(IF(('Salary Detail'!$B$15="X")*AND('Salary Detail'!$B$17="X"),SUM(B45-B42),0)),0)),0) -> 0 | C44: =IF('Salary Detail'!$B$20=0,(IF('Salary Detail'!$B$20=0,(IF(('Salary Detail'!$B$15="X")*AND('Salary Detail'!$B$17="X"),SUM(C45-C42),0)),0)),0) -> 0 | D44: =IF('Salary Detail'!$B$20=0,(IF('Salary Detail'!$B$20=0,(IF(('Salary Detail'!$B$15="X")*AND('Salary Detail'!$B$17="X"),SUM(D45-D42),0)),0)),0) -> 0 | E44: =IF('Salary Detail'!$B$20=0,(IF('Salary Detail'!$B$20=0,(IF(('Salary Detail'!$B$15="X")*AND('Salary Detail'!$B$17="X"),SUM(E45-E42),0)),0)),0) -> 0 | F44: =IF('Salary Detail'!$B$20=0,(IF('Salary Detail'!$B$20=0,(IF(('Salary Detail'!$B$15="X")*AND('Salary Detail'!$B$17="X"),SUM(F45-F42),0)),0)),0) -> 0 | G44: =IF('Salary Detail'!$B$20=0,(IF('Salary Detail'!$B$20=0,(IF(('Salary Detail'!$B$15="X")*AND('Salary Detail'!$B$17="X"),SUM(G45-G42),0)),0)),0) -> 0 | H44: =IF('Salary Detail'!$B$20=0,(IF('Salary Detail'!$B$20=0,(IF(('Salary Detail'!$B$15="X")*AND('Salary Detail'!$B$17="X"),SUM(H45-H42),0)),0)),0) -> 0 | I44: =IF('Salary Detail'!$B$20=0,(IF('Salary Detail'!$B$20=0,(IF(('Salary Detail'!$B$15="X")*AND('Salary Detail'!$B$17="X"),SUM(I45-I42),0)),0)),0) -> 0 | J44: =IF('Salary Detail'!$B$20=0,(IF('Salary Detail'!$B$20=0,(IF(('Salary Detail'!$B$15="X")*AND('Salary Detail'!$B$17="X"),SUM(J45-J42),0)),0)),0) -> 0 | K44: =IF('Salary Detail'!$B$20=0,(IF('Salary Detail'!$B$20=0,(IF(('Salary Detail'!$B$15="X")*AND('Salary Detail'!$B$17="X"),SUM(K45-K42),0)),0)),0) -> 0 | L44: 0 | M44: Research
A45: Total Modified Direct Cost | B45: =B41+N38+Subcontracts!D63 -> 0 | C45: =C41+O38+Subcontracts!E63 -> 0 | D45: =D41+P38+Subcontracts!F63 -> 0 | E45: =E41+Q38+Subcontracts!G63 -> 0 | F45: =F41+R38+Subcontracts!H63 -> 0 | G45: =G41+S38+Subcontracts!I63 -> 0 | H45: =H41+T38+Subcontracts!J63 -> 0 | I45: =I41+U38+Subcontracts!K63 -> 0 | J45: =J41+V38+Subcontracts!L63 -> 0 | K45: =K41+W38+Subcontracts!M63 -> 0 | L45: 0 | M45: F&A Cost Rates
A47: UNM F&A Costs (51.5%) | B47: =ROUND(B42*0.515,0) -> 0 | C47: 0 | D47: 0 | E47: 0 | F47: 0 | G47: 0 | H47: 0 | I47: 0 | J47: 0 | K47: 0 | L47: 0
A48: UNM F&A Costs (52.5%) | B48: =ROUND(B44*0.525,0) -> 0 | C48: 0 | D48: 0 | E48: 0 | F48: 0 | G48: 0 | H48: 0 | I48: 0 | J48: 0 | K48: 0 | L48: 0
A49: Total UNM F & A Costs | B49: =IF($M$49>0, ROUND(B45*$M$49,SUM(B42+B44)),SUM(B47+B48)) -> 0 | C49: =IF($M$49>0, ROUND(C45*$M$49,SUM(C42+C44)),SUM(C47+C48)) -> 0 | D49: 0 | E49: 0 | F49: 0 | G49: 0 | H49: 0 | I49: 0 | J49: 0 | K49: 0 | L49: =SUM(B49:K49) -> 0 | M49: =IF(AND('Salary Detail'!B15="X",'Salary Detail'!B17="X",'Salary Detail'!B20=0), 0,IF('Salary Detail'!C20>0,'Salary Detail'!C20, 0)) -> 0 | O49: MDC Ratio Table for On-Campus Research F&A Rates
A50: Total Project Costs | B50: =B41+B49 -> 0 | C50: 0 | D50: 0 | E50: 0 | F50: 0 | G50: 0 | H50: 0 | I50: 0 | J50: 0 | K50: 0 | L50: 0 | M50: F&A Rate
O51: Year 1 | P51: Year 2 | Q51: Year 3 | R51: Year 4 | S51: Year 5 | T51: Year 6 | U51: Year 7 | V51: Year 8 | W51: Year 9 | X51: Year 10
A52: SIMPLIFIED TABLE | I52: All fields are protected EXCEPT the shaded areas. | O52: MDC | P52: MDC | Q52: MDC | R52: MDC | S52: MDC | T52: MDC | U52: MDC | V52: MDC | W52: MDC | X52: MDC
A53: =IF($I$7>0, "Modular Format"," ") ->  | B53: 1st Year | C53: 2nd Year | D53: 3rd Year | E53: 4th Year | F53: 5th Year | G53: TOTALS | N53: Rate 1 | O53: =IF(('Salary Detail'!$B$15="X")*AND('Salary Detail'!$B$17="X"),IF(ENDDATE<CURRENTFYE,GetFARatio(0,STARTDATE),GetFARatio(1,STARTDATE)),0) -> 0 | P53: =IF(('Salary Detail'!$B$15="X")*AND('Salary Detail'!$B$17="X"),IF(ENDDATE<CURRENTFYE,GetFARatio(1,STARTDATE),GetFARatio(2,STARTDATE)),0) -> 0 | Q53: =IF(('Salary Detail'!$B$15="X")*AND('Salary Detail'!$B$17="X"),GetFARatio(3,STARTDATE),0) -> 0 | R53: =IF(('Salary Detail'!$B$15="X")*AND('Salary Detail'!$B$17="X"),GetFARatio(4,STARTDATE),0) -> 0 | S53: =IF(('Salary Detail'!$B$15="X")*AND('Salary Detail'!$B$17="X"),GetFARatio(5,STARTDATE),0) -> 0 | T53: =IF(('Salary Detail'!$B$15="X")*AND('Salary Detail'!$B$17="X"),GetFARatio(6,STARTDATE),0) -> 0 | U53: =IF(('Salary Detail'!$B$15="X")*AND('Salary Detail'!$B$17="X"),GetFARatio(7,STARTDATE),0) -> 0 | V53: =IF(('Salary Detail'!$B$15="X")*AND('Salary Detail'!$B$17="X"),GetFARatio(8,STARTDATE),0) -> 0 | W53: =IF(('Salary Detail'!$B$15="X")*AND('Salary Detail'!$B$17="X"),GetFARatio(9,STARTDATE),0) -> 0 | X53: =IF(('Salary Detail'!$B$15="X")*AND('Salary Detail'!$B$17="X"),GetFARatio(10,STARTDATE),0) -> 0
A54: Total Modified Direct Costs | B54: =IF($I$7="X",B76,B45) -> 0 | C54: =IF($I$7="X",C76,C45) -> 0 | D54: =IF($I$7="X",D76,D45) -> 0 | E54: =IF($I$7="X",E76,E45) -> 0 | F54: =IF($I$7="X",F76,F45) -> 0 | G54: =SUM(B54:F54) -> 0 | I54: Yellow | J54: Input areas. Enter as applicable.
I55: NOTE: Inflation Factor on costs must be entered. Enter zero if inapplicable.
I56: NOTE: Inflation Factor on costs must be entered. Enter zero if inapplicable.
A57: MDC for Rate #1 | B57: =IF($I$7="X",B77,IF(B41>0,(B42),0)) -> 0 | C57: =IF($I$7="X",C77,IF(C41>0,(C42),0)) -> 0 | D57: =IF($I$7="X",D77,IF(D41>0,(D42),0)) -> 0 | E57: =IF($I$7="X",E77,IF(E41>0,(E42),0)) -> 0 | F57: =IF($I$7="X",F77,IF(F41>0,(F42),0)) -> 0 | G57: 0 | I57: NOTE: Inflation Factor on costs must be entered. Enter zero if inapplicable.
A58: MDC for Rate | B58: =IF($I$7="X",B78,IF(B41>0,(B44),0)) -> 0 | C58: =IF($I$7="X",C78,IF(C41>0,(C44),0)) -> 0 | D58: =IF($I$7="X",D78,IF(D41>0,(D44),0)) -> 0 | E58: =IF($I$7="X",E78,IF(E41>0,(E44),0)) -> 0 | F58: =IF($I$7="X",F78,IF(F41>0,(F44),0)) -> 0 | G58: 0
A59: Subtotal Direct Costs | B59: =IF($I$7="X",B75,(((SUM(B17:B24))+SUM(B36+B38)))) -> 0 | C59: =IF($I$7="X",C75,(((SUM(C17:C24))+SUM(C36+C38)))) -> 0 | D59: =IF($I$7="X",D75,(((SUM(D17:D24))+SUM(D36+D38)))) -> 0 | E59: =IF($I$7="X",E75,(((SUM(E17:E24))+SUM(E36+E38)))) -> 0 | F59: =IF($I$7="X",F75,(((SUM(F17:F24))+SUM(F36+F38)))) -> 0 | G59: 0 | I59: Green | J59: These fields calculate an increase over the previous year's
A60: Subaward F&A Costs | B60: =B40 -> 0 | C60: =C40 -> 0 | D60: =D40 -> 0 | E60: =E40 -> 0 | F60: =F40 -> 0 | G60: 0 | I60: expense by the inflation factor entered in the "Modifiers" column on the "Supplies"
A61: TOTAL Direct Costs | B61: =B59+B60 -> 0 | C61: =C59+C60 -> 0 | D61: =D59+D60 -> 0 | E61: =E59+E60 -> 0 | F61: =F59+F60 -> 0 | G61: 0 | I61: line. These fields are unprotected and figures can be altered if you need to enter
I62: an amount other than those calculated by the spreadsheet in subsequent years.
A63: F&A Costs Rate #1 | B63: =IF($I$7="X",B80,(IF(B41>0,B47,0))) -> 0 | C63: =IF($I$7="X",C80,(IF(C41>0,C47,0))) -> 0 | D63: =IF($I$7="X",D80,(IF(D41>0,D47,0))) -> 0 | E63: =IF($I$7="X",E80,(IF(E41>0,E47,0))) -> 0 | F63: =IF($I$7="X",F80,(IF(F41>0,F47,0))) -> 0 | G63: 0
A64: F&A Costs Rate | B64: =IF($I$7="X",B81,(IF(B41>0,B48,0))) -> 0 | C64: =IF($I$7="X",C81,(IF(C41>0,C48,0))) -> 0 | D64: =IF($I$7="X",D81,(IF(D41>0,D48,0))) -> 0 | E64: =IF($I$7="X",E81,(IF(E41>0,E48,0))) -> 0 | F64: =IF($I$7="X",F81,(IF(F41>0,F48,0))) -> 0 | G64: 0
A65: Total UNM F & A Costs | B65: =IF($I$7="X",B82,B49) -> 0 | C65: =IF($I$7="X",C82,C49) -> 0 | D65: =IF($I$7="X",D82,D49) -> 0 | E65: =IF($I$7="X",E82,E49) -> 0 | F65: =IF($I$7="X",F82,F49) -> 0 | G65: 0
A66: TOTAL Project Costs | B66: =SUM(B61+B65) -> 0 | C66: =SUM(C61+C65) -> 0 | D66: =SUM(D61+D65) -> 0 | E66: =SUM(E61+E65) -> 0 | F66: =SUM(F61+F65) -> 0 | G66: 0
O72: Modular Calculations based on $25,000/module
A73: MODULAR | O73: =IF(O74<150,(ROUND((L38/D8)/25000,0)),(ROUND(((L38/D8)/25000)+1,0))) -> 0 | P73: =IF($I$7>0,(O73*25000),0) -> 0 | Q73: per year
A74: Modular Variance | B74: =IF($I$7="X",B39-B75,0) -> 0 | C74: =IF($I$7="X",C39-C75,0) -> 0 | D74: =IF($I$7>0,D39-D75,0) -> 0 | E74: =IF($I$7>0,E39-E75,0) -> 0 | F74: =IF($I$7>0,F39-F75,0) -> 0 | H74: =SUM(B74:F74) -> 0 | O74: =(L38)-((ROUND((L38/D8)/25000,0))*25000)*D8 -> 0 | P74: Actual- | Q74: Modular Deficit
A75: Subtotal Direct Costs | B75: =IF($I$7="X",IF(B91>0,B91,(IF($I$7>0,IF(B41=0,0,($P$73))))),0) -> 0 | C75: =IF($I$7="X",IF(C91>0,C91,(IF($I$7>0,IF(C41=0,0,($P$73))))),0) -> 0 | D75: =IF($I$7="X",IF(D91>0,D91,(IF($I$7>0,IF(D41=0,0,($P$73))))),0) -> 0 | E75: =IF($I$7="X",IF(E91>0,E91,(IF($I$7>0,IF(E41=0,0,($P$73))))),0) -> 0 | F75: =IF($I$7="X",IF(F91>0,F91,(IF($I$7>0,IF(F41=0,0,($P$73))))),0) -> 0 | H75: 0
A76: Total Modified Direct Costs | B76: =IF(($I$7="X")*AND(B75+B40+N39>0),(B75+B40+N39),0) -> 0 | C76: =IF(($I$7="X")*AND(C75+C40+O39>0),(C75+C40+O39),0) -> 0 | D76: =IF(($I$7="X")*AND(D75+D40+P39>0),(D75+D40+P39),0) -> 0 | E76: =IF(($I$7="X")*AND(E75+E40+Q39)>0,(E75+E40+Q39),0) -> 0 | F76: =IF(($I$7="X")*AND(F75+F40+R39>0),(F75+F40+R39),0) -> 0 | H76: 0
A77: Research MDC (50.5%) | B77: =IF($I$7="X",IF('Salary Detail'!$B$20=0,(IF(('Salary Detail'!$B$15="X")*AND('Salary Detail'!$B$17="X"),IF(O53*B76>0,O53*B76,0))),0),0) -> 0 | C77: =IF('Salary Detail'!$B$20=0,(IF(('Salary Detail'!$B$15="X")*AND('Salary Detail'!$B$17="X"),IF(P53*C76>0,P53*C76,0))),0) -> FALSE | D77: =IF('Salary Detail'!$B$20=0,(IF(('Salary Detail'!$B$15="X")*AND('Salary Detail'!$B$17="X"),IF(Q53*D76>0,Q53*D76,0))),0) -> FALSE | E77: =IF('Salary Detail'!$B$20=0,(IF(('Salary Detail'!$B$15="X")*AND('Salary Detail'!$B$17="X"),IF(R53*E76>0,R53*E76,0))),0) -> FALSE | F77: =IF('Salary Detail'!$B$20=0,(IF(('Salary Detail'!$B$15="X")*AND('Salary Detail'!$B$17="X"),IF(S53*F76>0,S53*F76,0))),0) -> FALSE | H77: 0
A78: Research MDC (51%) | B78: =IF('Salary Detail'!$B$20=0,(IF('Salary Detail'!$B$20=0,(IF(('Salary Detail'!$B$15="X")*AND('Salary Detail'!$B$17="X"),SUM(B76-B77),0)),0)),0) -> 0 | C78: =IF('Salary Detail'!$B$20=0,(IF('Salary Detail'!$B$20=0,(IF(('Salary Detail'!$B$15="X")*AND('Salary Detail'!$B$17="X"),SUM(C76-C77),0)),0)),0) -> 0 | D78: =IF('Salary Detail'!$B$20=0,(IF('Salary Detail'!$B$20=0,(IF(('Salary Detail'!$B$15="X")*AND('Salary Detail'!$B$17="X"),SUM(D76-D77),0)),0)),0) -> 0 | E78: =IF('Salary Detail'!$B$20=0,(IF('Salary Detail'!$B$20=0,(IF(('Salary Detail'!$B$15="X")*AND('Salary Detail'!$B$17="X"),SUM(E76-E77),0)),0)),0) -> 0 | F78: =IF('Salary Detail'!$B$20=0,(IF('Salary Detail'!$B$20=0,(IF(('Salary Detail'!$B$15="X")*AND('Salary Detail'!$B$17="X"),SUM(F76-F77),0)),0)),0) -> 0 | H78: 0
A79: Subaward F&A Costs | B79: =IF($I$7="X",B40,0) -> 0 | C79: =IF($I$7="X",C40,0) -> 0 | D79: =IF($I$7="X",D40,0) -> 0 | E79: =IF($I$7="X",E40,0) -> 0 | F79: =IF($I$7="X",F40,0) -> 0 | H79: 0
A80: UNM F&A Costs (51%) | B80: =IF($I$7="X",ROUND(B77*0.51,0),0) -> 0 | C80: =IF($I$7="X",ROUND(C77*0.51,0),0) -> 0 | D80: =IF($I$7="X",ROUND(D77*0.51,0),0) -> 0 | E80: =IF($I$7="X",ROUND(E77*0.51,0),0) -> 0 | F80: =IF($I$7="X",ROUND(F77*0.51,0),0) -> 0 | H80: 0
A81: UNM F&A Costs (51.5%) | B81: =IF(($I$7="X")*AND($M$48=0),B82-B80,0) -> 0 | C81: =IF(($I$7="X")*AND($M$48=0),C82-C80,0) -> 0 | D81: =IF(($I$7="X")*AND($M$48=0),D82-D80,0) -> 0 | E81: =IF(($I$7="X")*AND($M$48=0),E82-E80,0) -> 0 | F81: =IF(($I$7="X")*AND($M$48=0),F82-F80,0) -> 0 | H81: 0
A82: Total UNM F&A Costs | B82: =IF($M$48>0,B76*IDCPCNT,(ROUND((IF(O53*B76>0,O53*B76,0*B76))*0.505,0)+ROUND((IF(O53>0,(1-O53),1)*B76)*0.51,0))) -> 0 | C82: =IF($M$48>0,C76*IDCPCNT,(ROUND((IF(P53*C76>0,P53*C76,0*C76))*0.505,0)+ROUND((IF(P53>0,(1-P53),1)*C76)*0.51,0))) -> 0 | D82: =IF($M$48>0,D76*IDCPCNT,(ROUND((IF(Q53*D76>0,Q53*D76,0*D76))*0.505,0)+ROUND((IF(Q53>0,(1-Q53),1)*D76)*0.51,0))) -> 0 | E82: =IF($M$48>0,E76*IDCPCNT,(ROUND((IF(R53*E76>0,R53*E76,0*E76))*0.505,0)+ROUND((IF(R53>0,(1-R53),1)*E76)*0.51,0))) -> 0 | F82: =IF($M$48>0,F76*IDCPCNT,(ROUND((IF(S53*F76>0,S53*F76,0*F76))*0.505,0)+ROUND((IF(S53>0,(1-S53),1)*F76)*0.51,0))) -> 0 | H82: 0
A83: TOTAL Direct Costs | B83: =B75+B79 -> 0 | C83: =C75+C79 -> 0 | D83: =D75+D79 -> 0 | E83: =E75+E79 -> 0 | F83: =F75+F79 -> 0 | H83: 0
A84: TOTAL Project Cost | B84: =B82+B83 -> 0 | C84: =C82+C83 -> 0 | D84: =D82+D83 -> 0 | E84: =E82+E83 -> 0 | F84: =F82+F83 -> 0 | H84: =SUM(H82+H83) -> 0

Sheet Salary Allocation
F1: Salary Allocation Worksheet | I1: Date: | J1: =TODAY() -> 2022-06-15
F2: =IF('Salary Detail'!E8>0, CONCATENATE("Sponsor: ",'Salary Detail'!E8), " ") -> 
F3: =IF('Salary Detail'!E5>0,CONCATENATE("Principal Investigator: ",'Salary Detail'!E5)," ") -> 
F4: =IF('Salary Detail'!E6>0,CONCATENATE("Department: ",'Salary Detail'!E6)," ") -> 
F5: =IF('Salary Detail'!E7>0,CONCATENATE("“",'Salary Detail'!E7,"”")," ") -> 
A7: This spreadsheet was designed to help convert percent effort to percent of salary. It is not for budget projection purposes.
A8: To be accurate, this worksheet must be updated with current payroll information. The "green" shaded cells contain data
A9: entered in Year 1 from the Salary Detail spreadsheet. Once the formulas for these cells are overwritten with new information,
A10: the default information is no longer available and will need to be re-entered manually. If this is an NIH award, or a subcontract
A11: awarded by an NIH agency, an "X" appears here: | E11: =IF('Salary Detail'!F18=0,"",'Salary Detail'!F18) ->  | F11: Most current NIH salary cap should appear here: | J11: =IF(E11="X",'Salary Detail'!$L$18,0) -> 0
A13: Job Class | B13: Last Name | C13: First Name | D13: UNM FTE | E13: Appt. Mos. | F13: % FTE Year 1 | G13: Actual Current Salary | H13: Annualized Salary | I13: Salary Amount | J13: % of Actual Salary
A14: =IF('Salary Detail'!P24>0,'Salary Detail'!P24," ") ->  | B14: =IF('Salary Detail'!A24>0,'Salary Detail'!A24," ") ->  | C14: =IF('Salary Detail'!B24>0,'Salary Detail'!B24," ") ->  | D14: =IF('Salary Detail'!C24=0,"",'Salary Detail'!C24) ->  | E14: =IF('Salary Detail'!D24=0,"",'Salary Detail'!D24) ->  | F14: ='Salary Detail'!I24 ->  | H14: =IF(G14>0,((G14/E14)*12)/D14,0) -> 0 | I14: =IFERROR(IF(H14>$J$11,F14*$J$11,F14*H14),"") ->  | J14: =IF(G14>0,I14/G14,0) -> 0
A15: =IF('Salary Detail'!P25>0,'Salary Detail'!P25," ") ->  | B15: =IF('Salary Detail'!A25>0,'Salary Detail'!A25," ") ->  | C15: =IF('Salary Detail'!B25>0,'Salary Detail'!B25," ") ->  | D15: =IF('Salary Detail'!C25=0,"",'Salary Detail'!C25) ->  | E15: =IF('Salary Detail'!D25=0,"",'Salary Detail'!D25) ->  | F15: ='Salary Detail'!I25 ->  | H15: =IF(G15>0,((G15/E15)*12)/D15,0) -> 0 | J15: =IF(G15>0,I15/G15,0) -> 0
A16: =IF('Salary Detail'!P26>0,'Salary Detail'!P26," ") ->  | B16: =IF('Salary Detail'!A26>0,'Salary Detail'!A26," ") ->  | C16: =IF('Salary Detail'!B26>0,'Salary Detail'!B26," ") ->  | D16: =IF('Salary Detail'!C26=0,"",'Salary Detail'!C26) ->  | E16: =IF('Salary Detail'!D26=0,"",'Salary Detail'!D26) ->  | F16: ='Salary Detail'!I26 ->  | H16: =IF(G16>0,((G16/E16)*12)/D16,0) -> 0 | J16: 0
A17: =IF('Salary Detail'!P27>0,'Salary Detail'!P27," ") ->  | B17: =IF('Salary Detail'!A27>0,'Salary Detail'!A27," ") ->  | C17: =IF('Salary Detail'!B27>0,'Salary Detail'!B27," ") ->  | D17: =IF('Salary Detail'!C27=0,"",'Salary Detail'!C27) ->  | E17: =IF('Salary Detail'!D27=0,"",'Salary Detail'!D27) ->  | F17: ='Salary Detail'!I27 ->  | H17: 0 | J17: 0
A18: =IF('Salary Detail'!P28>0,'Salary Detail'!P28," ") ->  | B18: =IF('Salary Detail'!A28>0,'Salary Detail'!A28," ") ->  | C18: =IF('Salary Detail'!B28>0,'Salary Detail'!B28," ") ->  | D18: =IF('Salary Detail'!C28=0,"",'Salary Detail'!C28) ->  | E18: =IF('Salary Detail'!D28=0,"",'Salary Detail'!D28) ->  | F18: ='Salary Detail'!I28 ->  | H18: 0 | J18: 0
A19: =IF('Salary Detail'!P29>0,'Salary Detail'!P29," ") ->  | B19: =IF('Salary Detail'!A29>0,'Salary Detail'!A29," ") ->  | C19: =IF('Salary Detail'!B29>0,'Salary Detail'!B29," ") ->  | D19: =IF('Salary Detail'!C29=0,"",'Salary Detail'!C29) ->  | E19: =IF('Salary Detail'!D29=0,"",'Salary Detail'!D29) ->  | F19: ='Salary Detail'!I29 ->  | H19: 0 | J19: 0
A20: =IF('Salary Detail'!P30>0,'Salary Detail'!P30," ") ->  | B20: =IF('Salary Detail'!A30>0,'Salary Detail'!A30," ") ->  | C20: =IF('Salary Detail'!B30>0,'Salary Detail'!B30," ") ->  | D20: =IF('Salary Detail'!C30=0,"",'Salary Detail'!C30) ->  | E20: =IF('Salary Detail'!D30=0,"",'Salary Detail'!D30) ->  | F20: ='Salary Detail'!I30 ->  | H20: 0 | J20: 0
A21: =IF('Salary Detail'!P31>0,'Salary Detail'!P31," ") ->  | B21: =IF('Salary Detail'!A31>0,'Salary Detail'!A31," ") ->  | C21: =IF('Salary Detail'!B31>0,'Salary Detail'!B31," ") ->  | D21: =IF('Salary Detail'!C31=0,"",'Salary Detail'!C31) ->  | E21: =IF('Salary Detail'!D31=0,"",'Salary Detail'!D31) ->  | F21: ='Salary Detail'!I31 ->  | H21: 0 | J21: 0
A22: =IF('Salary Detail'!P32>0,'Salary Detail'!P32," ") ->  | B22: =IF('Salary Detail'!A32>0,'Salary Detail'!A32," ") ->  | C22: =IF('Salary Detail'!B32>0,'Salary Detail'!B32," ") ->  | D22: =IF('Salary Detail'!C32=0,"",'Salary Detail'!C32) ->  | E22: =IF('Salary Detail'!D32=0,"",'Salary Detail'!D32) ->  | F22: ='Salary Detail'!I32 ->  | H22: 0 | J22: 0
A23: =IF('Salary Detail'!P33>0,'Salary Detail'!P33," ") ->  | B23: =IF('Salary Detail'!A33>0,'Salary Detail'!A33," ") ->  | C23: =IF('Salary Detail'!B33>0,'Salary Detail'!B33," ") ->  | D23: =IF('Salary Detail'!C33=0,"",'Salary Detail'!C33) ->  | E23: =IF('Salary Detail'!D33=0,"",'Salary Detail'!D33) ->  | F23: ='Salary Detail'!I33 ->  | H23: 0 | J23: 0
A24: =IF('Salary Detail'!P34>0,'Salary Detail'!P34," ") ->  | B24: =IF('Salary Detail'!A34>0,'Salary Detail'!A34," ") ->  | C24: =IF('Salary Detail'!B34>0,'Salary Detail'!B34," ") ->  | D24: =IF('Salary Detail'!C34=0,"",'Salary Detail'!C34) ->  | E24: =IF('Salary Detail'!D34=0,"",'Salary Detail'!D34) ->  | F24: ='Salary Detail'!I34 ->  | H24: 0 | J24: 0
A25: =IF('Salary Detail'!P35>0,'Salary Detail'!P35," ") ->  | B25: =IF('Salary Detail'!A35>0,'Salary Detail'!A35," ") ->  | C25: =IF('Salary Detail'!B35>0,'Salary Detail'!B35," ") ->  | D25: =IF('Salary Detail'!C35=0,"",'Salary Detail'!C35) ->  | E25: =IF('Salary Detail'!D35=0,"",'Salary Detail'!D35) ->  | F25: ='Salary Detail'!I35 ->  | H25: 0 | J25: 0
A26: =IF('Salary Detail'!P36>0,'Salary Detail'!P36," ") ->  | B26: =IF('Salary Detail'!A36>0,'Salary Detail'!A36," ") ->  | C26: =IF('Salary Detail'!B36>0,'Salary Detail'!B36," ") ->  | D26: =IF('Salary Detail'!C36=0,"",'Salary Detail'!C36) ->  | E26: =IF('Salary Detail'!D36=0,"",'Salary Detail'!D36) ->  | F26: ='Salary Detail'!I36 ->  | H26: 0 | J26: 0
A27: =IF('Salary Detail'!P37>0,'Salary Detail'!P37," ") ->  | B27: =IF('Salary Detail'!A37>0,'Salary Detail'!A37," ") ->  | C27: =IF('Salary Detail'!B37>0,'Salary Detail'!B37," ") ->  | D27: =IF('Salary Detail'!C37=0,"",'Salary Detail'!C37) ->  | E27: =IF('Salary Detail'!D37=0,"",'Salary Detail'!D37) ->  | F27: ='Salary Detail'!I37 ->  | H27: 0 | J27: 0
A28: =IF('Salary Detail'!P38>0,'Salary Detail'!P38," ") ->  | B28: =IF('Salary Detail'!A38>0,'Salary Detail'!A38," ") ->  | C28: =IF('Salary Detail'!B38>0,'Salary Detail'!B38," ") ->  | D28: =IF('Salary Detail'!C38=0,"",'Salary Detail'!C38) ->  | E28: =IF('Salary Detail'!D38=0,"",'Salary Detail'!D38) ->  | F28: ='Salary Detail'!I38 ->  | H28: 0 | J28: 0
A29: =IF('Salary Detail'!P39>0,'Salary Detail'!P39," ") ->  | B29: =IF('Salary Detail'!A39>0,'Salary Detail'!A39," ") ->  | C29: =IF('Salary Detail'!B39>0,'Salary Detail'!B39," ") ->  | D29: =IF('Salary Detail'!C39=0,"",'Salary Detail'!C39) ->  | E29: =IF('Salary Detail'!D39=0,"",'Salary Detail'!D39) ->  | F29: ='Salary Detail'!I39 ->  | H29: 0 | J29: 0
A30: =IF('Salary Detail'!P40>0,'Salary Detail'!P40," ") ->  | B30: =IF('Salary Detail'!A40>0,'Salary Detail'!A40," ") ->  | C30: =IF('Salary Detail'!B40>0,'Salary Detail'!B40," ") ->  | D30: =IF('Salary Detail'!C40=0,"",'Salary Detail'!C40) ->  | E30: =IF('Salary Detail'!D40=0,"",'Salary Detail'!D40) ->  | F30: ='Salary Detail'!I40 ->  | H30: 0 | J30: 0
A31: =IF('Salary Detail'!P41>0,'Salary Detail'!P41," ") ->  | B31: =IF('Salary Detail'!A41>0,'Salary Detail'!A41," ") ->  | C31: =IF('Salary Detail'!B41>0,'Salary Detail'!B41," ") ->  | D31: =IF('Salary Detail'!C41=0,"",'Salary Detail'!C41) ->  | E31: =IF('Salary Detail'!D41=0,"",'Salary Detail'!D41) ->  | F31: ='Salary Detail'!I41 ->  | H31: 0 | J31: 0
A32: =IF('Salary Detail'!P42>0,'Salary Detail'!P42," ") ->  | B32: =IF('Salary Detail'!A42>0,'Salary Detail'!A42," ") ->  | C32: =IF('Salary Detail'!B42>0,'Salary Detail'!B42," ") ->  | D32: =IF('Salary Detail'!C42=0,"",'Salary Detail'!C42) ->  | E32: =IF('Salary Detail'!D42=0,"",'Salary Detail'!D42) ->  | F32: ='Salary Detail'!I42 ->  | H32: 0 | J32: 0
A33: =IF('Salary Detail'!P43>0,'Salary Detail'!P43," ") ->  | B33: =IF('Salary Detail'!A43>0,'Salary Detail'!A43," ") ->  | C33: =IF('Salary Detail'!B43>0,'Salary Detail'!B43," ") ->  | D33: =IF('Salary Detail'!C43=0,"",'Salary Detail'!C43) ->  | E33: =IF('Salary Detail'!D43=0,"",'Salary Detail'!D43) ->  | F33: ='Salary Detail'!I43 ->  | H33: 0 | J33: 0
A34: =IF('Salary Detail'!P44>0,'Salary Detail'!P44," ") ->  | B34: =IF('Salary Detail'!A44>0,'Salary Detail'!A44," ") ->  | C34: =IF('Salary Detail'!B44>0,'Salary Detail'!B44," ") ->  | D34: =IF('Salary Detail'!C44=0,"",'Salary Detail'!C44) ->  | E34: =IF('Salary Detail'!D44=0,"",'Salary Detail'!D44) ->  | F34: ='Salary Detail'!I44 ->  | H34: 0 | J34: 0
A35: =IF('Salary Detail'!P45>0,'Salary Detail'!P45," ") ->  | B35: =IF('Salary Detail'!A45>0,'Salary Detail'!A45," ") ->  | C35: =IF('Salary Detail'!B45>0,'Salary Detail'!B45," ") ->  | D35: =IF('Salary Detail'!C45=0,"",'Salary Detail'!C45) ->  | E35: =IF('Salary Detail'!D45=0,"",'Salary Detail'!D45) ->  | F35: ='Salary Detail'!I45 ->  | H35: 0 | J35: 0
A36: =IF('Salary Detail'!P46>0,'Salary Detail'!P46," ") ->  | B36: =IF('Salary Detail'!A46>0,'Salary Detail'!A46," ") ->  | C36: =IF('Salary Detail'!B46>0,'Salary Detail'!B46," ") ->  | D36: =IF('Salary Detail'!C46=0,"",'Salary Detail'!C46) ->  | E36: =IF('Salary Detail'!D46=0,"",'Salary Detail'!D46) ->  | F36: ='Salary Detail'!I46 ->  | H36: 0 | J36: 0
A37: =IF('Salary Detail'!P47>0,'Salary Detail'!P47," ") ->  | B37: =IF('Salary Detail'!A47>0,'Salary Detail'!A47," ") ->  | C37: =IF('Salary Detail'!B47>0,'Salary Detail'!B47," ") ->  | D37: =IF('Salary Detail'!C47=0,"",'Salary Detail'!C47) ->  | E37: =IF('Salary Detail'!D47=0,"",'Salary Detail'!D47) ->  | F37: ='Salary Detail'!I47 ->  | H37: 0 | J37: 0
A38: =IF('Salary Detail'!P48>0,'Salary Detail'!P48," ") ->  | B38: =IF('Salary Detail'!A48>0,'Salary Detail'!A48," ") ->  | C38: =IF('Salary Detail'!B48>0,'Salary Detail'!B48," ") ->  | D38: =IF('Salary Detail'!C48=0,"",'Salary Detail'!C48) ->  | E38: =IF('Salary Detail'!D48=0,"",'Salary Detail'!D48) ->  | F38: ='Salary Detail'!I48 ->  | H38: 0 | J38: 0
A39: =IF('Salary Detail'!P49>0,'Salary Detail'!P49," ") ->  | B39: =IF('Salary Detail'!A49>0,'Salary Detail'!A49," ") ->  | C39: =IF('Salary Detail'!B49>0,'Salary Detail'!B49," ") ->  | D39: =IF('Salary Detail'!C49=0,"",'Salary Detail'!C49) ->  | E39: =IF('Salary Detail'!D49=0,"",'Salary Detail'!D49) ->  | F39: ='Salary Detail'!I49 ->  | H39: 0 | J39: 0
A40: =IF('Salary Detail'!P50>0,'Salary Detail'!P50," ") ->  | B40: =IF('Salary Detail'!A50>0,'Salary Detail'!A50," ") ->  | C40: =IF('Salary Detail'!B50>0,'Salary Detail'!B50," ") ->  | D40: =IF('Salary Detail'!C50=0,"",'Salary Detail'!C50) ->  | E40: =IF('Salary Detail'!D50=0,"",'Salary Detail'!D50) ->  | F40: ='Salary Detail'!I50 ->  | H40: 0 | J40: 0
A41: =IF('Salary Detail'!P51>0,'Salary Detail'!P51," ") ->  | B41: =IF('Salary Detail'!A51>0,'Salary Detail'!A51," ") ->  | C41: =IF('Salary Detail'!B51>0,'Salary Detail'!B51," ") ->  | D41: =IF('Salary Detail'!C51=0,"",'Salary Detail'!C51) ->  | E41: =IF('Salary Detail'!D51=0,"",'Salary Detail'!D51) ->  | F41: ='Salary Detail'!I51 ->  | H41: 0 | J41: 0
A42: =IF('Salary Detail'!P52>0,'Salary Detail'!P52," ") ->  | B42: =IF('Salary Detail'!A52>0,'Salary Detail'!A52," ") ->  | C42: =IF('Salary Detail'!B52>0,'Salary Detail'!B52," ") ->  | D42: =IF('Salary Detail'!C52=0,"",'Salary Detail'!C52) ->  | E42: =IF('Salary Detail'!D52=0,"",'Salary Detail'!D52) ->  | F42: ='Salary Detail'!I52 ->  | H42: 0 | J42: 0
A43: =IF('Salary Detail'!P53>0,'Salary Detail'!P53," ") ->  | B43: =IF('Salary Detail'!A53>0,'Salary Detail'!A53," ") ->  | C43: =IF('Salary Detail'!B53>0,'Salary Detail'!B53," ") ->  | D43: =IF('Salary Detail'!C53=0,"",'Salary Detail'!C53) ->  | E43: =IF('Salary Detail'!D53=0,"",'Salary Detail'!D53) ->  | F43: ='Salary Detail'!I53 ->  | H43: 0 | J43: 0
A44: =IF('Salary Detail'!P54>0,'Salary Detail'!P54," ") ->  | B44: =IF('Salary Detail'!A54>0,'Salary Detail'!A54," ") ->  | C44: =IF('Salary Detail'!B54>0,'Salary Detail'!B54," ") ->  | D44: =IF('Salary Detail'!C54=0,"",'Salary Detail'!C54) ->  | E44: =IF('Salary Detail'!D54=0,"",'Salary Detail'!D54) ->  | F44: ='Salary Detail'!I54 ->  | H44: 0 | J44: 0
A45: =IF('Salary Detail'!P55>0,'Salary Detail'!P55," ") ->  | B45: =IF('Salary Detail'!A55>0,'Salary Detail'!A55," ") ->  | C45: =IF('Salary Detail'!B55>0,'Salary Detail'!B55," ") ->  | D45: =IF('Salary Detail'!C55=0,"",'Salary Detail'!C55) ->  | E45: =IF('Salary Detail'!D55=0,"",'Salary Detail'!D55) ->  | F45: ='Salary Detail'!I55 ->  | H45: 0 | J45: 0
A46: =IF('Salary Detail'!P56>0,'Salary Detail'!P56," ") ->  | B46: =IF('Salary Detail'!A56>0,'Salary Detail'!A56," ") ->  | C46: =IF('Salary Detail'!B56>0,'Salary Detail'!B56," ") ->  | D46: =IF('Salary Detail'!C56=0,"",'Salary Detail'!C56) ->  | E46: =IF('Salary Detail'!D56=0,"",'Salary Detail'!D56) ->  | F46: ='Salary Detail'!I56 ->  | H46: 0 | J46: 0
A47: =IF('Salary Detail'!P57>0,'Salary Detail'!P57," ") ->  | B47: =IF('Salary Detail'!A57>0,'Salary Detail'!A57," ") ->  | C47: =IF('Salary Detail'!B57>0,'Salary Detail'!B57," ") ->  | D47: =IF('Salary Detail'!C57=0,"",'Salary Detail'!C57) ->  | E47: =IF('Salary Detail'!D57=0,"",'Salary Detail'!D57) ->  | F47: ='Salary Detail'!I57 ->  | H47: 0 | J47: 0
A48: =IF('Salary Detail'!P58>0,'Salary Detail'!P58," ") ->  | B48: =IF('Salary Detail'!A58>0,'Salary Detail'!A58," ") ->  | C48: =IF('Salary Detail'!B58>0,'Salary Detail'!B58," ") ->  | D48: =IF('Salary Detail'!C58=0,"",'Salary Detail'!C58) ->  | E48: =IF('Salary Detail'!D58=0,"",'Salary Detail'!D58) ->  | F48: ='Salary Detail'!I58 ->  | H48: 0 | J48: 0
A49: =IF('Salary Detail'!P59>0,'Salary Detail'!P59," ") ->  | B49: =IF('Salary Detail'!A59>0,'Salary Detail'!A59," ") ->  | C49: =IF('Salary Detail'!B59>0,'Salary Detail'!B59," ") ->  | D49: =IF('Salary Detail'!C59=0,"",'Salary Detail'!C59) ->  | E49: =IF('Salary Detail'!D59=0,"",'Salary Detail'!D59) ->  | F49: ='Salary Detail'!I59 ->  | H49: 0 | J49: 0
A50: =IF('Salary Detail'!P60>0,'Salary Detail'!P60," ") ->  | B50: =IF('Salary Detail'!A60>0,'Salary Detail'!A60," ") ->  | C50: =IF('Salary Detail'!B60>0,'Salary Detail'!B60," ") ->  | D50: =IF('Salary Detail'!C60=0,"",'Salary Detail'!C60) ->  | E50: =IF('Salary Detail'!D60=0,"",'Salary Detail'!D60) ->  | F50: ='Salary Detail'!I60 ->  | H50: 0 | J50: 0
A51: =IF('Salary Detail'!P61>0,'Salary Detail'!P61," ") ->  | B51: =IF('Salary Detail'!A61>0,'Salary Detail'!A61," ") ->  | C51: =IF('Salary Detail'!B61>0,'Salary Detail'!B61," ") ->  | D51: =IF('Salary Detail'!C61=0,"",'Salary Detail'!C61) ->  | E51: =IF('Salary Detail'!D61=0,"",'Salary Detail'!D61) ->  | F51: ='Salary Detail'!I61 ->  | H51: 0 | J51: 0
A52: =IF('Salary Detail'!P62>0,'Salary Detail'!P62," ") ->  | B52: =IF('Salary Detail'!A62>0,'Salary Detail'!A62," ") ->  | C52: =IF('Salary Detail'!B62>0,'Salary Detail'!B62," ") ->  | D52: =IF('Salary Detail'!C62=0,"",'Salary Detail'!C62) ->  | E52: =IF('Salary Detail'!D62=0,"",'Salary Detail'!D62) ->  | F52: ='Salary Detail'!I62 ->  | H52: 0 | J52: 0
A53: =IF('Salary Detail'!P63>0,'Salary Detail'!P63," ") ->  | B53: =IF('Salary Detail'!A63>0,'Salary Detail'!A63," ") ->  | C53: =IF('Salary Detail'!B63>0,'Salary Detail'!B63," ") ->  | D53: =IF('Salary Detail'!C63=0,"",'Salary Detail'!C63) ->  | E53: =IF('Salary Detail'!D63=0,"",'Salary Detail'!D63) ->  | F53: ='Salary Detail'!I63 ->  | H53: 0 | J53: 0
B54: CURRENT YEAR OR YEAR 1 TOTAL . . . . . . . . . . . . . . . . . . . . . . . | I54: =SUM(I14:I53) -> 0
B55: =IF('Salary Detail'!A65>0,'Salary Detail'!A65," ") -> 
B56: =IF('Salary Detail'!A66>0,'Salary Detail'!A66," ") -> 
B57: =IF('Salary Detail'!A67>0,'Salary Detail'!A67," ") -> 
B60: =IF('Salary Detail'!A70>0,'Salary Detail'!A70," ") -> 
B61: =IF('Salary Detail'!A71>0,'Salary Detail'!A71," ") -> 
B62: =IF('Salary Detail'!A72>0,'Salary Detail'!A72," ") -> 
B63: =IF('Salary Detail'!A73>0,'Salary Detail'!A73," ") -> 

Sheet Personnel Summary
A1: THIS SHEET FOR INFORMATION PURPOSES ONLY -- NOT FOR ENTRY OF DATA
A3: ='Salary Detail'!A1 -> UNM HEALTH SCIENCES CENTER
A4: SUMMARY OF PERSONNEL TYPES AND RELATED BENEFITS
A5: ='Salary Detail'!A3 -> Revised 6/15/2022
E6: PI's Name: | F6: =IF('Salary Detail'!E5=0,"",'Salary Detail'!E5) -> 
E7: Department: | F7: =IF('Salary Detail'!E6=0,"",'Salary Detail'!E6) -> 
E8: Project Title: | F8: =IF('Salary Detail'!E7=0,"",'Salary Detail'!E7) -> 
E9: Funding Agency: | F9: =IF('Salary Detail'!E8=0,"",'Salary Detail'!E8) -> 
A11: Year 1 - Salaries & Benefits
A12: Last Name | B12: Faculty | C12: Other Prof. | D12: Technical | E12: Sec/Clerical | F12: Temporary | G12: Postdoctoral | H12: Retired | I12: Student | J12: Workstudy | K12: GRAs | L12: Fringe | M12: Totals
A13: =IF('Salary Detail'!A24=0,"",'Salary Detail'!A24) ->  | B13: =IF('Salary Detail'!P24="f",'Salary Detail'!K24,"") ->  | C13: =IF('Salary Detail'!P24="o",'Salary Detail'!K24,"") ->  | D13: =IF('Salary Detail'!P24="l",'Salary Detail'!K24,"") ->  | E13: =IF('Salary Detail'!P24="a",'Salary Detail'!K24,"") ->  | F13: =IF('Salary Detail'!P24="t",'Salary Detail'!K24,"") ->  | G13: =IF('Salary Detail'!P24="p",'Salary Detail'!K24,"") ->  | H13: =IF('Salary Detail'!P24="r",'Salary Detail'!K24,"") ->  | I13: =IF('Salary Detail'!P24="s",'Salary Detail'!K24,"") ->  | J13: =IF('Salary Detail'!P24="w",'Salary Detail'!K24,"") ->  | K13: =IF('Salary Detail'!P24="G",'Salary Detail'!K24,"") ->  | L13: ='Salary Detail'!M24 ->  | M13: =IF(SUM(B13:L13)=0,"",SUM(B13:L13)) -> 
A14: =IF('Salary Detail'!A25=0,"",'Salary Detail'!A25) ->  | B14: =IF('Salary Detail'!P25="f",'Salary Detail'!K25,"") ->  | C14: =IF('Salary Detail'!P25="o",'Salary Detail'!K25,"") ->  | D14: =IF('Salary Detail'!P25="l",'Salary Detail'!K25,"") ->  | E14: =IF('Salary Detail'!P25="a",'Salary Detail'!K25,"") ->  | F14: =IF('Salary Detail'!P25="t",'Salary Detail'!K25,"") ->  | G14: =IF('Salary Detail'!P25="p",'Salary Detail'!K25,"") ->  | H14: =IF('Salary Detail'!P25="r",'Salary Detail'!K25,"") ->  | I14: =IF('Salary Detail'!P25="s",'Salary Detail'!K25,"") ->  | J14: =IF('Salary Detail'!P25="w",'Salary Detail'!K25,"") ->  | K14: =IF('Salary Detail'!P25="G",'Salary Detail'!K25,"") ->  | L14: ='Salary Detail'!M25 -> 
A15: =IF('Salary Detail'!A26=0,"",'Salary Detail'!A26) ->  | B15: =IF('Salary Detail'!P26="f",'Salary Detail'!K26,"") ->  | C15: =IF('Salary Detail'!P26="o",'Salary Detail'!K26,"") ->  | D15: =IF('Salary Detail'!P26="l",'Salary Detail'!K26,"") ->  | E15: =IF('Salary Detail'!P26="a",'Salary Detail'!K26,"") ->  | F15: =IF('Salary Detail'!P26="t",'Salary Detail'!K26,"") ->  | G15: =IF('Salary Detail'!P26="p",'Salary Detail'!K26,"") ->  | H15: =IF('Salary Detail'!P26="r",'Salary Detail'!K26,"") ->  | I15: =IF('Salary Detail'!P26="s",'Salary Detail'!K26,"") ->  | J15: =IF('Salary Detail'!P26="w",'Salary Detail'!K26,"") ->  | K15: =IF('Salary Detail'!P26="G",'Salary Detail'!K26,"") ->  | L15: ='Salary Detail'!M26 -> 
A16: =IF('Salary Detail'!A27=0,"",'Salary Detail'!A27) ->  | B16: =IF('Salary Detail'!P27="f",'Salary Detail'!K27,"") ->  | C16: =IF('Salary Detail'!P27="o",'Salary Detail'!K27,"") ->  | D16: =IF('Salary Detail'!P27="l",'Salary Detail'!K27,"") ->  | E16: =IF('Salary Detail'!P27="a",'Salary Detail'!K27,"") ->  | F16: =IF('Salary Detail'!P27="t",'Salary Detail'!K27,"") ->  | G16: =IF('Salary Detail'!P27="p",'Salary Detail'!K27,"") ->  | H16: =IF('Salary Detail'!P27="r",'Salary Detail'!K27,"") ->  | I16: =IF('Salary Detail'!P27="s",'Salary Detail'!K27,"") ->  | J16: =IF('Salary Detail'!P27="w",'Salary Detail'!K27,"") ->  | K16: =IF('Salary Detail'!P27="G",'Salary Detail'!K27,"") ->  | L16: ='Salary Detail'!M27 -> 
A17: =IF('Salary Detail'!A28=0,"",'Salary Detail'!A28) ->  | B17: =IF('Salary Detail'!P28="f",'Salary Detail'!K28,"") ->  | C17: =IF('Salary Detail'!P28="o",'Salary Detail'!K28,"") ->  | D17: =IF('Salary Detail'!P28="l",'Salary Detail'!K28,"") ->  | E17: =IF('Salary Detail'!P28="a",'Salary Detail'!K28,"") ->  | F17: =IF('Salary Detail'!P28="t",'Salary Detail'!K28,"") ->  | G17: =IF('Salary Detail'!P28="p",'Salary Detail'!K28,"") ->  | H17: =IF('Salary Detail'!P28="r",'Salary Detail'!K28,"") ->  | I17: =IF('Salary Detail'!P28="s",'Salary Detail'!K28,"") ->  | J17: =IF('Salary Detail'!P28="w",'Salary Detail'!K28,"") ->  | K17: =IF('Salary Detail'!P28="G",'Salary Detail'!K28,"") ->  | L17: ='Salary Detail'!M28 -> 
A18: =IF('Salary Detail'!A29=0,"",'Salary Detail'!A29) ->  | B18: =IF('Salary Detail'!P29="f",'Salary Detail'!K29,"") ->  | C18: =IF('Salary Detail'!P29="o",'Salary Detail'!K29,"") ->  | D18: =IF('Salary Detail'!P29="l",'Salary Detail'!K29,"") ->  | E18: =IF('Salary Detail'!P29="a",'Salary Detail'!K29,"") ->  | F18: =IF('Salary Detail'!P29="t",'Salary Detail'!K29,"") ->  | G18: =IF('Salary Detail'!P29="p",'Salary Detail'!K29,"") ->  | H18: =IF('Salary Detail'!P29="r",'Salary Detail'!K29,"") ->  | I18: =IF('Salary Detail'!P29="s",'Salary Detail'!K29,"") ->  | J18: =IF('Salary Detail'!P29="w",'Salary Detail'!K29,"") ->  | K18: =IF('Salary Detail'!P29="G",'Salary Detail'!K29,"") ->  | L18: ='Salary Detail'!M29 -> 
A19: =IF('Salary Detail'!A30=0,"",'Salary Detail'!A30) ->  | B19: =IF('Salary Detail'!P30="f",'Salary Detail'!K30,"") ->  | C19: =IF('Salary Detail'!P30="o",'Salary Detail'!K30,"") ->  | D19: =IF('Salary Detail'!P30="l",'Salary Detail'!K30,"") ->  | E19: =IF('Salary Detail'!P30="a",'Salary Detail'!K30,"") ->  | F19: =IF('Salary Detail'!P30="t",'Salary Detail'!K30,"") ->  | G19: =IF('Salary Detail'!P30="p",'Salary Detail'!K30,"") ->  | H19: =IF('Salary Detail'!P30="r",'Salary Detail'!K30,"") ->  | I19: =IF('Salary Detail'!P30="s",'Salary Detail'!K30,"") ->  | J19: =IF('Salary Detail'!P30="w",'Salary Detail'!K30,"") ->  | K19: =IF('Salary Detail'!P30="G",'Salary Detail'!K30,"") ->  | L19: ='Salary Detail'!M30 -> 
A20: =IF('Salary Detail'!A31=0,"",'Salary Detail'!A31) ->  | B20: =IF('Salary Detail'!P31="f",'Salary Detail'!K31,"") ->  | C20: =IF('Salary Detail'!P31="o",'Salary Detail'!K31,"") ->  | D20: =IF('Salary Detail'!P31="l",'Salary Detail'!K31,"") ->  | E20: =IF('Salary Detail'!P31="a",'Salary Detail'!K31,"") ->  | F20: =IF('Salary Detail'!P31="t",'Salary Detail'!K31,"") ->  | G20: =IF('Salary Detail'!P31="p",'Salary Detail'!K31,"") ->  | H20: =IF('Salary Detail'!P31="r",'Salary Detail'!K31,"") ->  | I20: =IF('Salary Detail'!P31="s",'Salary Detail'!K31,"") ->  | J20: =IF('Salary Detail'!P31="w",'Salary Detail'!K31,"") ->  | K20: =IF('Salary Detail'!P31="G",'Salary Detail'!K31,"") ->  | L20: ='Salary Detail'!M31 -> 
A21: =IF('Salary Detail'!A32=0,"",'Salary Detail'!A32) ->  | B21: =IF('Salary Detail'!P32="f",'Salary Detail'!K32,"") ->  | C21: =IF('Salary Detail'!P32="o",'Salary Detail'!K32,"") ->  | D21: =IF('Salary Detail'!P32="l",'Salary Detail'!K32,"") ->  | E21: =IF('Salary Detail'!P32="a",'Salary Detail'!K32,"") ->  | F21: =IF('Salary Detail'!P32="t",'Salary Detail'!K32,"") ->  | G21: =IF('Salary Detail'!P32="p",'Salary Detail'!K32,"") ->  | H21: =IF('Salary Detail'!P32="r",'Salary Detail'!K32,"") ->  | I21: =IF('Salary Detail'!P32="s",'Salary Detail'!K32,"") ->  | J21: =IF('Salary Detail'!P32="w",'Salary Detail'!K32,"") ->  | K21: =IF('Salary Detail'!P32="G",'Salary Detail'!K32,"") ->  | L21: ='Salary Detail'!M32 -> 
A22: =IF('Salary Detail'!A33=0,"",'Salary Detail'!A33) ->  | B22: =IF('Salary Detail'!P33="f",'Salary Detail'!K33,"") ->  | C22: =IF('Salary Detail'!P33="o",'Salary Detail'!K33,"") ->  | D22: =IF('Salary Detail'!P33="l",'Salary Detail'!K33,"") ->  | E22: =IF('Salary Detail'!P33="a",'Salary Detail'!K33,"") ->  | F22: =IF('Salary Detail'!P33="t",'Salary Detail'!K33,"") ->  | G22: =IF('Salary Detail'!P33="p",'Salary Detail'!K33,"") ->  | H22: =IF('Salary Detail'!P33="r",'Salary Detail'!K33,"") ->  | I22: =IF('Salary Detail'!P33="s",'Salary Detail'!K33,"") ->  | J22: =IF('Salary Detail'!P33="w",'Salary Detail'!K33,"") ->  | K22: =IF('Salary Detail'!P33="G",'Salary Detail'!K33,"") ->  | L22: ='Salary Detail'!M33 -> 
A23: =IF('Salary Detail'!A34=0,"",'Salary Detail'!A34) ->  | B23: =IF('Salary Detail'!P34="f",'Salary Detail'!K34,"") ->  | C23: =IF('Salary Detail'!P34="o",'Salary Detail'!K34,"") ->  | D23: =IF('Salary Detail'!P34="l",'Salary Detail'!K34,"") ->  | E23: =IF('Salary Detail'!P34="a",'Salary Detail'!K34,"") ->  | F23: =IF('Salary Detail'!P34="t",'Salary Detail'!K34,"") ->  | G23: =IF('Salary Detail'!P34="p",'Salary Detail'!K34,"") ->  | H23: =IF('Salary Detail'!P34="r",'Salary Detail'!K34,"") ->  | I23: =IF('Salary Detail'!P34="s",'Salary Detail'!K34,"") ->  | J23: =IF('Salary Detail'!P34="w",'Salary Detail'!K34,"") ->  | K23: =IF('Salary Detail'!P34="G",'Salary Detail'!K34,"") ->  | L23: ='Salary Detail'!M34 -> 
A24: =IF('Salary Detail'!A35=0,"",'Salary Detail'!A35) ->  | B24: =IF('Salary Detail'!P35="f",'Salary Detail'!K35,"") ->  | C24: =IF('Salary Detail'!P35="o",'Salary Detail'!K35,"") ->  | D24: =IF('Salary Detail'!P35="l",'Salary Detail'!K35,"") ->  | E24: =IF('Salary Detail'!P35="a",'Salary Detail'!K35,"") ->  | F24: =IF('Salary Detail'!P35="t",'Salary Detail'!K35,"") ->  | G24: =IF('Salary Detail'!P35="p",'Salary Detail'!K35,"") ->  | H24: =IF('Salary Detail'!P35="r",'Salary Detail'!K35,"") ->  | I24: =IF('Salary Detail'!P35="s",'Salary Detail'!K35,"") ->  | J24: =IF('Salary Detail'!P35="w",'Salary Detail'!K35,"") ->  | K24: =IF('Salary Detail'!P35="G",'Salary Detail'!K35,"") ->  | L24: ='Salary Detail'!M35 -> 
A25: =IF('Salary Detail'!A36=0,"",'Salary Detail'!A36) ->  | B25: =IF('Salary Detail'!P36="f",'Salary Detail'!K36,"") ->  | C25: =IF('Salary Detail'!P36="o",'Salary Detail'!K36,"") ->  | D25: =IF('Salary Detail'!P36="l",'Salary Detail'!K36,"") ->  | E25: =IF('Salary Detail'!P36="a",'Salary Detail'!K36,"") ->  | F25: =IF('Salary Detail'!P36="t",'Salary Detail'!K36,"") ->  | G25: =IF('Salary Detail'!P36="p",'Salary Detail'!K36,"") ->  | H25: =IF('Salary Detail'!P36="r",'Salary Detail'!K36,"") ->  | I25: =IF('Salary Detail'!P36="s",'Salary Detail'!K36,"") ->  | J25: =IF('Salary Detail'!P36="w",'Salary Detail'!K36,"") ->  | K25: =IF('Salary Detail'!P36="G",'Salary Detail'!K36,"") ->  | L25: ='Salary Detail'!M36 -> 
A26: =IF('Salary Detail'!A37=0,"",'Salary Detail'!A37) ->  | B26: =IF('Salary Detail'!P37="f",'Salary Detail'!K37,"") ->  | C26: =IF('Salary Detail'!P37="o",'Salary Detail'!K37,"") ->  | D26: =IF('Salary Detail'!P37="l",'Salary Detail'!K37,"") ->  | E26: =IF('Salary Detail'!P37="a",'Salary Detail'!K37,"") ->  | F26: =IF('Salary Detail'!P37="t",'Salary Detail'!K37,"") ->  | G26: =IF('Salary Detail'!P37="p",'Salary Detail'!K37,"") ->  | H26: =IF('Salary Detail'!P37="r",'Salary Detail'!K37,"") ->  | I26: =IF('Salary Detail'!P37="s",'Salary Detail'!K37,"") ->  | J26: =IF('Salary Detail'!P37="w",'Salary Detail'!K37,"") ->  | K26: =IF('Salary Detail'!P37="G",'Salary Detail'!K37,"") ->  | L26: ='Salary Detail'!M37 -> 
A27: =IF('Salary Detail'!A38=0,"",'Salary Detail'!A38) ->  | B27: =IF('Salary Detail'!P38="f",'Salary Detail'!K38,"") ->  | C27: =IF('Salary Detail'!P38="o",'Salary Detail'!K38,"") ->  | D27: =IF('Salary Detail'!P38="l",'Salary Detail'!K38,"") ->  | E27: =IF('Salary Detail'!P38="a",'Salary Detail'!K38,"") ->  | F27: =IF('Salary Detail'!P38="t",'Salary Detail'!K38,"") ->  | G27: =IF('Salary Detail'!P38="p",'Salary Detail'!K38,"") ->  | H27: =IF('Salary Detail'!P38="r",'Salary Detail'!K38,"") ->  | I27: =IF('Salary Detail'!P38="s",'Salary Detail'!K38,"") ->  | J27: =IF('Salary Detail'!P38="w",'Salary Detail'!K38,"") ->  | K27: =IF('Salary Detail'!P38="G",'Salary Detail'!K38,"") ->  | L27: ='Salary Detail'!M38 -> 
A28: =IF('Salary Detail'!A39=0,"",'Salary Detail'!A39) ->  | B28: =IF('Salary Detail'!P39="f",'Salary Detail'!K39,"") ->  | C28: =IF('Salary Detail'!P39="o",'Salary Detail'!K39,"") ->  | D28: =IF('Salary Detail'!P39="l",'Salary Detail'!K39,"") ->  | E28: =IF('Salary Detail'!P39="a",'Salary Detail'!K39,"") ->  | F28: =IF('Salary Detail'!P39="t",'Salary Detail'!K39,"") ->  | G28: =IF('Salary Detail'!P39="p",'Salary Detail'!K39,"") ->  | H28: =IF('Salary Detail'!P39="r",'Salary Detail'!K39,"") ->  | I28: =IF('Salary Detail'!P39="s",'Salary Detail'!K39,"") ->  | J28: =IF('Salary Detail'!P39="w",'Salary Detail'!K39,"") ->  | K28: =IF('Salary Detail'!P39="G",'Salary Detail'!K39,"") ->  | L28: ='Salary Detail'!M39 -> 
A29: =IF('Salary Detail'!A40=0,"",'Salary Detail'!A40) ->  | B29: =IF('Salary Detail'!P40="f",'Salary Detail'!K40,"") ->  | C29: =IF('Salary Detail'!P40="o",'Salary Detail'!K40,"") ->  | D29: =IF('Salary Detail'!P40="l",'Salary Detail'!K40,"") ->  | E29: =IF('Salary Detail'!P40="a",'Salary Detail'!K40,"") ->  | F29: =IF('Salary Detail'!P40="t",'Salary Detail'!K40,"") ->  | G29: =IF('Salary Detail'!P40="p",'Salary Detail'!K40,"") ->  | H29: =IF('Salary Detail'!P40="r",'Salary Detail'!K40,"") ->  | I29: =IF('Salary Detail'!P40="s",'Salary Detail'!K40,"") ->  | J29: =IF('Salary Detail'!P40="w",'Salary Detail'!K40,"") ->  | K29: =IF('Salary Detail'!P40="G",'Salary Detail'!K40,"") ->  | L29: ='Salary Detail'!M40 -> 
A30: =IF('Salary Detail'!A41=0,"",'Salary Detail'!A41) ->  | B30: =IF('Salary Detail'!P41="f",'Salary Detail'!K41,"") ->  | C30: =IF('Salary Detail'!P41="o",'Salary Detail'!K41,"") ->  | D30: =IF('Salary Detail'!P41="l",'Salary Detail'!K41,"") ->  | E30: =IF('Salary Detail'!P41="a",'Salary Detail'!K41,"") ->  | F30: =IF('Salary Detail'!P41="t",'Salary Detail'!K41,"") ->  | G30: =IF('Salary Detail'!P41="p",'Salary Detail'!K41,"") ->  | H30: =IF('Salary Detail'!P41="r",'Salary Detail'!K41,"") ->  | I30: =IF('Salary Detail'!P41="s",'Salary Detail'!K41,"") ->  | J30: =IF('Salary Detail'!P41="w",'Salary Detail'!K41,"") ->  | K30: =IF('Salary Detail'!P41="G",'Salary Detail'!K41,"") ->  | L30: ='Salary Detail'!M41 -> 
A31: =IF('Salary Detail'!A42=0,"",'Salary Detail'!A42) ->  | B31: =IF('Salary Detail'!P42="f",'Salary Detail'!K42,"") ->  | C31: =IF('Salary Detail'!P42="o",'Salary Detail'!K42,"") ->  | D31: =IF('Salary Detail'!P42="l",'Salary Detail'!K42,"") ->  | E31: =IF('Salary Detail'!P42="a",'Salary Detail'!K42,"") ->  | F31: =IF('Salary Detail'!P42="t",'Salary Detail'!K42,"") ->  | G31: =IF('Salary Detail'!P42="p",'Salary Detail'!K42,"") ->  | H31: =IF('Salary Detail'!P42="r",'Salary Detail'!K42,"") ->  | I31: =IF('Salary Detail'!P42="s",'Salary Detail'!K42,"") ->  | J31: =IF('Salary Detail'!P42="w",'Salary Detail'!K42,"") ->  | K31: =IF('Salary Detail'!P42="G",'Salary Detail'!K42,"") ->  | L31: ='Salary Detail'!M42 -> 
A32: =IF('Salary Detail'!A43=0,"",'Salary Detail'!A43) ->  | B32: =IF('Salary Detail'!P43="f",'Salary Detail'!K43,"") ->  | C32: =IF('Salary Detail'!P43="o",'Salary Detail'!K43,"") ->  | D32: =IF('Salary Detail'!P43="l",'Salary Detail'!K43,"") ->  | E32: =IF('Salary Detail'!P43="a",'Salary Detail'!K43,"") ->  | F32: =IF('Salary Detail'!P43="t",'Salary Detail'!K43,"") ->  | G32: =IF('Salary Detail'!P43="p",'Salary Detail'!K43,"") ->  | H32: =IF('Salary Detail'!P43="r",'Salary Detail'!K43,"") ->  | I32: =IF('Salary Detail'!P43="s",'Salary Detail'!K43,"") ->  | J32: =IF('Salary Detail'!P43="w",'Salary Detail'!K43,"") ->  | K32: =IF('Salary Detail'!P43="G",'Salary Detail'!K43,"") ->  | L32: ='Salary Detail'!M43 -> 
A33: =IF('Salary Detail'!A44=0,"",'Salary Detail'!A44) ->  | B33: =IF('Salary Detail'!P44="f",'Salary Detail'!K44,"") ->  | C33: =IF('Salary Detail'!P44="o",'Salary Detail'!K44,"") ->  | D33: =IF('Salary Detail'!P44="l",'Salary Detail'!K44,"") ->  | E33: =IF('Salary Detail'!P44="a",'Salary Detail'!K44,"") ->  | F33: =IF('Salary Detail'!P44="t",'Salary Detail'!K44,"") ->  | G33: =IF('Salary Detail'!P44="p",'Salary Detail'!K44,"") ->  | H33: =IF('Salary Detail'!P44="r",'Salary Detail'!K44,"") ->  | I33: =IF('Salary Detail'!P44="s",'Salary Detail'!K44,"") ->  | J33: =IF('Salary Detail'!P44="w",'Salary Detail'!K44,"") ->  | K33: =IF('Salary Detail'!P44="G",'Salary Detail'!K44,"") ->  | L33: ='Salary Detail'!M44 -> 
A34: =IF('Salary Detail'!A45=0,"",'Salary Detail'!A45) ->  | B34: =IF('Salary Detail'!P45="f",'Salary Detail'!K45,"") ->  | C34: =IF('Salary Detail'!P45="o",'Salary Detail'!K45,"") ->  | D34: =IF('Salary Detail'!P45="l",'Salary Detail'!K45,"") ->  | E34: =IF('Salary Detail'!P45="a",'Salary Detail'!K45,"") ->  | F34: =IF('Salary Detail'!P45="t",'Salary Detail'!K45,"") ->  | G34: =IF('Salary Detail'!P45="p",'Salary Detail'!K45,"") ->  | H34: =IF('Salary Detail'!P45="r",'Salary Detail'!K45,"") ->  | I34: =IF('Salary Detail'!P45="s",'Salary Detail'!K45,"") ->  | J34: =IF('Salary Detail'!P45="w",'Salary Detail'!K45,"") ->  | K34: =IF('Salary Detail'!P45="G",'Salary Detail'!K45,"") ->  | L34: ='Salary Detail'!M45 -> 
A35: =IF('Salary Detail'!A46=0,"",'Salary Detail'!A46) ->  | B35: =IF('Salary Detail'!P46="f",'Salary Detail'!K46,"") ->  | C35: =IF('Salary Detail'!P46="o",'Salary Detail'!K46,"") ->  | D35: =IF('Salary Detail'!P46="l",'Salary Detail'!K46,"") ->  | E35: =IF('Salary Detail'!P46="a",'Salary Detail'!K46,"") ->  | F35: =IF('Salary Detail'!P46="t",'Salary Detail'!K46,"") ->  | G35: =IF('Salary Detail'!P46="p",'Salary Detail'!K46,"") ->  | H35: =IF('Salary Detail'!P46="r",'Salary Detail'!K46,"") ->  | I35: =IF('Salary Detail'!P46="s",'Salary Detail'!K46,"") ->  | J35: =IF('Salary Detail'!P46="w",'Salary Detail'!K46,"") ->  | K35: =IF('Salary Detail'!P46="G",'Salary Detail'!K46,"") ->  | L35: ='Salary Detail'!M46 -> 
A36: =IF('Salary Detail'!A47=0,"",'Salary Detail'!A47) ->  | B36: =IF('Salary Detail'!P47="f",'Salary Detail'!K47,"") ->  | C36: =IF('Salary Detail'!P47="o",'Salary Detail'!K47,"") ->  | D36: =IF('Salary Detail'!P47="l",'Salary Detail'!K47,"") ->  | E36: =IF('Salary Detail'!P47="a",'Salary Detail'!K47,"") ->  | F36: =IF('Salary Detail'!P47="t",'Salary Detail'!K47,"") ->  | G36: =IF('Salary Detail'!P47="p",'Salary Detail'!K47,"") ->  | H36: =IF('Salary Detail'!P47="r",'Salary Detail'!K47,"") ->  | I36: =IF('Salary Detail'!P47="s",'Salary Detail'!K47,"") ->  | J36: =IF('Salary Detail'!P47="w",'Salary Detail'!K47,"") ->  | K36: =IF('Salary Detail'!P47="G",'Salary Detail'!K47,"") ->  | L36: ='Salary Detail'!M47 -> 
A37: =IF('Salary Detail'!A48=0,"",'Salary Detail'!A48) ->  | B37: =IF('Salary Detail'!P48="f",'Salary Detail'!K48,"") ->  | C37: =IF('Salary Detail'!P48="o",'Salary Detail'!K48,"") ->  | D37: =IF('Salary Detail'!P48="l",'Salary Detail'!K48,"") ->  | E37: =IF('Salary Detail'!P48="a",'Salary Detail'!K48,"") ->  | F37: =IF('Salary Detail'!P48="t",'Salary Detail'!K48,"") ->  | G37: =IF('Salary Detail'!P48="p",'Salary Detail'!K48,"") ->  | H37: =IF('Salary Detail'!P48="r",'Salary Detail'!K48,"") ->  | I37: =IF('Salary Detail'!P48="s",'Salary Detail'!K48,"") ->  | J37: =IF('Salary Detail'!P48="w",'Salary Detail'!K48,"") ->  | K37: =IF('Salary Detail'!P48="G",'Salary Detail'!K48,"") ->  | L37: ='Salary Detail'!M48 -> 
A38: =IF('Salary Detail'!A49=0,"",'Salary Detail'!A49) ->  | B38: =IF('Salary Detail'!P49="f",'Salary Detail'!K49,"") ->  | C38: =IF('Salary Detail'!P49="o",'Salary Detail'!K49,"") ->  | D38: =IF('Salary Detail'!P49="l",'Salary Detail'!K49,"") ->  | E38: =IF('Salary Detail'!P49="a",'Salary Detail'!K49,"") ->  | F38: =IF('Salary Detail'!P49="t",'Salary Detail'!K49,"") ->  | G38: =IF('Salary Detail'!P49="p",'Salary Detail'!K49,"") ->  | H38: =IF('Salary Detail'!P49="r",'Salary Detail'!K49,"") ->  | I38: =IF('Salary Detail'!P49="s",'Salary Detail'!K49,"") ->  | J38: =IF('Salary Detail'!P49="w",'Salary Detail'!K49,"") ->  | K38: =IF('Salary Detail'!P49="G",'Salary Detail'!K49,"") ->  | L38: ='Salary Detail'!M49 -> 
A39: =IF('Salary Detail'!A50=0,"",'Salary Detail'!A50) ->  | B39: =IF('Salary Detail'!P50="f",'Salary Detail'!K50,"") ->  | C39: =IF('Salary Detail'!P50="o",'Salary Detail'!K50,"") ->  | D39: =IF('Salary Detail'!P50="l",'Salary Detail'!K50,"") ->  | E39: =IF('Salary Detail'!P50="a",'Salary Detail'!K50,"") ->  | F39: =IF('Salary Detail'!P50="t",'Salary Detail'!K50,"") ->  | G39: =IF('Salary Detail'!P50="p",'Salary Detail'!K50,"") ->  | H39: =IF('Salary Detail'!P50="r",'Salary Detail'!K50,"") ->  | I39: =IF('Salary Detail'!P50="s",'Salary Detail'!K50,"") ->  | J39: =IF('Salary Detail'!P50="w",'Salary Detail'!K50,"") ->  | K39: =IF('Salary Detail'!P50="G",'Salary Detail'!K50,"") ->  | L39: ='Salary Detail'!M50 -> 
A40: =IF('Salary Detail'!A51=0,"",'Salary Detail'!A51) ->  | B40: =IF('Salary Detail'!P51="f",'Salary Detail'!K51,"") ->  | C40: =IF('Salary Detail'!P51="o",'Salary Detail'!K51,"") ->  | D40: =IF('Salary Detail'!P51="l",'Salary Detail'!K51,"") ->  | E40: =IF('Salary Detail'!P51="a",'Salary Detail'!K51,"") ->  | F40: =IF('Salary Detail'!P51="t",'Salary Detail'!K51,"") ->  | G40: =IF('Salary Detail'!P51="p",'Salary Detail'!K51,"") ->  | H40: =IF('Salary Detail'!P51="r",'Salary Detail'!K51,"") ->  | I40: =IF('Salary Detail'!P51="s",'Salary Detail'!K51,"") ->  | J40: =IF('Salary Detail'!P51="w",'Salary Detail'!K51,"") ->  | K40: =IF('Salary Detail'!P51="G",'Salary Detail'!K51,"") ->  | L40: ='Salary Detail'!M51 -> 
A41: =IF('Salary Detail'!A52=0,"",'Salary Detail'!A52) ->  | B41: =IF('Salary Detail'!P52="f",'Salary Detail'!K52,"") ->  | C41: =IF('Salary Detail'!P52="o",'Salary Detail'!K52,"") ->  | D41: =IF('Salary Detail'!P52="l",'Salary Detail'!K52,"") ->  | E41: =IF('Salary Detail'!P52="a",'Salary Detail'!K52,"") ->  | F41: =IF('Salary Detail'!P52="t",'Salary Detail'!K52,"") ->  | G41: =IF('Salary Detail'!P52="p",'Salary Detail'!K52,"") ->  | H41: =IF('Salary Detail'!P52="r",'Salary Detail'!K52,"") ->  | I41: =IF('Salary Detail'!P52="s",'Salary Detail'!K52,"") ->  | J41: =IF('Salary Detail'!P52="w",'Salary Detail'!K52,"") ->  | K41: =IF('Salary Detail'!P52="G",'Salary Detail'!K52,"") ->  | L41: ='Salary Detail'!M52 -> 
A42: =IF('Salary Detail'!A53=0,"",'Salary Detail'!A53) ->  | B42: =IF('Salary Detail'!P53="f",'Salary Detail'!K53,"") ->  | C42: =IF('Salary Detail'!P53="o",'Salary Detail'!K53,"") ->  | D42: =IF('Salary Detail'!P53="l",'Salary Detail'!K53,"") ->  | E42: =IF('Salary Detail'!P53="a",'Salary Detail'!K53,"") ->  | F42: =IF('Salary Detail'!P53="t",'Salary Detail'!K53,"") ->  | G42: =IF('Salary Detail'!P53="p",'Salary Detail'!K53,"") ->  | H42: =IF('Salary Detail'!P53="r",'Salary Detail'!K53,"") ->  | I42: =IF('Salary Detail'!P53="s",'Salary Detail'!K53,"") ->  | J42: =IF('Salary Detail'!P53="w",'Salary Detail'!K53,"") ->  | K42: =IF('Salary Detail'!P53="G",'Salary Detail'!K53,"") ->  | L42: ='Salary Detail'!M53 -> 
A43: =IF('Salary Detail'!A54=0,"",'Salary Detail'!A54) ->  | B43: =IF('Salary Detail'!P54="f",'Salary Detail'!K54,"") ->  | C43: =IF('Salary Detail'!P54="o",'Salary Detail'!K54,"") ->  | D43: =IF('Salary Detail'!P54="l",'Salary Detail'!K54,"") ->  | E43: =IF('Salary Detail'!P54="a",'Salary Detail'!K54,"") ->  | F43: =IF('Salary Detail'!P54="t",'Salary Detail'!K54,"") ->  | G43: =IF('Salary Detail'!P54="p",'Salary Detail'!K54,"") ->  | H43: =IF('Salary Detail'!P54="r",'Salary Detail'!K54,"") ->  | I43: =IF('Salary Detail'!P54="s",'Salary Detail'!K54,"") ->  | J43: =IF('Salary Detail'!P54="w",'Salary Detail'!K54,"") ->  | K43: =IF('Salary Detail'!P54="G",'Salary Detail'!K54,"") ->  | L43: ='Salary Detail'!M54 -> 
A44: =IF('Salary Detail'!A55=0,"",'Salary Detail'!A55) ->  | B44: =IF('Salary Detail'!P55="f",'Salary Detail'!K55,"") ->  | C44: =IF('Salary Detail'!P55="o",'Salary Detail'!K55,"") ->  | D44: =IF('Salary Detail'!P55="l",'Salary Detail'!K55,"") ->  | E44: =IF('Salary Detail'!P55="a",'Salary Detail'!K55,"") ->  | F44: =IF('Salary Detail'!P55="t",'Salary Detail'!K55,"") ->  | G44: =IF('Salary Detail'!P55="p",'Salary Detail'!K55,"") ->  | H44: =IF('Salary Detail'!P55="r",'Salary Detail'!K55,"") ->  | I44: =IF('Salary Detail'!P55="s",'Salary Detail'!K55,"") ->  | J44: =IF('Salary Detail'!P55="w",'Salary Detail'!K55,"") ->  | K44: =IF('Salary Detail'!P55="G",'Salary Detail'!K55,"") ->  | L44: ='Salary Detail'!M55 -> 
A45: =IF('Salary Detail'!A56=0,"",'Salary Detail'!A56) ->  | B45: =IF('Salary Detail'!P56="f",'Salary Detail'!K56,"") ->  | C45: =IF('Salary Detail'!P56="o",'Salary Detail'!K56,"") ->  | D45: =IF('Salary Detail'!P56="l",'Salary Detail'!K56,"") ->  | E45: =IF('Salary Detail'!P56="a",'Salary Detail'!K56,"") ->  | F45: =IF('Salary Detail'!P56="t",'Salary Detail'!K56,"") ->  | G45: =IF('Salary Detail'!P56="p",'Salary Detail'!K56,"") ->  | H45: =IF('Salary Detail'!P56="r",'Salary Detail'!K56,"") ->  | I45: =IF('Salary Detail'!P56="s",'Salary Detail'!K56,"") ->  | J45: =IF('Salary Detail'!P56="w",'Salary Detail'!K56,"") ->  | K45: =IF('Salary Detail'!P56="G",'Salary Detail'!K56,"") ->  | L45: ='Salary Detail'!M56 -> 
A46: =IF('Salary Detail'!A57=0,"",'Salary Detail'!A57) ->  | B46: =IF('Salary Detail'!P57="f",'Salary Detail'!K57,"") ->  | C46: =IF('Salary Detail'!P57="o",'Salary Detail'!K57,"") ->  | D46: =IF('Salary Detail'!P57="l",'Salary Detail'!K57,"") ->  | E46: =IF('Salary Detail'!P57="a",'Salary Detail'!K57,"") ->  | F46: =IF('Salary Detail'!P57="t",'Salary Detail'!K57,"") ->  | G46: =IF('Salary Detail'!P57="p",'Salary Detail'!K57,"") ->  | H46: =IF('Salary Detail'!P57="r",'Salary Detail'!K57,"") ->  | I46: =IF('Salary Detail'!P57="s",'Salary Detail'!K57,"") ->  | J46: =IF('Salary Detail'!P57="w",'Salary Detail'!K57,"") ->  | K46: =IF('Salary Detail'!P57="G",'Salary Detail'!K57,"") ->  | L46: ='Salary Detail'!M57 -> 
A47: =IF('Salary Detail'!A58=0,"",'Salary Detail'!A58) ->  | B47: =IF('Salary Detail'!P58="f",'Salary Detail'!K58,"") ->  | C47: =IF('Salary Detail'!P58="o",'Salary Detail'!K58,"") ->  | D47: =IF('Salary Detail'!P58="l",'Salary Detail'!K58,"") ->  | E47: =IF('Salary Detail'!P58="a",'Salary Detail'!K58,"") ->  | F47: =IF('Salary Detail'!P58="t",'Salary Detail'!K58,"") ->  | G47: =IF('Salary Detail'!P58="p",'Salary Detail'!K58,"") ->  | H47: =IF('Salary Detail'!P58="r",'Salary Detail'!K58,"") ->  | I47: =IF('Salary Detail'!P58="s",'Salary Detail'!K58,"") ->  | J47: =IF('Salary Detail'!P58="w",'Salary Detail'!K58,"") ->  | K47: =IF('Salary Detail'!P58="G",'Salary Detail'!K58,"") ->  | L47: ='Salary Detail'!M58 -> 
A48: =IF('Salary Detail'!A59=0,"",'Salary Detail'!A59) ->  | B48: =IF('Salary Detail'!P59="f",'Salary Detail'!K59,"") ->  | C48: =IF('Salary Detail'!P59="o",'Salary Detail'!K59,"") ->  | D48: =IF('Salary Detail'!P59="l",'Salary Detail'!K59,"") ->  | E48: =IF('Salary Detail'!P59="a",'Salary Detail'!K59,"") ->  | F48: =IF('Salary Detail'!P59="t",'Salary Detail'!K59,"") ->  | G48: =IF('Salary Detail'!P59="p",'Salary Detail'!K59,"") ->  | H48: =IF('Salary Detail'!P59="r",'Salary Detail'!K59,"") ->  | I48: =IF('Salary Detail'!P59="s",'Salary Detail'!K59,"") ->  | J48: =IF('Salary Detail'!P59="w",'Salary Detail'!K59,"") ->  | K48: =IF('Salary Detail'!P59="G",'Salary Detail'!K59,"") ->  | L48: ='Salary Detail'!M59 -> 
A49: =IF('Salary Detail'!A60=0,"",'Salary Detail'!A60) ->  | B49: =IF('Salary Detail'!P60="f",'Salary Detail'!K60,"") ->  | C49: =IF('Salary Detail'!P60="o",'Salary Detail'!K60,"") ->  | D49: =IF('Salary Detail'!P60="l",'Salary Detail'!K60,"") ->  | E49: =IF('Salary Detail'!P60="a",'Salary Detail'!K60,"") ->  | F49: =IF('Salary Detail'!P60="t",'Salary Detail'!K60,"") ->  | G49: =IF('Salary Detail'!P60="p",'Salary Detail'!K60,"") ->  | H49: =IF('Salary Detail'!P60="r",'Salary Detail'!K60,"") ->  | I49: =IF('Salary Detail'!P60="s",'Salary Detail'!K60,"") ->  | J49: =IF('Salary Detail'!P60="w",'Salary Detail'!K60,"") ->  | K49: =IF('Salary Detail'!P60="G",'Salary Detail'!K60,"") ->  | L49: ='Salary Detail'!M60 -> 
A50: =IF('Salary Detail'!A61=0,"",'Salary Detail'!A61) ->  | B50: =IF('Salary Detail'!P61="f",'Salary Detail'!K61,"") ->  | C50: =IF('Salary Detail'!P61="o",'Salary Detail'!K61,"") ->  | D50: =IF('Salary Detail'!P61="l",'Salary Detail'!K61,"") ->  | E50: =IF('Salary Detail'!P61="a",'Salary Detail'!K61,"") ->  | F50: =IF('Salary Detail'!P61="t",'Salary Detail'!K61,"") ->  | G50: =IF('Salary Detail'!P61="p",'Salary Detail'!K61,"") ->  | H50: =IF('Salary Detail'!P61="r",'Salary Detail'!K61,"") ->  | I50: =IF('Salary Detail'!P61="s",'Salary Detail'!K61,"") ->  | J50: =IF('Salary Detail'!P61="w",'Salary Detail'!K61,"") ->  | K50: =IF('Salary Detail'!P61="G",'Salary Detail'!K61,"") ->  | L50: ='Salary Detail'!M61 -> 
A51: =IF('Salary Detail'!A62=0,"",'Salary Detail'!A62) ->  | B51: =IF('Salary Detail'!P62="f",'Salary Detail'!K62,"") ->  | C51: =IF('Salary Detail'!P62="o",'Salary Detail'!K62,"") ->  | D51: =IF('Salary Detail'!P62="l",'Salary Detail'!K62,"") ->  | E51: =IF('Salary Detail'!P62="a",'Salary Detail'!K62,"") ->  | F51: =IF('Salary Detail'!P62="t",'Salary Detail'!K62,"") ->  | G51: =IF('Salary Detail'!P62="p",'Salary Detail'!K62,"") ->  | H51: =IF('Salary Detail'!P62="r",'Salary Detail'!K62,"") ->  | I51: =IF('Salary Detail'!P62="s",'Salary Detail'!K62,"") ->  | J51: =IF('Salary Detail'!P62="w",'Salary Detail'!K62,"") ->  | K51: =IF('Salary Detail'!P62="G",'Salary Detail'!K62,"") ->  | L51: ='Salary Detail'!M62 -> 
A52: =IF('Salary Detail'!A63=0,"",'Salary Detail'!A63) ->  | B52: =IF('Salary Detail'!P63="f",'Salary Detail'!K63,"") ->  | C52: =IF('Salary Detail'!P63="o",'Salary Detail'!K63,"") ->  | D52: =IF('Salary Detail'!P63="l",'Salary Detail'!K63,"") ->  | E52: =IF('Salary Detail'!P63="a",'Salary Detail'!K63,"") ->  | F52: =IF('Salary Detail'!P63="t",'Salary Detail'!K63,"") ->  | G52: =IF('Salary Detail'!P63="p",'Salary Detail'!K63,"") ->  | H52: =IF('Salary Detail'!P63="r",'Salary Detail'!K63,"") ->  | I52: =IF('Salary Detail'!P63="s",'Salary Detail'!K63,"") ->  | J52: =IF('Salary Detail'!P63="w",'Salary Detail'!K63,"") ->  | K52: =IF('Salary Detail'!P63="G",'Salary Detail'!K63,"") ->  | L52: ='Salary Detail'!M63 -> 
A53: Totals | B53: =IF(SUM(B13:B52)=0,"",SUM(B13:B52)) ->  | M53: =IF(SUM(M13:M52)=0,"",SUM(M13:M52)) -> 
A54: Avg. Benefits % Year 1 | B54: =Year1Weight*VLOOKUP("F",FringeTable,2,FALSE)+Year2Weight*VLOOKUP("F",FringeTable,3,FALSE)+Year3Weight*VLOOKUP("F",FringeTable,4,FALSE) -> 0.3 | C54: =Year1Weight*VLOOKUP("A",FringeTable,2,FALSE)+Year2Weight*VLOOKUP("A",FringeTable,3,FALSE)+Year3Weight*VLOOKUP("A",FringeTable,4,FALSE) -> 0.38 | D54: =Year1Weight*VLOOKUP("A",FringeTable,2,FALSE)+Year2Weight*VLOOKUP("A",FringeTable,3,FALSE)+Year3Weight*VLOOKUP("A",FringeTable,4,FALSE) -> 0.38 | E54: =Year1Weight*VLOOKUP("A",FringeTable,2,FALSE)+Year2Weight*VLOOKUP("A",FringeTable,3,FALSE)+Year3Weight*VLOOKUP("A",FringeTable,4,FALSE) -> 0.38 | F54: =VLOOKUP("t",[0]!fringes,2,FALSE) -> 0.24 | G54: =Year1Weight*VLOOKUP("P",FringeTable,2,FALSE)+Year2Weight*VLOOKUP("P",FringeTable,3,FALSE)+Year3Weight*VLOOKUP("P",FringeTable,4,FALSE) -> 0.26 | H54: =VLOOKUP("r",[0]!fringes,2,FALSE) -> 0.081 | I54: =VLOOKUP("s",[0]!fringes,2,FALSE) -> 0.01 | J54: =VLOOKUP("w",[0]!fringes,2,FALSE) -> 0.01 | K54: 1.0%* | L54: =IF(SUM(B53:K53)=0,"",SUM(B53:K53)) ->  | M54: Salaries
A55: Benefits | B55: =IF(SUMIF('Salary Detail'!$P$24:$P$63,"f",'Salary Detail'!$M$24:$M$63)=0,"",SUMIF('Salary Detail'!$P$24:$P$63,"f",'Salary Detail'!$M$24:$M$63)) ->  | C55: =IF(SUMIF('Salary Detail'!$P$24:$P$63,"O",'Salary Detail'!$M$24:$M$63)=0,"",SUMIF('Salary Detail'!$P$24:$P$63,"O",'Salary Detail'!$M$24:$M$63)) ->  | D55: =IF(SUMIF('Salary Detail'!$P$24:$P$63,"L",'Salary Detail'!$M$24:$M$63)=0,"",SUMIF('Salary Detail'!$P$24:$P$63,"L",'Salary Detail'!$M$24:$M$63)) ->  | E55: =IF(SUMIF('Salary Detail'!$P$24:$P$63,"a",'Salary Detail'!$M$24:$M$63)=0,"",SUMIF('Salary Detail'!$P$24:$P$63,"a",'Salary Detail'!$M$24:$M$63)) ->  | F55: =IF(SUMIF('Salary Detail'!$P$24:$P$63,"t",'Salary Detail'!$M$24:$M$63)=0,"",SUMIF('Salary Detail'!$P$24:$P$63,"t",'Salary Detail'!$M$24:$M$63)) ->  | G55: =IF(SUMIF('Salary Detail'!$P$24:$P$63,"p",'Salary Detail'!$M$24:$M$63)=0,"",SUMIF('Salary Detail'!$P$24:$P$63,"p",'Salary Detail'!$M$24:$M$63)) ->  | H55: =IF(SUMIF('Salary Detail'!$P$24:$P$63,"r",'Salary Detail'!$M$24:$M$63)=0,"",SUMIF('Salary Detail'!$P$24:$P$63,"r",'Salary Detail'!$M$24:$M$63)) ->  | I55: =IF(SUMIF('Salary Detail'!$P$24:$P$63,"s",'Salary Detail'!$M$24:$M$63)=0,"",SUMIF('Salary Detail'!$P$24:$P$63,"s",'Salary Detail'!$M$24:$M$63)) ->  | J55: =IF(SUMIF('Salary Detail'!$P$24:$P$63,"w",'Salary Detail'!$M$24:$M$63)=0,"",SUMIF('Salary Detail'!$P$24:$P$63,"w",'Salary Detail'!$M$24:$M$63)) ->  | K55: =IF(SUMIF('Salary Detail'!$P$24:$P$63,"g",'Salary Detail'!$M$24:$M$63)=0,"",SUMIF('Salary Detail'!$P$24:$P$63,"g",'Salary Detail'!$M$24:$M$63)) ->  | L55: =IF(SUM(B55:K55)=0,"",SUM(B55:K55)) ->  | M55: Fringe Benefits
A56: Salary & Benefits | B56: =IFERROR(B53+B55,"") ->  | L56: =IF(SUM(B56:K56)=0,"",SUM(B56:K56)) ->  | M56: Total for Year 1
A59: HEALTH SCIENCES CENTER
A60: SUMMARY OF PERSONNEL TYPES AND RELATED BENEFITS
E62: PI's Name: | F62: =IF('Salary Detail'!E5=0,"",'Salary Detail'!E5) -> 
E63: Department: | F63: =IF('Salary Detail'!E6=0,"",'Salary Detail'!E6) -> 
E64: Project Title: | F64: =IF('Salary Detail'!E7=0,"",'Salary Detail'!E7) -> 
E65: Funding Agency: | F65: =IF('Salary Detail'!E8=0,"",'Salary Detail'!E8) -> 
A67: Year 2 - Salaries & Benefits
B68: Faculty | C68: Other Prof. | D68: Technical | E68: Sec/Clerical | F68: Temporary | G68: Postdoctoral | H68: Retired | I68: Student | J68: Workstudy | K68: GRAs | L68: Fringe | M68: Totals
A69: ='Salary Detail'!A79 ->  | B69: =IF('Salary Detail'!P24="f",'Salary Detail'!C79,"") ->  | C69: =IF('Salary Detail'!P24="o",'Salary Detail'!C79,"") ->  | D69: =IF('Salary Detail'!P24="l",'Salary Detail'!C79,"") ->  | E69: =IF('Salary Detail'!P24="a",'Salary Detail'!C79,"") ->  | F69: =IF('Salary Detail'!P24="t",'Salary Detail'!C79,"") ->  | G69: =IF('Salary Detail'!P24="p",'Salary Detail'!C79,"") ->  | H69: =IF('Salary Detail'!P24="r",'Salary Detail'!C79,"") ->  | I69: =IF('Salary Detail'!P24="s",'Salary Detail'!C79,"") ->  | J69: =IF('Salary Detail'!P24="w",'Salary Detail'!C79,"") ->  | K69: =IF('Salary Detail'!P24="G",'Salary Detail'!C79,"") ->  | L69: ='Salary Detail'!E79 ->  | M69: =IF(SUM(B69:L69)=0,"",SUM(B69:L69)) -> 
A70: ='Salary Detail'!A80 ->  | B70: =IF('Salary Detail'!P25="f",'Salary Detail'!C80,"") ->  | C70: =IF('Salary Detail'!P25="o",'Salary Detail'!C80,"") ->  | D70: =IF('Salary Detail'!P25="l",'Salary Detail'!C80,"") ->  | E70: =IF('Salary Detail'!P25="a",'Salary Detail'!C80,"") ->  | F70: =IF('Salary Detail'!P25="t",'Salary Detail'!C80,"") ->  | G70: =IF('Salary Detail'!P25="p",'Salary Detail'!C80,"") ->  | H70: =IF('Salary Detail'!P25="r",'Salary Detail'!C80,"") ->  | I70: =IF('Salary Detail'!P25="s",'Salary Detail'!C80,"") ->  | J70: =IF('Salary Detail'!P25="w",'Salary Detail'!C80,"") ->  | K70: =IF('Salary Detail'!P25="G",'Salary Detail'!C80,"") ->  | L70: ='Salary Detail'!E80 -> 
A71: ='Salary Detail'!A81 ->  | B71: =IF('Salary Detail'!P26="f",'Salary Detail'!C81,"") ->  | C71: =IF('Salary Detail'!P26="o",'Salary Detail'!C81,"") ->  | D71: =IF('Salary Detail'!P26="l",'Salary Detail'!C81,"") ->  | E71: =IF('Salary Detail'!P26="a",'Salary Detail'!C81,"") ->  | F71: =IF('Salary Detail'!P26="t",'Salary Detail'!C81,"") ->  | G71: =IF('Salary Detail'!P26="p",'Salary Detail'!C81,"") ->  | H71: =IF('Salary Detail'!P26="r",'Salary Detail'!C81,"") ->  | I71: =IF('Salary Detail'!P26="s",'Salary Detail'!C81,"") ->  | J71: =IF('Salary Detail'!P26="w",'Salary Detail'!C81,"") ->  | K71: =IF('Salary Detail'!P26="G",'Salary Detail'!C81,"") ->  | L71: ='Salary Detail'!E81 -> 
A72: ='Salary Detail'!A82 ->  | B72: =IF('Salary Detail'!P27="f",'Salary Detail'!C82,"") ->  | C72: =IF('Salary Detail'!P27="o",'Salary Detail'!C82,"") ->  | D72: =IF('Salary Detail'!P27="l",'Salary Detail'!C82,"") ->  | E72: =IF('Salary Detail'!P27="a",'Salary Detail'!C82,"") ->  | F72: =IF('Salary Detail'!P27="t",'Salary Detail'!C82,"") ->  | G72: =IF('Salary Detail'!P27="p",'Salary Detail'!C82,"") ->  | H72: =IF('Salary Detail'!P27="r",'Salary Detail'!C82,"") ->  | I72: =IF('Salary Detail'!P27="s",'Salary Detail'!C82,"") ->  | J72: =IF('Salary Detail'!P27="w",'Salary Detail'!C82,"") ->  | K72: =IF('Salary Detail'!P27="G",'Salary Detail'!C82,"") ->  | L72: ='Salary Detail'!E82 -> 
A73: ='Salary Detail'!A83 ->  | B73: =IF('Salary Detail'!P28="f",'Salary Detail'!C83,"") ->  | C73: =IF('Salary Detail'!P28="o",'Salary Detail'!C83,"") ->  | D73: =IF('Salary Detail'!P28="l",'Salary Detail'!C83,"") ->  | E73: =IF('Salary Detail'!P28="a",'Salary Detail'!C83,"") ->  | F73: =IF('Salary Detail'!P28="t",'Salary Detail'!C83,"") ->  | G73: =IF('Salary Detail'!P28="p",'Salary Detail'!C83,"") ->  | H73: =IF('Salary Detail'!P28="r",'Salary Detail'!C83,"") ->  | I73: =IF('Salary Detail'!P28="s",'Salary Detail'!C83,"") ->  | J73: =IF('Salary Detail'!P28="w",'Salary Detail'!C83,"") ->  | K73: =IF('Salary Detail'!P28="G",'Salary Detail'!C83,"") ->  | L73: ='Salary Detail'!E83 -> 
A74: ='Salary Detail'!A84 ->  | B74: =IF('Salary Detail'!P29="f",'Salary Detail'!C84,"") ->  | C74: =IF('Salary Detail'!P29="o",'Salary Detail'!C84,"") ->  | D74: =IF('Salary Detail'!P29="l",'Salary Detail'!C84,"") ->  | E74: =IF('Salary Detail'!P29="a",'Salary Detail'!C84,"") ->  | F74: =IF('Salary Detail'!P29="t",'Salary Detail'!C84,"") ->  | G74: =IF('Salary Detail'!P29="p",'Salary Detail'!C84,"") ->  | H74: =IF('Salary Detail'!P29="r",'Salary Detail'!C84,"") ->  | I74: =IF('Salary Detail'!P29="s",'Salary Detail'!C84,"") ->  | J74: =IF('Salary Detail'!P29="w",'Salary Detail'!C84,"") ->  | K74: =IF('Salary Detail'!P29="G",'Salary Detail'!C84,"") ->  | L74: ='Salary Detail'!E84 -> 
A75: ='Salary Detail'!A85 ->  | B75: =IF('Salary Detail'!P30="f",'Salary Detail'!C85,"") ->  | C75: =IF('Salary Detail'!P30="o",'Salary Detail'!C85,"") ->  | D75: =IF('Salary Detail'!P30="l",'Salary Detail'!C85,"") ->  | E75: =IF('Salary Detail'!P30="a",'Salary Detail'!C85,"") ->  | F75: =IF('Salary Detail'!P30="t",'Salary Detail'!C85,"") ->  | G75: =IF('Salary Detail'!P30="p",'Salary Detail'!C85,"") ->  | H75: =IF('Salary Detail'!P30="r",'Salary Detail'!C85,"") ->  | I75: =IF('Salary Detail'!P30="s",'Salary Detail'!C85,"") ->  | J75: =IF('Salary Detail'!P30="w",'Salary Detail'!C85,"") ->  | K75: =IF('Salary Detail'!P30="G",'Salary Detail'!C85,"") ->  | L75: ='Salary Detail'!E85 -> 
A76: ='Salary Detail'!A86 ->  | B76: =IF('Salary Detail'!P31="f",'Salary Detail'!C86,"") ->  | C76: =IF('Salary Detail'!P31="o",'Salary Detail'!C86,"") ->  | D76: =IF('Salary Detail'!P31="l",'Salary Detail'!C86,"") ->  | E76: =IF('Salary Detail'!P31="a",'Salary Detail'!C86,"") ->  | F76: =IF('Salary Detail'!P31="t",'Salary Detail'!C86,"") ->  | G76: =IF('Salary Detail'!P31="p",'Salary Detail'!C86,"") ->  | H76: =IF('Salary Detail'!P31="r",'Salary Detail'!C86,"") ->  | I76: =IF('Salary Detail'!P31="s",'Salary Detail'!C86,"") ->  | J76: =IF('Salary Detail'!P31="w",'Salary Detail'!C86,"") ->  | K76: =IF('Salary Detail'!P31="G",'Salary Detail'!C86,"") ->  | L76: ='Salary Detail'!E86 -> 
A77: ='Salary Detail'!A87 ->  | B77: =IF('Salary Detail'!P32="f",'Salary Detail'!C87,"") ->  | C77: =IF('Salary Detail'!P32="o",'Salary Detail'!C87,"") ->  | D77: =IF('Salary Detail'!P32="l",'Salary Detail'!C87,"") ->  | E77: =IF('Salary Detail'!P32="a",'Salary Detail'!C87,"") ->  | F77: =IF('Salary Detail'!P32="t",'Salary Detail'!C87,"") ->  | G77: =IF('Salary Detail'!P32="p",'Salary Detail'!C87,"") ->  | H77: =IF('Salary Detail'!P32="r",'Salary Detail'!C87,"") ->  | I77: =IF('Salary Detail'!P32="s",'Salary Detail'!C87,"") ->  | J77: =IF('Salary Detail'!P32="w",'Salary Detail'!C87,"") ->  | K77: =IF('Salary Detail'!P32="G",'Salary Detail'!C87,"") ->  | L77: ='Salary Detail'!E87 -> 
A78: ='Salary Detail'!A88 ->  | B78: =IF('Salary Detail'!P33="f",'Salary Detail'!C88,"") ->  | C78: =IF('Salary Detail'!P33="o",'Salary Detail'!C88,"") ->  | D78: =IF('Salary Detail'!P33="l",'Salary Detail'!C88,"") ->  | E78: =IF('Salary Detail'!P33="a",'Salary Detail'!C88,"") ->  | F78: =IF('Salary Detail'!P33="t",'Salary Detail'!C88,"") ->  | G78: =IF('Salary Detail'!P33="p",'Salary Detail'!C88,"") ->  | H78: =IF('Salary Detail'!P33="r",'Salary Detail'!C88,"") ->  | I78: =IF('Salary Detail'!P33="s",'Salary Detail'!C88,"") ->  | J78: =IF('Salary Detail'!P33="w",'Salary Detail'!C88,"") ->  | K78: =IF('Salary Detail'!P33="G",'Salary Detail'!C88,"") ->  | L78: ='Salary Detail'!E88 -> 
A79: ='Salary Detail'!A89 ->  | B79: =IF('Salary Detail'!P34="f",'Salary Detail'!C89,"") ->  | C79: =IF('Salary Detail'!P34="o",'Salary Detail'!C89,"") ->  | D79: =IF('Salary Detail'!P34="l",'Salary Detail'!C89,"") ->  | E79: =IF('Salary Detail'!P34="a",'Salary Detail'!C89,"") ->  | F79: =IF('Salary Detail'!P34="t",'Salary Detail'!C89,"") ->  | G79: =IF('Salary Detail'!P34="p",'Salary Detail'!C89,"") ->  | H79: =IF('Salary Detail'!P34="r",'Salary Detail'!C89,"") ->  | I79: =IF('Salary Detail'!P34="s",'Salary Detail'!C89,"") ->  | J79: =IF('Salary Detail'!P34="w",'Salary Detail'!C89,"") ->  | K79: =IF('Salary Detail'!P34="G",'Salary Detail'!C89,"") ->  | L79: ='Salary Detail'!E89 -> 
A80: ='Salary Detail'!A90 ->  | B80: =IF('Salary Detail'!P35="f",'Salary Detail'!C90,"") ->  | C80: =IF('Salary Detail'!P35="o",'Salary Detail'!C90,"") ->  | D80: =IF('Salary Detail'!P35="l",'Salary Detail'!C90,"") ->  | E80: =IF('Salary Detail'!P35="a",'Salary Detail'!C90,"") ->  | F80: =IF('Salary Detail'!P35="t",'Salary Detail'!C90,"") ->  | G80: =IF('Salary Detail'!P35="p",'Salary Detail'!C90,"") ->  | H80: =IF('Salary Detail'!P35="r",'Salary Detail'!C90,"") ->  | I80: =IF('Salary Detail'!P35="s",'Salary Detail'!C90,"") ->  | J80: =IF('Salary Detail'!P35="w",'Salary Detail'!C90,"") ->  | K80: =IF('Salary Detail'!P35="G",'Salary Detail'!C90,"") ->  | L80: ='Salary Detail'!E90 -> 
A81: ='Salary Detail'!A91 ->  | B81: =IF('Salary Detail'!P36="f",'Salary Detail'!C91,"") ->  | C81: =IF('Salary Detail'!P36="o",'Salary Detail'!C91,"") ->  | D81: =IF('Salary Detail'!P36="l",'Salary Detail'!C91,"") ->  | E81: =IF('Salary Detail'!P36="a",'Salary Detail'!C91,"") ->  | F81: =IF('Salary Detail'!P36="t",'Salary Detail'!C91,"") ->  | G81: =IF('Salary Detail'!P36="p",'Salary Detail'!C91,"") ->  | H81: =IF('Salary Detail'!P36="r",'Salary Detail'!C91,"") ->  | I81: =IF('Salary Detail'!P36="s",'Salary Detail'!C91,"") ->  | J81: =IF('Salary Detail'!P36="w",'Salary Detail'!C91,"") ->  | K81: =IF('Salary Detail'!P36="G",'Salary Detail'!C91,"") ->  | L81: ='Salary Detail'!E91 -> 
A82: ='Salary Detail'!A92 ->  | B82: =IF('Salary Detail'!P37="f",'Salary Detail'!C92,"") ->  | C82: =IF('Salary Detail'!P37="o",'Salary Detail'!C92,"") ->  | D82: =IF('Salary Detail'!P37="l",'Salary Detail'!C92,"") ->  | E82: =IF('Salary Detail'!P37="a",'Salary Detail'!C92,"") ->  | F82: =IF('Salary Detail'!P37="t",'Salary Detail'!C92,"") ->  | G82: =IF('Salary Detail'!P37="p",'Salary Detail'!C92,"") ->  | H82: =IF('Salary Detail'!P37="r",'Salary Detail'!C92,"") ->  | I82: =IF('Salary Detail'!P37="s",'Salary Detail'!C92,"") ->  | J82: =IF('Salary Detail'!P37="w",'Salary Detail'!C92,"") ->  | K82: =IF('Salary Detail'!P37="G",'Salary Detail'!C92,"") ->  | L82: ='Salary Detail'!E92 -> 
A83: ='Salary Detail'!A93 ->  | B83: =IF('Salary Detail'!P38="f",'Salary Detail'!C93,"") ->  | C83: =IF('Salary Detail'!P38="o",'Salary Detail'!C93,"") ->  | D83: =IF('Salary Detail'!P38="l",'Salary Detail'!C93,"") ->  | E83: =IF('Salary Detail'!P38="a",'Salary Detail'!C93,"") ->  | F83: =IF('Salary Detail'!P38="t",'Salary Detail'!C93,"") ->  | G83: =IF('Salary Detail'!P38="p",'Salary Detail'!C93,"") ->  | H83: =IF('Salary Detail'!P38="r",'Salary Detail'!C93,"") ->  | I83: =IF('Salary Detail'!P38="s",'Salary Detail'!C93,"") ->  | J83: =IF('Salary Detail'!P38="w",'Salary Detail'!C93,"") ->  | K83: =IF('Salary Detail'!P38="G",'Salary Detail'!C93,"") ->  | L83: ='Salary Detail'!E93 -> 
A84: ='Salary Detail'!A94 ->  | B84: =IF('Salary Detail'!P39="f",'Salary Detail'!C94,"") ->  | C84: =IF('Salary Detail'!P39="o",'Salary Detail'!C94,"") ->  | D84: =IF('Salary Detail'!P39="l",'Salary Detail'!C94,"") ->  | E84: =IF('Salary Detail'!P39="a",'Salary Detail'!C94,"") ->  | F84: =IF('Salary Detail'!P39="t",'Salary Detail'!C94,"") ->  | G84: =IF('Salary Detail'!P39="p",'Salary Detail'!C94,"") ->  | H84: =IF('Salary Detail'!P39="r",'Salary Detail'!C94,"") ->  | I84: =IF('Salary Detail'!P39="s",'Salary Detail'!C94,"") ->  | J84: =IF('Salary Detail'!P39="w",'Salary Detail'!C94,"") ->  | K84: =IF('Salary Detail'!P39="G",'Salary Detail'!C94,"") ->  | L84: ='Salary Detail'!E94 -> 
A85: ='Salary Detail'!A95 ->  | B85: =IF('Salary Detail'!P40="f",'Salary Detail'!C95,"") ->  | C85: =IF('Salary Detail'!P40="o",'Salary Detail'!C95,"") ->  | D85: =IF('Salary Detail'!P40="l",'Salary Detail'!C95,"") ->  | E85: =IF('Salary Detail'!P40="a",'Salary Detail'!C95,"") ->  | F85: =IF('Salary Detail'!P40="t",'Salary Detail'!C95,"") ->  | G85: =IF('Salary Detail'!P40="p",'Salary Detail'!C95,"") ->  | H85: =IF('Salary Detail'!P40="r",'Salary Detail'!C95,"") ->  | I85: =IF('Salary Detail'!P40="s",'Salary Detail'!C95,"") ->  | J85: =IF('Salary Detail'!P40="w",'Salary Detail'!C95,"") ->  | K85: =IF('Salary Detail'!P40="G",'Salary Detail'!C95,"") ->  | L85: ='Salary Detail'!E95 -> 
A86: ='Salary Detail'!A96 ->  | B86: =IF('Salary Detail'!P41="f",'Salary Detail'!C96,"") ->  | C86: =IF('Salary Detail'!P41="o",'Salary Detail'!C96,"") ->  | D86: =IF('Salary Detail'!P41="l",'Salary Detail'!C96,"") ->  | E86: =IF('Salary Detail'!P41="a",'Salary Detail'!C96,"") ->  | F86: =IF('Salary Detail'!P41="t",'Salary Detail'!C96,"") ->  | G86: =IF('Salary Detail'!P41="p",'Salary Detail'!C96,"") ->  | H86: =IF('Salary Detail'!P41="r",'Salary Detail'!C96,"") ->  | I86: =IF('Salary Detail'!P41="s",'Salary Detail'!C96,"") ->  | J86: =IF('Salary Detail'!P41="w",'Salary Detail'!C96,"") ->  | K86: =IF('Salary Detail'!P41="G",'Salary Detail'!C96,"") ->  | L86: ='Salary Detail'!E96 -> 
A87: ='Salary Detail'!A97 ->  | B87: =IF('Salary Detail'!P42="f",'Salary Detail'!C97,"") ->  | C87: =IF('Salary Detail'!P42="o",'Salary Detail'!C97,"") ->  | D87: =IF('Salary Detail'!P42="l",'Salary Detail'!C97,"") ->  | E87: =IF('Salary Detail'!P42="a",'Salary Detail'!C97,"") ->  | F87: =IF('Salary Detail'!P42="t",'Salary Detail'!C97,"") ->  | G87: =IF('Salary Detail'!P42="p",'Salary Detail'!C97,"") ->  | H87: =IF('Salary Detail'!P42="r",'Salary Detail'!C97,"") ->  | I87: =IF('Salary Detail'!P42="s",'Salary Detail'!C97,"") ->  | J87: =IF('Salary Detail'!P42="w",'Salary Detail'!C97,"") ->  | K87: =IF('Salary Detail'!P42="G",'Salary Detail'!C97,"") ->  | L87: ='Salary Detail'!E97 -> 
A88: ='Salary Detail'!A98 ->  | B88: =IF('Salary Detail'!P43="f",'Salary Detail'!C98,"") ->  | C88: =IF('Salary Detail'!P43="o",'Salary Detail'!C98,"") ->  | D88: =IF('Salary Detail'!P43="l",'Salary Detail'!C98,"") ->  | E88: =IF('Salary Detail'!P43="a",'Salary Detail'!C98,"") ->  | F88: =IF('Salary Detail'!P43="t",'Salary Detail'!C98,"") ->  | G88: =IF('Salary Detail'!P43="p",'Salary Detail'!C98,"") ->  | H88: =IF('Salary Detail'!P43="r",'Salary Detail'!C98,"") ->  | I88: =IF('Salary Detail'!P43="s",'Salary Detail'!C98,"") ->  | J88: =IF('Salary Detail'!P43="w",'Salary Detail'!C98,"") ->  | K88: =IF('Salary Detail'!P43="G",'Salary Detail'!C98,"") ->  | L88: ='Salary Detail'!E98 -> 
A89: ='Salary Detail'!A99 ->  | B89: =IF('Salary Detail'!P44="f",'Salary Detail'!C99,"") ->  | C89: =IF('Salary Detail'!P44="o",'Salary Detail'!C99,"") ->  | D89: =IF('Salary Detail'!P44="l",'Salary Detail'!C99,"") ->  | E89: =IF('Salary Detail'!P44="a",'Salary Detail'!C99,"") ->  | F89: =IF('Salary Detail'!P44="t",'Salary Detail'!C99,"") ->  | G89: =IF('Salary Detail'!P44="p",'Salary Detail'!C99,"") ->  | H89: =IF('Salary Detail'!P44="r",'Salary Detail'!C99,"") ->  | I89: =IF('Salary Detail'!P44="s",'Salary Detail'!C99,"") ->  | J89: =IF('Salary Detail'!P44="w",'Salary Detail'!C99,"") ->  | K89: =IF('Salary Detail'!P44="G",'Salary Detail'!C99,"") ->  | L89: ='Salary Detail'!E99 -> 
A90: ='Salary Detail'!A100 ->  | B90: =IF('Salary Detail'!P45="f",'Salary Detail'!C100,"") ->  | C90: =IF('Salary Detail'!P45="o",'Salary Detail'!C100,"") ->  | D90: =IF('Salary Detail'!P45="l",'Salary Detail'!C100,"") ->  | E90: =IF('Salary Detail'!P45="a",'Salary Detail'!C100,"") ->  | F90: =IF('Salary Detail'!P45="t",'Salary Detail'!C100,"") ->  | G90: =IF('Salary Detail'!P45="p",'Salary Detail'!C100,"") ->  | H90: =IF('Salary Detail'!P45="r",'Salary Detail'!C100,"") ->  | I90: =IF('Salary Detail'!P45="s",'Salary Detail'!C100,"") ->  | J90: =IF('Salary Detail'!P45="w",'Salary Detail'!C100,"") ->  | K90: =IF('Salary Detail'!P45="G",'Salary Detail'!C100,"") ->  | L90: ='Salary Detail'!E100 -> 
A91: ='Salary Detail'!A101 ->  | B91: =IF('Salary Detail'!P46="f",'Salary Detail'!C101,"") ->  | C91: =IF('Salary Detail'!P46="o",'Salary Detail'!C101,"") ->  | D91: =IF('Salary Detail'!P46="l",'Salary Detail'!C101,"") ->  | E91: =IF('Salary Detail'!P46="a",'Salary Detail'!C101,"") ->  | F91: =IF('Salary Detail'!P46="t",'Salary Detail'!C101,"") ->  | G91: =IF('Salary Detail'!P46="p",'Salary Detail'!C101,"") ->  | H91: =IF('Salary Detail'!P46="r",'Salary Detail'!C101,"") ->  | I91: =IF('Salary Detail'!P46="s",'Salary Detail'!C101,"") ->  | J91: =IF('Salary Detail'!P46="w",'Salary Detail'!C101,"") ->  | K91: =IF('Salary Detail'!P46="G",'Salary Detail'!C101,"") ->  | L91: ='Salary Detail'!E101 -> 
A92: ='Salary Detail'!A102 ->  | B92: =IF('Salary Detail'!P47="f",'Salary Detail'!C102,"") ->  | C92: =IF('Salary Detail'!P47="o",'Salary Detail'!C102,"") ->  | D92: =IF('Salary Detail'!P47="l",'Salary Detail'!C102,"") ->  | E92: =IF('Salary Detail'!P47="a",'Salary Detail'!C102,"") ->  | F92: =IF('Salary Detail'!P47="t",'Salary Detail'!C102,"") ->  | G92: =IF('Salary Detail'!P47="p",'Salary Detail'!C102,"") ->  | H92: =IF('Salary Detail'!P47="r",'Salary Detail'!C102,"") ->  | I92: =IF('Salary Detail'!P47="s",'Salary Detail'!C102,"") ->  | J92: =IF('Salary Detail'!P47="w",'Salary Detail'!C102,"") ->  | K92: =IF('Salary Detail'!P47="G",'Salary Detail'!C102,"") ->  | L92: ='Salary Detail'!E102 -> 
A93: ='Salary Detail'!A103 ->  | B93: =IF('Salary Detail'!P48="f",'Salary Detail'!C103,"") ->  | C93: =IF('Salary Detail'!P48="o",'Salary Detail'!C103,"") ->  | D93: =IF('Salary Detail'!P48="l",'Salary Detail'!C103,"") ->  | E93: =IF('Salary Detail'!P48="a",'Salary Detail'!C103,"") ->  | F93: =IF('Salary Detail'!P48="t",'Salary Detail'!C103,"") ->  | G93: =IF('Salary Detail'!P48="p",'Salary Detail'!C103,"") ->  | H93: =IF('Salary Detail'!P48="r",'Salary Detail'!C103,"") ->  | I93: =IF('Salary Detail'!P48="s",'Salary Detail'!C103,"") ->  | J93: =IF('Salary Detail'!P48="w",'Salary Detail'!C103,"") ->  | K93: =IF('Salary Detail'!P48="G",'Salary Detail'!C103,"") ->  | L93: ='Salary Detail'!E103 -> 
A94: ='Salary Detail'!A104 ->  | B94: =IF('Salary Detail'!P49="f",'Salary Detail'!C104,"") ->  | C94: =IF('Salary Detail'!P49="o",'Salary Detail'!C104,"") ->  | D94: =IF('Salary Detail'!P49="l",'Salary Detail'!C104,"") ->  | E94: =IF('Salary Detail'!P49="a",'Salary Detail'!C104,"") ->  | F94: =IF('Salary Detail'!P49="t",'Salary Detail'!C104,"") ->  | G94: =IF('Salary Detail'!P49="p",'Salary Detail'!C104,"") ->  | H94: =IF('Salary Detail'!P49="r",'Salary Detail'!C104,"") ->  | I94: =IF('Salary Detail'!P49="s",'Salary Detail'!C104,"") ->  | J94: =IF('Salary Detail'!P49="w",'Salary Detail'!C104,"") ->  | K94: =IF('Salary Detail'!P49="G",'Salary Detail'!C104,"") ->  | L94: ='Salary Detail'!E104 -> 
A95: ='Salary Detail'!A105 ->  | B95: =IF('Salary Detail'!P50="f",'Salary Detail'!C105,"") ->  | C95: =IF('Salary Detail'!P50="o",'Salary Detail'!C105,"") ->  | D95: =IF('Salary Detail'!P50="l",'Salary Detail'!C105,"") ->  | E95: =IF('Salary Detail'!P50="a",'Salary Detail'!C105,"") ->  | F95: =IF('Salary Detail'!P50="t",'Salary Detail'!C105,"") ->  | G95: =IF('Salary Detail'!P50="p",'Salary Detail'!C105,"") ->  | H95: =IF('Salary Detail'!P50="r",'Salary Detail'!C105,"") ->  | I95: =IF('Salary Detail'!P50="s",'Salary Detail'!C105,"") ->  | J95: =IF('Salary Detail'!P50="w",'Salary Detail'!C105,"") ->  | K95: =IF('Salary Detail'!P50="G",'Salary Detail'!C105,"") ->  | L95: ='Salary Detail'!E105 -> 
A96: ='Salary Detail'!A106 ->  | B96: =IF('Salary Detail'!P51="f",'Salary Detail'!C106,"") ->  | C96: =IF('Salary Detail'!P51="o",'Salary Detail'!C106,"") ->  | D96: =IF('Salary Detail'!P51="l",'Salary Detail'!C106,"") ->  | E96: =IF('Salary Detail'!P51="a",'Salary Detail'!C106,"") ->  | F96: =IF('Salary Detail'!P51="t",'Salary Detail'!C106,"") ->  | G96: =IF('Salary Detail'!P51="p",'Salary Detail'!C106,"") ->  | H96: =IF('Salary Detail'!P51="r",'Salary Detail'!C106,"") ->  | I96: =IF('Salary Detail'!P51="s",'Salary Detail'!C106,"") ->  | J96: =IF('Salary Detail'!P51="w",'Salary Detail'!C106,"") ->  | K96: =IF('Salary Detail'!P51="G",'Salary Detail'!C106,"") ->  | L96: ='Salary Detail'!E106 -> 
A97: ='Salary Detail'!A107 ->  | B97: =IF('Salary Detail'!P52="f",'Salary Detail'!C107,"") ->  | C97: =IF('Salary Detail'!P52="o",'Salary Detail'!C107,"") ->  | D97: =IF('Salary Detail'!P52="l",'Salary Detail'!C107,"") ->  | E97: =IF('Salary Detail'!P52="a",'Salary Detail'!C107,"") ->  | F97: =IF('Salary Detail'!P52="t",'Salary Detail'!C107,"") ->  | G97: =IF('Salary Detail'!P52="p",'Salary Detail'!C107,"") ->  | H97: =IF('Salary Detail'!P52="r",'Salary Detail'!C107,"") ->  | I97: =IF('Salary Detail'!P52="s",'Salary Detail'!C107,"") ->  | J97: =IF('Salary Detail'!P52="w",'Salary Detail'!C107,"") ->  | K97: =IF('Salary Detail'!P52="G",'Salary Detail'!C107,"") ->  | L97: ='Salary Detail'!E107 -> 
A98: ='Salary Detail'!A108 ->  | B98: =IF('Salary Detail'!P53="f",'Salary Detail'!C108,"") ->  | C98: =IF('Salary Detail'!P53="o",'Salary Detail'!C108,"") ->  | D98: =IF('Salary Detail'!P53="l",'Salary Detail'!C108,"") ->  | E98: =IF('Salary Detail'!P53="a",'Salary Detail'!C108,"") ->  | F98: =IF('Salary Detail'!P53="t",'Salary Detail'!C108,"") ->  | G98: =IF('Salary Detail'!P53="p",'Salary Detail'!C108,"") ->  | H98: =IF('Salary Detail'!P53="r",'Salary Detail'!C108,"") ->  | I98: =IF('Salary Detail'!P53="s",'Salary Detail'!C108,"") ->  | J98: =IF('Salary Detail'!P53="w",'Salary Detail'!C108,"") ->  | K98: =IF('Salary Detail'!P53="G",'Salary Detail'!C108,"") ->  | L98: ='Salary Detail'!E108 -> 
A99: ='Salary Detail'!A109 ->  | B99: =IF('Salary Detail'!P54="f",'Salary Detail'!C109,"") ->  | C99: =IF('Salary Detail'!P54="o",'Salary Detail'!C109,"") ->  | D99: =IF('Salary Detail'!P54="l",'Salary Detail'!C109,"") ->  | E99: =IF('Salary Detail'!P54="a",'Salary Detail'!C109,"") ->  | F99: =IF('Salary Detail'!P54="t",'Salary Detail'!C109,"") ->  | G99: =IF('Salary Detail'!P54="p",'Salary Detail'!C109,"") ->  | H99: =IF('Salary Detail'!P54="r",'Salary Detail'!C109,"") ->  | I99: =IF('Salary Detail'!P54="s",'Salary Detail'!C109,"") ->  | J99: =IF('Salary Detail'!P54="w",'Salary Detail'!C109,"") ->  | K99: =IF('Salary Detail'!P54="G",'Salary Detail'!C109,"") ->  | L99: ='Salary Detail'!E109 -> 
A100: ='Salary Detail'!A110 ->  | B100: =IF('Salary Detail'!P55="f",'Salary Detail'!C110,"") ->  | C100: =IF('Salary Detail'!P55="o",'Salary Detail'!C110,"") ->  | D100: =IF('Salary Detail'!P55="l",'Salary Detail'!C110,"") ->  | E100: =IF('Salary Detail'!P55="a",'Salary Detail'!C110,"") ->  | F100: =IF('Salary Detail'!P55="t",'Salary Detail'!C110,"") ->  | G100: =IF('Salary Detail'!P55="p",'Salary Detail'!C110,"") ->  | H100: =IF('Salary Detail'!P55="r",'Salary Detail'!C110,"") ->  | I100: =IF('Salary Detail'!P55="s",'Salary Detail'!C110,"") ->  | J100: =IF('Salary Detail'!P55="w",'Salary Detail'!C110,"") ->  | K100: =IF('Salary Detail'!P55="G",'Salary Detail'!C110,"") ->  | L100: ='Salary Detail'!E110 -> 
A101: ='Salary Detail'!A111 ->  | B101: =IF('Salary Detail'!P56="f",'Salary Detail'!C111,"") ->  | C101: =IF('Salary Detail'!P56="o",'Salary Detail'!C111,"") ->  | D101: =IF('Salary Detail'!P56="l",'Salary Detail'!C111,"") ->  | E101: =IF('Salary Detail'!P56="a",'Salary Detail'!C111,"") ->  | F101: =IF('Salary Detail'!P56="t",'Salary Detail'!C111,"") ->  | G101: =IF('Salary Detail'!P56="p",'Salary Detail'!C111,"") ->  | H101: =IF('Salary Detail'!P56="r",'Salary Detail'!C111,"") ->  | I101: =IF('Salary Detail'!P56="s",'Salary Detail'!C111,"") ->  | J101: =IF('Salary Detail'!P56="w",'Salary Detail'!C111,"") ->  | K101: =IF('Salary Detail'!P56="G",'Salary Detail'!C111,"") ->  | L101: ='Salary Detail'!E111 -> 
A102: ='Salary Detail'!A112 ->  | B102: =IF('Salary Detail'!P57="f",'Salary Detail'!C112,"") ->  | C102: =IF('Salary Detail'!P57="o",'Salary Detail'!C112,"") ->  | D102: =IF('Salary Detail'!P57="l",'Salary Detail'!C112,"") ->  | E102: =IF('Salary Detail'!P57="a",'Salary Detail'!C112,"") ->  | F102: =IF('Salary Detail'!P57="t",'Salary Detail'!C112,"") ->  | G102: =IF('Salary Detail'!P57="p",'Salary Detail'!C112,"") ->  | H102: =IF('Salary Detail'!P57="r",'Salary Detail'!C112,"") ->  | I102: =IF('Salary Detail'!P57="s",'Salary Detail'!C112,"") ->  | J102: =IF('Salary Detail'!P57="w",'Salary Detail'!C112,"") ->  | K102: =IF('Salary Detail'!P57="G",'Salary Detail'!C112,"") ->  | L102: ='Salary Detail'!E112 -> 
A103: ='Salary Detail'!A113 ->  | B103: =IF('Salary Detail'!P58="f",'Salary Detail'!C113,"") ->  | C103: =IF('Salary Detail'!P58="o",'Salary Detail'!C113,"") ->  | D103: =IF('Salary Detail'!P58="l",'Salary Detail'!C113,"") ->  | E103: =IF('Salary Detail'!P58="a",'Salary Detail'!C113,"") ->  | F103: =IF('Salary Detail'!P58="t",'Salary Detail'!C113,"") ->  | G103: =IF('Salary Detail'!P58="p",'Salary Detail'!C113,"") ->  | H103: =IF('Salary Detail'!P58="r",'Salary Detail'!C113,"") ->  | I103: =IF('Salary Detail'!P58="s",'Salary Detail'!C113,"") ->  | J103: =IF('Salary Detail'!P58="w",'Salary Detail'!C113,"") ->  | K103: =IF('Salary Detail'!P58="G",'Salary Detail'!C113,"") ->  | L103: ='Salary Detail'!E113 -> 
A104: ='Salary Detail'!A114 ->  | B104: =IF('Salary Detail'!P59="f",'Salary Detail'!C114,"") ->  | C104: =IF('Salary Detail'!P59="o",'Salary Detail'!C114,"") ->  | D104: =IF('Salary Detail'!P59="l",'Salary Detail'!C114,"") ->  | E104: =IF('Salary Detail'!P59="a",'Salary Detail'!C114,"") ->  | F104: =IF('Salary Detail'!P59="t",'Salary Detail'!C114,"") ->  | G104: =IF('Salary Detail'!P59="p",'Salary Detail'!C114,"") ->  | H104: =IF('Salary Detail'!P59="r",'Salary Detail'!C114,"") ->  | I104: =IF('Salary Detail'!P59="s",'Salary Detail'!C114,"") ->  | J104: =IF('Salary Detail'!P59="w",'Salary Detail'!C114,"") ->  | K104: =IF('Salary Detail'!P59="G",'Salary Detail'!C114,"") ->  | L104: ='Salary Detail'!E114 -> 
A105: ='Salary Detail'!A115 ->  | B105: =IF('Salary Detail'!P60="f",'Salary Detail'!C115,"") ->  | C105: =IF('Salary Detail'!P60="o",'Salary Detail'!C115,"") ->  | D105: =IF('Salary Detail'!P60="l",'Salary Detail'!C115,"") ->  | E105: =IF('Salary Detail'!P60="a",'Salary Detail'!C115,"") ->  | F105: =IF('Salary Detail'!P60="t",'Salary Detail'!C115,"") ->  | G105: =IF('Salary Detail'!P60="p",'Salary Detail'!C115,"") ->  | H105: =IF('Salary Detail'!P60="r",'Salary Detail'!C115,"") ->  | I105: =IF('Salary Detail'!P60="s",'Salary Detail'!C115,"") ->  | J105: =IF('Salary Detail'!P60="w",'Salary Detail'!C115,"") ->  | K105: =IF('Salary Detail'!P60="G",'Salary Detail'!C115,"") ->  | L105: ='Salary Detail'!E115 -> 
A106: ='Salary Detail'!A116 ->  | B106: =IF('Salary Detail'!P61="f",'Salary Detail'!C116,"") ->  | C106: =IF('Salary Detail'!P61="o",'Salary Detail'!C116,"") ->  | D106: =IF('Salary Detail'!P61="l",'Salary Detail'!C116,"") ->  | E106: =IF('Salary Detail'!P61="a",'Salary Detail'!C116,"") ->  | F106: =IF('Salary Detail'!P61="t",'Salary Detail'!C116,"") ->  | G106: =IF('Salary Detail'!P61="p",'Salary Detail'!C116,"") ->  | H106: =IF('Salary Detail'!P61="r",'Salary Detail'!C116,"") ->  | I106: =IF('Salary Detail'!P61="s",'Salary Detail'!C116,"") ->  | J106: =IF('Salary Detail'!P61="w",'Salary Detail'!C116,"") ->  | K106: =IF('Salary Detail'!P61="G",'Salary Detail'!C116,"") ->  | L106: ='Salary Detail'!E116 -> 
A107: ='Salary Detail'!A117 ->  | B107: =IF('Salary Detail'!P62="f",'Salary Detail'!C117,"") ->  | C107: =IF('Salary Detail'!P62="o",'Salary Detail'!C117,"") ->  | D107: =IF('Salary Detail'!P62="l",'Salary Detail'!C117,"") ->  | E107: =IF('Salary Detail'!P62="a",'Salary Detail'!C117,"") ->  | F107: =IF('Salary Detail'!P62="t",'Salary Detail'!C117,"") ->  | G107: =IF('Salary Detail'!P62="p",'Salary Detail'!C117,"") ->  | H107: =IF('Salary Detail'!P62="r",'Salary Detail'!C117,"") ->  | I107: =IF('Salary Detail'!P62="s",'Salary Detail'!C117,"") ->  | J107: =IF('Salary Detail'!P62="w",'Salary Detail'!C117,"") ->  | K107: =IF('Salary Detail'!P62="G",'Salary Detail'!C117,"") ->  | L107: ='Salary Detail'!E117 -> 
A108: ='Salary Detail'!A118 ->  | B108: =IF('Salary Detail'!P63="f",'Salary Detail'!C118,"") ->  | C108: =IF('Salary Detail'!P63="o",'Salary Detail'!C118,"") ->  | D108: =IF('Salary Detail'!P63="l",'Salary Detail'!C118,"") ->  | E108: =IF('Salary Detail'!P63="a",'Salary Detail'!C118,"") ->  | F108: =IF('Salary Detail'!P63="t",'Salary Detail'!C118,"") ->  | G108: =IF('Salary Detail'!P63="p",'Salary Detail'!C118,"") ->  | H108: =IF('Salary Detail'!P63="r",'Salary Detail'!C118,"") ->  | I108: =IF('Salary Detail'!P63="s",'Salary Detail'!C118,"") ->  | J108: =IF('Salary Detail'!P63="w",'Salary Detail'!C118,"") ->  | K108: =IF('Salary Detail'!P63="G",'Salary Detail'!C118,"") ->  | L108: ='Salary Detail'!E118 -> 
A109: Totals | B109: =IF(SUM(B69:B108)=0,"",SUM(B69:B108)) ->  | M109: =IF(SUM(M69:M108)=0,"",SUM(M69:M108)) -> 
A110: Avg. Benefits % Year 2 | B110: =Year1Weight*VLOOKUP("F",FringeTable,2,FALSE)+Year2Weight*VLOOKUP("F",FringeTable,3,FALSE)+Year3Weight*VLOOKUP("F",FringeTable,4,FALSE) -> 0.3 | C110: =Year1Weight*VLOOKUP("A",FringeTable,2,FALSE)+Year2Weight*VLOOKUP("A",FringeTable,3,FALSE)+Year3Weight*VLOOKUP("A",FringeTable,4,FALSE) -> 0.38 | D110: =Year1Weight*VLOOKUP("A",FringeTable,2,FALSE)+Year2Weight*VLOOKUP("A",FringeTable,3,FALSE)+Year3Weight*VLOOKUP("A",FringeTable,4,FALSE) -> 0.38 | E110: =Year1Weight*VLOOKUP("A",FringeTable,2,FALSE)+Year2Weight*VLOOKUP("A",FringeTable,3,FALSE)+Year3Weight*VLOOKUP("A",FringeTable,4,FALSE) -> 0.38 | F110: =VLOOKUP("t",[0]!fringes,2,FALSE) -> 0.24 | G110: =Year1Weight*VLOOKUP("P",FringeTable,2,FALSE)+Year2Weight*VLOOKUP("P",FringeTable,3,FALSE)+Year3Weight*VLOOKUP("P",FringeTable,4,FALSE) -> 0.26 | H110: =VLOOKUP("r",[0]!fringes,2,FALSE) -> 0.081 | I110: =VLOOKUP("s",[0]!fringes,2,FALSE) -> 0.01 | J110: =VLOOKUP("w",[0]!fringes,2,FALSE) -> 0.01 | K110: 1.0%* | L110: =IF(SUM(B109:K109)=0,"",SUM(B109:K109)) ->  | M110: Salaries
A111: Benefits | B111: =IF(SUMIF('Salary Detail'!$P$24:$P$63,"f",'Salary Detail'!$E$79:$E$118)=0,"",SUMIF('Salary Detail'!$P$24:$P$63,"f",'Salary Detail'!$E$79:$E$118)) ->  | C111: =IF(SUMIF('Salary Detail'!$P$24:$P$63,"O",'Salary Detail'!$E$79:$E$118)=0,"",SUMIF('Salary Detail'!$P$24:$P$63,"O",'Salary Detail'!$E$79:$E$118)) ->  | D111: =IF(SUMIF('Salary Detail'!$P$24:$P$63,"L",'Salary Detail'!$E$79:$E$118)=0,"",SUMIF('Salary Detail'!$P$24:$P$63,"L",'Salary Detail'!$E$79:$E$118)) ->  | E111: =IF(SUMIF('Salary Detail'!$P$24:$P$63,"a",'Salary Detail'!$E$79:$E$118)=0,"",SUMIF('Salary Detail'!$P$24:$P$63,"a",'Salary Detail'!$E$79:$E$118)) ->  | F111: =IF(SUMIF('Salary Detail'!$P$24:$P$63,"t",'Salary Detail'!$E$79:$E$118)=0,"",SUMIF('Salary Detail'!$P$24:$P$63,"t",'Salary Detail'!$E$79:$E$118)) ->  | G111: =IF(SUMIF('Salary Detail'!$P$24:$P$63,"p",'Salary Detail'!$E$79:$E$118)=0,"",SUMIF('Salary Detail'!$P$24:$P$63,"p",'Salary Detail'!$E$79:$E$118)) ->  | H111: =IF(SUMIF('Salary Detail'!$P$24:$P$63,"r",'Salary Detail'!$E$79:$E$118)=0,"",SUMIF('Salary Detail'!$P$24:$P$63,"r",'Salary Detail'!$E$79:$E$118)) ->  | I111: =IF(SUMIF('Salary Detail'!$P$24:$P$63,"s",'Salary Detail'!$E$79:$E$118)=0,"",SUMIF('Salary Detail'!$P$24:$P$63,"s",'Salary Detail'!$E$79:$E$118)) ->  | J111: =IF(SUMIF('Salary Detail'!$P$24:$P$63,"w",'Salary Detail'!$E$79:$E$118)=0,"",SUMIF('Salary Detail'!$P$24:$P$63,"w",'Salary Detail'!$E$79:$E$118)) ->  | K111: =IF(SUMIF('Salary Detail'!$P$24:$P$63,"g",'Salary Detail'!$E$79:$E$118)=0,"",SUMIF('Salary Detail'!$P$24:$P$63,"g",'Salary Detail'!$E$79:$E$118)) ->  | L111: =IF(SUM(B111:K111)=0,"",SUM(B111:K111)) ->  | M111: Fringe Benefits
A112: Salary & Benefits | B112: =IFERROR(B109+B111,"") ->  | L112: =IF(SUM(B112:K112)=0,"",SUM(B112:K112)) ->  | M112: Total for Year 2
A114: HEALTH SCIENCES CENTER
A115: SUMMARY OF PERSONNEL TYPES AND RELATED BENEFITS
E117: PI's Name: | F117: =IF('Salary Detail'!E5=0,"",'Salary Detail'!E5) -> 
E118: Department: | F118: =IF('Salary Detail'!E6=0,"",'Salary Detail'!E6) -> 
E119: Project Title: | F119: =IF('Salary Detail'!E7=0,"",'Salary Detail'!E7) -> 
E120: Funding Agency: | F120: =IF('Salary Detail'!E8=0,"",'Salary Detail'!E8) -> 
A122: Year 3 - Salaries & Benefits
B123: Faculty | C123: Other Prof. | D123: Technical | E123: Sec/Clerical | F123: Temporary | G123: Postdoctoral | H123: Retired | I123: Student | J123: Workstudy | K123: GRAs | L123: Fringe | M123: Totals
A124: ='Salary Detail'!A133 ->  | B124: =IF('Salary Detail'!P24="f",'Salary Detail'!L79,"") ->  | C124: =IF('Salary Detail'!P24="o",'Salary Detail'!L79,"") ->  | D124: =IF('Salary Detail'!P24="l",'Salary Detail'!L79,"") ->  | E124: =IF('Salary Detail'!P24="a",'Salary Detail'!L79,"") ->  | F124: =IF('Salary Detail'!P24="t",'Salary Detail'!L79,"") ->  | G124: =IF('Salary Detail'!P24="p",'Salary Detail'!L79,"") ->  | H124: =IF('Salary Detail'!P24="r",'Salary Detail'!L79,"") ->  | I124: =IF('Salary Detail'!P24="s",'Salary Detail'!L79,"") ->  | J124: =IF('Salary Detail'!P24="w",'Salary Detail'!L79,"") ->  | K124: =IF('Salary Detail'!P24="G",'Salary Detail'!L79,"") ->  | L124: ='Salary Detail'!M79 ->  | M124: =IF(SUM(B124:L124)=0,"",SUM(B124:L124)) -> 
A125: ='Salary Detail'!A134 ->  | B125: =IF('Salary Detail'!P25="f",'Salary Detail'!L80,"") ->  | C125: =IF('Salary Detail'!P25="o",'Salary Detail'!L80,"") ->  | D125: =IF('Salary Detail'!P25="l",'Salary Detail'!L80,"") ->  | E125: =IF('Salary Detail'!P25="a",'Salary Detail'!L80,"") ->  | F125: =IF('Salary Detail'!P25="t",'Salary Detail'!L80,"") ->  | G125: =IF('Salary Detail'!P25="p",'Salary Detail'!L80,"") ->  | H125: =IF('Salary Detail'!P25="r",'Salary Detail'!L80,"") ->  | I125: =IF('Salary Detail'!P25="s",'Salary Detail'!L80,"") ->  | J125: =IF('Salary Detail'!P25="w",'Salary Detail'!L80,"") ->  | K125: =IF('Salary Detail'!P25="G",'Salary Detail'!L80,"") ->  | L125: ='Salary Detail'!M80 -> 
A126: ='Salary Detail'!A135 ->  | B126: =IF('Salary Detail'!P26="f",'Salary Detail'!L81,"") ->  | C126: =IF('Salary Detail'!P26="o",'Salary Detail'!L81,"") ->  | D126: =IF('Salary Detail'!P26="l",'Salary Detail'!L81,"") ->  | E126: =IF('Salary Detail'!P26="a",'Salary Detail'!L81,"") ->  | F126: =IF('Salary Detail'!P26="t",'Salary Detail'!L81,"") ->  | G126: =IF('Salary Detail'!P26="p",'Salary Detail'!L81,"") ->  | H126: =IF('Salary Detail'!P26="r",'Salary Detail'!L81,"") ->  | I126: =IF('Salary Detail'!P26="s",'Salary Detail'!L81,"") ->  | J126: =IF('Salary Detail'!P26="w",'Salary Detail'!L81,"") ->  | K126: =IF('Salary Detail'!P26="G",'Salary Detail'!L81,"") ->  | L126: ='Salary Detail'!M81 -> 
A127: ='Salary Detail'!A136 ->  | B127: =IF('Salary Detail'!P27="f",'Salary Detail'!L82,"") ->  | C127: =IF('Salary Detail'!P27="o",'Salary Detail'!L82,"") ->  | D127: =IF('Salary Detail'!P27="l",'Salary Detail'!L82,"") ->  | E127: =IF('Salary Detail'!P27="a",'Salary Detail'!L82,"") ->  | F127: =IF('Salary Detail'!P27="t",'Salary Detail'!L82,"") ->  | G127: =IF('Salary Detail'!P27="p",'Salary Detail'!L82,"") ->  | H127: =IF('Salary Detail'!P27="r",'Salary Detail'!L82,"") ->  | I127: =IF('Salary Detail'!P27="s",'Salary Detail'!L82,"") ->  | J127: =IF('Salary Detail'!P27="w",'Salary Detail'!L82,"") ->  | K127: =IF('Salary Detail'!P27="G",'Salary Detail'!L82,"") ->  | L127: ='Salary Detail'!M82 -> 
A128: ='Salary Detail'!A137 ->  | B128: =IF('Salary Detail'!P28="f",'Salary Detail'!L83,"") ->  | C128: =IF('Salary Detail'!P28="o",'Salary Detail'!L83,"") ->  | D128: =IF('Salary Detail'!P28="l",'Salary Detail'!L83,"") ->  | E128: =IF('Salary Detail'!P28="a",'Salary Detail'!L83,"") ->  | F128: =IF('Salary Detail'!P28="t",'Salary Detail'!L83,"") ->  | G128: =IF('Salary Detail'!P28="p",'Salary Detail'!L83,"") ->  | H128: =IF('Salary Detail'!P28="r",'Salary Detail'!L83,"") ->  | I128: =IF('Salary Detail'!P28="s",'Salary Detail'!L83,"") ->  | J128: =IF('Salary Detail'!P28="w",'Salary Detail'!L83,"") ->  | K128: =IF('Salary Detail'!P28="G",'Salary Detail'!L83,"") ->  | L128: ='Salary Detail'!M83 -> 
A129: ='Salary Detail'!A138 ->  | B129: =IF('Salary Detail'!P29="f",'Salary Detail'!L84,"") ->  | C129: =IF('Salary Detail'!P29="o",'Salary Detail'!L84,"") ->  | D129: =IF('Salary Detail'!P29="l",'Salary Detail'!L84,"") ->  | E129: =IF('Salary Detail'!P29="a",'Salary Detail'!L84,"") ->  | F129: =IF('Salary Detail'!P29="t",'Salary Detail'!L84,"") ->  | G129: =IF('Salary Detail'!P29="p",'Salary Detail'!L84,"") ->  | H129: =IF('Salary Detail'!P29="r",'Salary Detail'!L84,"") ->  | I129: =IF('Salary Detail'!P29="s",'Salary Detail'!L84,"") ->  | J129: =IF('Salary Detail'!P29="w",'Salary Detail'!L84,"") ->  | K129: =IF('Salary Detail'!P29="G",'Salary Detail'!L84,"") ->  | L129: ='Salary Detail'!M84 -> 
A130: ='Salary Detail'!A139 ->  | B130: =IF('Salary Detail'!P30="f",'Salary Detail'!L85,"") ->  | C130: =IF('Salary Detail'!P30="o",'Salary Detail'!L85,"") ->  | D130: =IF('Salary Detail'!P30="l",'Salary Detail'!L85,"") ->  | E130: =IF('Salary Detail'!P30="a",'Salary Detail'!L85,"") ->  | F130: =IF('Salary Detail'!P30="t",'Salary Detail'!L85,"") ->  | G130: =IF('Salary Detail'!P30="p",'Salary Detail'!L85,"") ->  | H130: =IF('Salary Detail'!P30="r",'Salary Detail'!L85,"") ->  | I130: =IF('Salary Detail'!P30="s",'Salary Detail'!L85,"") ->  | J130: =IF('Salary Detail'!P30="w",'Salary Detail'!L85,"") ->  | K130: =IF('Salary Detail'!P30="G",'Salary Detail'!L85,"") ->  | L130: ='Salary Detail'!M85 -> 
A131: ='Salary Detail'!A140 ->  | B131: =IF('Salary Detail'!P31="f",'Salary Detail'!L86,"") ->  | C131: =IF('Salary Detail'!P31="o",'Salary Detail'!L86,"") ->  | D131: =IF('Salary Detail'!P31="l",'Salary Detail'!L86,"") ->  | E131: =IF('Salary Detail'!P31="a",'Salary Detail'!L86,"") ->  | F131: =IF('Salary Detail'!P31="t",'Salary Detail'!L86,"") ->  | G131: =IF('Salary Detail'!P31="p",'Salary Detail'!L86,"") ->  | H131: =IF('Salary Detail'!P31="r",'Salary Detail'!L86,"") ->  | I131: =IF('Salary Detail'!P31="s",'Salary Detail'!L86,"") ->  | J131: =IF('Salary Detail'!P31="w",'Salary Detail'!L86,"") ->  | K131: =IF('Salary Detail'!P31="G",'Salary Detail'!L86,"") ->  | L131: ='Salary Detail'!M86 -> 
A132: ='Salary Detail'!A141 ->  | B132: =IF('Salary Detail'!P32="f",'Salary Detail'!L87,"") ->  | C132: =IF('Salary Detail'!P32="o",'Salary Detail'!L87,"") ->  | D132: =IF('Salary Detail'!P32="l",'Salary Detail'!L87,"") ->  | E132: =IF('Salary Detail'!P32="a",'Salary Detail'!L87,"") ->  | F132: =IF('Salary Detail'!P32="t",'Salary Detail'!L87,"") ->  | G132: =IF('Salary Detail'!P32="p",'Salary Detail'!L87,"") ->  | H132: =IF('Salary Detail'!P32="r",'Salary Detail'!L87,"") ->  | I132: =IF('Salary Detail'!P32="s",'Salary Detail'!L87,"") ->  | J132: =IF('Salary Detail'!P32="w",'Salary Detail'!L87,"") ->  | K132: =IF('Salary Detail'!P32="G",'Salary Detail'!L87,"") ->  | L132: ='Salary Detail'!M87 -> 
A133: ='Salary Detail'!A142 ->  | B133: =IF('Salary Detail'!P33="f",'Salary Detail'!L88,"") ->  | C133: =IF('Salary Detail'!P33="o",'Salary Detail'!L88,"") ->  | D133: =IF('Salary Detail'!P33="l",'Salary Detail'!L88,"") ->  | E133: =IF('Salary Detail'!P33="a",'Salary Detail'!L88,"") ->  | F133: =IF('Salary Detail'!P33="t",'Salary Detail'!L88,"") ->  | G133: =IF('Salary Detail'!P33="p",'Salary Detail'!L88,"") ->  | H133: =IF('Salary Detail'!P33="r",'Salary Detail'!L88,"") ->  | I133: =IF('Salary Detail'!P33="s",'Salary Detail'!L88,"") ->  | J133: =IF('Salary Detail'!P33="w",'Salary Detail'!L88,"") ->  | K133: =IF('Salary Detail'!P33="G",'Salary Detail'!L88,"") ->  | L133: ='Salary Detail'!M88 -> 
A134: ='Salary Detail'!A143 ->  | B134: =IF('Salary Detail'!P34="f",'Salary Detail'!L89,"") ->  | C134: =IF('Salary Detail'!P34="o",'Salary Detail'!L89,"") ->  | D134: =IF('Salary Detail'!P34="l",'Salary Detail'!L89,"") ->  | E134: =IF('Salary Detail'!P34="a",'Salary Detail'!L89,"") ->  | F134: =IF('Salary Detail'!P34="t",'Salary Detail'!L89,"") ->  | G134: =IF('Salary Detail'!P34="p",'Salary Detail'!L89,"") ->  | H134: =IF('Salary Detail'!P34="r",'Salary Detail'!L89,"") ->  | I134: =IF('Salary Detail'!P34="s",'Salary Detail'!L89,"") ->  | J134: =IF('Salary Detail'!P34="w",'Salary Detail'!L89,"") ->  | K134: =IF('Salary Detail'!P34="G",'Salary Detail'!L89,"") ->  | L134: ='Salary Detail'!M89 -> 
A135: ='Salary Detail'!A144 ->  | B135: =IF('Salary Detail'!P35="f",'Salary Detail'!L90,"") ->  | C135: =IF('Salary Detail'!P35="o",'Salary Detail'!L90,"") ->  | D135: =IF('Salary Detail'!P35="l",'Salary Detail'!L90,"") ->  | E135: =IF('Salary Detail'!P35="a",'Salary Detail'!L90,"") ->  | F135: =IF('Salary Detail'!P35="t",'Salary Detail'!L90,"") ->  | G135: =IF('Salary Detail'!P35="p",'Salary Detail'!L90,"") ->  | H135: =IF('Salary Detail'!P35="r",'Salary Detail'!L90,"") ->  | I135: =IF('Salary Detail'!P35="s",'Salary Detail'!L90,"") ->  | J135: =IF('Salary Detail'!P35="w",'Salary Detail'!L90,"") ->  | K135: =IF('Salary Detail'!P35="G",'Salary Detail'!L90,"") ->  | L135: ='Salary Detail'!M90 -> 
A136: ='Salary Detail'!A145 ->  | B136: =IF('Salary Detail'!P36="f",'Salary Detail'!L91,"") ->  | C136: =IF('Salary Detail'!P36="o",'Salary Detail'!L91,"") ->  | D136: =IF('Salary Detail'!P36="l",'Salary Detail'!L91,"") ->  | E136: =IF('Salary Detail'!P36="a",'Salary Detail'!L91,"") ->  | F136: =IF('Salary Detail'!P36="t",'Salary Detail'!L91,"") ->  | G136: =IF('Salary Detail'!P36="p",'Salary Detail'!L91,"") ->  | H136: =IF('Salary Detail'!P36="r",'Salary Detail'!L91,"") ->  | I136: =IF('Salary Detail'!P36="s",'Salary Detail'!L91,"") ->  | J136: =IF('Salary Detail'!P36="w",'Salary Detail'!L91,"") ->  | K136: =IF('Salary Detail'!P36="G",'Salary Detail'!L91,"") ->  | L136: ='Salary Detail'!M91 -> 
A137: ='Salary Detail'!A146 ->  | B137: =IF('Salary Detail'!P37="f",'Salary Detail'!L92,"") ->  | C137: =IF('Salary Detail'!P37="o",'Salary Detail'!L92,"") ->  | D137: =IF('Salary Detail'!P37="l",'Salary Detail'!L92,"") ->  | E137: =IF('Salary Detail'!P37="a",'Salary Detail'!L92,"") ->  | F137: =IF('Salary Detail'!P37="t",'Salary Detail'!L92,"") ->  | G137: =IF('Salary Detail'!P37="p",'Salary Detail'!L92,"") ->  | H137: =IF('Salary Detail'!P37="r",'Salary Detail'!L92,"") ->  | I137: =IF('Salary Detail'!P37="s",'Salary Detail'!L92,"") ->  | J137: =IF('Salary Detail'!P37="w",'Salary Detail'!L92,"") ->  | K137: =IF('Salary Detail'!P37="G",'Salary Detail'!L92,"") ->  | L137: ='Salary Detail'!M92 -> 
A138: ='Salary Detail'!A147 ->  | B138: =IF('Salary Detail'!P38="f",'Salary Detail'!L93,"") ->  | C138: =IF('Salary Detail'!P38="o",'Salary Detail'!L93,"") ->  | D138: =IF('Salary Detail'!P38="l",'Salary Detail'!L93,"") ->  | E138: =IF('Salary Detail'!P38="a",'Salary Detail'!L93,"") ->  | F138: =IF('Salary Detail'!P38="t",'Salary Detail'!L93,"") ->  | G138: =IF('Salary Detail'!P38="p",'Salary Detail'!L93,"") ->  | H138: =IF('Salary Detail'!P38="r",'Salary Detail'!L93,"") ->  | I138: =IF('Salary Detail'!P38="s",'Salary Detail'!L93,"") ->  | J138: =IF('Salary Detail'!P38="w",'Salary Detail'!L93,"") ->  | K138: =IF('Salary Detail'!P38="G",'Salary Detail'!L93,"") ->  | L138: ='Salary Detail'!M93 -> 
A139: ='Salary Detail'!A148 ->  | B139: =IF('Salary Detail'!P39="f",'Salary Detail'!L94,"") ->  | C139: =IF('Salary Detail'!P39="o",'Salary Detail'!L94,"") ->  | D139: =IF('Salary Detail'!P39="l",'Salary Detail'!L94,"") ->  | E139: =IF('Salary Detail'!P39="a",'Salary Detail'!L94,"") ->  | F139: =IF('Salary Detail'!P39="t",'Salary Detail'!L94,"") ->  | G139: =IF('Salary Detail'!P39="p",'Salary Detail'!L94,"") ->  | H139: =IF('Salary Detail'!P39="r",'Salary Detail'!L94,"") ->  | I139: =IF('Salary Detail'!P39="s",'Salary Detail'!L94,"") ->  | J139: =IF('Salary Detail'!P39="w",'Salary Detail'!L94,"") ->  | K139: =IF('Salary Detail'!P39="G",'Salary Detail'!L94,"") ->  | L139: ='Salary Detail'!M94 -> 
A140: ='Salary Detail'!A149 ->  | B140: =IF('Salary Detail'!P40="f",'Salary Detail'!L95,"") ->  | C140: =IF('Salary Detail'!P40="o",'Salary Detail'!L95,"") ->  | D140: =IF('Salary Detail'!P40="l",'Salary Detail'!L95,"") ->  | E140: =IF('Salary Detail'!P40="a",'Salary Detail'!L95,"") ->  | F140: =IF('Salary Detail'!P40="t",'Salary Detail'!L95,"") ->  | G140: =IF('Salary Detail'!P40="p",'Salary Detail'!L95,"") ->  | H140: =IF('Salary Detail'!P40="r",'Salary Detail'!L95,"") ->  | I140: =IF('Salary Detail'!P40="s",'Salary Detail'!L95,"") ->  | J140: =IF('Salary Detail'!P40="w",'Salary Detail'!L95,"") ->  | K140: =IF('Salary Detail'!P40="G",'Salary Detail'!L95,"") ->  | L140: ='Salary Detail'!M95 -> 
A141: ='Salary Detail'!A150 ->  | B141: =IF('Salary Detail'!P41="f",'Salary Detail'!L96,"") ->  | C141: =IF('Salary Detail'!P41="o",'Salary Detail'!L96,"") ->  | D141: =IF('Salary Detail'!P41="l",'Salary Detail'!L96,"") ->  | E141: =IF('Salary Detail'!P41="a",'Salary Detail'!L96,"") ->  | F141: =IF('Salary Detail'!P41="t",'Salary Detail'!L96,"") ->  | G141: =IF('Salary Detail'!P41="p",'Salary Detail'!L96,"") ->  | H141: =IF('Salary Detail'!P41="r",'Salary Detail'!L96,"") ->  | I141: =IF('Salary Detail'!P41="s",'Salary Detail'!L96,"") ->  | J141: =IF('Salary Detail'!P41="w",'Salary Detail'!L96,"") ->  | K141: =IF('Salary Detail'!P41="G",'Salary Detail'!L96,"") ->  | L141: ='Salary Detail'!M96 -> 
A142: ='Salary Detail'!A151 ->  | B142: =IF('Salary Detail'!P42="f",'Salary Detail'!L97,"") ->  | C142: =IF('Salary Detail'!P42="o",'Salary Detail'!L97,"") ->  | D142: =IF('Salary Detail'!P42="l",'Salary Detail'!L97,"") ->  | E142: =IF('Salary Detail'!P42="a",'Salary Detail'!L97,"") ->  | F142: =IF('Salary Detail'!P42="t",'Salary Detail'!L97,"") ->  | G142: =IF('Salary Detail'!P42="p",'Salary Detail'!L97,"") ->  | H142: =IF('Salary Detail'!P42="r",'Salary Detail'!L97,"") ->  | I142: =IF('Salary Detail'!P42="s",'Salary Detail'!L97,"") ->  | J142: =IF('Salary Detail'!P42="w",'Salary Detail'!L97,"") ->  | K142: =IF('Salary Detail'!P42="G",'Salary Detail'!L97,"") ->  | L142: ='Salary Detail'!M97 -> 
A143: ='Salary Detail'!A152 ->  | B143: =IF('Salary Detail'!P43="f",'Salary Detail'!L98,"") ->  | C143: =IF('Salary Detail'!P43="o",'Salary Detail'!L98,"") ->  | D143: =IF('Salary Detail'!P43="l",'Salary Detail'!L98,"") ->  | E143: =IF('Salary Detail'!P43="a",'Salary Detail'!L98,"") ->  | F143: =IF('Salary Detail'!P43="t",'Salary Detail'!L98,"") ->  | G143: =IF('Salary Detail'!P43="p",'Salary Detail'!L98,"") ->  | H143: =IF('Salary Detail'!P43="r",'Salary Detail'!L98,"") ->  | I143: =IF('Salary Detail'!P43="s",'Salary Detail'!L98,"") ->  | J143: =IF('Salary Detail'!P43="w",'Salary Detail'!L98,"") ->  | K143: =IF('Salary Detail'!P43="G",'Salary Detail'!L98,"") ->  | L143: ='Salary Detail'!M98 -> 
A144: ='Salary Detail'!A153 ->  | B144: =IF('Salary Detail'!P44="f",'Salary Detail'!L99,"") ->  | C144: =IF('Salary Detail'!P44="o",'Salary Detail'!L99,"") ->  | D144: =IF('Salary Detail'!P44="l",'Salary Detail'!L99,"") ->  | E144: =IF('Salary Detail'!P44="a",'Salary Detail'!L99,"") ->  | F144: =IF('Salary Detail'!P44="t",'Salary Detail'!L99,"") ->  | G144: =IF('Salary Detail'!P44="p",'Salary Detail'!L99,"") ->  | H144: =IF('Salary Detail'!P44="r",'Salary Detail'!L99,"") ->  | I144: =IF('Salary Detail'!P44="s",'Salary Detail'!L99,"") ->  | J144: =IF('Salary Detail'!P44="w",'Salary Detail'!L99,"") ->  | K144: =IF('Salary Detail'!P44="G",'Salary Detail'!L99,"") ->  | L144: ='Salary Detail'!M99 -> 
A145: ='Salary Detail'!A154 ->  | B145: =IF('Salary Detail'!P45="f",'Salary Detail'!L100,"") ->  | C145: =IF('Salary Detail'!P45="o",'Salary Detail'!L100,"") ->  | D145: =IF('Salary Detail'!P45="l",'Salary Detail'!L100,"") ->  | E145: =IF('Salary Detail'!P45="a",'Salary Detail'!L100,"") ->  | F145: =IF('Salary Detail'!P45="t",'Salary Detail'!L100,"") ->  | G145: =IF('Salary Detail'!P45="p",'Salary Detail'!L100,"") ->  | H145: =IF('Salary Detail'!P45="r",'Salary Detail'!L100,"") ->  | I145: =IF('Salary Detail'!P45="s",'Salary Detail'!L100,"") ->  | J145: =IF('Salary Detail'!P45="w",'Salary Detail'!L100,"") ->  | K145: =IF('Salary Detail'!P45="G",'Salary Detail'!L100,"") ->  | L145: ='Salary Detail'!M100 -> 
A146: ='Salary Detail'!A155 ->  | B146: =IF('Salary Detail'!P46="f",'Salary Detail'!L101,"") ->  | C146: =IF('Salary Detail'!P46="o",'Salary Detail'!L101,"") ->  | D146: =IF('Salary Detail'!P46="l",'Salary Detail'!L101,"") ->  | E146: =IF('Salary Detail'!P46="a",'Salary Detail'!L101,"") ->  | F146: =IF('Salary Detail'!P46="t",'Salary Detail'!L101,"") ->  | G146: =IF('Salary Detail'!P46="p",'Salary Detail'!L101,"") ->  | H146: =IF('Salary Detail'!P46="r",'Salary Detail'!L101,"") ->  | I146: =IF('Salary Detail'!P46="s",'Salary Detail'!L101,"") ->  | J146: =IF('Salary Detail'!P46="w",'Salary Detail'!L101,"") ->  | K146: =IF('Salary Detail'!P46="G",'Salary Detail'!L101,"") ->  | L146: ='Salary Detail'!M101 -> 
A147: ='Salary Detail'!A156 ->  | B147: =IF('Salary Detail'!P47="f",'Salary Detail'!L102,"") ->  | C147: =IF('Salary Detail'!P47="o",'Salary Detail'!L102,"") ->  | D147: =IF('Salary Detail'!P47="l",'Salary Detail'!L102,"") ->  | E147: =IF('Salary Detail'!P47="a",'Salary Detail'!L102,"") ->  | F147: =IF('Salary Detail'!P47="t",'Salary Detail'!L102,"") ->  | G147: =IF('Salary Detail'!P47="p",'Salary Detail'!L102,"") ->  | H147: =IF('Salary Detail'!P47="r",'Salary Detail'!L102,"") ->  | I147: =IF('Salary Detail'!P47="s",'Salary Detail'!L102,"") ->  | J147: =IF('Salary Detail'!P47="w",'Salary Detail'!L102,"") ->  | K147: =IF('Salary Detail'!P47="G",'Salary Detail'!L102,"") ->  | L147: ='Salary Detail'!M102 -> 
A148: ='Salary Detail'!A157 ->  | B148: =IF('Salary Detail'!P48="f",'Salary Detail'!L103,"") ->  | C148: =IF('Salary Detail'!P48="o",'Salary Detail'!L103,"") ->  | D148: =IF('Salary Detail'!P48="l",'Salary Detail'!L103,"") ->  | E148: =IF('Salary Detail'!P48="a",'Salary Detail'!L103,"") ->  | F148: =IF('Salary Detail'!P48="t",'Salary Detail'!L103,"") ->  | G148: =IF('Salary Detail'!P48="p",'Salary Detail'!L103,"") ->  | H148: =IF('Salary Detail'!P48="r",'Salary Detail'!L103,"") ->  | I148: =IF('Salary Detail'!P48="s",'Salary Detail'!L103,"") ->  | J148: =IF('Salary Detail'!P48="w",'Salary Detail'!L103,"") ->  | K148: =IF('Salary Detail'!P48="G",'Salary Detail'!L103,"") ->  | L148: ='Salary Detail'!M103 -> 
A149: ='Salary Detail'!A158 ->  | B149: =IF('Salary Detail'!P49="f",'Salary Detail'!L104,"") ->  | C149: =IF('Salary Detail'!P49="o",'Salary Detail'!L104,"") ->  | D149: =IF('Salary Detail'!P49="l",'Salary Detail'!L104,"") ->  | E149: =IF('Salary Detail'!P49="a",'Salary Detail'!L104,"") ->  | F149: =IF('Salary Detail'!P49="t",'Salary Detail'!L104,"") ->  | G149: =IF('Salary Detail'!P49="p",'Salary Detail'!L104,"") ->  | H149: =IF('Salary Detail'!P49="r",'Salary Detail'!L104,"") ->  | I149: =IF('Salary Detail'!P49="s",'Salary Detail'!L104,"") ->  | J149: =IF('Salary Detail'!P49="w",'Salary Detail'!L104,"") ->  | K149: =IF('Salary Detail'!P49="G",'Salary Detail'!L104,"") ->  | L149: ='Salary Detail'!M104 -> 
A150: ='Salary Detail'!A159 ->  | B150: =IF('Salary Detail'!P50="f",'Salary Detail'!L105,"") ->  | C150: =IF('Salary Detail'!P50="o",'Salary Detail'!L105,"") ->  | D150: =IF('Salary Detail'!P50="l",'Salary Detail'!L105,"") ->  | E150: =IF('Salary Detail'!P50="a",'Salary Detail'!L105,"") ->  | F150: =IF('Salary Detail'!P50="t",'Salary Detail'!L105,"") ->  | G150: =IF('Salary Detail'!P50="p",'Salary Detail'!L105,"") ->  | H150: =IF('Salary Detail'!P50="r",'Salary Detail'!L105,"") ->  | I150: =IF('Salary Detail'!P50="s",'Salary Detail'!L105,"") ->  | J150: =IF('Salary Detail'!P50="w",'Salary Detail'!L105,"") ->  | K150: =IF('Salary Detail'!P50="G",'Salary Detail'!L105,"") ->  | L150: ='Salary Detail'!M105 -> 
A151: ='Salary Detail'!A160 ->  | B151: =IF('Salary Detail'!P51="f",'Salary Detail'!L106,"") ->  | C151: =IF('Salary Detail'!P51="o",'Salary Detail'!L106,"") ->  | D151: =IF('Salary Detail'!P51="l",'Salary Detail'!L106,"") ->  | E151: =IF('Salary Detail'!P51="a",'Salary Detail'!L106,"") ->  | F151: =IF('Salary Detail'!P51="t",'Salary Detail'!L106,"") ->  | G151: =IF('Salary Detail'!P51="p",'Salary Detail'!L106,"") ->  | H151: =IF('Salary Detail'!P51="r",'Salary Detail'!L106,"") ->  | I151: =IF('Salary Detail'!P51="s",'Salary Detail'!L106,"") ->  | J151: =IF('Salary Detail'!P51="w",'Salary Detail'!L106,"") ->  | K151: =IF('Salary Detail'!P51="G",'Salary Detail'!L106,"") ->  | L151: ='Salary Detail'!M106 -> 
A152: ='Salary Detail'!A161 ->  | B152: =IF('Salary Detail'!P52="f",'Salary Detail'!L107,"") ->  | C152: =IF('Salary Detail'!P52="o",'Salary Detail'!L107,"") ->  | D152: =IF('Salary Detail'!P52="l",'Salary Detail'!L107,"") ->  | E152: =IF('Salary Detail'!P52="a",'Salary Detail'!L107,"") ->  | F152: =IF('Salary Detail'!P52="t",'Salary Detail'!L107,"") ->  | G152: =IF('Salary Detail'!P52="p",'Salary Detail'!L107,"") ->  | H152: =IF('Salary Detail'!P52="r",'Salary Detail'!L107,"") ->  | I152: =IF('Salary Detail'!P52="s",'Salary Detail'!L107,"") ->  | J152: =IF('Salary Detail'!P52="w",'Salary Detail'!L107,"") ->  | K152: =IF('Salary Detail'!P52="G",'Salary Detail'!L107,"") ->  | L152: ='Salary Detail'!M107 -> 
